Workbook

Sheet Contents
C3: Sheet Tab | D3: Description | E3: Author
B4: 1 | C4: Contents
B5: 2 | C5: Assumptions
B6: 3 | C6: Financial Model
B7: 4 | C7: Annual Model
B8: 5 | C8: Key Points

Sheet Assumptions
A1: Assumption
E2: Units
B3: Timing Assumption
C4: Development Start | E4: Date | G4: 2015-01-01
C5: Development Period | E5: Years | G5: 3
C6: Land Puchase and Financing Date | E6: Date | G6: =EDATE(G4,G5*12) -> 2018-01-01
C7: Construction Period | E7: Months | G7: 40
C8: Temporary Occupancy Date | E8: Date | G8: =EDATE(G6,G7) -> 2021-05-01
C9: Holding Period | E9: Quarters | G9: 100
C10: Sold Period | E10: Date | G10: =EDATE(G8,G9*3) -> 2046-05-01
B12: Construction Cost Assumptions and Development
D13: Development Costs | E13: Percent | F13: 0.05 | G13: =F13*G18 -> 710000
D14: Number of Rooms | E14: Rooms | G14: 80
D15: Cost Per Room - USD | E15: USD/Room | G15: 140000
D16: Total Facility Cost | E16: USD | G16: =PRODUCT(G14:G15) -> 11200000
D17: Land Cost | E17: USD | G17: 3000000
D18: Total Cost | E18: USD | G18: =SUM(G16:G17) -> 14200000
D19: S-Curve - Year | H19: 1 | I19: 2 | J19: 3 | K19: 4
D20: Spend Percent | E20: Percent | H20: 0.1 | I20: 0.35 | J20: 0.5 | K20: 0.05
D21: Month | H21: 1 | I21: 2 | J21: 3 | K21: 4 | L21: 5 | M21: 6 | N21: 7 | O21: 8 | P21: 9 | Q21: 10 | R21: 11 | S21: 12 | T21: 13 | U21: 14 | V21: 15 | W21: 16 | X21: 17 | Y21: 18 | Z21: 19 | AA21: 20 | AB21: 21 | AC21: 22 | AD21: 23 | AE21: 24 | AF21: 25 | AG21: 26 | AH21: 27 | AI21: 28 | AJ21: 29 | AK21: 30 | AL21: 31 | AM21: 32 | AN21: 33 | AO21: 34 | AP21: 35 | AQ21: 36 | AR21: 37 | AS21: 38 | AT21: 39 | AU21: 40 | AV21: 41 | AW21: 42 | AX21: 43 | AY21: 44 | AZ21: 45 | BA21: 46 | BB21: 47 | BC21: 48 | BD21: 49 | BE21: 50 | BF21: 51 | BG21: 52 | BH21: 53 | BI21: 54 | BJ21: 55 | BK21: 56 | BL21: 57 | BM21: 58 | BN21: 59 | BO21: 60 | BP21: 61 | BQ21: 62 | BR21: 63 | BS21: 64 | BT21: 65
D22: Spend Percent | H22: =LOOKUP(ROUNDUP(H21/12,0),19:19,20:20)/12 -> 0.008333333333 | I22: =LOOKUP(ROUNDUP(I21/12,0),19:19,20:20)/12 -> 0.008333333333 | J22: =LOOKUP(ROUNDUP(J21/12,0),19:19,20:20)/12 -> 0.008333333333 | K22: =LOOKUP(ROUNDUP(K21/12,0),19:19,20:20)/12 -> 0.008333333333 | L22: =LOOKUP(ROUNDUP(L21/12,0),19:19,20:20)/12 -> 0.008333333333 | M22: =LOOKUP(ROUNDUP(M21/12,0),19:19,20:20)/12 -> 0.008333333333 | N22: =LOOKUP(ROUNDUP(N21/12,0),19:19,20:20)/12 -> 0.008333333333 | O22: =LOOKUP(ROUNDUP(O21/12,0),19:19,20:20)/12 -> 0.008333333333 | P22: =LOOKUP(ROUNDUP(P21/12,0),19:19,20:20)/12 -> 0.008333333333 | Q22: =LOOKUP(ROUNDUP(Q21/12,0),19:19,20:20)/12 -> 0.008333333333 | R22: =LOOKUP(ROUNDUP(R21/12,0),19:19,20:20)/12 -> 0.008333333333 | S22: =LOOKUP(ROUNDUP(S21/12,0),19:19,20:20)/12 -> 0.008333333333 | T22: =LOOKUP(ROUNDUP(T21/12,0),19:19,20:20)/12 -> 0.02916666667 | U22: =LOOKUP(ROUNDUP(U21/12,0),19:19,20:20)/12 -> 0.02916666667 | V22: =LOOKUP(ROUNDUP(V21/12,0),19:19,20:20)/12 -> 0.02916666667 | W22: =LOOKUP(ROUNDUP(W21/12,0),19:19,20:20)/12 -> 0.02916666667 | X22: =LOOKUP(ROUNDUP(X21/12,0),19:19,20:20)/12 -> 0.02916666667 | Y22: =LOOKUP(ROUNDUP(Y21/12,0),19:19,20:20)/12 -> 0.02916666667 | Z22: =LOOKUP(ROUNDUP(Z21/12,0),19:19,20:20)/12 -> 0.02916666667 | AA22: =LOOKUP(ROUNDUP(AA21/12,0),19:19,20:20)/12 -> 0.02916666667 | AB22: =LOOKUP(ROUNDUP(AB21/12,0),19:19,20:20)/12 -> 0.02916666667 | AC22: =LOOKUP(ROUNDUP(AC21/12,0),19:19,20:20)/12 -> 0.02916666667 | AD22: =LOOKUP(ROUNDUP(AD21/12,0),19:19,20:20)/12 -> 0.02916666667 | AE22: =LOOKUP(ROUNDUP(AE21/12,0),19:19,20:20)/12 -> 0.02916666667 | AF22: =LOOKUP(ROUNDUP(AF21/12,0),19:19,20:20)/12 -> 0.04166666667 | AG22: =LOOKUP(ROUNDUP(AG21/12,0),19:19,20:20)/12 -> 0.04166666667 | AH22: =LOOKUP(ROUNDUP(AH21/12,0),19:19,20:20)/12 -> 0.04166666667 | AI22: =LOOKUP(ROUNDUP(AI21/12,0),19:19,20:20)/12 -> 0.04166666667 | AJ22: =LOOKUP(ROUNDUP(AJ21/12,0),19:19,20:20)/12 -> 0.04166666667 | AK22: =LOOKUP(ROUNDUP(AK21/12,0),19:19,20:20)/12 -> 0.04166666667 | AL22: =LOOKUP(ROUNDUP(AL21/12,0),19:19,20:20)/12 -> 0.04166666667 | AM22: =LOOKUP(ROUNDUP(AM21/12,0),19:19,20:20)/12 -> 0.04166666667 | AN22: =LOOKUP(ROUNDUP(AN21/12,0),19:19,20:20)/12 -> 0.04166666667 | AO22: =LOOKUP(ROUNDUP(AO21/12,0),19:19,20:20)/12 -> 0.04166666667 | AP22: =LOOKUP(ROUNDUP(AP21/12,0),19:19,20:20)/12 -> 0.04166666667 | AQ22: =LOOKUP(ROUNDUP(AQ21/12,0),19:19,20:20)/12 -> 0.04166666667 | AR22: =K20/4 -> 0.0125 | AS22: =AR22 -> 0.0125 | AT22: =AS22 -> 0.0125 | AU22: =AT22 -> 0.0125
B24: General Economic Assumption
D25: Year | G25: =YEAR(G4) -> 2015 | H25: =G25+4 -> 2019 | I25: =H25+4 -> 2023 | J25: =I25+4 -> 2027 | K25: =J25+4 -> 2031 | L25: =K25+4 -> 2035
D26: Revenue Inflation | E26: Percent | G26: 0.005 | H26: 0.01 | I26: 0.011 | J26: 0.015 | K26: 0.018 | L26: 0.018
D27: Cost Inflation | E27: Percent | G27: 0.005 | H27: 0.01 | I27: 0.011 | J27: 0.015 | K27: 0.02 | L27: 0.022
D28: Base Interest Rate (LIBOR) | E28: Percent | G28: 0.002 | H28: 0.015 | I28: 0.02 | J28: 0.025 | K28: 0.03 | L28: 0.03
B30: Revenues Assumptions
D31: RevPar - USD/Day | E31: USD/Room/Day | G31: 180
D33: Year | G33: 1 | H33: 2 | I33: 3 | J33: 4
D34: Occupancy Rate | E34: Pct per year | G34: 0.6 | H34: 0.65 | I34: 0.7 | J34: 0.75
D35: Other Revenues - Room Service and Conferences | E35: Pct of Revenues | G35: 0.31 | H35: =G35 -> 0.31 | I35: =H35 -> 0.31 | J35: =I35 -> 0.31
B37: Operating Expense Assumptions
E38: Number | G38: 60
D39: Number of Staff | E39: USD/Year Real | G39: 25000
D40: Overhead Percent | E40: Pct of Salary | G40: 0.3
D41: Other Cost | E41: Pct of Salary | G41: 0.6
D42: Food and Other Costs | E42: Pct of Salary | G42: 0.39
B44: Cap Rate Exit Assumption | E44: Rate | G44: 0.06
A46: Capital Allowance and Depreciation
D47: Corporate Tax Rate | E47: Percent | G47: 0.2
D48: Capital Allowance Period | E48: Year | G48: 10
A50: Financing Assumptions
D51: Loan to Value - Land Cost | G51: 0.8
D52: Repayment Period | G52: 10
D53: Credit Spread | G53: 0.015
C55: Construction Loan
D56: Loan to Value | G56: 0.65
D57: Cash Sweep Percent | G57: 0.7
D58: Credit Spread | G58: 0.02

Sheet Financial Model
A1: Timeline
C2: Period | H2: Start | I2: Period | K2: 0 | L2: =K2+1 -> 1 | M2: =L2+1 -> 2 | N2: =M2+1 -> 3 | O2: =N2+1 -> 4 | P2: =O2+1 -> 5 | Q2: =P2+1 -> 6 | R2: =Q2+1 -> 7 | S2: =R2+1 -> 8 | T2: =S2+1 -> 9 | U2: =T2+1 -> 10 | V2: =U2+1 -> 11 | W2: =V2+1 -> 12 | X2: =W2+1 -> 13 | Y2: =X2+1 -> 14 | Z2: =Y2+1 -> 15 | AA2: =Z2+1 -> 16 | AB2: =AA2+1 -> 17 | AC2: =AB2+1 -> 18 | AD2: =AC2+1 -> 19 | AE2: =AD2+1 -> 20 | AF2: =AE2+1 -> 21 | AG2: =AF2+1 -> 22 | AH2: =AG2+1 -> 23 | AI2: =AH2+1 -> 24 | AJ2: =AI2+1 -> 25 | AK2: =AJ2+1 -> 26 | AL2: =AK2+1 -> 27 | AM2: =AL2+1 -> 28 | AN2: =AM2+1 -> 29 | AO2: =AN2+1 -> 30 | AP2: =AO2+1 -> 31 | AQ2: =AP2+1 -> 32 | AR2: =AQ2+1 -> 33 | AS2: =AR2+1 -> 34 | AT2: =AS2+1 -> 35 | AU2: =AT2+1 -> 36 | AV2: =AU2+1 -> 37 | AW2: =AV2+1 -> 38 | AX2: =AW2+1 -> 39 | AY2: =AX2+1 -> 40 | AZ2: =AY2+1 -> 41 | BA2: =AZ2+1 -> 42 | BB2: =BA2+1 -> 43 | BC2: =BB2+1 -> 44 | BD2: =BC2+1 -> 45 | BE2: =BD2+1 -> 46 | BF2: =BE2+1 -> 47 | BG2: =BF2+1 -> 48 | BH2: =BG2+1 -> 49 | BI2: =BH2+1 -> 50 | BJ2: =BI2+1 -> 51 | BK2: =BJ2+1 -> 52 | BL2: =BK2+1 -> 53 | BM2: =BL2+1 -> 54 | BN2: =BM2+1 -> 55 | BO2: =BN2+1 -> 56 | BP2: =BO2+1 -> 57 | BQ2: =BP2+1 -> 58 | BR2: =BQ2+1 -> 59 | BS2: =BR2+1 -> 60 | BT2: =BS2+1 -> 61 | BU2: =BT2+1 -> 62 | BV2: =BU2+1 -> 63 | BW2: =BV2+1 -> 64 | BX2: =BW2+1 -> 65 | BY2: =BX2+1 -> 66 | BZ2: =BY2+1 -> 67 | CA2: =BZ2+1 -> 68 | CB2: =CA2+1 -> 69 | CC2: =CB2+1 -> 70 | CD2: =CC2+1 -> 71 | CE2: =CD2+1 -> 72 | CF2: =CE2+1 -> 73 | CG2: =CF2+1 -> 74 | CH2: =CG2+1 -> 75 | CI2: =CH2+1 -> 76 | CJ2: =CI2+1 -> 77 | CK2: =CJ2+1 -> 78 | CL2: =CK2+1 -> 79 | CM2: =CL2+1 -> 80 | CN2: =CM2+1 -> 81 | CO2: =CN2+1 -> 82 | CP2: =CO2+1 -> 83 | CQ2: =CP2+1 -> 84 | CR2: =CQ2+1 -> 85 | CS2: =CR2+1 -> 86 | CT2: =CS2+1 -> 87 | CU2: =CT2+1 -> 88 | CV2: =CU2+1 -> 89 | CW2: =CV2+1 -> 90 | CX2: =CW2+1 -> 91 | CY2: =CX2+1 -> 92 | CZ2: =CY2+1 -> 93 | DA2: =CZ2+1 -> 94 | DB2: =DA2+1 -> 95 | DC2: =DB2+1 -> 96 | DD2: =DC2+1 -> 97 | DE2: =DD2+1 -> 98 | DF2: =DE2+1 -> 99 | DG2: =DF2+1 -> 100 | DH2: =DG2+1 -> 101 | DI2: =DH2+1 -> 102 | DJ2: =DI2+1 -> 103 | DK2: =DJ2+1 -> 104 | DL2: =DK2+1 -> 105 | DM2: =DL2+1 -> 106 | DN2: =DM2+1 -> 107 | DO2: =DN2+1 -> 108 | DP2: =DO2+1 -> 109 | DQ2: =DP2+1 -> 110 | DR2: =DQ2+1 -> 111 | DS2: =DR2+1 -> 112 | DT2: =DS2+1 -> 113 | DU2: =DT2+1 -> 114 | DV2: =DU2+1 -> 115 | DW2: =DV2+1 -> 116 | DX2: =DW2+1 -> 117 | DY2: =DX2+1 -> 118 | DZ2: =DY2+1 -> 119 | EA2: =DZ2+1 -> 120 | EB2: =EA2+1 -> 121 | EC2: =EB2+1 -> 122 | ED2: =EC2+1 -> 123 | EE2: =ED2+1 -> 124 | EF2: =EE2+1 -> 125 | EG2: =EF2+1 -> 126 | EH2: =EG2+1 -> 127 | EI2: =EH2+1 -> 128 | EJ2: =EI2+1 -> 129 | EK2: =EJ2+1 -> 130 | EL2: =EK2+1 -> 131 | EM2: =EL2+1 -> 132 | EN2: =EM2+1 -> 133 | EO2: =EN2+1 -> 134 | EP2: =EO2+1 -> 135 | EQ2: =EP2+1 -> 136 | ER2: =EQ2+1 -> 137 | ES2: =ER2+1 -> 138 | ET2: =ES2+1 -> 139 | EU2: =ET2+1 -> 140 | EV2: =EU2+1 -> 141 | EW2: =EV2+1 -> 142 | EX2: =EW2+1 -> 143 | EY2: =EX2+1 -> 144 | EZ2: =EY2+1 -> 145 | FA2: =EZ2+1 -> 146 | FB2: =FA2+1 -> 147 | FC2: =FB2+1 -> 148 | FD2: =FC2+1 -> 149 | FE2: =FD2+1 -> 150 | FF2: =FE2+1 -> 151 | FG2: =FF2+1 -> 152 | FH2: =FG2+1 -> 153 | FI2: =FH2+1 -> 154 | FJ2: =FI2+1 -> 155 | FK2: =FJ2+1 -> 156 | FL2: =FK2+1 -> 157 | FM2: =FL2+1 -> 158 | FN2: =FM2+1 -> 159 | FO2: =FN2+1 -> 160 | FP2: =FO2+1 -> 161 | FQ2: =FP2+1 -> 162 | FR2: =FQ2+1 -> 163 | FS2: =FR2+1 -> 164 | FT2: =FS2+1 -> 165 | FU2: =FT2+1 -> 166 | FV2: =FU2+1 -> 167 | FW2: =FV2+1 -> 168
C3: Development Period | H3: =Assumptions!G5 -> 3 | I3: 12 | L3: =L2<=$H$3 -> TRUE | M3: =M2<=$H$3 -> TRUE | N3: =N2<=$H$3 -> TRUE | O3: =O2<=$H$3 -> FALSE | P3: =P2<=$H$3 -> FALSE | Q3: =Q2<=$H$3 -> FALSE | R3: =R2<=$H$3 -> FALSE | S3: =S2<=$H$3 -> FALSE | T3: =T2<=$H$3 -> FALSE | U3: =U2<=$H$3 -> FALSE | V3: =V2<=$H$3 -> FALSE | W3: =W2<=$H$3 -> FALSE | X3: =X2<=$H$3 -> FALSE | Y3: =Y2<=$H$3 -> FALSE | Z3: =Z2<=$H$3 -> FALSE | AA3: =AA2<=$H$3 -> FALSE | AB3: =AB2<=$H$3 -> FALSE | AC3: =AC2<=$H$3 -> FALSE | AD3: =AD2<=$H$3 -> FALSE | AE3: =AE2<=$H$3 -> FALSE | AF3: =AF2<=$H$3 -> FALSE | AG3: =AG2<=$H$3 -> FALSE | AH3: =AH2<=$H$3 -> FALSE | AI3: =AI2<=$H$3 -> FALSE | AJ3: =AJ2<=$H$3 -> FALSE | AK3: =AK2<=$H$3 -> FALSE | AL3: =AL2<=$H$3 -> FALSE | AM3: =AM2<=$H$3 -> FALSE | AN3: =AN2<=$H$3 -> FALSE | AO3: =AO2<=$H$3 -> FALSE | AP3: =AP2<=$H$3 -> FALSE | AQ3: =AQ2<=$H$3 -> FALSE | AR3: =AR2<=$H$3 -> FALSE | AS3: =AS2<=$H$3 -> FALSE | AT3: =AT2<=$H$3 -> FALSE | AU3: =AU2<=$H$3 -> FALSE | AV3: =AV2<=$H$3 -> FALSE | AW3: =AW2<=$H$3 -> FALSE | AX3: =AX2<=$H$3 -> FALSE | AY3: =AY2<=$H$3 -> FALSE | AZ3: =AZ2<=$H$3 -> FALSE | BA3: =BA2<=$H$3 -> FALSE | BB3: =BB2<=$H$3 -> FALSE | BC3: =BC2<=$H$3 -> FALSE | BD3: =BD2<=$H$3 -> FALSE | BE3: =BE2<=$H$3 -> FALSE | BF3: =BF2<=$H$3 -> FALSE | BG3: =BG2<=$H$3 -> FALSE | BH3: =BH2<=$H$3 -> FALSE | BI3: =BI2<=$H$3 -> FALSE | BJ3: =BJ2<=$H$3 -> FALSE | BK3: =BK2<=$H$3 -> FALSE | BL3: =BL2<=$H$3 -> FALSE | BM3: =BM2<=$H$3 -> FALSE | BN3: =BN2<=$H$3 -> FALSE | BO3: =BO2<=$H$3 -> FALSE | BP3: =BP2<=$H$3 -> FALSE | BQ3: =BQ2<=$H$3 -> FALSE | BR3: =BR2<=$H$3 -> FALSE | BS3: =BS2<=$H$3 -> FALSE | BT3: =BT2<=$H$3 -> FALSE | BU3: =BU2<=$H$3 -> FALSE | BV3: =BV2<=$H$3 -> FALSE | BW3: =BW2<=$H$3 -> FALSE | BX3: =BX2<=$H$3 -> FALSE | BY3: =BY2<=$H$3 -> FALSE | BZ3: =BZ2<=$H$3 -> FALSE | CA3: =CA2<=$H$3 -> FALSE | CB3: =CB2<=$H$3 -> FALSE | CC3: =CC2<=$H$3 -> FALSE | CD3: =CD2<=$H$3 -> FALSE | CE3: =CE2<=$H$3 -> FALSE | CF3: =CF2<=$H$3 -> FALSE | CG3: =CG2<=$H$3 -> FALSE | CH3: =CH2<=$H$3 -> FALSE | CI3: =CI2<=$H$3 -> FALSE | CJ3: =CJ2<=$H$3 -> FALSE | CK3: =CK2<=$H$3 -> FALSE | CL3: =CL2<=$H$3 -> FALSE | CM3: =CM2<=$H$3 -> FALSE | CN3: =CN2<=$H$3 -> FALSE | CO3: =CO2<=$H$3 -> FALSE | CP3: =CP2<=$H$3 -> FALSE | CQ3: =CQ2<=$H$3 -> FALSE | CR3: =CR2<=$H$3 -> FALSE | CS3: =CS2<=$H$3 -> FALSE | CT3: =CT2<=$H$3 -> FALSE | CU3: =CU2<=$H$3 -> FALSE | CV3: =CV2<=$H$3 -> FALSE | CW3: =CW2<=$H$3 -> FALSE | CX3: =CX2<=$H$3 -> FALSE | CY3: =CY2<=$H$3 -> FALSE | CZ3: =CZ2<=$H$3 -> FALSE | DA3: =DA2<=$H$3 -> FALSE | DB3: =DB2<=$H$3 -> FALSE | DC3: =DC2<=$H$3 -> FALSE | DD3: =DD2<=$H$3 -> FALSE | DE3: =DE2<=$H$3 -> FALSE | DF3: =DF2<=$H$3 -> FALSE | DG3: =DG2<=$H$3 -> FALSE | DH3: =DH2<=$H$3 -> FALSE | DI3: =DI2<=$H$3 -> FALSE | DJ3: =DJ2<=$H$3 -> FALSE | DK3: =DK2<=$H$3 -> FALSE | DL3: =DL2<=$H$3 -> FALSE | DM3: =DM2<=$H$3 -> FALSE | DN3: =DN2<=$H$3 -> FALSE | DO3: =DO2<=$H$3 -> FALSE | DP3: =DP2<=$H$3 -> FALSE | DQ3: =DQ2<=$H$3 -> FALSE | DR3: =DR2<=$H$3 -> FALSE | DS3: =DS2<=$H$3 -> FALSE | DT3: =DT2<=$H$3 -> FALSE | DU3: =DU2<=$H$3 -> FALSE | DV3: =DV2<=$H$3 -> FALSE | DW3: =DW2<=$H$3 -> FALSE | DX3: =DX2<=$H$3 -> FALSE | DY3: =DY2<=$H$3 -> FALSE | DZ3: =DZ2<=$H$3 -> FALSE | EA3: =EA2<=$H$3 -> FALSE | EB3: =EB2<=$H$3 -> FALSE | EC3: =EC2<=$H$3 -> FALSE | ED3: =ED2<=$H$3 -> FALSE | EE3: =EE2<=$H$3 -> FALSE | EF3: =EF2<=$H$3 -> FALSE | EG3: =EG2<=$H$3 -> FALSE | EH3: =EH2<=$H$3 -> FALSE | EI3: =EI2<=$H$3 -> FALSE | EJ3: =EJ2<=$H$3 -> FALSE | EK3: =EK2<=$H$3 -> FALSE | EL3: =EL2<=$H$3 -> FALSE | EM3: =EM2<=$H$3 -> FALSE | EN3: =EN2<=$H$3 -> FALSE | EO3: =EO2<=$H$3 -> FALSE | EP3: =EP2<=$H$3 -> FALSE | EQ3: =EQ2<=$H$3 -> FALSE | ER3: =ER2<=$H$3 -> FALSE | ES3: =ES2<=$H$3 -> FALSE | ET3: =ET2<=$H$3 -> FALSE | EU3: =EU2<=$H$3 -> FALSE | EV3: =EV2<=$H$3 -> FALSE | EW3: =EW2<=$H$3 -> FALSE | EX3: =EX2<=$H$3 -> FALSE | EY3: =EY2<=$H$3 -> FALSE | EZ3: =EZ2<=$H$3 -> FALSE | FA3: =FA2<=$H$3 -> FALSE | FB3: =FB2<=$H$3 -> FALSE | FC3: =FC2<=$H$3 -> FALSE | FD3: =FD2<=$H$3 -> FALSE | FE3: =FE2<=$H$3 -> FALSE | FF3: =FF2<=$H$3 -> FALSE | FG3: =FG2<=$H$3 -> FALSE | FH3: =FH2<=$H$3 -> FALSE | FI3: =FI2<=$H$3 -> FALSE | FJ3: =FJ2<=$H$3 -> FALSE | FK3: =FK2<=$H$3 -> FALSE | FL3: =FL2<=$H$3 -> FALSE | FM3: =FM2<=$H$3 -> FALSE | FN3: =FN2<=$H$3 -> FALSE | FO3: =FO2<=$H$3 -> FALSE | FP3: =FP2<=$H$3 -> FALSE | FQ3: =FQ2<=$H$3 -> FALSE | FR3: =FR2<=$H$3 -> FALSE | FS3: =FS2<=$H$3 -> FALSE | FT3: =FT2<=$H$3 -> FALSE | FU3: =FU2<=$H$3 -> FALSE | FV3: =FV2<=$H$3 -> FALSE | FW3: =FW2<=$H$3 -> FALSE
C4: Construction Period | H4: =H3+Assumptions!G7 -> 43 | I4: 1 | L4: =AND(L2>$H$3,L2<=$H$4) -> FALSE | M4: =AND(M2>$H$3,M2<=$H$4) -> FALSE | N4: =AND(N2>$H$3,N2<=$H$4) -> FALSE | O4: =AND(O2>$H$3,O2<=$H$4) -> TRUE | P4: =AND(P2>$H$3,P2<=$H$4) -> TRUE | Q4: =AND(Q2>$H$3,Q2<=$H$4) -> TRUE | R4: =AND(R2>$H$3,R2<=$H$4) -> TRUE | S4: =AND(S2>$H$3,S2<=$H$4) -> TRUE | T4: =AND(T2>$H$3,T2<=$H$4) -> TRUE | U4: =AND(U2>$H$3,U2<=$H$4) -> TRUE | V4: =AND(V2>$H$3,V2<=$H$4) -> TRUE | W4: =AND(W2>$H$3,W2<=$H$4) -> TRUE | X4: =AND(X2>$H$3,X2<=$H$4) -> TRUE | Y4: =AND(Y2>$H$3,Y2<=$H$4) -> TRUE | Z4: =AND(Z2>$H$3,Z2<=$H$4) -> TRUE | AA4: =AND(AA2>$H$3,AA2<=$H$4) -> TRUE | AB4: =AND(AB2>$H$3,AB2<=$H$4) -> TRUE | AC4: =AND(AC2>$H$3,AC2<=$H$4) -> TRUE | AD4: =AND(AD2>$H$3,AD2<=$H$4) -> TRUE | AE4: =AND(AE2>$H$3,AE2<=$H$4) -> TRUE | AF4: =AND(AF2>$H$3,AF2<=$H$4) -> TRUE | AG4: =AND(AG2>$H$3,AG2<=$H$4) -> TRUE | AH4: =AND(AH2>$H$3,AH2<=$H$4) -> TRUE | AI4: =AND(AI2>$H$3,AI2<=$H$4) -> TRUE | AJ4: =AND(AJ2>$H$3,AJ2<=$H$4) -> TRUE | AK4: =AND(AK2>$H$3,AK2<=$H$4) -> TRUE | AL4: =AND(AL2>$H$3,AL2<=$H$4) -> TRUE | AM4: =AND(AM2>$H$3,AM2<=$H$4) -> TRUE | AN4: =AND(AN2>$H$3,AN2<=$H$4) -> TRUE | AO4: =AND(AO2>$H$3,AO2<=$H$4) -> TRUE | AP4: =AND(AP2>$H$3,AP2<=$H$4) -> TRUE | AQ4: =AND(AQ2>$H$3,AQ2<=$H$4) -> TRUE | AR4: =AND(AR2>$H$3,AR2<=$H$4) -> TRUE | AS4: =AND(AS2>$H$3,AS2<=$H$4) -> TRUE | AT4: =AND(AT2>$H$3,AT2<=$H$4) -> TRUE | AU4: =AND(AU2>$H$3,AU2<=$H$4) -> TRUE | AV4: =AND(AV2>$H$3,AV2<=$H$4) -> TRUE | AW4: =AND(AW2>$H$3,AW2<=$H$4) -> TRUE | AX4: =AND(AX2>$H$3,AX2<=$H$4) -> TRUE | AY4: =AND(AY2>$H$3,AY2<=$H$4) -> TRUE | AZ4: =AND(AZ2>$H$3,AZ2<=$H$4) -> TRUE | BA4: =AND(BA2>$H$3,BA2<=$H$4) -> TRUE | BB4: =AND(BB2>$H$3,BB2<=$H$4) -> TRUE | BC4: =AND(BC2>$H$3,BC2<=$H$4) -> FALSE | BD4: =AND(BD2>$H$3,BD2<=$H$4) -> FALSE | BE4: =AND(BE2>$H$3,BE2<=$H$4) -> FALSE | BF4: =AND(BF2>$H$3,BF2<=$H$4) -> FALSE | BG4: =AND(BG2>$H$3,BG2<=$H$4) -> FALSE | BH4: =AND(BH2>$H$3,BH2<=$H$4) -> FALSE | BI4: =AND(BI2>$H$3,BI2<=$H$4) -> FALSE | BJ4: =AND(BJ2>$H$3,BJ2<=$H$4) -> FALSE | BK4: =AND(BK2>$H$3,BK2<=$H$4) -> FALSE | BL4: =AND(BL2>$H$3,BL2<=$H$4) -> FALSE | BM4: =AND(BM2>$H$3,BM2<=$H$4) -> FALSE | BN4: =AND(BN2>$H$3,BN2<=$H$4) -> FALSE | BO4: =AND(BO2>$H$3,BO2<=$H$4) -> FALSE | BP4: =AND(BP2>$H$3,BP2<=$H$4) -> FALSE | BQ4: =AND(BQ2>$H$3,BQ2<=$H$4) -> FALSE | BR4: =AND(BR2>$H$3,BR2<=$H$4) -> FALSE | BS4: =AND(BS2>$H$3,BS2<=$H$4) -> FALSE | BT4: =AND(BT2>$H$3,BT2<=$H$4) -> FALSE | BU4: =AND(BU2>$H$3,BU2<=$H$4) -> FALSE | BV4: =AND(BV2>$H$3,BV2<=$H$4) -> FALSE | BW4: =AND(BW2>$H$3,BW2<=$H$4) -> FALSE | BX4: =AND(BX2>$H$3,BX2<=$H$4) -> FALSE | BY4: =AND(BY2>$H$3,BY2<=$H$4) -> FALSE | BZ4: =AND(BZ2>$H$3,BZ2<=$H$4) -> FALSE | CA4: =AND(CA2>$H$3,CA2<=$H$4) -> FALSE | CB4: =AND(CB2>$H$3,CB2<=$H$4) -> FALSE | CC4: =AND(CC2>$H$3,CC2<=$H$4) -> FALSE | CD4: =AND(CD2>$H$3,CD2<=$H$4) -> FALSE | CE4: =AND(CE2>$H$3,CE2<=$H$4) -> FALSE | CF4: =AND(CF2>$H$3,CF2<=$H$4) -> FALSE | CG4: =AND(CG2>$H$3,CG2<=$H$4) -> FALSE | CH4: =AND(CH2>$H$3,CH2<=$H$4) -> FALSE | CI4: =AND(CI2>$H$3,CI2<=$H$4) -> FALSE | CJ4: =AND(CJ2>$H$3,CJ2<=$H$4) -> FALSE | CK4: =AND(CK2>$H$3,CK2<=$H$4) -> FALSE | CL4: =AND(CL2>$H$3,CL2<=$H$4) -> FALSE | CM4: =AND(CM2>$H$3,CM2<=$H$4) -> FALSE | CN4: =AND(CN2>$H$3,CN2<=$H$4) -> FALSE | CO4: =AND(CO2>$H$3,CO2<=$H$4) -> FALSE | CP4: =AND(CP2>$H$3,CP2<=$H$4) -> FALSE | CQ4: =AND(CQ2>$H$3,CQ2<=$H$4) -> FALSE | CR4: =AND(CR2>$H$3,CR2<=$H$4) -> FALSE | CS4: =AND(CS2>$H$3,CS2<=$H$4) -> FALSE | CT4: =AND(CT2>$H$3,CT2<=$H$4) -> FALSE | CU4: =AND(CU2>$H$3,CU2<=$H$4) -> FALSE | CV4: =AND(CV2>$H$3,CV2<=$H$4) -> FALSE | CW4: =AND(CW2>$H$3,CW2<=$H$4) -> FALSE | CX4: =AND(CX2>$H$3,CX2<=$H$4) -> FALSE | CY4: =AND(CY2>$H$3,CY2<=$H$4) -> FALSE | CZ4: =AND(CZ2>$H$3,CZ2<=$H$4) -> FALSE | DA4: =AND(DA2>$H$3,DA2<=$H$4) -> FALSE | DB4: =AND(DB2>$H$3,DB2<=$H$4) -> FALSE | DC4: =AND(DC2>$H$3,DC2<=$H$4) -> FALSE | DD4: =AND(DD2>$H$3,DD2<=$H$4) -> FALSE | DE4: =AND(DE2>$H$3,DE2<=$H$4) -> FALSE | DF4: =AND(DF2>$H$3,DF2<=$H$4) -> FALSE | DG4: =AND(DG2>$H$3,DG2<=$H$4) -> FALSE | DH4: =AND(DH2>$H$3,DH2<=$H$4) -> FALSE | DI4: =AND(DI2>$H$3,DI2<=$H$4) -> FALSE | DJ4: =AND(DJ2>$H$3,DJ2<=$H$4) -> FALSE | DK4: =AND(DK2>$H$3,DK2<=$H$4) -> FALSE | DL4: =AND(DL2>$H$3,DL2<=$H$4) -> FALSE | DM4: =AND(DM2>$H$3,DM2<=$H$4) -> FALSE | DN4: =AND(DN2>$H$3,DN2<=$H$4) -> FALSE | DO4: =AND(DO2>$H$3,DO2<=$H$4) -> FALSE | DP4: =AND(DP2>$H$3,DP2<=$H$4) -> FALSE | DQ4: =AND(DQ2>$H$3,DQ2<=$H$4) -> FALSE | DR4: =AND(DR2>$H$3,DR2<=$H$4) -> FALSE | DS4: =AND(DS2>$H$3,DS2<=$H$4) -> FALSE | DT4: =AND(DT2>$H$3,DT2<=$H$4) -> FALSE | DU4: =AND(DU2>$H$3,DU2<=$H$4) -> FALSE | DV4: =AND(DV2>$H$3,DV2<=$H$4) -> FALSE | DW4: =AND(DW2>$H$3,DW2<=$H$4) -> FALSE | DX4: =AND(DX2>$H$3,DX2<=$H$4) -> FALSE | DY4: =AND(DY2>$H$3,DY2<=$H$4) -> FALSE | DZ4: =AND(DZ2>$H$3,DZ2<=$H$4) -> FALSE | EA4: =AND(EA2>$H$3,EA2<=$H$4) -> FALSE | EB4: =AND(EB2>$H$3,EB2<=$H$4) -> FALSE | EC4: =AND(EC2>$H$3,EC2<=$H$4) -> FALSE | ED4: =AND(ED2>$H$3,ED2<=$H$4) -> FALSE | EE4: =AND(EE2>$H$3,EE2<=$H$4) -> FALSE | EF4: =AND(EF2>$H$3,EF2<=$H$4) -> FALSE | EG4: =AND(EG2>$H$3,EG2<=$H$4) -> FALSE | EH4: =AND(EH2>$H$3,EH2<=$H$4) -> FALSE | EI4: =AND(EI2>$H$3,EI2<=$H$4) -> FALSE | EJ4: =AND(EJ2>$H$3,EJ2<=$H$4) -> FALSE | EK4: =AND(EK2>$H$3,EK2<=$H$4) -> FALSE | EL4: =AND(EL2>$H$3,EL2<=$H$4) -> FALSE | EM4: =AND(EM2>$H$3,EM2<=$H$4) -> FALSE | EN4: =AND(EN2>$H$3,EN2<=$H$4) -> FALSE | EO4: =AND(EO2>$H$3,EO2<=$H$4) -> FALSE | EP4: =AND(EP2>$H$3,EP2<=$H$4) -> FALSE | EQ4: =AND(EQ2>$H$3,EQ2<=$H$4) -> FALSE | ER4: =AND(ER2>$H$3,ER2<=$H$4) -> FALSE | ES4: =AND(ES2>$H$3,ES2<=$H$4) -> FALSE | ET4: =AND(ET2>$H$3,ET2<=$H$4) -> FALSE | EU4: =AND(EU2>$H$3,EU2<=$H$4) -> FALSE | EV4: =AND(EV2>$H$3,EV2<=$H$4) -> FALSE | EW4: =AND(EW2>$H$3,EW2<=$H$4) -> FALSE | EX4: =AND(EX2>$H$3,EX2<=$H$4) -> FALSE | EY4: =AND(EY2>$H$3,EY2<=$H$4) -> FALSE | EZ4: =AND(EZ2>$H$3,EZ2<=$H$4) -> FALSE | FA4: =AND(FA2>$H$3,FA2<=$H$4) -> FALSE | FB4: =AND(FB2>$H$3,FB2<=$H$4) -> FALSE | FC4: =AND(FC2>$H$3,FC2<=$H$4) -> FALSE | FD4: =AND(FD2>$H$3,FD2<=$H$4) -> FALSE | FE4: =AND(FE2>$H$3,FE2<=$H$4) -> FALSE | FF4: =AND(FF2>$H$3,FF2<=$H$4) -> FALSE | FG4: =AND(FG2>$H$3,FG2<=$H$4) -> FALSE | FH4: =AND(FH2>$H$3,FH2<=$H$4) -> FALSE | FI4: =AND(FI2>$H$3,FI2<=$H$4) -> FALSE | FJ4: =AND(FJ2>$H$3,FJ2<=$H$4) -> FALSE | FK4: =AND(FK2>$H$3,FK2<=$H$4) -> FALSE | FL4: =AND(FL2>$H$3,FL2<=$H$4) -> FALSE | FM4: =AND(FM2>$H$3,FM2<=$H$4) -> FALSE | FN4: =AND(FN2>$H$3,FN2<=$H$4) -> FALSE | FO4: =AND(FO2>$H$3,FO2<=$H$4) -> FALSE | FP4: =AND(FP2>$H$3,FP2<=$H$4) -> FALSE | FQ4: =AND(FQ2>$H$3,FQ2<=$H$4) -> FALSE | FR4: =AND(FR2>$H$3,FR2<=$H$4) -> FALSE | FS4: =AND(FS2>$H$3,FS2<=$H$4) -> FALSE | FT4: =AND(FT2>$H$3,FT2<=$H$4) -> FALSE | FU4: =AND(FU2>$H$3,FU2<=$H$4) -> FALSE | FV4: =AND(FV2>$H$3,FV2<=$H$4) -> FALSE | FW4: =AND(FW2>$H$3,FW2<=$H$4) -> FALSE
C5: Operating Periods | H5: =H4+Assumptions!G9 -> 143 | I5: 3 | J5: =COUNTIF(L5:DG5,TRUE) -> 57 | L5: =AND(L2>$H$4,L2<=$H$5) -> FALSE | M5: =AND(M2>$H$4,M2<=$H$5) -> FALSE | N5: =AND(N2>$H$4,N2<=$H$5) -> FALSE | O5: =AND(O2>$H$4,O2<=$H$5) -> FALSE | P5: =AND(P2>$H$4,P2<=$H$5) -> FALSE | Q5: =AND(Q2>$H$4,Q2<=$H$5) -> FALSE | R5: =AND(R2>$H$4,R2<=$H$5) -> FALSE | S5: =AND(S2>$H$4,S2<=$H$5) -> FALSE | T5: =AND(T2>$H$4,T2<=$H$5) -> FALSE | U5: =AND(U2>$H$4,U2<=$H$5) -> FALSE | V5: =AND(V2>$H$4,V2<=$H$5) -> FALSE | W5: =AND(W2>$H$4,W2<=$H$5) -> FALSE | X5: =AND(X2>$H$4,X2<=$H$5) -> FALSE | Y5: =AND(Y2>$H$4,Y2<=$H$5) -> FALSE | Z5: =AND(Z2>$H$4,Z2<=$H$5) -> FALSE | AA5: =AND(AA2>$H$4,AA2<=$H$5) -> FALSE | AB5: =AND(AB2>$H$4,AB2<=$H$5) -> FALSE | AC5: =AND(AC2>$H$4,AC2<=$H$5) -> FALSE | AD5: =AND(AD2>$H$4,AD2<=$H$5) -> FALSE | AE5: =AND(AE2>$H$4,AE2<=$H$5) -> FALSE | AF5: =AND(AF2>$H$4,AF2<=$H$5) -> FALSE | AG5: =AND(AG2>$H$4,AG2<=$H$5) -> FALSE | AH5: =AND(AH2>$H$4,AH2<=$H$5) -> FALSE | AI5: =AND(AI2>$H$4,AI2<=$H$5) -> FALSE | AJ5: =AND(AJ2>$H$4,AJ2<=$H$5) -> FALSE | AK5: =AND(AK2>$H$4,AK2<=$H$5) -> FALSE | AL5: =AND(AL2>$H$4,AL2<=$H$5) -> FALSE | AM5: =AND(AM2>$H$4,AM2<=$H$5) -> FALSE | AN5: =AND(AN2>$H$4,AN2<=$H$5) -> FALSE | AO5: =AND(AO2>$H$4,AO2<=$H$5) -> FALSE | AP5: =AND(AP2>$H$4,AP2<=$H$5) -> FALSE | AQ5: =AND(AQ2>$H$4,AQ2<=$H$5) -> FALSE | AR5: =AND(AR2>$H$4,AR2<=$H$5) -> FALSE | AS5: =AND(AS2>$H$4,AS2<=$H$5) -> FALSE | AT5: =AND(AT2>$H$4,AT2<=$H$5) -> FALSE | AU5: =AND(AU2>$H$4,AU2<=$H$5) -> FALSE | AV5: =AND(AV2>$H$4,AV2<=$H$5) -> FALSE | AW5: =AND(AW2>$H$4,AW2<=$H$5) -> FALSE | AX5: =AND(AX2>$H$4,AX2<=$H$5) -> FALSE | AY5: =AND(AY2>$H$4,AY2<=$H$5) -> FALSE | AZ5: =AND(AZ2>$H$4,AZ2<=$H$5) -> FALSE | BA5: =AND(BA2>$H$4,BA2<=$H$5) -> FALSE | BB5: =AND(BB2>$H$4,BB2<=$H$5) -> FALSE | BC5: =AND(BC2>$H$4,BC2<=$H$5) -> TRUE | BD5: =AND(BD2>$H$4,BD2<=$H$5) -> TRUE | BE5: =AND(BE2>$H$4,BE2<=$H$5) -> TRUE | BF5: =AND(BF2>$H$4,BF2<=$H$5) -> TRUE | BG5: =AND(BG2>$H$4,BG2<=$H$5) -> TRUE | BH5: =AND(BH2>$H$4,BH2<=$H$5) -> TRUE | BI5: =AND(BI2>$H$4,BI2<=$H$5) -> TRUE | BJ5: =AND(BJ2>$H$4,BJ2<=$H$5) -> TRUE | BK5: =AND(BK2>$H$4,BK2<=$H$5) -> TRUE | BL5: =AND(BL2>$H$4,BL2<=$H$5) -> TRUE | BM5: =AND(BM2>$H$4,BM2<=$H$5) -> TRUE | BN5: =AND(BN2>$H$4,BN2<=$H$5) -> TRUE | BO5: =AND(BO2>$H$4,BO2<=$H$5) -> TRUE | BP5: =AND(BP2>$H$4,BP2<=$H$5) -> TRUE | BQ5: =AND(BQ2>$H$4,BQ2<=$H$5) -> TRUE | BR5: =AND(BR2>$H$4,BR2<=$H$5) -> TRUE | BS5: =AND(BS2>$H$4,BS2<=$H$5) -> TRUE | BT5: =AND(BT2>$H$4,BT2<=$H$5) -> TRUE | BU5: =AND(BU2>$H$4,BU2<=$H$5) -> TRUE | BV5: =AND(BV2>$H$4,BV2<=$H$5) -> TRUE | BW5: =AND(BW2>$H$4,BW2<=$H$5) -> TRUE | BX5: =AND(BX2>$H$4,BX2<=$H$5) -> TRUE | BY5: =AND(BY2>$H$4,BY2<=$H$5) -> TRUE | BZ5: =AND(BZ2>$H$4,BZ2<=$H$5) -> TRUE | CA5: =AND(CA2>$H$4,CA2<=$H$5) -> TRUE | CB5: =AND(CB2>$H$4,CB2<=$H$5) -> TRUE | CC5: =AND(CC2>$H$4,CC2<=$H$5) -> TRUE | CD5: =AND(CD2>$H$4,CD2<=$H$5) -> TRUE | CE5: =AND(CE2>$H$4,CE2<=$H$5) -> TRUE | CF5: =AND(CF2>$H$4,CF2<=$H$5) -> TRUE | CG5: =AND(CG2>$H$4,CG2<=$H$5) -> TRUE | CH5: =AND(CH2>$H$4,CH2<=$H$5) -> TRUE | CI5: =AND(CI2>$H$4,CI2<=$H$5) -> TRUE | CJ5: =AND(CJ2>$H$4,CJ2<=$H$5) -> TRUE | CK5: =AND(CK2>$H$4,CK2<=$H$5) -> TRUE | CL5: =AND(CL2>$H$4,CL2<=$H$5) -> TRUE | CM5: =AND(CM2>$H$4,CM2<=$H$5) -> TRUE | CN5: =AND(CN2>$H$4,CN2<=$H$5) -> TRUE | CO5: =AND(CO2>$H$4,CO2<=$H$5) -> TRUE | CP5: =AND(CP2>$H$4,CP2<=$H$5) -> TRUE | CQ5: =AND(CQ2>$H$4,CQ2<=$H$5) -> TRUE | CR5: =AND(CR2>$H$4,CR2<=$H$5) -> TRUE | CS5: =AND(CS2>$H$4,CS2<=$H$5) -> TRUE | CT5: =AND(CT2>$H$4,CT2<=$H$5) -> TRUE | CU5: =AND(CU2>$H$4,CU2<=$H$5) -> TRUE | CV5: =AND(CV2>$H$4,CV2<=$H$5) -> TRUE | CW5: =AND(CW2>$H$4,CW2<=$H$5) -> TRUE | CX5: =AND(CX2>$H$4,CX2<=$H$5) -> TRUE | CY5: =AND(CY2>$H$4,CY2<=$H$5) -> TRUE | CZ5: =AND(CZ2>$H$4,CZ2<=$H$5) -> TRUE | DA5: =AND(DA2>$H$4,DA2<=$H$5) -> TRUE | DB5: =AND(DB2>$H$4,DB2<=$H$5) -> TRUE | DC5: =AND(DC2>$H$4,DC2<=$H$5) -> TRUE | DD5: =AND(DD2>$H$4,DD2<=$H$5) -> TRUE | DE5: =AND(DE2>$H$4,DE2<=$H$5) -> TRUE | DF5: =AND(DF2>$H$4,DF2<=$H$5) -> TRUE | DG5: =AND(DG2>$H$4,DG2<=$H$5) -> TRUE | DH5: =AND(DH2>$H$4,DH2<=$H$5) -> TRUE | DI5: =AND(DI2>$H$4,DI2<=$H$5) -> TRUE | DJ5: =AND(DJ2>$H$4,DJ2<=$H$5) -> TRUE | DK5: =AND(DK2>$H$4,DK2<=$H$5) -> TRUE | DL5: =AND(DL2>$H$4,DL2<=$H$5) -> TRUE | DM5: =AND(DM2>$H$4,DM2<=$H$5) -> TRUE | DN5: =AND(DN2>$H$4,DN2<=$H$5) -> TRUE | DO5: =AND(DO2>$H$4,DO2<=$H$5) -> TRUE | DP5: =AND(DP2>$H$4,DP2<=$H$5) -> TRUE | DQ5: =AND(DQ2>$H$4,DQ2<=$H$5) -> TRUE | DR5: =AND(DR2>$H$4,DR2<=$H$5) -> TRUE | DS5: =AND(DS2>$H$4,DS2<=$H$5) -> TRUE | DT5: =AND(DT2>$H$4,DT2<=$H$5) -> TRUE | DU5: =AND(DU2>$H$4,DU2<=$H$5) -> TRUE | DV5: =AND(DV2>$H$4,DV2<=$H$5) -> TRUE | DW5: =AND(DW2>$H$4,DW2<=$H$5) -> TRUE | DX5: =AND(DX2>$H$4,DX2<=$H$5) -> TRUE | DY5: =AND(DY2>$H$4,DY2<=$H$5) -> TRUE | DZ5: =AND(DZ2>$H$4,DZ2<=$H$5) -> TRUE | EA5: =AND(EA2>$H$4,EA2<=$H$5) -> TRUE | EB5: =AND(EB2>$H$4,EB2<=$H$5) -> TRUE | EC5: =AND(EC2>$H$4,EC2<=$H$5) -> TRUE | ED5: =AND(ED2>$H$4,ED2<=$H$5) -> TRUE | EE5: =AND(EE2>$H$4,EE2<=$H$5) -> TRUE | EF5: =AND(EF2>$H$4,EF2<=$H$5) -> TRUE | EG5: =AND(EG2>$H$4,EG2<=$H$5) -> TRUE | EH5: =AND(EH2>$H$4,EH2<=$H$5) -> TRUE | EI5: =AND(EI2>$H$4,EI2<=$H$5) -> TRUE | EJ5: =AND(EJ2>$H$4,EJ2<=$H$5) -> TRUE | EK5: =AND(EK2>$H$4,EK2<=$H$5) -> TRUE | EL5: =AND(EL2>$H$4,EL2<=$H$5) -> TRUE | EM5: =AND(EM2>$H$4,EM2<=$H$5) -> TRUE | EN5: =AND(EN2>$H$4,EN2<=$H$5) -> TRUE | EO5: =AND(EO2>$H$4,EO2<=$H$5) -> TRUE | EP5: =AND(EP2>$H$4,EP2<=$H$5) -> TRUE | EQ5: =AND(EQ2>$H$4,EQ2<=$H$5) -> TRUE | ER5: =AND(ER2>$H$4,ER2<=$H$5) -> TRUE | ES5: =AND(ES2>$H$4,ES2<=$H$5) -> TRUE | ET5: =AND(ET2>$H$4,ET2<=$H$5) -> TRUE | EU5: =AND(EU2>$H$4,EU2<=$H$5) -> TRUE | EV5: =AND(EV2>$H$4,EV2<=$H$5) -> TRUE | EW5: =AND(EW2>$H$4,EW2<=$H$5) -> TRUE | EX5: =AND(EX2>$H$4,EX2<=$H$5) -> TRUE | EY5: =AND(EY2>$H$4,EY2<=$H$5) -> FALSE | EZ5: =AND(EZ2>$H$4,EZ2<=$H$5) -> FALSE | FA5: =AND(FA2>$H$4,FA2<=$H$5) -> FALSE | FB5: =AND(FB2>$H$4,FB2<=$H$5) -> FALSE | FC5: =AND(FC2>$H$4,FC2<=$H$5) -> FALSE | FD5: =AND(FD2>$H$4,FD2<=$H$5) -> FALSE | FE5: =AND(FE2>$H$4,FE2<=$H$5) -> FALSE | FF5: =AND(FF2>$H$4,FF2<=$H$5) -> FALSE | FG5: =AND(FG2>$H$4,FG2<=$H$5) -> FALSE | FH5: =AND(FH2>$H$4,FH2<=$H$5) -> FALSE | FI5: =AND(FI2>$H$4,FI2<=$H$5) -> FALSE | FJ5: =AND(FJ2>$H$4,FJ2<=$H$5) -> FALSE | FK5: =AND(FK2>$H$4,FK2<=$H$5) -> FALSE | FL5: =AND(FL2>$H$4,FL2<=$H$5) -> FALSE | FM5: =AND(FM2>$H$4,FM2<=$H$5) -> FALSE | FN5: =AND(FN2>$H$4,FN2<=$H$5) -> FALSE | FO5: =AND(FO2>$H$4,FO2<=$H$5) -> FALSE | FP5: =AND(FP2>$H$4,FP2<=$H$5) -> FALSE | FQ5: =AND(FQ2>$H$4,FQ2<=$H$5) -> FALSE | FR5: =AND(FR2>$H$4,FR2<=$H$5) -> FALSE | FS5: =AND(FS2>$H$4,FS2<=$H$5) -> FALSE | FT5: =AND(FT2>$H$4,FT2<=$H$5) -> FALSE | FU5: =AND(FU2>$H$4,FU2<=$H$5) -> FALSE | FV5: =AND(FV2>$H$4,FV2<=$H$5) -> FALSE | FW5: =AND(FW2>$H$4,FW2<=$H$5) -> FALSE
C6: Exit Period | H6: =H5 -> 143 | L6: =L2=$H$6 -> FALSE | M6: =M2=$H$6 -> FALSE | N6: =N2=$H$6 -> FALSE | O6: =O2=$H$6 -> FALSE | P6: =P2=$H$6 -> FALSE | Q6: =Q2=$H$6 -> FALSE | R6: =R2=$H$6 -> FALSE | S6: =S2=$H$6 -> FALSE | T6: =T2=$H$6 -> FALSE | U6: =U2=$H$6 -> FALSE | V6: =V2=$H$6 -> FALSE | W6: =W2=$H$6 -> FALSE | X6: =X2=$H$6 -> FALSE | Y6: =Y2=$H$6 -> FALSE | Z6: =Z2=$H$6 -> FALSE | AA6: =AA2=$H$6 -> FALSE | AB6: =AB2=$H$6 -> FALSE | AC6: =AC2=$H$6 -> FALSE | AD6: =AD2=$H$6 -> FALSE | AE6: =AE2=$H$6 -> FALSE | AF6: =AF2=$H$6 -> FALSE | AG6: =AG2=$H$6 -> FALSE | AH6: =AH2=$H$6 -> FALSE | AI6: =AI2=$H$6 -> FALSE | AJ6: =AJ2=$H$6 -> FALSE | AK6: =AK2=$H$6 -> FALSE | AL6: =AL2=$H$6 -> FALSE | AM6: =AM2=$H$6 -> FALSE | AN6: =AN2=$H$6 -> FALSE | AO6: =AO2=$H$6 -> FALSE | AP6: =AP2=$H$6 -> FALSE | AQ6: =AQ2=$H$6 -> FALSE | AR6: =AR2=$H$6 -> FALSE | AS6: =AS2=$H$6 -> FALSE | AT6: =AT2=$H$6 -> FALSE | AU6: =AU2=$H$6 -> FALSE | AV6: =AV2=$H$6 -> FALSE | AW6: =AW2=$H$6 -> FALSE | AX6: =AX2=$H$6 -> FALSE | AY6: =AY2=$H$6 -> FALSE | AZ6: =AZ2=$H$6 -> FALSE | BA6: =BA2=$H$6 -> FALSE | BB6: =BB2=$H$6 -> FALSE | BC6: =BC2=$H$6 -> FALSE | BD6: =BD2=$H$6 -> FALSE | BE6: =BE2=$H$6 -> FALSE | BF6: =BF2=$H$6 -> FALSE | BG6: =BG2=$H$6 -> FALSE | BH6: =BH2=$H$6 -> FALSE | BI6: =BI2=$H$6 -> FALSE | BJ6: =BJ2=$H$6 -> FALSE | BK6: =BK2=$H$6 -> FALSE | BL6: =BL2=$H$6 -> FALSE | BM6: =BM2=$H$6 -> FALSE | BN6: =BN2=$H$6 -> FALSE | BO6: =BO2=$H$6 -> FALSE | BP6: =BP2=$H$6 -> FALSE | BQ6: =BQ2=$H$6 -> FALSE | BR6: =BR2=$H$6 -> FALSE | BS6: =BS2=$H$6 -> FALSE | BT6: =BT2=$H$6 -> FALSE | BU6: =BU2=$H$6 -> FALSE | BV6: =BV2=$H$6 -> FALSE | BW6: =BW2=$H$6 -> FALSE | BX6: =BX2=$H$6 -> FALSE | BY6: =BY2=$H$6 -> FALSE | BZ6: =BZ2=$H$6 -> FALSE | CA6: =CA2=$H$6 -> FALSE | CB6: =CB2=$H$6 -> FALSE | CC6: =CC2=$H$6 -> FALSE | CD6: =CD2=$H$6 -> FALSE | CE6: =CE2=$H$6 -> FALSE | CF6: =CF2=$H$6 -> FALSE | CG6: =CG2=$H$6 -> FALSE | CH6: =CH2=$H$6 -> FALSE | CI6: =CI2=$H$6 -> FALSE | CJ6: =CJ2=$H$6 -> FALSE | CK6: =CK2=$H$6 -> FALSE | CL6: =CL2=$H$6 -> FALSE | CM6: =CM2=$H$6 -> FALSE | CN6: =CN2=$H$6 -> FALSE | CO6: =CO2=$H$6 -> FALSE | CP6: =CP2=$H$6 -> FALSE | CQ6: =CQ2=$H$6 -> FALSE | CR6: =CR2=$H$6 -> FALSE | CS6: =CS2=$H$6 -> FALSE | CT6: =CT2=$H$6 -> FALSE | CU6: =CU2=$H$6 -> FALSE | CV6: =CV2=$H$6 -> FALSE | CW6: =CW2=$H$6 -> FALSE | CX6: =CX2=$H$6 -> FALSE | CY6: =CY2=$H$6 -> FALSE | CZ6: =CZ2=$H$6 -> FALSE | DA6: =DA2=$H$6 -> FALSE | DB6: =DB2=$H$6 -> FALSE | DC6: =DC2=$H$6 -> FALSE | DD6: =DD2=$H$6 -> FALSE | DE6: =DE2=$H$6 -> FALSE | DF6: =DF2=$H$6 -> FALSE | DG6: =DG2=$H$6 -> FALSE | DH6: =DH2=$H$6 -> FALSE | DI6: =DI2=$H$6 -> FALSE | DJ6: =DJ2=$H$6 -> FALSE | DK6: =DK2=$H$6 -> FALSE | DL6: =DL2=$H$6 -> FALSE | DM6: =DM2=$H$6 -> FALSE | DN6: =DN2=$H$6 -> FALSE | DO6: =DO2=$H$6 -> FALSE | DP6: =DP2=$H$6 -> FALSE | DQ6: =DQ2=$H$6 -> FALSE | DR6: =DR2=$H$6 -> FALSE | DS6: =DS2=$H$6 -> FALSE | DT6: =DT2=$H$6 -> FALSE | DU6: =DU2=$H$6 -> FALSE | DV6: =DV2=$H$6 -> FALSE | DW6: =DW2=$H$6 -> FALSE | DX6: =DX2=$H$6 -> FALSE | DY6: =DY2=$H$6 -> FALSE | DZ6: =DZ2=$H$6 -> FALSE | EA6: =EA2=$H$6 -> FALSE | EB6: =EB2=$H$6 -> FALSE | EC6: =EC2=$H$6 -> FALSE | ED6: =ED2=$H$6 -> FALSE | EE6: =EE2=$H$6 -> FALSE | EF6: =EF2=$H$6 -> FALSE | EG6: =EG2=$H$6 -> FALSE | EH6: =EH2=$H$6 -> FALSE | EI6: =EI2=$H$6 -> FALSE | EJ6: =EJ2=$H$6 -> FALSE | EK6: =EK2=$H$6 -> FALSE | EL6: =EL2=$H$6 -> FALSE | EM6: =EM2=$H$6 -> FALSE | EN6: =EN2=$H$6 -> FALSE | EO6: =EO2=$H$6 -> FALSE | EP6: =EP2=$H$6 -> FALSE | EQ6: =EQ2=$H$6 -> FALSE | ER6: =ER2=$H$6 -> FALSE | ES6: =ES2=$H$6 -> FALSE | ET6: =ET2=$H$6 -> FALSE | EU6: =EU2=$H$6 -> FALSE | EV6: =EV2=$H$6 -> FALSE | EW6: =EW2=$H$6 -> FALSE | EX6: =EX2=$H$6 -> TRUE | EY6: =EY2=$H$6 -> FALSE | EZ6: =EZ2=$H$6 -> FALSE | FA6: =FA2=$H$6 -> FALSE | FB6: =FB2=$H$6 -> FALSE | FC6: =FC2=$H$6 -> FALSE | FD6: =FD2=$H$6 -> FALSE | FE6: =FE2=$H$6 -> FALSE | FF6: =FF2=$H$6 -> FALSE | FG6: =FG2=$H$6 -> FALSE | FH6: =FH2=$H$6 -> FALSE | FI6: =FI2=$H$6 -> FALSE | FJ6: =FJ2=$H$6 -> FALSE | FK6: =FK2=$H$6 -> FALSE | FL6: =FL2=$H$6 -> FALSE | FM6: =FM2=$H$6 -> FALSE | FN6: =FN2=$H$6 -> FALSE | FO6: =FO2=$H$6 -> FALSE | FP6: =FP2=$H$6 -> FALSE | FQ6: =FQ2=$H$6 -> FALSE | FR6: =FR2=$H$6 -> FALSE | FS6: =FS2=$H$6 -> FALSE | FT6: =FT2=$H$6 -> FALSE | FU6: =FU2=$H$6 -> FALSE | FV6: =FV2=$H$6 -> FALSE | FW6: =FW2=$H$6 -> FALSE
C7: Age in Quarters | L7: =K7+L5 -> 0 | M7: =L7+M5 -> 0 | N7: =M7+N5 -> 0 | O7: =N7+O5 -> 0 | P7: =O7+P5 -> 0 | Q7: =P7+Q5 -> 0 | R7: =Q7+R5 -> 0 | S7: =R7+S5 -> 0 | T7: =S7+T5 -> 0 | U7: =T7+U5 -> 0 | V7: =U7+V5 -> 0 | W7: =V7+W5 -> 0 | X7: =W7+X5 -> 0 | Y7: =X7+Y5 -> 0 | Z7: =Y7+Z5 -> 0 | AA7: =Z7+AA5 -> 0 | AB7: =AA7+AB5 -> 0 | AC7: =AB7+AC5 -> 0 | AD7: =AC7+AD5 -> 0 | AE7: =AD7+AE5 -> 0 | AF7: =AE7+AF5 -> 0 | AG7: =AF7+AG5 -> 0 | AH7: =AG7+AH5 -> 0 | AI7: =AH7+AI5 -> 0 | AJ7: =AI7+AJ5 -> 0 | AK7: =AJ7+AK5 -> 0 | AL7: =AK7+AL5 -> 0 | AM7: =AL7+AM5 -> 0 | AN7: =AM7+AN5 -> 0 | AO7: =AN7+AO5 -> 0 | AP7: =AO7+AP5 -> 0 | AQ7: =AP7+AQ5 -> 0 | AR7: =AQ7+AR5 -> 0 | AS7: =AR7+AS5 -> 0 | AT7: =AS7+AT5 -> 0 | AU7: =AT7+AU5 -> 0 | AV7: =AU7+AV5 -> 0 | AW7: =AV7+AW5 -> 0 | AX7: =AW7+AX5 -> 0 | AY7: =AX7+AY5 -> 0 | AZ7: =AY7+AZ5 -> 0 | BA7: =AZ7+BA5 -> 0 | BB7: =BA7+BB5 -> 0 | BC7: =BB7+BC5 -> 1 | BD7: =BC7+BD5 -> 2 | BE7: =BD7+BE5 -> 3 | BF7: =BE7+BF5 -> 4 | BG7: =BF7+BG5 -> 5 | BH7: =BG7+BH5 -> 6 | BI7: =BH7+BI5 -> 7 | BJ7: =BI7+BJ5 -> 8 | BK7: =BJ7+BK5 -> 9 | BL7: =BK7+BL5 -> 10 | BM7: =BL7+BM5 -> 11 | BN7: =BM7+BN5 -> 12 | BO7: =BN7+BO5 -> 13 | BP7: =BO7+BP5 -> 14 | BQ7: =BP7+BQ5 -> 15 | BR7: =BQ7+BR5 -> 16 | BS7: =BR7+BS5 -> 17 | BT7: =BS7+BT5 -> 18 | BU7: =BT7+BU5 -> 19 | BV7: =BU7+BV5 -> 20 | BW7: =BV7+BW5 -> 21 | BX7: =BW7+BX5 -> 22 | BY7: =BX7+BY5 -> 23 | BZ7: =BY7+BZ5 -> 24 | CA7: =BZ7+CA5 -> 25 | CB7: =CA7+CB5 -> 26 | CC7: =CB7+CC5 -> 27 | CD7: =CC7+CD5 -> 28 | CE7: =CD7+CE5 -> 29 | CF7: =CE7+CF5 -> 30 | CG7: =CF7+CG5 -> 31 | CH7: =CG7+CH5 -> 32 | CI7: =CH7+CI5 -> 33 | CJ7: =CI7+CJ5 -> 34 | CK7: =CJ7+CK5 -> 35 | CL7: =CK7+CL5 -> 36 | CM7: =CL7+CM5 -> 37 | CN7: =CM7+CN5 -> 38 | CO7: =CN7+CO5 -> 39 | CP7: =CO7+CP5 -> 40 | CQ7: =CP7+CQ5 -> 41 | CR7: =CQ7+CR5 -> 42 | CS7: =CR7+CS5 -> 43 | CT7: =CS7+CT5 -> 44 | CU7: =CT7+CU5 -> 45 | CV7: =CU7+CV5 -> 46 | CW7: =CV7+CW5 -> 47 | CX7: =CW7+CX5 -> 48 | CY7: =CX7+CY5 -> 49 | CZ7: =CY7+CZ5 -> 50 | DA7: =CZ7+DA5 -> 51 | DB7: =DA7+DB5 -> 52 | DC7: =DB7+DC5 -> 53 | DD7: =DC7+DD5 -> 54 | DE7: =DD7+DE5 -> 55 | DF7: =DE7+DF5 -> 56 | DG7: =DF7+DG5 -> 57 | DH7: =DG7+DH5 -> 58 | DI7: =DH7+DI5 -> 59 | DJ7: =DI7+DJ5 -> 60 | DK7: =DJ7+DK5 -> 61 | DL7: =DK7+DL5 -> 62 | DM7: =DL7+DM5 -> 63 | DN7: =DM7+DN5 -> 64 | DO7: =DN7+DO5 -> 65 | DP7: =DO7+DP5 -> 66 | DQ7: =DP7+DQ5 -> 67 | DR7: =DQ7+DR5 -> 68 | DS7: =DR7+DS5 -> 69 | DT7: =DS7+DT5 -> 70 | DU7: =DT7+DU5 -> 71 | DV7: =DU7+DV5 -> 72 | DW7: =DV7+DW5 -> 73 | DX7: =DW7+DX5 -> 74 | DY7: =DX7+DY5 -> 75 | DZ7: =DY7+DZ5 -> 76 | EA7: =DZ7+EA5 -> 77 | EB7: =EA7+EB5 -> 78 | EC7: =EB7+EC5 -> 79 | ED7: =EC7+ED5 -> 80 | EE7: =ED7+EE5 -> 81 | EF7: =EE7+EF5 -> 82 | EG7: =EF7+EG5 -> 83 | EH7: =EG7+EH5 -> 84 | EI7: =EH7+EI5 -> 85 | EJ7: =EI7+EJ5 -> 86 | EK7: =EJ7+EK5 -> 87 | EL7: =EK7+EL5 -> 88 | EM7: =EL7+EM5 -> 89 | EN7: =EM7+EN5 -> 90 | EO7: =EN7+EO5 -> 91 | EP7: =EO7+EP5 -> 92 | EQ7: =EP7+EQ5 -> 93 | ER7: =EQ7+ER5 -> 94 | ES7: =ER7+ES5 -> 95 | ET7: =ES7+ET5 -> 96 | EU7: =ET7+EU5 -> 97 | EV7: =EU7+EV5 -> 98 | EW7: =EV7+EW5 -> 99 | EX7: =EW7+EX5 -> 100 | EY7: =EX7+EY5 -> 100 | EZ7: =EY7+EZ5 -> 100 | FA7: =EZ7+FA5 -> 100 | FB7: =FA7+FB5 -> 100 | FC7: =FB7+FC5 -> 100 | FD7: =FC7+FD5 -> 100 | FE7: =FD7+FE5 -> 100 | FF7: =FE7+FF5 -> 100 | FG7: =FF7+FG5 -> 100 | FH7: =FG7+FH5 -> 100 | FI7: =FH7+FI5 -> 100 | FJ7: =FI7+FJ5 -> 100 | FK7: =FJ7+FK5 -> 100 | FL7: =FK7+FL5 -> 100 | FM7: =FL7+FM5 -> 100 | FN7: =FM7+FN5 -> 100 | FO7: =FN7+FO5 -> 100 | FP7: =FO7+FP5 -> 100 | FQ7: =FP7+FQ5 -> 100 | FR7: =FQ7+FR5 -> 100 | FS7: =FR7+FS5 -> 100 | FT7: =FS7+FT5 -> 100 | FU7: =FT7+FU5 -> 100 | FV7: =FU7+FV5 -> 100 | FW7: =FV7+FW5 -> 100
C8: Age in Years | L8: =ROUNDUP(L7/4,0) -> 0 | M8: =ROUNDUP(M7/4,0) -> 0 | N8: =ROUNDUP(N7/4,0) -> 0 | O8: =ROUNDUP(O7/4,0) -> 0 | P8: =ROUNDUP(P7/4,0) -> 0 | Q8: =ROUNDUP(Q7/4,0) -> 0 | R8: =ROUNDUP(R7/4,0) -> 0 | S8: =ROUNDUP(S7/4,0) -> 0 | T8: =ROUNDUP(T7/4,0) -> 0 | U8: =ROUNDUP(U7/4,0) -> 0 | V8: =ROUNDUP(V7/4,0) -> 0 | W8: =ROUNDUP(W7/4,0) -> 0 | X8: =ROUNDUP(X7/4,0) -> 0 | Y8: =ROUNDUP(Y7/4,0) -> 0 | Z8: =ROUNDUP(Z7/4,0) -> 0 | AA8: =ROUNDUP(AA7/4,0) -> 0 | AB8: =ROUNDUP(AB7/4,0) -> 0 | AC8: =ROUNDUP(AC7/4,0) -> 0 | AD8: =ROUNDUP(AD7/4,0) -> 0 | AE8: =ROUNDUP(AE7/4,0) -> 0 | AF8: =ROUNDUP(AF7/4,0) -> 0 | AG8: =ROUNDUP(AG7/4,0) -> 0 | AH8: =ROUNDUP(AH7/4,0) -> 0 | AI8: =ROUNDUP(AI7/4,0) -> 0 | AJ8: =ROUNDUP(AJ7/4,0) -> 0 | AK8: =ROUNDUP(AK7/4,0) -> 0 | AL8: =ROUNDUP(AL7/4,0) -> 0 | AM8: =ROUNDUP(AM7/4,0) -> 0 | AN8: =ROUNDUP(AN7/4,0) -> 0 | AO8: =ROUNDUP(AO7/4,0) -> 0 | AP8: =ROUNDUP(AP7/4,0) -> 0 | AQ8: =ROUNDUP(AQ7/4,0) -> 0 | AR8: =ROUNDUP(AR7/4,0) -> 0 | AS8: =ROUNDUP(AS7/4,0) -> 0 | AT8: =ROUNDUP(AT7/4,0) -> 0 | AU8: =ROUNDUP(AU7/4,0) -> 0 | AV8: =ROUNDUP(AV7/4,0) -> 0 | AW8: =ROUNDUP(AW7/4,0) -> 0 | AX8: =ROUNDUP(AX7/4,0) -> 0 | AY8: =ROUNDUP(AY7/4,0) -> 0 | AZ8: =ROUNDUP(AZ7/4,0) -> 0 | BA8: =ROUNDUP(BA7/4,0) -> 0 | BB8: =ROUNDUP(BB7/4,0) -> 0 | BC8: =ROUNDUP(BC7/4,0) -> 1 | BD8: =ROUNDUP(BD7/4,0) -> 1 | BE8: =ROUNDUP(BE7/4,0) -> 1 | BF8: =ROUNDUP(BF7/4,0) -> 1 | BG8: =ROUNDUP(BG7/4,0) -> 2 | BH8: =ROUNDUP(BH7/4,0) -> 2 | BI8: =ROUNDUP(BI7/4,0) -> 2 | BJ8: =ROUNDUP(BJ7/4,0) -> 2 | BK8: =ROUNDUP(BK7/4,0) -> 3 | BL8: =ROUNDUP(BL7/4,0) -> 3 | BM8: =ROUNDUP(BM7/4,0) -> 3 | BN8: =ROUNDUP(BN7/4,0) -> 3 | BO8: =ROUNDUP(BO7/4,0) -> 4 | BP8: =ROUNDUP(BP7/4,0) -> 4 | BQ8: =ROUNDUP(BQ7/4,0) -> 4 | BR8: =ROUNDUP(BR7/4,0) -> 4 | BS8: =ROUNDUP(BS7/4,0) -> 5 | BT8: =ROUNDUP(BT7/4,0) -> 5 | BU8: =ROUNDUP(BU7/4,0) -> 5 | BV8: =ROUNDUP(BV7/4,0) -> 5 | BW8: =ROUNDUP(BW7/4,0) -> 6 | BX8: =ROUNDUP(BX7/4,0) -> 6 | BY8: =ROUNDUP(BY7/4,0) -> 6 | BZ8: =ROUNDUP(BZ7/4,0) -> 6 | CA8: =ROUNDUP(CA7/4,0) -> 7 | CB8: =ROUNDUP(CB7/4,0) -> 7 | CC8: =ROUNDUP(CC7/4,0) -> 7 | CD8: =ROUNDUP(CD7/4,0) -> 7 | CE8: =ROUNDUP(CE7/4,0) -> 8 | CF8: =ROUNDUP(CF7/4,0) -> 8 | CG8: =ROUNDUP(CG7/4,0) -> 8 | CH8: =ROUNDUP(CH7/4,0) -> 8 | CI8: =ROUNDUP(CI7/4,0) -> 9 | CJ8: =ROUNDUP(CJ7/4,0) -> 9 | CK8: =ROUNDUP(CK7/4,0) -> 9 | CL8: =ROUNDUP(CL7/4,0) -> 9 | CM8: =ROUNDUP(CM7/4,0) -> 10 | CN8: =ROUNDUP(CN7/4,0) -> 10 | CO8: =ROUNDUP(CO7/4,0) -> 10 | CP8: =ROUNDUP(CP7/4,0) -> 10 | CQ8: =ROUNDUP(CQ7/4,0) -> 11 | CR8: =ROUNDUP(CR7/4,0) -> 11 | CS8: =ROUNDUP(CS7/4,0) -> 11 | CT8: =ROUNDUP(CT7/4,0) -> 11 | CU8: =ROUNDUP(CU7/4,0) -> 12 | CV8: =ROUNDUP(CV7/4,0) -> 12 | CW8: =ROUNDUP(CW7/4,0) -> 12 | CX8: =ROUNDUP(CX7/4,0) -> 12 | CY8: =ROUNDUP(CY7/4,0) -> 13 | CZ8: =ROUNDUP(CZ7/4,0) -> 13 | DA8: =ROUNDUP(DA7/4,0) -> 13 | DB8: =ROUNDUP(DB7/4,0) -> 13 | DC8: =ROUNDUP(DC7/4,0) -> 14 | DD8: =ROUNDUP(DD7/4,0) -> 14 | DE8: =ROUNDUP(DE7/4,0) -> 14 | DF8: =ROUNDUP(DF7/4,0) -> 14 | DG8: =ROUNDUP(DG7/4,0) -> 15 | DH8: =ROUNDUP(DH7/4,0) -> 15 | DI8: =ROUNDUP(DI7/4,0) -> 15 | DJ8: =ROUNDUP(DJ7/4,0) -> 15 | DK8: =ROUNDUP(DK7/4,0) -> 16 | DL8: =ROUNDUP(DL7/4,0) -> 16 | DM8: =ROUNDUP(DM7/4,0) -> 16 | DN8: =ROUNDUP(DN7/4,0) -> 16 | DO8: =ROUNDUP(DO7/4,0) -> 17 | DP8: =ROUNDUP(DP7/4,0) -> 17 | DQ8: =ROUNDUP(DQ7/4,0) -> 17 | DR8: =ROUNDUP(DR7/4,0) -> 17 | DS8: =ROUNDUP(DS7/4,0) -> 18 | DT8: =ROUNDUP(DT7/4,0) -> 18 | DU8: =ROUNDUP(DU7/4,0) -> 18 | DV8: =ROUNDUP(DV7/4,0) -> 18 | DW8: =ROUNDUP(DW7/4,0) -> 19 | DX8: =ROUNDUP(DX7/4,0) -> 19 | DY8: =ROUNDUP(DY7/4,0) -> 19 | DZ8: =ROUNDUP(DZ7/4,0) -> 19 | EA8: =ROUNDUP(EA7/4,0) -> 20 | EB8: =ROUNDUP(EB7/4,0) -> 20 | EC8: =ROUNDUP(EC7/4,0) -> 20 | ED8: =ROUNDUP(ED7/4,0) -> 20 | EE8: =ROUNDUP(EE7/4,0) -> 21 | EF8: =ROUNDUP(EF7/4,0) -> 21 | EG8: =ROUNDUP(EG7/4,0) -> 21 | EH8: =ROUNDUP(EH7/4,0) -> 21 | EI8: =ROUNDUP(EI7/4,0) -> 22 | EJ8: =ROUNDUP(EJ7/4,0) -> 22 | EK8: =ROUNDUP(EK7/4,0) -> 22 | EL8: =ROUNDUP(EL7/4,0) -> 22 | EM8: =ROUNDUP(EM7/4,0) -> 23 | EN8: =ROUNDUP(EN7/4,0) -> 23 | EO8: =ROUNDUP(EO7/4,0) -> 23 | EP8: =ROUNDUP(EP7/4,0) -> 23 | EQ8: =ROUNDUP(EQ7/4,0) -> 24 | ER8: =ROUNDUP(ER7/4,0) -> 24 | ES8: =ROUNDUP(ES7/4,0) -> 24 | ET8: =ROUNDUP(ET7/4,0) -> 24 | EU8: =ROUNDUP(EU7/4,0) -> 25 | EV8: =ROUNDUP(EV7/4,0) -> 25 | EW8: =ROUNDUP(EW7/4,0) -> 25 | EX8: =ROUNDUP(EX7/4,0) -> 25 | EY8: =ROUNDUP(EY7/4,0) -> 25 | EZ8: =ROUNDUP(EZ7/4,0) -> 25 | FA8: =ROUNDUP(FA7/4,0) -> 25 | FB8: =ROUNDUP(FB7/4,0) -> 25 | FC8: =ROUNDUP(FC7/4,0) -> 25 | FD8: =ROUNDUP(FD7/4,0) -> 25 | FE8: =ROUNDUP(FE7/4,0) -> 25 | FF8: =ROUNDUP(FF7/4,0) -> 25 | FG8: =ROUNDUP(FG7/4,0) -> 25 | FH8: =ROUNDUP(FH7/4,0) -> 25 | FI8: =ROUNDUP(FI7/4,0) -> 25 | FJ8: =ROUNDUP(FJ7/4,0) -> 25 | FK8: =ROUNDUP(FK7/4,0) -> 25 | FL8: =ROUNDUP(FL7/4,0) -> 25 | FM8: =ROUNDUP(FM7/4,0) -> 25 | FN8: =ROUNDUP(FN7/4,0) -> 25 | FO8: =ROUNDUP(FO7/4,0) -> 25 | FP8: =ROUNDUP(FP7/4,0) -> 25 | FQ8: =ROUNDUP(FQ7/4,0) -> 25 | FR8: =ROUNDUP(FR7/4,0) -> 25 | FS8: =ROUNDUP(FS7/4,0) -> 25 | FT8: =ROUNDUP(FT7/4,0) -> 25 | FU8: =ROUNDUP(FU7/4,0) -> 25 | FV8: =ROUNDUP(FV7/4,0) -> 25 | FW8: =ROUNDUP(FW7/4,0) -> 25
C9: Months per Period | L9: =SUMPRODUCT(L3:L5*$I$3:$I$5) -> 12 | M9: =SUMPRODUCT(M3:M5*$I$3:$I$5) -> 12 | N9: =SUMPRODUCT(N3:N5*$I$3:$I$5) -> 12 | O9: =SUMPRODUCT(O3:O5*$I$3:$I$5) -> 1 | P9: =SUMPRODUCT(P3:P5*$I$3:$I$5) -> 1 | Q9: =SUMPRODUCT(Q3:Q5*$I$3:$I$5) -> 1 | R9: =SUMPRODUCT(R3:R5*$I$3:$I$5) -> 1 | S9: =SUMPRODUCT(S3:S5*$I$3:$I$5) -> 1 | T9: =SUMPRODUCT(T3:T5*$I$3:$I$5) -> 1 | U9: =SUMPRODUCT(U3:U5*$I$3:$I$5) -> 1 | V9: =SUMPRODUCT(V3:V5*$I$3:$I$5) -> 1 | W9: =SUMPRODUCT(W3:W5*$I$3:$I$5) -> 1 | X9: =SUMPRODUCT(X3:X5*$I$3:$I$5) -> 1 | Y9: =SUMPRODUCT(Y3:Y5*$I$3:$I$5) -> 1 | Z9: =SUMPRODUCT(Z3:Z5*$I$3:$I$5) -> 1 | AA9: =SUMPRODUCT(AA3:AA5*$I$3:$I$5) -> 1 | AB9: =SUMPRODUCT(AB3:AB5*$I$3:$I$5) -> 1 | AC9: =SUMPRODUCT(AC3:AC5*$I$3:$I$5) -> 1 | AD9: =SUMPRODUCT(AD3:AD5*$I$3:$I$5) -> 1 | AE9: =SUMPRODUCT(AE3:AE5*$I$3:$I$5) -> 1 | AF9: =SUMPRODUCT(AF3:AF5*$I$3:$I$5) -> 1 | AG9: =SUMPRODUCT(AG3:AG5*$I$3:$I$5) -> 1 | AH9: =SUMPRODUCT(AH3:AH5*$I$3:$I$5) -> 1 | AI9: =SUMPRODUCT(AI3:AI5*$I$3:$I$5) -> 1 | AJ9: =SUMPRODUCT(AJ3:AJ5*$I$3:$I$5) -> 1 | AK9: =SUMPRODUCT(AK3:AK5*$I$3:$I$5) -> 1 | AL9: =SUMPRODUCT(AL3:AL5*$I$3:$I$5) -> 1 | AM9: =SUMPRODUCT(AM3:AM5*$I$3:$I$5) -> 1 | AN9: =SUMPRODUCT(AN3:AN5*$I$3:$I$5) -> 1 | AO9: =SUMPRODUCT(AO3:AO5*$I$3:$I$5) -> 1 | AP9: =SUMPRODUCT(AP3:AP5*$I$3:$I$5) -> 1 | AQ9: =SUMPRODUCT(AQ3:AQ5*$I$3:$I$5) -> 1 | AR9: =SUMPRODUCT(AR3:AR5*$I$3:$I$5) -> 1 | AS9: =SUMPRODUCT(AS3:AS5*$I$3:$I$5) -> 1 | AT9: =SUMPRODUCT(AT3:AT5*$I$3:$I$5) -> 1 | AU9: =SUMPRODUCT(AU3:AU5*$I$3:$I$5) -> 1 | AV9: =SUMPRODUCT(AV3:AV5*$I$3:$I$5) -> 1 | AW9: =SUMPRODUCT(AW3:AW5*$I$3:$I$5) -> 1 | AX9: =SUMPRODUCT(AX3:AX5*$I$3:$I$5) -> 1 | AY9: =SUMPRODUCT(AY3:AY5*$I$3:$I$5) -> 1 | AZ9: =SUMPRODUCT(AZ3:AZ5*$I$3:$I$5) -> 1 | BA9: =SUMPRODUCT(BA3:BA5*$I$3:$I$5) -> 1 | BB9: =SUMPRODUCT(BB3:BB5*$I$3:$I$5) -> 1 | BC9: =SUMPRODUCT(BC3:BC5*$I$3:$I$5) -> 3 | BD9: =SUMPRODUCT(BD3:BD5*$I$3:$I$5) -> 3 | BE9: =SUMPRODUCT(BE3:BE5*$I$3:$I$5) -> 3 | BF9: =SUMPRODUCT(BF3:BF5*$I$3:$I$5) -> 3 | BG9: =SUMPRODUCT(BG3:BG5*$I$3:$I$5) -> 3 | BH9: =SUMPRODUCT(BH3:BH5*$I$3:$I$5) -> 3 | BI9: =SUMPRODUCT(BI3:BI5*$I$3:$I$5) -> 3 | BJ9: =SUMPRODUCT(BJ3:BJ5*$I$3:$I$5) -> 3 | BK9: =SUMPRODUCT(BK3:BK5*$I$3:$I$5) -> 3 | BL9: =SUMPRODUCT(BL3:BL5*$I$3:$I$5) -> 3 | BM9: =SUMPRODUCT(BM3:BM5*$I$3:$I$5) -> 3 | BN9: =SUMPRODUCT(BN3:BN5*$I$3:$I$5) -> 3 | BO9: =SUMPRODUCT(BO3:BO5*$I$3:$I$5) -> 3 | BP9: =SUMPRODUCT(BP3:BP5*$I$3:$I$5) -> 3 | BQ9: =SUMPRODUCT(BQ3:BQ5*$I$3:$I$5) -> 3 | BR9: =SUMPRODUCT(BR3:BR5*$I$3:$I$5) -> 3 | BS9: =SUMPRODUCT(BS3:BS5*$I$3:$I$5) -> 3 | BT9: =SUMPRODUCT(BT3:BT5*$I$3:$I$5) -> 3 | BU9: =SUMPRODUCT(BU3:BU5*$I$3:$I$5) -> 3 | BV9: =SUMPRODUCT(BV3:BV5*$I$3:$I$5) -> 3 | BW9: =SUMPRODUCT(BW3:BW5*$I$3:$I$5) -> 3 | BX9: =SUMPRODUCT(BX3:BX5*$I$3:$I$5) -> 3 | BY9: =SUMPRODUCT(BY3:BY5*$I$3:$I$5) -> 3 | BZ9: =SUMPRODUCT(BZ3:BZ5*$I$3:$I$5) -> 3 | CA9: =SUMPRODUCT(CA3:CA5*$I$3:$I$5) -> 3 | CB9: =SUMPRODUCT(CB3:CB5*$I$3:$I$5) -> 3 | CC9: =SUMPRODUCT(CC3:CC5*$I$3:$I$5) -> 3 | CD9: =SUMPRODUCT(CD3:CD5*$I$3:$I$5) -> 3 | CE9: =SUMPRODUCT(CE3:CE5*$I$3:$I$5) -> 3 | CF9: =SUMPRODUCT(CF3:CF5*$I$3:$I$5) -> 3 | CG9: =SUMPRODUCT(CG3:CG5*$I$3:$I$5) -> 3 | CH9: =SUMPRODUCT(CH3:CH5*$I$3:$I$5) -> 3 | CI9: =SUMPRODUCT(CI3:CI5*$I$3:$I$5) -> 3 | CJ9: =SUMPRODUCT(CJ3:CJ5*$I$3:$I$5) -> 3 | CK9: =SUMPRODUCT(CK3:CK5*$I$3:$I$5) -> 3 | CL9: =SUMPRODUCT(CL3:CL5*$I$3:$I$5) -> 3 | CM9: =SUMPRODUCT(CM3:CM5*$I$3:$I$5) -> 3 | CN9: =SUMPRODUCT(CN3:CN5*$I$3:$I$5) -> 3 | CO9: =SUMPRODUCT(CO3:CO5*$I$3:$I$5) -> 3 | CP9: =SUMPRODUCT(CP3:CP5*$I$3:$I$5) -> 3 | CQ9: =SUMPRODUCT(CQ3:CQ5*$I$3:$I$5) -> 3 | CR9: =SUMPRODUCT(CR3:CR5*$I$3:$I$5) -> 3 | CS9: =SUMPRODUCT(CS3:CS5*$I$3:$I$5) -> 3 | CT9: =SUMPRODUCT(CT3:CT5*$I$3:$I$5) -> 3 | CU9: =SUMPRODUCT(CU3:CU5*$I$3:$I$5) -> 3 | CV9: =SUMPRODUCT(CV3:CV5*$I$3:$I$5) -> 3 | CW9: =SUMPRODUCT(CW3:CW5*$I$3:$I$5) -> 3 | CX9: =SUMPRODUCT(CX3:CX5*$I$3:$I$5) -> 3 | CY9: =SUMPRODUCT(CY3:CY5*$I$3:$I$5) -> 3 | CZ9: =SUMPRODUCT(CZ3:CZ5*$I$3:$I$5) -> 3 | DA9: =SUMPRODUCT(DA3:DA5*$I$3:$I$5) -> 3 | DB9: =SUMPRODUCT(DB3:DB5*$I$3:$I$5) -> 3 | DC9: =SUMPRODUCT(DC3:DC5*$I$3:$I$5) -> 3 | DD9: =SUMPRODUCT(DD3:DD5*$I$3:$I$5) -> 3 | DE9: =SUMPRODUCT(DE3:DE5*$I$3:$I$5) -> 3 | DF9: =SUMPRODUCT(DF3:DF5*$I$3:$I$5) -> 3 | DG9: =SUMPRODUCT(DG3:DG5*$I$3:$I$5) -> 3 | DH9: =SUMPRODUCT(DH3:DH5*$I$3:$I$5) -> 3 | DI9: =SUMPRODUCT(DI3:DI5*$I$3:$I$5) -> 3 | DJ9: =SUMPRODUCT(DJ3:DJ5*$I$3:$I$5) -> 3 | DK9: =SUMPRODUCT(DK3:DK5*$I$3:$I$5) -> 3 | DL9: =SUMPRODUCT(DL3:DL5*$I$3:$I$5) -> 3 | DM9: =SUMPRODUCT(DM3:DM5*$I$3:$I$5) -> 3 | DN9: =SUMPRODUCT(DN3:DN5*$I$3:$I$5) -> 3 | DO9: =SUMPRODUCT(DO3:DO5*$I$3:$I$5) -> 3 | DP9: =SUMPRODUCT(DP3:DP5*$I$3:$I$5) -> 3 | DQ9: =SUMPRODUCT(DQ3:DQ5*$I$3:$I$5) -> 3 | DR9: =SUMPRODUCT(DR3:DR5*$I$3:$I$5) -> 3 | DS9: =SUMPRODUCT(DS3:DS5*$I$3:$I$5) -> 3 | DT9: =SUMPRODUCT(DT3:DT5*$I$3:$I$5) -> 3 | DU9: =SUMPRODUCT(DU3:DU5*$I$3:$I$5) -> 3 | DV9: =SUMPRODUCT(DV3:DV5*$I$3:$I$5) -> 3 | DW9: =SUMPRODUCT(DW3:DW5*$I$3:$I$5) -> 3 | DX9: =SUMPRODUCT(DX3:DX5*$I$3:$I$5) -> 3 | DY9: =SUMPRODUCT(DY3:DY5*$I$3:$I$5) -> 3 | DZ9: =SUMPRODUCT(DZ3:DZ5*$I$3:$I$5) -> 3 | EA9: =SUMPRODUCT(EA3:EA5*$I$3:$I$5) -> 3 | EB9: =SUMPRODUCT(EB3:EB5*$I$3:$I$5) -> 3 | EC9: =SUMPRODUCT(EC3:EC5*$I$3:$I$5) -> 3 | ED9: =SUMPRODUCT(ED3:ED5*$I$3:$I$5) -> 3 | EE9: =SUMPRODUCT(EE3:EE5*$I$3:$I$5) -> 3 | EF9: =SUMPRODUCT(EF3:EF5*$I$3:$I$5) -> 3 | EG9: =SUMPRODUCT(EG3:EG5*$I$3:$I$5) -> 3 | EH9: =SUMPRODUCT(EH3:EH5*$I$3:$I$5) -> 3 | EI9: =SUMPRODUCT(EI3:EI5*$I$3:$I$5) -> 3 | EJ9: =SUMPRODUCT(EJ3:EJ5*$I$3:$I$5) -> 3 | EK9: =SUMPRODUCT(EK3:EK5*$I$3:$I$5) -> 3 | EL9: =SUMPRODUCT(EL3:EL5*$I$3:$I$5) -> 3 | EM9: =SUMPRODUCT(EM3:EM5*$I$3:$I$5) -> 3 | EN9: =SUMPRODUCT(EN3:EN5*$I$3:$I$5) -> 3 | EO9: =SUMPRODUCT(EO3:EO5*$I$3:$I$5) -> 3 | EP9: =SUMPRODUCT(EP3:EP5*$I$3:$I$5) -> 3 | EQ9: =SUMPRODUCT(EQ3:EQ5*$I$3:$I$5) -> 3 | ER9: =SUMPRODUCT(ER3:ER5*$I$3:$I$5) -> 3 | ES9: =SUMPRODUCT(ES3:ES5*$I$3:$I$5) -> 3 | ET9: =SUMPRODUCT(ET3:ET5*$I$3:$I$5) -> 3 | EU9: =SUMPRODUCT(EU3:EU5*$I$3:$I$5) -> 3 | EV9: =SUMPRODUCT(EV3:EV5*$I$3:$I$5) -> 3 | EW9: =SUMPRODUCT(EW3:EW5*$I$3:$I$5) -> 3 | EX9: =SUMPRODUCT(EX3:EX5*$I$3:$I$5) -> 3 | EY9: =SUMPRODUCT(EY3:EY5*$I$3:$I$5) -> 0 | EZ9: =SUMPRODUCT(EZ3:EZ5*$I$3:$I$5) -> 0 | FA9: =SUMPRODUCT(FA3:FA5*$I$3:$I$5) -> 0 | FB9: =SUMPRODUCT(FB3:FB5*$I$3:$I$5) -> 0 | FC9: =SUMPRODUCT(FC3:FC5*$I$3:$I$5) -> 0 | FD9: =SUMPRODUCT(FD3:FD5*$I$3:$I$5) -> 0 | FE9: =SUMPRODUCT(FE3:FE5*$I$3:$I$5) -> 0 | FF9: =SUMPRODUCT(FF3:FF5*$I$3:$I$5) -> 0 | FG9: =SUMPRODUCT(FG3:FG5*$I$3:$I$5) -> 0 | FH9: =SUMPRODUCT(FH3:FH5*$I$3:$I$5) -> 0 | FI9: =SUMPRODUCT(FI3:FI5*$I$3:$I$5) -> 0 | FJ9: =SUMPRODUCT(FJ3:FJ5*$I$3:$I$5) -> 0 | FK9: =SUMPRODUCT(FK3:FK5*$I$3:$I$5) -> 0 | FL9: =SUMPRODUCT(FL3:FL5*$I$3:$I$5) -> 0 | FM9: =SUMPRODUCT(FM3:FM5*$I$3:$I$5) -> 0 | FN9: =SUMPRODUCT(FN3:FN5*$I$3:$I$5) -> 0 | FO9: =SUMPRODUCT(FO3:FO5*$I$3:$I$5) -> 0 | FP9: =SUMPRODUCT(FP3:FP5*$I$3:$I$5) -> 0 | FQ9: =SUMPRODUCT(FQ3:FQ5*$I$3:$I$5) -> 0 | FR9: =SUMPRODUCT(FR3:FR5*$I$3:$I$5) -> 0 | FS9: =SUMPRODUCT(FS3:FS5*$I$3:$I$5) -> 0 | FT9: =SUMPRODUCT(FT3:FT5*$I$3:$I$5) -> 0 | FU9: =SUMPRODUCT(FU3:FU5*$I$3:$I$5) -> 0 | FV9: =SUMPRODUCT(FV3:FV5*$I$3:$I$5) -> 0 | FW9: =SUMPRODUCT(FW3:FW5*$I$3:$I$5) -> 0
C10: End Date of Period | K10: =EOMONTH(Assumptions!G4,-1) -> 2014-12-31 | L10: =EOMONTH(K10,L9) -> 2015-12-31 | M10: =EOMONTH(L10,M9) -> 2016-12-31 | N10: =EOMONTH(M10,N9) -> 2017-12-31 | O10: =EOMONTH(N10,O9) -> 2018-01-31 | P10: =EOMONTH(O10,P9) -> 2018-02-28 | Q10: =EOMONTH(P10,Q9) -> 2018-03-31 | R10: =EOMONTH(Q10,R9) -> 2018-04-30 | S10: =EOMONTH(R10,S9) -> 2018-05-31 | T10: =EOMONTH(S10,T9) -> 2018-06-30 | U10: =EOMONTH(T10,U9) -> 2018-07-31 | V10: =EOMONTH(U10,V9) -> 2018-08-31 | W10: =EOMONTH(V10,W9) -> 2018-09-30 | X10: =EOMONTH(W10,X9) -> 2018-10-31 | Y10: =EOMONTH(X10,Y9) -> 2018-11-30 | Z10: =EOMONTH(Y10,Z9) -> 2018-12-31 | AA10: =EOMONTH(Z10,AA9) -> 2019-01-31 | AB10: =EOMONTH(AA10,AB9) -> 2019-02-28 | AC10: =EOMONTH(AB10,AC9) -> 2019-03-31 | AD10: =EOMONTH(AC10,AD9) -> 2019-04-30 | AE10: =EOMONTH(AD10,AE9) -> 2019-05-31 | AF10: =EOMONTH(AE10,AF9) -> 2019-06-30 | AG10: =EOMONTH(AF10,AG9) -> 2019-07-31 | AH10: =EOMONTH(AG10,AH9) -> 2019-08-31 | AI10: =EOMONTH(AH10,AI9) -> 2019-09-30 | AJ10: =EOMONTH(AI10,AJ9) -> 2019-10-31 | AK10: =EOMONTH(AJ10,AK9) -> 2019-11-30 | AL10: =EOMONTH(AK10,AL9) -> 2019-12-31 | AM10: =EOMONTH(AL10,AM9) -> 2020-01-31 | AN10: =EOMONTH(AM10,AN9) -> 2020-02-29 | AO10: =EOMONTH(AN10,AO9) -> 2020-03-31 | AP10: =EOMONTH(AO10,AP9) -> 2020-04-30 | AQ10: =EOMONTH(AP10,AQ9) -> 2020-05-31 | AR10: =EOMONTH(AQ10,AR9) -> 2020-06-30 | AS10: =EOMONTH(AR10,AS9) -> 2020-07-31 | AT10: =EOMONTH(AS10,AT9) -> 2020-08-31 | AU10: =EOMONTH(AT10,AU9) -> 2020-09-30 | AV10: =EOMONTH(AU10,AV9) -> 2020-10-31 | AW10: =EOMONTH(AV10,AW9) -> 2020-11-30 | AX10: =EOMONTH(AW10,AX9) -> 2020-12-31 | AY10: =EOMONTH(AX10,AY9) -> 2021-01-31 | AZ10: =EOMONTH(AY10,AZ9) -> 2021-02-28 | BA10: =EOMONTH(AZ10,BA9) -> 2021-03-31 | BB10: =EOMONTH(BA10,BB9) -> 2021-04-30 | BC10: =EOMONTH(BB10,BC9) -> 2021-07-31 | BD10: =EOMONTH(BC10,BD9) -> 2021-10-31 | BE10: =EOMONTH(BD10,BE9) -> 2022-01-31 | BF10: =EOMONTH(BE10,BF9) -> 2022-04-30 | BG10: =EOMONTH(BF10,BG9) -> 2022-07-31 | BH10: =EOMONTH(BG10,BH9) -> 2022-10-31 | BI10: =EOMONTH(BH10,BI9) -> 2023-01-31 | BJ10: =EOMONTH(BI10,BJ9) -> 2023-04-30 | BK10: =EOMONTH(BJ10,BK9) -> 2023-07-31 | BL10: =EOMONTH(BK10,BL9) -> 2023-10-31 | BM10: =EOMONTH(BL10,BM9) -> 2024-01-31 | BN10: =EOMONTH(BM10,BN9) -> 2024-04-30 | BO10: =EOMONTH(BN10,BO9) -> 2024-07-31 | BP10: =EOMONTH(BO10,BP9) -> 2024-10-31 | BQ10: =EOMONTH(BP10,BQ9) -> 2025-01-31 | BR10: =EOMONTH(BQ10,BR9) -> 2025-04-30 | BS10: =EOMONTH(BR10,BS9) -> 2025-07-31 | BT10: =EOMONTH(BS10,BT9) -> 2025-10-31 | BU10: =EOMONTH(BT10,BU9) -> 2026-01-31 | BV10: =EOMONTH(BU10,BV9) -> 2026-04-30 | BW10: =EOMONTH(BV10,BW9) -> 2026-07-31 | BX10: =EOMONTH(BW10,BX9) -> 2026-10-31 | BY10: =EOMONTH(BX10,BY9) -> 2027-01-31 | BZ10: =EOMONTH(BY10,BZ9) -> 2027-04-30 | CA10: =EOMONTH(BZ10,CA9) -> 2027-07-31 | CB10: =EOMONTH(CA10,CB9) -> 2027-10-31 | CC10: =EOMONTH(CB10,CC9) -> 2028-01-31 | CD10: =EOMONTH(CC10,CD9) -> 2028-04-30 | CE10: =EOMONTH(CD10,CE9) -> 2028-07-31 | CF10: =EOMONTH(CE10,CF9) -> 2028-10-31 | CG10: =EOMONTH(CF10,CG9) -> 2029-01-31 | CH10: =EOMONTH(CG10,CH9) -> 2029-04-30 | CI10: =EOMONTH(CH10,CI9) -> 2029-07-31 | CJ10: =EOMONTH(CI10,CJ9) -> 2029-10-31 | CK10: =EOMONTH(CJ10,CK9) -> 2030-01-31 | CL10: =EOMONTH(CK10,CL9) -> 2030-04-30 | CM10: =EOMONTH(CL10,CM9) -> 2030-07-31 | CN10: =EOMONTH(CM10,CN9) -> 2030-10-31 | CO10: =EOMONTH(CN10,CO9) -> 2031-01-31 | CP10: =EOMONTH(CO10,CP9) -> 2031-04-30 | CQ10: =EOMONTH(CP10,CQ9) -> 2031-07-31 | CR10: =EOMONTH(CQ10,CR9) -> 2031-10-31 | CS10: =EOMONTH(CR10,CS9) -> 2032-01-31 | CT10: =EOMONTH(CS10,CT9) -> 2032-04-30 | CU10: =EOMONTH(CT10,CU9) -> 2032-07-31 | CV10: =EOMONTH(CU10,CV9) -> 2032-10-31 | CW10: =EOMONTH(CV10,CW9) -> 2033-01-31 | CX10: =EOMONTH(CW10,CX9) -> 2033-04-30 | CY10: =EOMONTH(CX10,CY9) -> 2033-07-31 | CZ10: =EOMONTH(CY10,CZ9) -> 2033-10-31 | DA10: =EOMONTH(CZ10,DA9) -> 2034-01-31 | DB10: =EOMONTH(DA10,DB9) -> 2034-04-30 | DC10: =EOMONTH(DB10,DC9) -> 2034-07-31 | DD10: =EOMONTH(DC10,DD9) -> 2034-10-31 | DE10: =EOMONTH(DD10,DE9) -> 2035-01-31 | DF10: =EOMONTH(DE10,DF9) -> 2035-04-30 | DG10: =EOMONTH(DF10,DG9) -> 2035-07-31 | DH10: =EOMONTH(DG10,DH9) -> 2035-10-31 | DI10: =EOMONTH(DH10,DI9) -> 2036-01-31 | DJ10: =EOMONTH(DI10,DJ9) -> 2036-04-30 | DK10: =EOMONTH(DJ10,DK9) -> 2036-07-31 | DL10: =EOMONTH(DK10,DL9) -> 2036-10-31 | DM10: =EOMONTH(DL10,DM9) -> 2037-01-31 | DN10: =EOMONTH(DM10,DN9) -> 2037-04-30 | DO10: =EOMONTH(DN10,DO9) -> 2037-07-31 | DP10: =EOMONTH(DO10,DP9) -> 2037-10-31 | DQ10: =EOMONTH(DP10,DQ9) -> 2038-01-31 | DR10: =EOMONTH(DQ10,DR9) -> 2038-04-30 | DS10: =EOMONTH(DR10,DS9) -> 2038-07-31 | DT10: =EOMONTH(DS10,DT9) -> 2038-10-31 | DU10: =EOMONTH(DT10,DU9) -> 2039-01-31 | DV10: =EOMONTH(DU10,DV9) -> 2039-04-30 | DW10: =EOMONTH(DV10,DW9) -> 2039-07-31 | DX10: =EOMONTH(DW10,DX9) -> 2039-10-31 | DY10: =EOMONTH(DX10,DY9) -> 2040-01-31 | DZ10: =EOMONTH(DY10,DZ9) -> 2040-04-30 | EA10: =EOMONTH(DZ10,EA9) -> 2040-07-31 | EB10: =EOMONTH(EA10,EB9) -> 2040-10-31 | EC10: =EOMONTH(EB10,EC9) -> 2041-01-31 | ED10: =EOMONTH(EC10,ED9) -> 2041-04-30 | EE10: =EOMONTH(ED10,EE9) -> 2041-07-31 | EF10: =EOMONTH(EE10,EF9) -> 2041-10-31 | EG10: =EOMONTH(EF10,EG9) -> 2042-01-31 | EH10: =EOMONTH(EG10,EH9) -> 2042-04-30 | EI10: =EOMONTH(EH10,EI9) -> 2042-07-31 | EJ10: =EOMONTH(EI10,EJ9) -> 2042-10-31 | EK10: =EOMONTH(EJ10,EK9) -> 2043-01-31 | EL10: =EOMONTH(EK10,EL9) -> 2043-04-30 | EM10: =EOMONTH(EL10,EM9) -> 2043-07-31 | EN10: =EOMONTH(EM10,EN9) -> 2043-10-31 | EO10: =EOMONTH(EN10,EO9) -> 2044-01-31 | EP10: =EOMONTH(EO10,EP9) -> 2044-04-30 | EQ10: =EOMONTH(EP10,EQ9) -> 2044-07-31 | ER10: =EOMONTH(EQ10,ER9) -> 2044-10-31 | ES10: =EOMONTH(ER10,ES9) -> 2045-01-31 | ET10: =EOMONTH(ES10,ET9) -> 2045-04-30 | EU10: =EOMONTH(ET10,EU9) -> 2045-07-31 | EV10: =EOMONTH(EU10,EV9) -> 2045-10-31 | EW10: =EOMONTH(EV10,EW9) -> 2046-01-31 | EX10: =EOMONTH(EW10,EX9) -> 2046-04-30 | EY10: =EOMONTH(EX10,EY9) -> 2046-04-30 | EZ10: =EOMONTH(EY10,EZ9) -> 2046-04-30 | FA10: =EOMONTH(EZ10,FA9) -> 2046-04-30 | FB10: =EOMONTH(FA10,FB9) -> 2046-04-30 | FC10: =EOMONTH(FB10,FC9) -> 2046-04-30 | FD10: =EOMONTH(FC10,FD9) -> 2046-04-30 | FE10: =EOMONTH(FD10,FE9) -> 2046-04-30 | FF10: =EOMONTH(FE10,FF9) -> 2046-04-30 | FG10: =EOMONTH(FF10,FG9) -> 2046-04-30 | FH10: =EOMONTH(FG10,FH9) -> 2046-04-30 | FI10: =EOMONTH(FH10,FI9) -> 2046-04-30 | FJ10: =EOMONTH(FI10,FJ9) -> 2046-04-30 | FK10: =EOMONTH(FJ10,FK9) -> 2046-04-30 | FL10: =EOMONTH(FK10,FL9) -> 2046-04-30 | FM10: =EOMONTH(FL10,FM9) -> 2046-04-30 | FN10: =EOMONTH(FM10,FN9) -> 2046-04-30 | FO10: =EOMONTH(FN10,FO9) -> 2046-04-30 | FP10: =EOMONTH(FO10,FP9) -> 2046-04-30 | FQ10: =EOMONTH(FP10,FQ9) -> 2046-04-30 | FR10: =EOMONTH(FQ10,FR9) -> 2046-04-30 | FS10: =EOMONTH(FR10,FS9) -> 2046-04-30 | FT10: =EOMONTH(FS10,FT9) -> 2046-04-30 | FU10: =EOMONTH(FT10,FU9) -> 2046-04-30 | FV10: =EOMONTH(FU10,FV9) -> 2046-04-30 | FW10: =EOMONTH(FV10,FW9) -> 2046-04-30
C11: Start of Month | L11: =K10+1 -> 2015-01-01 | M11: =L10+1 -> 2016-01-01 | N11: =M10+1 -> 2017-01-01 | O11: =N10+1 -> 2018-01-01 | P11: =O10+1 -> 2018-02-01 | Q11: =P10+1 -> 2018-03-01 | R11: =Q10+1 -> 2018-04-01 | S11: =R10+1 -> 2018-05-01 | T11: =S10+1 -> 2018-06-01 | U11: =T10+1 -> 2018-07-01 | V11: =U10+1 -> 2018-08-01 | W11: =V10+1 -> 2018-09-01 | X11: =W10+1 -> 2018-10-01 | Y11: =X10+1 -> 2018-11-01 | Z11: =Y10+1 -> 2018-12-01 | AA11: =Z10+1 -> 2019-01-01 | AB11: =AA10+1 -> 2019-02-01 | AC11: =AB10+1 -> 2019-03-01 | AD11: =AC10+1 -> 2019-04-01 | AE11: =AD10+1 -> 2019-05-01 | AF11: =AE10+1 -> 2019-06-01 | AG11: =AF10+1 -> 2019-07-01 | AH11: =AG10+1 -> 2019-08-01 | AI11: =AH10+1 -> 2019-09-01 | AJ11: =AI10+1 -> 2019-10-01 | AK11: =AJ10+1 -> 2019-11-01 | AL11: =AK10+1 -> 2019-12-01 | AM11: =AL10+1 -> 2020-01-01 | AN11: =AM10+1 -> 2020-02-01 | AO11: =AN10+1 -> 2020-03-01 | AP11: =AO10+1 -> 2020-04-01 | AQ11: =AP10+1 -> 2020-05-01 | AR11: =AQ10+1 -> 2020-06-01 | AS11: =AR10+1 -> 2020-07-01 | AT11: =AS10+1 -> 2020-08-01 | AU11: =AT10+1 -> 2020-09-01 | AV11: =AU10+1 -> 2020-10-01 | AW11: =AV10+1 -> 2020-11-01 | AX11: =AW10+1 -> 2020-12-01 | AY11: =AX10+1 -> 2021-01-01 | AZ11: =AY10+1 -> 2021-02-01 | BA11: =AZ10+1 -> 2021-03-01 | BB11: =BA10+1 -> 2021-04-01 | BC11: =BB10+1 -> 2021-05-01 | BD11: =BC10+1 -> 2021-08-01 | BE11: =BD10+1 -> 2021-11-01 | BF11: =BE10+1 -> 2022-02-01 | BG11: =BF10+1 -> 2022-05-01 | BH11: =BG10+1 -> 2022-08-01 | BI11: =BH10+1 -> 2022-11-01 | BJ11: =BI10+1 -> 2023-02-01 | BK11: =BJ10+1 -> 2023-05-01 | BL11: =BK10+1 -> 2023-08-01 | BM11: =BL10+1 -> 2023-11-01 | BN11: =BM10+1 -> 2024-02-01 | BO11: =BN10+1 -> 2024-05-01 | BP11: =BO10+1 -> 2024-08-01 | BQ11: =BP10+1 -> 2024-11-01 | BR11: =BQ10+1 -> 2025-02-01 | BS11: =BR10+1 -> 2025-05-01 | BT11: =BS10+1 -> 2025-08-01 | BU11: =BT10+1 -> 2025-11-01 | BV11: =BU10+1 -> 2026-02-01 | BW11: =BV10+1 -> 2026-05-01 | BX11: =BW10+1 -> 2026-08-01 | BY11: =BX10+1 -> 2026-11-01 | BZ11: =BY10+1 -> 2027-02-01 | CA11: =BZ10+1 -> 2027-05-01 | CB11: =CA10+1 -> 2027-08-01 | CC11: =CB10+1 -> 2027-11-01 | CD11: =CC10+1 -> 2028-02-01 | CE11: =CD10+1 -> 2028-05-01 | CF11: =CE10+1 -> 2028-08-01 | CG11: =CF10+1 -> 2028-11-01 | CH11: =CG10+1 -> 2029-02-01 | CI11: =CH10+1 -> 2029-05-01 | CJ11: =CI10+1 -> 2029-08-01 | CK11: =CJ10+1 -> 2029-11-01 | CL11: =CK10+1 -> 2030-02-01 | CM11: =CL10+1 -> 2030-05-01 | CN11: =CM10+1 -> 2030-08-01 | CO11: =CN10+1 -> 2030-11-01 | CP11: =CO10+1 -> 2031-02-01 | CQ11: =CP10+1 -> 2031-05-01 | CR11: =CQ10+1 -> 2031-08-01 | CS11: =CR10+1 -> 2031-11-01 | CT11: =CS10+1 -> 2032-02-01 | CU11: =CT10+1 -> 2032-05-01 | CV11: =CU10+1 -> 2032-08-01 | CW11: =CV10+1 -> 2032-11-01 | CX11: =CW10+1 -> 2033-02-01 | CY11: =CX10+1 -> 2033-05-01 | CZ11: =CY10+1 -> 2033-08-01 | DA11: =CZ10+1 -> 2033-11-01 | DB11: =DA10+1 -> 2034-02-01 | DC11: =DB10+1 -> 2034-05-01 | DD11: =DC10+1 -> 2034-08-01 | DE11: =DD10+1 -> 2034-11-01 | DF11: =DE10+1 -> 2035-02-01 | DG11: =DF10+1 -> 2035-05-01 | DH11: =DG10+1 -> 2035-08-01 | DI11: =DH10+1 -> 2035-11-01 | DJ11: =DI10+1 -> 2036-02-01 | DK11: =DJ10+1 -> 2036-05-01 | DL11: =DK10+1 -> 2036-08-01 | DM11: =DL10+1 -> 2036-11-01 | DN11: =DM10+1 -> 2037-02-01 | DO11: =DN10+1 -> 2037-05-01 | DP11: =DO10+1 -> 2037-08-01 | DQ11: =DP10+1 -> 2037-11-01 | DR11: =DQ10+1 -> 2038-02-01 | DS11: =DR10+1 -> 2038-05-01 | DT11: =DS10+1 -> 2038-08-01 | DU11: =DT10+1 -> 2038-11-01 | DV11: =DU10+1 -> 2039-02-01 | DW11: =DV10+1 -> 2039-05-01 | DX11: =DW10+1 -> 2039-08-01 | DY11: =DX10+1 -> 2039-11-01 | DZ11: =DY10+1 -> 2040-02-01 | EA11: =DZ10+1 -> 2040-05-01 | EB11: =EA10+1 -> 2040-08-01 | EC11: =EB10+1 -> 2040-11-01 | ED11: =EC10+1 -> 2041-02-01 | EE11: =ED10+1 -> 2041-05-01 | EF11: =EE10+1 -> 2041-08-01 | EG11: =EF10+1 -> 2041-11-01 | EH11: =EG10+1 -> 2042-02-01 | EI11: =EH10+1 -> 2042-05-01 | EJ11: =EI10+1 -> 2042-08-01 | EK11: =EJ10+1 -> 2042-11-01 | EL11: =EK10+1 -> 2043-02-01 | EM11: =EL10+1 -> 2043-05-01 | EN11: =EM10+1 -> 2043-08-01 | EO11: =EN10+1 -> 2043-11-01 | EP11: =EO10+1 -> 2044-02-01 | EQ11: =EP10+1 -> 2044-05-01 | ER11: =EQ10+1 -> 2044-08-01 | ES11: =ER10+1 -> 2044-11-01 | ET11: =ES10+1 -> 2045-02-01 | EU11: =ET10+1 -> 2045-05-01 | EV11: =EU10+1 -> 2045-08-01 | EW11: =EV10+1 -> 2045-11-01 | EX11: =EW10+1 -> 2046-02-01 | EY11: =EX10+1 -> 2046-05-01 | EZ11: =EY10+1 -> 2046-05-01 | FA11: =EZ10+1 -> 2046-05-01 | FB11: =FA10+1 -> 2046-05-01 | FC11: =FB10+1 -> 2046-05-01 | FD11: =FC10+1 -> 2046-05-01 | FE11: =FD10+1 -> 2046-05-01 | FF11: =FE10+1 -> 2046-05-01 | FG11: =FF10+1 -> 2046-05-01 | FH11: =FG10+1 -> 2046-05-01 | FI11: =FH10+1 -> 2046-05-01 | FJ11: =FI10+1 -> 2046-05-01 | FK11: =FJ10+1 -> 2046-05-01 | FL11: =FK10+1 -> 2046-05-01 | FM11: =FL10+1 -> 2046-05-01 | FN11: =FM10+1 -> 2046-05-01 | FO11: =FN10+1 -> 2046-05-01 | FP11: =FO10+1 -> 2046-05-01 | FQ11: =FP10+1 -> 2046-05-01 | FR11: =FQ10+1 -> 2046-05-01 | FS11: =FR10+1 -> 2046-05-01 | FT11: =FS10+1 -> 2046-05-01 | FU11: =FT10+1 -> 2046-05-01 | FV11: =FU10+1 -> 2046-05-01 | FW11: =FV10+1 -> 2046-05-01
C12: Year | L12: =YEAR(L11) -> 2015 | M12: =YEAR(M11) -> 2016 | N12: =YEAR(N11) -> 2017 | O12: =YEAR(O11) -> 2018 | P12: =YEAR(P11) -> 2018 | Q12: =YEAR(Q11) -> 2018 | R12: =YEAR(R11) -> 2018 | S12: =YEAR(S11) -> 2018 | T12: =YEAR(T11) -> 2018 | U12: =YEAR(U11) -> 2018 | V12: =YEAR(V11) -> 2018 | W12: =YEAR(W11) -> 2018 | X12: =YEAR(X11) -> 2018 | Y12: =YEAR(Y11) -> 2018 | Z12: =YEAR(Z11) -> 2018 | AA12: =YEAR(AA11) -> 2019 | AB12: =YEAR(AB11) -> 2019 | AC12: =YEAR(AC11) -> 2019 | AD12: =YEAR(AD11) -> 2019 | AE12: =YEAR(AE11) -> 2019 | AF12: =YEAR(AF11) -> 2019 | AG12: =YEAR(AG11) -> 2019 | AH12: =YEAR(AH11) -> 2019 | AI12: =YEAR(AI11) -> 2019 | AJ12: =YEAR(AJ11) -> 2019 | AK12: =YEAR(AK11) -> 2019 | AL12: =YEAR(AL11) -> 2019 | AM12: =YEAR(AM11) -> 2020 | AN12: =YEAR(AN11) -> 2020 | AO12: =YEAR(AO11) -> 2020 | AP12: =YEAR(AP11) -> 2020 | AQ12: =YEAR(AQ11) -> 2020 | AR12: =YEAR(AR11) -> 2020 | AS12: =YEAR(AS11) -> 2020 | AT12: =YEAR(AT11) -> 2020 | AU12: =YEAR(AU11) -> 2020 | AV12: =YEAR(AV11) -> 2020 | AW12: =YEAR(AW11) -> 2020 | AX12: =YEAR(AX11) -> 2020 | AY12: =YEAR(AY11) -> 2021 | AZ12: =YEAR(AZ11) -> 2021 | BA12: =YEAR(BA11) -> 2021 | BB12: =YEAR(BB11) -> 2021 | BC12: =YEAR(BC11) -> 2021 | BD12: =YEAR(BD11) -> 2021 | BE12: =YEAR(BE11) -> 2021 | BF12: =YEAR(BF11) -> 2022 | BG12: =YEAR(BG11) -> 2022 | BH12: =YEAR(BH11) -> 2022 | BI12: =YEAR(BI11) -> 2022 | BJ12: =YEAR(BJ11) -> 2023 | BK12: =YEAR(BK11) -> 2023 | BL12: =YEAR(BL11) -> 2023 | BM12: =YEAR(BM11) -> 2023 | BN12: =YEAR(BN11) -> 2024 | BO12: =YEAR(BO11) -> 2024 | BP12: =YEAR(BP11) -> 2024 | BQ12: =YEAR(BQ11) -> 2024 | BR12: =YEAR(BR11) -> 2025 | BS12: =YEAR(BS11) -> 2025 | BT12: =YEAR(BT11) -> 2025 | BU12: =YEAR(BU11) -> 2025 | BV12: =YEAR(BV11) -> 2026 | BW12: =YEAR(BW11) -> 2026 | BX12: =YEAR(BX11) -> 2026 | BY12: =YEAR(BY11) -> 2026 | BZ12: =YEAR(BZ11) -> 2027 | CA12: =YEAR(CA11) -> 2027 | CB12: =YEAR(CB11) -> 2027 | CC12: =YEAR(CC11) -> 2027 | CD12: =YEAR(CD11) -> 2028 | CE12: =YEAR(CE11) -> 2028 | CF12: =YEAR(CF11) -> 2028 | CG12: =YEAR(CG11) -> 2028 | CH12: =YEAR(CH11) -> 2029 | CI12: =YEAR(CI11) -> 2029 | CJ12: =YEAR(CJ11) -> 2029 | CK12: =YEAR(CK11) -> 2029 | CL12: =YEAR(CL11) -> 2030 | CM12: =YEAR(CM11) -> 2030 | CN12: =YEAR(CN11) -> 2030 | CO12: =YEAR(CO11) -> 2030 | CP12: =YEAR(CP11) -> 2031 | CQ12: =YEAR(CQ11) -> 2031 | CR12: =YEAR(CR11) -> 2031 | CS12: =YEAR(CS11) -> 2031 | CT12: =YEAR(CT11) -> 2032 | CU12: =YEAR(CU11) -> 2032 | CV12: =YEAR(CV11) -> 2032 | CW12: =YEAR(CW11) -> 2032 | CX12: =YEAR(CX11) -> 2033 | CY12: =YEAR(CY11) -> 2033 | CZ12: =YEAR(CZ11) -> 2033 | DA12: =YEAR(DA11) -> 2033 | DB12: =YEAR(DB11) -> 2034 | DC12: =YEAR(DC11) -> 2034 | DD12: =YEAR(DD11) -> 2034 | DE12: =YEAR(DE11) -> 2034 | DF12: =YEAR(DF11) -> 2035 | DG12: =YEAR(DG11) -> 2035 | DH12: =YEAR(DH11) -> 2035 | DI12: =YEAR(DI11) -> 2035 | DJ12: =YEAR(DJ11) -> 2036 | DK12: =YEAR(DK11) -> 2036 | DL12: =YEAR(DL11) -> 2036 | DM12: =YEAR(DM11) -> 2036 | DN12: =YEAR(DN11) -> 2037 | DO12: =YEAR(DO11) -> 2037 | DP12: =YEAR(DP11) -> 2037 | DQ12: =YEAR(DQ11) -> 2037 | DR12: =YEAR(DR11) -> 2038 | DS12: =YEAR(DS11) -> 2038 | DT12: =YEAR(DT11) -> 2038 | DU12: =YEAR(DU11) -> 2038 | DV12: =YEAR(DV11) -> 2039 | DW12: =YEAR(DW11) -> 2039 | DX12: =YEAR(DX11) -> 2039 | DY12: =YEAR(DY11) -> 2039 | DZ12: =YEAR(DZ11) -> 2040 | EA12: =YEAR(EA11) -> 2040 | EB12: =YEAR(EB11) -> 2040 | EC12: =YEAR(EC11) -> 2040 | ED12: =YEAR(ED11) -> 2041 | EE12: =YEAR(EE11) -> 2041 | EF12: =YEAR(EF11) -> 2041 | EG12: =YEAR(EG11) -> 2041 | EH12: =YEAR(EH11) -> 2042 | EI12: =YEAR(EI11) -> 2042 | EJ12: =YEAR(EJ11) -> 2042 | EK12: =YEAR(EK11) -> 2042 | EL12: =YEAR(EL11) -> 2043 | EM12: =YEAR(EM11) -> 2043 | EN12: =YEAR(EN11) -> 2043 | EO12: =YEAR(EO11) -> 2043 | EP12: =YEAR(EP11) -> 2044 | EQ12: =YEAR(EQ11) -> 2044 | ER12: =YEAR(ER11) -> 2044 | ES12: =YEAR(ES11) -> 2044 | ET12: =YEAR(ET11) -> 2045 | EU12: =YEAR(EU11) -> 2045 | EV12: =YEAR(EV11) -> 2045 | EW12: =YEAR(EW11) -> 2045 | EX12: =YEAR(EX11) -> 2046 | EY12: =YEAR(EY11) -> 2046 | EZ12: =YEAR(EZ11) -> 2046 | FA12: =YEAR(FA11) -> 2046 | FB12: =YEAR(FB11) -> 2046 | FC12: =YEAR(FC11) -> 2046 | FD12: =YEAR(FD11) -> 2046 | FE12: =YEAR(FE11) -> 2046 | FF12: =YEAR(FF11) -> 2046 | FG12: =YEAR(FG11) -> 2046 | FH12: =YEAR(FH11) -> 2046 | FI12: =YEAR(FI11) -> 2046 | FJ12: =YEAR(FJ11) -> 2046 | FK12: =YEAR(FK11) -> 2046 | FL12: =YEAR(FL11) -> 2046 | FM12: =YEAR(FM11) -> 2046 | FN12: =YEAR(FN11) -> 2046 | FO12: =YEAR(FO11) -> 2046 | FP12: =YEAR(FP11) -> 2046 | FQ12: =YEAR(FQ11) -> 2046 | FR12: =YEAR(FR11) -> 2046 | FS12: =YEAR(FS11) -> 2046 | FT12: =YEAR(FT11) -> 2046 | FU12: =YEAR(FU11) -> 2046 | FV12: =YEAR(FV11) -> 2046 | FW12: =YEAR(FW11) -> 2046
C13: Periods per Year | L13: =IF(L9,12/L9,1) -> 1 | M13: =IF(M9,12/M9,1) -> 1 | N13: =IF(N9,12/N9,1) -> 1 | O13: =IF(O9,12/O9,1) -> 12 | P13: =IF(P9,12/P9,1) -> 12 | Q13: =IF(Q9,12/Q9,1) -> 12 | R13: =IF(R9,12/R9,1) -> 12 | S13: =IF(S9,12/S9,1) -> 12 | T13: =IF(T9,12/T9,1) -> 12 | U13: =IF(U9,12/U9,1) -> 12 | V13: =IF(V9,12/V9,1) -> 12 | W13: =IF(W9,12/W9,1) -> 12 | X13: =IF(X9,12/X9,1) -> 12 | Y13: =IF(Y9,12/Y9,1) -> 12 | Z13: =IF(Z9,12/Z9,1) -> 12 | AA13: =IF(AA9,12/AA9,1) -> 12 | AB13: =IF(AB9,12/AB9,1) -> 12 | AC13: =IF(AC9,12/AC9,1) -> 12 | AD13: =IF(AD9,12/AD9,1) -> 12 | AE13: =IF(AE9,12/AE9,1) -> 12 | AF13: =IF(AF9,12/AF9,1) -> 12 | AG13: =IF(AG9,12/AG9,1) -> 12 | AH13: =IF(AH9,12/AH9,1) -> 12 | AI13: =IF(AI9,12/AI9,1) -> 12 | AJ13: =IF(AJ9,12/AJ9,1) -> 12 | AK13: =IF(AK9,12/AK9,1) -> 12 | AL13: =IF(AL9,12/AL9,1) -> 12 | AM13: =IF(AM9,12/AM9,1) -> 12 | AN13: =IF(AN9,12/AN9,1) -> 12 | AO13: =IF(AO9,12/AO9,1) -> 12 | AP13: =IF(AP9,12/AP9,1) -> 12 | AQ13: =IF(AQ9,12/AQ9,1) -> 12 | AR13: =IF(AR9,12/AR9,1) -> 12 | AS13: =IF(AS9,12/AS9,1) -> 12 | AT13: =IF(AT9,12/AT9,1) -> 12 | AU13: =IF(AU9,12/AU9,1) -> 12 | AV13: =IF(AV9,12/AV9,1) -> 12 | AW13: =IF(AW9,12/AW9,1) -> 12 | AX13: =IF(AX9,12/AX9,1) -> 12 | AY13: =IF(AY9,12/AY9,1) -> 12 | AZ13: =IF(AZ9,12/AZ9,1) -> 12 | BA13: =IF(BA9,12/BA9,1) -> 12 | BB13: =IF(BB9,12/BB9,1) -> 12 | BC13: =IF(BC9,12/BC9,1) -> 4 | BD13: =IF(BD9,12/BD9,1) -> 4 | BE13: =IF(BE9,12/BE9,1) -> 4 | BF13: =IF(BF9,12/BF9,1) -> 4 | BG13: =IF(BG9,12/BG9,1) -> 4 | BH13: =IF(BH9,12/BH9,1) -> 4 | BI13: =IF(BI9,12/BI9,1) -> 4 | BJ13: =IF(BJ9,12/BJ9,1) -> 4 | BK13: =IF(BK9,12/BK9,1) -> 4 | BL13: =IF(BL9,12/BL9,1) -> 4 | BM13: =IF(BM9,12/BM9,1) -> 4 | BN13: =IF(BN9,12/BN9,1) -> 4 | BO13: =IF(BO9,12/BO9,1) -> 4 | BP13: =IF(BP9,12/BP9,1) -> 4 | BQ13: =IF(BQ9,12/BQ9,1) -> 4 | BR13: =IF(BR9,12/BR9,1) -> 4 | BS13: =IF(BS9,12/BS9,1) -> 4 | BT13: =IF(BT9,12/BT9,1) -> 4 | BU13: =IF(BU9,12/BU9,1) -> 4 | BV13: =IF(BV9,12/BV9,1) -> 4 | BW13: =IF(BW9,12/BW9,1) -> 4 | BX13: =IF(BX9,12/BX9,1) -> 4 | BY13: =IF(BY9,12/BY9,1) -> 4 | BZ13: =IF(BZ9,12/BZ9,1) -> 4 | CA13: =IF(CA9,12/CA9,1) -> 4 | CB13: =IF(CB9,12/CB9,1) -> 4 | CC13: =IF(CC9,12/CC9,1) -> 4 | CD13: =IF(CD9,12/CD9,1) -> 4 | CE13: =IF(CE9,12/CE9,1) -> 4 | CF13: =IF(CF9,12/CF9,1) -> 4 | CG13: =IF(CG9,12/CG9,1) -> 4 | CH13: =IF(CH9,12/CH9,1) -> 4 | CI13: =IF(CI9,12/CI9,1) -> 4 | CJ13: =IF(CJ9,12/CJ9,1) -> 4 | CK13: =IF(CK9,12/CK9,1) -> 4 | CL13: =IF(CL9,12/CL9,1) -> 4 | CM13: =IF(CM9,12/CM9,1) -> 4 | CN13: =IF(CN9,12/CN9,1) -> 4 | CO13: =IF(CO9,12/CO9,1) -> 4 | CP13: =IF(CP9,12/CP9,1) -> 4 | CQ13: =IF(CQ9,12/CQ9,1) -> 4 | CR13: =IF(CR9,12/CR9,1) -> 4 | CS13: =IF(CS9,12/CS9,1) -> 4 | CT13: =IF(CT9,12/CT9,1) -> 4 | CU13: =IF(CU9,12/CU9,1) -> 4 | CV13: =IF(CV9,12/CV9,1) -> 4 | CW13: =IF(CW9,12/CW9,1) -> 4 | CX13: =IF(CX9,12/CX9,1) -> 4 | CY13: =IF(CY9,12/CY9,1) -> 4 | CZ13: =IF(CZ9,12/CZ9,1) -> 4 | DA13: =IF(DA9,12/DA9,1) -> 4 | DB13: =IF(DB9,12/DB9,1) -> 4 | DC13: =IF(DC9,12/DC9,1) -> 4 | DD13: =IF(DD9,12/DD9,1) -> 4 | DE13: =IF(DE9,12/DE9,1) -> 4 | DF13: =IF(DF9,12/DF9,1) -> 4 | DG13: =IF(DG9,12/DG9,1) -> 4 | DH13: =IF(DH9,12/DH9,1) -> 4 | DI13: =IF(DI9,12/DI9,1) -> 4 | DJ13: =IF(DJ9,12/DJ9,1) -> 4 | DK13: =IF(DK9,12/DK9,1) -> 4 | DL13: =IF(DL9,12/DL9,1) -> 4 | DM13: =IF(DM9,12/DM9,1) -> 4 | DN13: =IF(DN9,12/DN9,1) -> 4 | DO13: =IF(DO9,12/DO9,1) -> 4 | DP13: =IF(DP9,12/DP9,1) -> 4 | DQ13: =IF(DQ9,12/DQ9,1) -> 4 | DR13: =IF(DR9,12/DR9,1) -> 4 | DS13: =IF(DS9,12/DS9,1) -> 4 | DT13: =IF(DT9,12/DT9,1) -> 4 | DU13: =IF(DU9,12/DU9,1) -> 4 | DV13: =IF(DV9,12/DV9,1) -> 4 | DW13: =IF(DW9,12/DW9,1) -> 4 | DX13: =IF(DX9,12/DX9,1) -> 4 | DY13: =IF(DY9,12/DY9,1) -> 4 | DZ13: =IF(DZ9,12/DZ9,1) -> 4 | EA13: =IF(EA9,12/EA9,1) -> 4 | EB13: =IF(EB9,12/EB9,1) -> 4 | EC13: =IF(EC9,12/EC9,1) -> 4 | ED13: =IF(ED9,12/ED9,1) -> 4 | EE13: =IF(EE9,12/EE9,1) -> 4 | EF13: =IF(EF9,12/EF9,1) -> 4 | EG13: =IF(EG9,12/EG9,1) -> 4 | EH13: =IF(EH9,12/EH9,1) -> 4 | EI13: =IF(EI9,12/EI9,1) -> 4 | EJ13: =IF(EJ9,12/EJ9,1) -> 4 | EK13: =IF(EK9,12/EK9,1) -> 4 | EL13: =IF(EL9,12/EL9,1) -> 4 | EM13: =IF(EM9,12/EM9,1) -> 4 | EN13: =IF(EN9,12/EN9,1) -> 4 | EO13: =IF(EO9,12/EO9,1) -> 4 | EP13: =IF(EP9,12/EP9,1) -> 4 | EQ13: =IF(EQ9,12/EQ9,1) -> 4 | ER13: =IF(ER9,12/ER9,1) -> 4 | ES13: =IF(ES9,12/ES9,1) -> 4 | ET13: =IF(ET9,12/ET9,1) -> 4 | EU13: =IF(EU9,12/EU9,1) -> 4 | EV13: =IF(EV9,12/EV9,1) -> 4 | EW13: =IF(EW9,12/EW9,1) -> 4 | EX13: =IF(EX9,12/EX9,1) -> 4 | EY13: =IF(EY9,12/EY9,1) -> 1 | EZ13: =IF(EZ9,12/EZ9,1) -> 1 | FA13: =IF(FA9,12/FA9,1) -> 1 | FB13: =IF(FB9,12/FB9,1) -> 1 | FC13: =IF(FC9,12/FC9,1) -> 1 | FD13: =IF(FD9,12/FD9,1) -> 1 | FE13: =IF(FE9,12/FE9,1) -> 1 | FF13: =IF(FF9,12/FF9,1) -> 1 | FG13: =IF(FG9,12/FG9,1) -> 1 | FH13: =IF(FH9,12/FH9,1) -> 1 | FI13: =IF(FI9,12/FI9,1) -> 1 | FJ13: =IF(FJ9,12/FJ9,1) -> 1 | FK13: =IF(FK9,12/FK9,1) -> 1 | FL13: =IF(FL9,12/FL9,1) -> 1 | FM13: =IF(FM9,12/FM9,1) -> 1 | FN13: =IF(FN9,12/FN9,1) -> 1 | FO13: =IF(FO9,12/FO9,1) -> 1 | FP13: =IF(FP9,12/FP9,1) -> 1 | FQ13: =IF(FQ9,12/FQ9,1) -> 1 | FR13: =IF(FR9,12/FR9,1) -> 1 | FS13: =IF(FS9,12/FS9,1) -> 1 | FT13: =IF(FT9,12/FT9,1) -> 1 | FU13: =IF(FU9,12/FU9,1) -> 1 | FV13: =IF(FV9,12/FV9,1) -> 1 | FW13: =IF(FW9,12/FW9,1) -> 1
C14: Fraction of Year | L14: =DAYS360(L11,L10+1)/360 -> 1 | M14: =DAYS360(M11,M10+1)/360 -> 1 | N14: =DAYS360(N11,N10+1)/360 -> 1 | O14: =DAYS360(O11,O10+1)/360 -> 0.08333333333 | P14: =DAYS360(P11,P10+1)/360 -> 0.08333333333 | Q14: =DAYS360(Q11,Q10+1)/360 -> 0.08333333333 | R14: =DAYS360(R11,R10+1)/360 -> 0.08333333333 | S14: =DAYS360(S11,S10+1)/360 -> 0.08333333333 | T14: =DAYS360(T11,T10+1)/360 -> 0.08333333333 | U14: =DAYS360(U11,U10+1)/360 -> 0.08333333333 | V14: =DAYS360(V11,V10+1)/360 -> 0.08333333333 | W14: =DAYS360(W11,W10+1)/360 -> 0.08333333333 | X14: =DAYS360(X11,X10+1)/360 -> 0.08333333333 | Y14: =DAYS360(Y11,Y10+1)/360 -> 0.08333333333 | Z14: =DAYS360(Z11,Z10+1)/360 -> 0.08333333333 | AA14: =DAYS360(AA11,AA10+1)/360 -> 0.08333333333 | AB14: =DAYS360(AB11,AB10+1)/360 -> 0.08333333333 | AC14: =DAYS360(AC11,AC10+1)/360 -> 0.08333333333 | AD14: =DAYS360(AD11,AD10+1)/360 -> 0.08333333333 | AE14: =DAYS360(AE11,AE10+1)/360 -> 0.08333333333 | AF14: =DAYS360(AF11,AF10+1)/360 -> 0.08333333333 | AG14: =DAYS360(AG11,AG10+1)/360 -> 0.08333333333 | AH14: =DAYS360(AH11,AH10+1)/360 -> 0.08333333333 | AI14: =DAYS360(AI11,AI10+1)/360 -> 0.08333333333 | AJ14: =DAYS360(AJ11,AJ10+1)/360 -> 0.08333333333 | AK14: =DAYS360(AK11,AK10+1)/360 -> 0.08333333333 | AL14: =DAYS360(AL11,AL10+1)/360 -> 0.08333333333 | AM14: =DAYS360(AM11,AM10+1)/360 -> 0.08333333333 | AN14: =DAYS360(AN11,AN10+1)/360 -> 0.08333333333 | AO14: =DAYS360(AO11,AO10+1)/360 -> 0.08333333333 | AP14: =DAYS360(AP11,AP10+1)/360 -> 0.08333333333 | AQ14: =DAYS360(AQ11,AQ10+1)/360 -> 0.08333333333 | AR14: =DAYS360(AR11,AR10+1)/360 -> 0.08333333333 | AS14: =DAYS360(AS11,AS10+1)/360 -> 0.08333333333 | AT14: =DAYS360(AT11,AT10+1)/360 -> 0.08333333333 | AU14: =DAYS360(AU11,AU10+1)/360 -> 0.08333333333 | AV14: =DAYS360(AV11,AV10+1)/360 -> 0.08333333333 | AW14: =DAYS360(AW11,AW10+1)/360 -> 0.08333333333 | AX14: =DAYS360(AX11,AX10+1)/360 -> 0.08333333333 | AY14: =DAYS360(AY11,AY10+1)/360 -> 0.08333333333 | AZ14: =DAYS360(AZ11,AZ10+1)/360 -> 0.08333333333 | BA14: =DAYS360(BA11,BA10+1)/360 -> 0.08333333333 | BB14: =DAYS360(BB11,BB10+1)/360 -> 0.08333333333 | BC14: =DAYS360(BC11,BC10+1)/360 -> 0.25 | BD14: =DAYS360(BD11,BD10+1)/360 -> 0.25 | BE14: =DAYS360(BE11,BE10+1)/360 -> 0.25 | BF14: =DAYS360(BF11,BF10+1)/360 -> 0.25 | BG14: =DAYS360(BG11,BG10+1)/360 -> 0.25 | BH14: =DAYS360(BH11,BH10+1)/360 -> 0.25 | BI14: =DAYS360(BI11,BI10+1)/360 -> 0.25 | BJ14: =DAYS360(BJ11,BJ10+1)/360 -> 0.25 | BK14: =DAYS360(BK11,BK10+1)/360 -> 0.25 | BL14: =DAYS360(BL11,BL10+1)/360 -> 0.25 | BM14: =DAYS360(BM11,BM10+1)/360 -> 0.25 | BN14: =DAYS360(BN11,BN10+1)/360 -> 0.25 | BO14: =DAYS360(BO11,BO10+1)/360 -> 0.25 | BP14: =DAYS360(BP11,BP10+1)/360 -> 0.25 | BQ14: =DAYS360(BQ11,BQ10+1)/360 -> 0.25 | BR14: =DAYS360(BR11,BR10+1)/360 -> 0.25 | BS14: =DAYS360(BS11,BS10+1)/360 -> 0.25 | BT14: =DAYS360(BT11,BT10+1)/360 -> 0.25 | BU14: =DAYS360(BU11,BU10+1)/360 -> 0.25 | BV14: =DAYS360(BV11,BV10+1)/360 -> 0.25 | BW14: =DAYS360(BW11,BW10+1)/360 -> 0.25 | BX14: =DAYS360(BX11,BX10+1)/360 -> 0.25 | BY14: =DAYS360(BY11,BY10+1)/360 -> 0.25 | BZ14: =DAYS360(BZ11,BZ10+1)/360 -> 0.25 | CA14: =DAYS360(CA11,CA10+1)/360 -> 0.25 | CB14: =DAYS360(CB11,CB10+1)/360 -> 0.25 | CC14: =DAYS360(CC11,CC10+1)/360 -> 0.25 | CD14: =DAYS360(CD11,CD10+1)/360 -> 0.25 | CE14: =DAYS360(CE11,CE10+1)/360 -> 0.25 | CF14: =DAYS360(CF11,CF10+1)/360 -> 0.25 | CG14: =DAYS360(CG11,CG10+1)/360 -> 0.25 | CH14: =DAYS360(CH11,CH10+1)/360 -> 0.25 | CI14: =DAYS360(CI11,CI10+1)/360 -> 0.25 | CJ14: =DAYS360(CJ11,CJ10+1)/360 -> 0.25 | CK14: =DAYS360(CK11,CK10+1)/360 -> 0.25 | CL14: =DAYS360(CL11,CL10+1)/360 -> 0.25 | CM14: =DAYS360(CM11,CM10+1)/360 -> 0.25 | CN14: =DAYS360(CN11,CN10+1)/360 -> 0.25 | CO14: =DAYS360(CO11,CO10+1)/360 -> 0.25 | CP14: =DAYS360(CP11,CP10+1)/360 -> 0.25 | CQ14: =DAYS360(CQ11,CQ10+1)/360 -> 0.25 | CR14: =DAYS360(CR11,CR10+1)/360 -> 0.25 | CS14: =DAYS360(CS11,CS10+1)/360 -> 0.25 | CT14: =DAYS360(CT11,CT10+1)/360 -> 0.25 | CU14: =DAYS360(CU11,CU10+1)/360 -> 0.25 | CV14: =DAYS360(CV11,CV10+1)/360 -> 0.25 | CW14: =DAYS360(CW11,CW10+1)/360 -> 0.25 | CX14: =DAYS360(CX11,CX10+1)/360 -> 0.25 | CY14: =DAYS360(CY11,CY10+1)/360 -> 0.25 | CZ14: =DAYS360(CZ11,CZ10+1)/360 -> 0.25 | DA14: =DAYS360(DA11,DA10+1)/360 -> 0.25 | DB14: =DAYS360(DB11,DB10+1)/360 -> 0.25 | DC14: =DAYS360(DC11,DC10+1)/360 -> 0.25 | DD14: =DAYS360(DD11,DD10+1)/360 -> 0.25 | DE14: =DAYS360(DE11,DE10+1)/360 -> 0.25 | DF14: =DAYS360(DF11,DF10+1)/360 -> 0.25 | DG14: =DAYS360(DG11,DG10+1)/360 -> 0.25 | DH14: =DAYS360(DH11,DH10+1)/360 -> 0.25 | DI14: =DAYS360(DI11,DI10+1)/360 -> 0.25 | DJ14: =DAYS360(DJ11,DJ10+1)/360 -> 0.25 | DK14: =DAYS360(DK11,DK10+1)/360 -> 0.25 | DL14: =DAYS360(DL11,DL10+1)/360 -> 0.25 | DM14: =DAYS360(DM11,DM10+1)/360 -> 0.25 | DN14: =DAYS360(DN11,DN10+1)/360 -> 0.25 | DO14: =DAYS360(DO11,DO10+1)/360 -> 0.25 | DP14: =DAYS360(DP11,DP10+1)/360 -> 0.25 | DQ14: =DAYS360(DQ11,DQ10+1)/360 -> 0.25 | DR14: =DAYS360(DR11,DR10+1)/360 -> 0.25 | DS14: =DAYS360(DS11,DS10+1)/360 -> 0.25 | DT14: =DAYS360(DT11,DT10+1)/360 -> 0.25 | DU14: =DAYS360(DU11,DU10+1)/360 -> 0.25 | DV14: =DAYS360(DV11,DV10+1)/360 -> 0.25 | DW14: =DAYS360(DW11,DW10+1)/360 -> 0.25 | DX14: =DAYS360(DX11,DX10+1)/360 -> 0.25 | DY14: =DAYS360(DY11,DY10+1)/360 -> 0.25 | DZ14: =DAYS360(DZ11,DZ10+1)/360 -> 0.25 | EA14: =DAYS360(EA11,EA10+1)/360 -> 0.25 | EB14: =DAYS360(EB11,EB10+1)/360 -> 0.25 | EC14: =DAYS360(EC11,EC10+1)/360 -> 0.25 | ED14: =DAYS360(ED11,ED10+1)/360 -> 0.25 | EE14: =DAYS360(EE11,EE10+1)/360 -> 0.25 | EF14: =DAYS360(EF11,EF10+1)/360 -> 0.25 | EG14: =DAYS360(EG11,EG10+1)/360 -> 0.25 | EH14: =DAYS360(EH11,EH10+1)/360 -> 0.25 | EI14: =DAYS360(EI11,EI10+1)/360 -> 0.25 | EJ14: =DAYS360(EJ11,EJ10+1)/360 -> 0.25 | EK14: =DAYS360(EK11,EK10+1)/360 -> 0.25 | EL14: =DAYS360(EL11,EL10+1)/360 -> 0.25 | EM14: =DAYS360(EM11,EM10+1)/360 -> 0.25 | EN14: =DAYS360(EN11,EN10+1)/360 -> 0.25 | EO14: =DAYS360(EO11,EO10+1)/360 -> 0.25 | EP14: =DAYS360(EP11,EP10+1)/360 -> 0.25 | EQ14: =DAYS360(EQ11,EQ10+1)/360 -> 0.25 | ER14: =DAYS360(ER11,ER10+1)/360 -> 0.25 | ES14: =DAYS360(ES11,ES10+1)/360 -> 0.25 | ET14: =DAYS360(ET11,ET10+1)/360 -> 0.25 | EU14: =DAYS360(EU11,EU10+1)/360 -> 0.25 | EV14: =DAYS360(EV11,EV10+1)/360 -> 0.25 | EW14: =DAYS360(EW11,EW10+1)/360 -> 0.25 | EX14: =DAYS360(EX11,EX10+1)/360 -> 0.25 | EY14: =DAYS360(EY11,EY10+1)/360 -> 0 | EZ14: =DAYS360(EZ11,EZ10+1)/360 -> 0 | FA14: =DAYS360(FA11,FA10+1)/360 -> 0 | FB14: =DAYS360(FB11,FB10+1)/360 -> 0 | FC14: =DAYS360(FC11,FC10+1)/360 -> 0 | FD14: =DAYS360(FD11,FD10+1)/360 -> 0 | FE14: =DAYS360(FE11,FE10+1)/360 -> 0 | FF14: =DAYS360(FF11,FF10+1)/360 -> 0 | FG14: =DAYS360(FG11,FG10+1)/360 -> 0 | FH14: =DAYS360(FH11,FH10+1)/360 -> 0 | FI14: =DAYS360(FI11,FI10+1)/360 -> 0 | FJ14: =DAYS360(FJ11,FJ10+1)/360 -> 0 | FK14: =DAYS360(FK11,FK10+1)/360 -> 0 | FL14: =DAYS360(FL11,FL10+1)/360 -> 0 | FM14: =DAYS360(FM11,FM10+1)/360 -> 0 | FN14: =DAYS360(FN11,FN10+1)/360 -> 0 | FO14: =DAYS360(FO11,FO10+1)/360 -> 0 | FP14: =DAYS360(FP11,FP10+1)/360 -> 0 | FQ14: =DAYS360(FQ11,FQ10+1)/360 -> 0 | FR14: =DAYS360(FR11,FR10+1)/360 -> 0 | FS14: =DAYS360(FS11,FS10+1)/360 -> 0 | FT14: =DAYS360(FT11,FT10+1)/360 -> 0 | FU14: =DAYS360(FU11,FU10+1)/360 -> 0 | FV14: =DAYS360(FV11,FV10+1)/360 -> 0 | FW14: =DAYS360(FW11,FW10+1)/360 -> 0
C15: Contruciton Month | L15: =K15+L4 -> 0 | M15: =L15+M4 -> 0 | N15: =M15+N4 -> 0 | O15: =N15+O4 -> 1 | P15: =O15+P4 -> 2 | Q15: =P15+Q4 -> 3 | R15: =Q15+R4 -> 4 | S15: =R15+S4 -> 5 | T15: =S15+T4 -> 6 | U15: =T15+U4 -> 7 | V15: =U15+V4 -> 8 | W15: =V15+W4 -> 9 | X15: =W15+X4 -> 10 | Y15: =X15+Y4 -> 11 | Z15: =Y15+Z4 -> 12 | AA15: =Z15+AA4 -> 13 | AB15: =AA15+AB4 -> 14 | AC15: =AB15+AC4 -> 15 | AD15: =AC15+AD4 -> 16 | AE15: =AD15+AE4 -> 17 | AF15: =AE15+AF4 -> 18 | AG15: =AF15+AG4 -> 19 | AH15: =AG15+AH4 -> 20 | AI15: =AH15+AI4 -> 21 | AJ15: =AI15+AJ4 -> 22 | AK15: =AJ15+AK4 -> 23 | AL15: =AK15+AL4 -> 24 | AM15: =AL15+AM4 -> 25 | AN15: =AM15+AN4 -> 26 | AO15: =AN15+AO4 -> 27 | AP15: =AO15+AP4 -> 28 | AQ15: =AP15+AQ4 -> 29 | AR15: =AQ15+AR4 -> 30 | AS15: =AR15+AS4 -> 31 | AT15: =AS15+AT4 -> 32 | AU15: =AT15+AU4 -> 33 | AV15: =AU15+AV4 -> 34 | AW15: =AV15+AW4 -> 35 | AX15: =AW15+AX4 -> 36 | AY15: =AX15+AY4 -> 37 | AZ15: =AY15+AZ4 -> 38 | BA15: =AZ15+BA4 -> 39 | BB15: =BA15+BB4 -> 40 | BC15: =BB15+BC4 -> 40 | BD15: =BC15+BD4 -> 40 | BE15: =BD15+BE4 -> 40 | BF15: =BE15+BF4 -> 40 | BG15: =BF15+BG4 -> 40 | BH15: =BG15+BH4 -> 40 | BI15: =BH15+BI4 -> 40 | BJ15: =BI15+BJ4 -> 40 | BK15: =BJ15+BK4 -> 40 | BL15: =BK15+BL4 -> 40 | BM15: =BL15+BM4 -> 40 | BN15: =BM15+BN4 -> 40 | BO15: =BN15+BO4 -> 40 | BP15: =BO15+BP4 -> 40 | BQ15: =BP15+BQ4 -> 40 | BR15: =BQ15+BR4 -> 40 | BS15: =BR15+BS4 -> 40 | BT15: =BS15+BT4 -> 40 | BU15: =BT15+BU4 -> 40 | BV15: =BU15+BV4 -> 40 | BW15: =BV15+BW4 -> 40 | BX15: =BW15+BX4 -> 40 | BY15: =BX15+BY4 -> 40 | BZ15: =BY15+BZ4 -> 40 | CA15: =BZ15+CA4 -> 40 | CB15: =CA15+CB4 -> 40 | CC15: =CB15+CC4 -> 40 | CD15: =CC15+CD4 -> 40 | CE15: =CD15+CE4 -> 40 | CF15: =CE15+CF4 -> 40 | CG15: =CF15+CG4 -> 40 | CH15: =CG15+CH4 -> 40 | CI15: =CH15+CI4 -> 40 | CJ15: =CI15+CJ4 -> 40 | CK15: =CJ15+CK4 -> 40 | CL15: =CK15+CL4 -> 40 | CM15: =CL15+CM4 -> 40 | CN15: =CM15+CN4 -> 40 | CO15: =CN15+CO4 -> 40 | CP15: =CO15+CP4 -> 40 | CQ15: =CP15+CQ4 -> 40 | CR15: =CQ15+CR4 -> 40 | CS15: =CR15+CS4 -> 40 | CT15: =CS15+CT4 -> 40 | CU15: =CT15+CU4 -> 40 | CV15: =CU15+CV4 -> 40 | CW15: =CV15+CW4 -> 40 | CX15: =CW15+CX4 -> 40 | CY15: =CX15+CY4 -> 40 | CZ15: =CY15+CZ4 -> 40 | DA15: =CZ15+DA4 -> 40 | DB15: =DA15+DB4 -> 40 | DC15: =DB15+DC4 -> 40 | DD15: =DC15+DD4 -> 40 | DE15: =DD15+DE4 -> 40 | DF15: =DE15+DF4 -> 40 | DG15: =DF15+DG4 -> 40 | DH15: =DG15+DH4 -> 40 | DI15: =DH15+DI4 -> 40 | DJ15: =DI15+DJ4 -> 40 | DK15: =DJ15+DK4 -> 40 | DL15: =DK15+DL4 -> 40 | DM15: =DL15+DM4 -> 40 | DN15: =DM15+DN4 -> 40 | DO15: =DN15+DO4 -> 40 | DP15: =DO15+DP4 -> 40 | DQ15: =DP15+DQ4 -> 40 | DR15: =DQ15+DR4 -> 40 | DS15: =DR15+DS4 -> 40 | DT15: =DS15+DT4 -> 40 | DU15: =DT15+DU4 -> 40 | DV15: =DU15+DV4 -> 40 | DW15: =DV15+DW4 -> 40 | DX15: =DW15+DX4 -> 40 | DY15: =DX15+DY4 -> 40 | DZ15: =DY15+DZ4 -> 40 | EA15: =DZ15+EA4 -> 40 | EB15: =EA15+EB4 -> 40 | EC15: =EB15+EC4 -> 40 | ED15: =EC15+ED4 -> 40 | EE15: =ED15+EE4 -> 40 | EF15: =EE15+EF4 -> 40 | EG15: =EF15+EG4 -> 40 | EH15: =EG15+EH4 -> 40 | EI15: =EH15+EI4 -> 40 | EJ15: =EI15+EJ4 -> 40 | EK15: =EJ15+EK4 -> 40 | EL15: =EK15+EL4 -> 40 | EM15: =EL15+EM4 -> 40 | EN15: =EM15+EN4 -> 40 | EO15: =EN15+EO4 -> 40 | EP15: =EO15+EP4 -> 40 | EQ15: =EP15+EQ4 -> 40 | ER15: =EQ15+ER4 -> 40 | ES15: =ER15+ES4 -> 40 | ET15: =ES15+ET4 -> 40 | EU15: =ET15+EU4 -> 40 | EV15: =EU15+EV4 -> 40 | EW15: =EV15+EW4 -> 40 | EX15: =EW15+EX4 -> 40 | EY15: =EX15+EY4 -> 40 | EZ15: =EY15+EZ4 -> 40 | FA15: =EZ15+FA4 -> 40 | FB15: =FA15+FB4 -> 40 | FC15: =FB15+FC4 -> 40 | FD15: =FC15+FD4 -> 40 | FE15: =FD15+FE4 -> 40 | FF15: =FE15+FF4 -> 40 | FG15: =FF15+FG4 -> 40 | FH15: =FG15+FH4 -> 40 | FI15: =FH15+FI4 -> 40 | FJ15: =FI15+FJ4 -> 40 | FK15: =FJ15+FK4 -> 40 | FL15: =FK15+FL4 -> 40 | FM15: =FL15+FM4 -> 40 | FN15: =FM15+FN4 -> 40 | FO15: =FN15+FO4 -> 40 | FP15: =FO15+FP4 -> 40 | FQ15: =FP15+FQ4 -> 40 | FR15: =FQ15+FR4 -> 40 | FS15: =FR15+FS4 -> 40 | FT15: =FS15+FT4 -> 40 | FU15: =FT15+FU4 -> 40 | FV15: =FU15+FV4 -> 40 | FW15: =FV15+FW4 -> 40
C16: Construction Year | L16: =ROUNDUP(L15/12,0)*L4 -> 0 | M16: =ROUNDUP(M15/12,0)*M4 -> 0 | N16: =ROUNDUP(N15/12,0)*N4 -> 0 | O16: =ROUNDUP(O15/12,0)*O4 -> 1 | P16: =ROUNDUP(P15/12,0)*P4 -> 1 | Q16: =ROUNDUP(Q15/12,0)*Q4 -> 1 | R16: =ROUNDUP(R15/12,0)*R4 -> 1 | S16: =ROUNDUP(S15/12,0)*S4 -> 1 | T16: =ROUNDUP(T15/12,0)*T4 -> 1 | U16: =ROUNDUP(U15/12,0)*U4 -> 1 | V16: =ROUNDUP(V15/12,0)*V4 -> 1 | W16: =ROUNDUP(W15/12,0)*W4 -> 1 | X16: =ROUNDUP(X15/12,0)*X4 -> 1 | Y16: =ROUNDUP(Y15/12,0)*Y4 -> 1 | Z16: =ROUNDUP(Z15/12,0)*Z4 -> 1 | AA16: =ROUNDUP(AA15/12,0)*AA4 -> 2 | AB16: =ROUNDUP(AB15/12,0)*AB4 -> 2 | AC16: =ROUNDUP(AC15/12,0)*AC4 -> 2 | AD16: =ROUNDUP(AD15/12,0)*AD4 -> 2 | AE16: =ROUNDUP(AE15/12,0)*AE4 -> 2 | AF16: =ROUNDUP(AF15/12,0)*AF4 -> 2 | AG16: =ROUNDUP(AG15/12,0)*AG4 -> 2 | AH16: =ROUNDUP(AH15/12,0)*AH4 -> 2 | AI16: =ROUNDUP(AI15/12,0)*AI4 -> 2 | AJ16: =ROUNDUP(AJ15/12,0)*AJ4 -> 2 | AK16: =ROUNDUP(AK15/12,0)*AK4 -> 2 | AL16: =ROUNDUP(AL15/12,0)*AL4 -> 2 | AM16: =ROUNDUP(AM15/12,0)*AM4 -> 3 | AN16: =ROUNDUP(AN15/12,0)*AN4 -> 3 | AO16: =ROUNDUP(AO15/12,0)*AO4 -> 3 | AP16: =ROUNDUP(AP15/12,0)*AP4 -> 3 | AQ16: =ROUNDUP(AQ15/12,0)*AQ4 -> 3 | AR16: =ROUNDUP(AR15/12,0)*AR4 -> 3 | AS16: =ROUNDUP(AS15/12,0)*AS4 -> 3 | AT16: =ROUNDUP(AT15/12,0)*AT4 -> 3 | AU16: =ROUNDUP(AU15/12,0)*AU4 -> 3 | AV16: =ROUNDUP(AV15/12,0)*AV4 -> 3 | AW16: =ROUNDUP(AW15/12,0)*AW4 -> 3 | AX16: =ROUNDUP(AX15/12,0)*AX4 -> 3 | AY16: =ROUNDUP(AY15/12,0)*AY4 -> 4 | AZ16: =ROUNDUP(AZ15/12,0)*AZ4 -> 4 | BA16: =ROUNDUP(BA15/12,0)*BA4 -> 4 | BB16: =ROUNDUP(BB15/12,0)*BB4 -> 4 | BC16: =ROUNDUP(BC15/12,0)*BC4 -> 0 | BD16: =ROUNDUP(BD15/12,0)*BD4 -> 0 | BE16: =ROUNDUP(BE15/12,0)*BE4 -> 0 | BF16: =ROUNDUP(BF15/12,0)*BF4 -> 0 | BG16: =ROUNDUP(BG15/12,0)*BG4 -> 0 | BH16: =ROUNDUP(BH15/12,0)*BH4 -> 0 | BI16: =ROUNDUP(BI15/12,0)*BI4 -> 0 | BJ16: =ROUNDUP(BJ15/12,0)*BJ4 -> 0 | BK16: =ROUNDUP(BK15/12,0)*BK4 -> 0 | BL16: =ROUNDUP(BL15/12,0)*BL4 -> 0 | BM16: =ROUNDUP(BM15/12,0)*BM4 -> 0 | BN16: =ROUNDUP(BN15/12,0)*BN4 -> 0 | BO16: =ROUNDUP(BO15/12,0)*BO4 -> 0 | BP16: =ROUNDUP(BP15/12,0)*BP4 -> 0 | BQ16: =ROUNDUP(BQ15/12,0)*BQ4 -> 0 | BR16: =ROUNDUP(BR15/12,0)*BR4 -> 0 | BS16: =ROUNDUP(BS15/12,0)*BS4 -> 0 | BT16: =ROUNDUP(BT15/12,0)*BT4 -> 0 | BU16: =ROUNDUP(BU15/12,0)*BU4 -> 0 | BV16: =ROUNDUP(BV15/12,0)*BV4 -> 0 | BW16: =ROUNDUP(BW15/12,0)*BW4 -> 0 | BX16: =ROUNDUP(BX15/12,0)*BX4 -> 0 | BY16: =ROUNDUP(BY15/12,0)*BY4 -> 0 | BZ16: =ROUNDUP(BZ15/12,0)*BZ4 -> 0 | CA16: =ROUNDUP(CA15/12,0)*CA4 -> 0 | CB16: =ROUNDUP(CB15/12,0)*CB4 -> 0 | CC16: =ROUNDUP(CC15/12,0)*CC4 -> 0 | CD16: =ROUNDUP(CD15/12,0)*CD4 -> 0 | CE16: =ROUNDUP(CE15/12,0)*CE4 -> 0 | CF16: =ROUNDUP(CF15/12,0)*CF4 -> 0 | CG16: =ROUNDUP(CG15/12,0)*CG4 -> 0 | CH16: =ROUNDUP(CH15/12,0)*CH4 -> 0 | CI16: =ROUNDUP(CI15/12,0)*CI4 -> 0 | CJ16: =ROUNDUP(CJ15/12,0)*CJ4 -> 0 | CK16: =ROUNDUP(CK15/12,0)*CK4 -> 0 | CL16: =ROUNDUP(CL15/12,0)*CL4 -> 0 | CM16: =ROUNDUP(CM15/12,0)*CM4 -> 0 | CN16: =ROUNDUP(CN15/12,0)*CN4 -> 0 | CO16: =ROUNDUP(CO15/12,0)*CO4 -> 0 | CP16: =ROUNDUP(CP15/12,0)*CP4 -> 0 | CQ16: =ROUNDUP(CQ15/12,0)*CQ4 -> 0 | CR16: =ROUNDUP(CR15/12,0)*CR4 -> 0 | CS16: =ROUNDUP(CS15/12,0)*CS4 -> 0 | CT16: =ROUNDUP(CT15/12,0)*CT4 -> 0 | CU16: =ROUNDUP(CU15/12,0)*CU4 -> 0 | CV16: =ROUNDUP(CV15/12,0)*CV4 -> 0 | CW16: =ROUNDUP(CW15/12,0)*CW4 -> 0 | CX16: =ROUNDUP(CX15/12,0)*CX4 -> 0 | CY16: =ROUNDUP(CY15/12,0)*CY4 -> 0 | CZ16: =ROUNDUP(CZ15/12,0)*CZ4 -> 0 | DA16: =ROUNDUP(DA15/12,0)*DA4 -> 0 | DB16: =ROUNDUP(DB15/12,0)*DB4 -> 0 | DC16: =ROUNDUP(DC15/12,0)*DC4 -> 0 | DD16: =ROUNDUP(DD15/12,0)*DD4 -> 0 | DE16: =ROUNDUP(DE15/12,0)*DE4 -> 0 | DF16: =ROUNDUP(DF15/12,0)*DF4 -> 0 | DG16: =ROUNDUP(DG15/12,0)*DG4 -> 0 | DH16: =ROUNDUP(DH15/12,0)*DH4 -> 0 | DI16: =ROUNDUP(DI15/12,0)*DI4 -> 0 | DJ16: =ROUNDUP(DJ15/12,0)*DJ4 -> 0 | DK16: =ROUNDUP(DK15/12,0)*DK4 -> 0 | DL16: =ROUNDUP(DL15/12,0)*DL4 -> 0 | DM16: =ROUNDUP(DM15/12,0)*DM4 -> 0 | DN16: =ROUNDUP(DN15/12,0)*DN4 -> 0 | DO16: =ROUNDUP(DO15/12,0)*DO4 -> 0 | DP16: =ROUNDUP(DP15/12,0)*DP4 -> 0 | DQ16: =ROUNDUP(DQ15/12,0)*DQ4 -> 0 | DR16: =ROUNDUP(DR15/12,0)*DR4 -> 0 | DS16: =ROUNDUP(DS15/12,0)*DS4 -> 0 | DT16: =ROUNDUP(DT15/12,0)*DT4 -> 0 | DU16: =ROUNDUP(DU15/12,0)*DU4 -> 0 | DV16: =ROUNDUP(DV15/12,0)*DV4 -> 0 | DW16: =ROUNDUP(DW15/12,0)*DW4 -> 0 | DX16: =ROUNDUP(DX15/12,0)*DX4 -> 0 | DY16: =ROUNDUP(DY15/12,0)*DY4 -> 0 | DZ16: =ROUNDUP(DZ15/12,0)*DZ4 -> 0 | EA16: =ROUNDUP(EA15/12,0)*EA4 -> 0 | EB16: =ROUNDUP(EB15/12,0)*EB4 -> 0 | EC16: =ROUNDUP(EC15/12,0)*EC4 -> 0 | ED16: =ROUNDUP(ED15/12,0)*ED4 -> 0 | EE16: =ROUNDUP(EE15/12,0)*EE4 -> 0 | EF16: =ROUNDUP(EF15/12,0)*EF4 -> 0 | EG16: =ROUNDUP(EG15/12,0)*EG4 -> 0 | EH16: =ROUNDUP(EH15/12,0)*EH4 -> 0 | EI16: =ROUNDUP(EI15/12,0)*EI4 -> 0 | EJ16: =ROUNDUP(EJ15/12,0)*EJ4 -> 0 | EK16: =ROUNDUP(EK15/12,0)*EK4 -> 0 | EL16: =ROUNDUP(EL15/12,0)*EL4 -> 0 | EM16: =ROUNDUP(EM15/12,0)*EM4 -> 0 | EN16: =ROUNDUP(EN15/12,0)*EN4 -> 0 | EO16: =ROUNDUP(EO15/12,0)*EO4 -> 0 | EP16: =ROUNDUP(EP15/12,0)*EP4 -> 0 | EQ16: =ROUNDUP(EQ15/12,0)*EQ4 -> 0 | ER16: =ROUNDUP(ER15/12,0)*ER4 -> 0 | ES16: =ROUNDUP(ES15/12,0)*ES4 -> 0 | ET16: =ROUNDUP(ET15/12,0)*ET4 -> 0 | EU16: =ROUNDUP(EU15/12,0)*EU4 -> 0 | EV16: =ROUNDUP(EV15/12,0)*EV4 -> 0 | EW16: =ROUNDUP(EW15/12,0)*EW4 -> 0 | EX16: =ROUNDUP(EX15/12,0)*EX4 -> 0 | EY16: =ROUNDUP(EY15/12,0)*EY4 -> 0 | EZ16: =ROUNDUP(EZ15/12,0)*EZ4 -> 0 | FA16: =ROUNDUP(FA15/12,0)*FA4 -> 0 | FB16: =ROUNDUP(FB15/12,0)*FB4 -> 0 | FC16: =ROUNDUP(FC15/12,0)*FC4 -> 0 | FD16: =ROUNDUP(FD15/12,0)*FD4 -> 0 | FE16: =ROUNDUP(FE15/12,0)*FE4 -> 0 | FF16: =ROUNDUP(FF15/12,0)*FF4 -> 0 | FG16: =ROUNDUP(FG15/12,0)*FG4 -> 0 | FH16: =ROUNDUP(FH15/12,0)*FH4 -> 0 | FI16: =ROUNDUP(FI15/12,0)*FI4 -> 0 | FJ16: =ROUNDUP(FJ15/12,0)*FJ4 -> 0 | FK16: =ROUNDUP(FK15/12,0)*FK4 -> 0 | FL16: =ROUNDUP(FL15/12,0)*FL4 -> 0 | FM16: =ROUNDUP(FM15/12,0)*FM4 -> 0 | FN16: =ROUNDUP(FN15/12,0)*FN4 -> 0 | FO16: =ROUNDUP(FO15/12,0)*FO4 -> 0 | FP16: =ROUNDUP(FP15/12,0)*FP4 -> 0 | FQ16: =ROUNDUP(FQ15/12,0)*FQ4 -> 0 | FR16: =ROUNDUP(FR15/12,0)*FR4 -> 0 | FS16: =ROUNDUP(FS15/12,0)*FS4 -> 0 | FT16: =ROUNDUP(FT15/12,0)*FT4 -> 0 | FU16: =ROUNDUP(FU15/12,0)*FU4 -> 0 | FV16: =ROUNDUP(FV15/12,0)*FV4 -> 0 | FW16: =ROUNDUP(FW15/12,0)*FW4 -> 0
A18: Construction and Development Cost
C19: Development Cost | H19: =Assumptions!G13 -> 710000 | I19: =Assumptions!G5 -> 3 | L19: =$H$19*L3/$I$19 -> 236666.6667 | M19: =$H$19*M3/$I$19 -> 236666.6667 | N19: =$H$19*N3/$I$19 -> 236666.6667 | O19: =$H$19*O3/$I$19 -> 0 | P19: =$H$19*P3/$I$19 -> 0 | Q19: =$H$19*Q3/$I$19 -> 0 | R19: =$H$19*R3/$I$19 -> 0 | S19: =$H$19*S3/$I$19 -> 0 | T19: =$H$19*T3/$I$19 -> 0 | U19: =$H$19*U3/$I$19 -> 0 | V19: =$H$19*V3/$I$19 -> 0 | W19: =$H$19*W3/$I$19 -> 0 | X19: =$H$19*X3/$I$19 -> 0 | Y19: =$H$19*Y3/$I$19 -> 0 | Z19: =$H$19*Z3/$I$19 -> 0 | AA19: =$H$19*AA3/$I$19 -> 0 | AB19: =$H$19*AB3/$I$19 -> 0 | AC19: =$H$19*AC3/$I$19 -> 0 | AD19: =$H$19*AD3/$I$19 -> 0 | AE19: =$H$19*AE3/$I$19 -> 0 | AF19: =$H$19*AF3/$I$19 -> 0 | AG19: =$H$19*AG3/$I$19 -> 0 | AH19: =$H$19*AH3/$I$19 -> 0 | AI19: =$H$19*AI3/$I$19 -> 0 | AJ19: =$H$19*AJ3/$I$19 -> 0 | AK19: =$H$19*AK3/$I$19 -> 0 | AL19: =$H$19*AL3/$I$19 -> 0 | AM19: =$H$19*AM3/$I$19 -> 0 | AN19: =$H$19*AN3/$I$19 -> 0 | AO19: =$H$19*AO3/$I$19 -> 0 | AP19: =$H$19*AP3/$I$19 -> 0 | AQ19: =$H$19*AQ3/$I$19 -> 0 | AR19: =$H$19*AR3/$I$19 -> 0 | AS19: =$H$19*AS3/$I$19 -> 0 | AT19: =$H$19*AT3/$I$19 -> 0 | AU19: =$H$19*AU3/$I$19 -> 0 | AV19: =$H$19*AV3/$I$19 -> 0 | AW19: =$H$19*AW3/$I$19 -> 0 | AX19: =$H$19*AX3/$I$19 -> 0 | AY19: =$H$19*AY3/$I$19 -> 0 | AZ19: =$H$19*AZ3/$I$19 -> 0 | BA19: =$H$19*BA3/$I$19 -> 0 | BB19: =$H$19*BB3/$I$19 -> 0 | BC19: =$H$19*BC3/$I$19 -> 0 | BD19: =$H$19*BD3/$I$19 -> 0 | BE19: =$H$19*BE3/$I$19 -> 0 | BF19: =$H$19*BF3/$I$19 -> 0 | BG19: =$H$19*BG3/$I$19 -> 0 | BH19: =$H$19*BH3/$I$19 -> 0 | BI19: =$H$19*BI3/$I$19 -> 0 | BJ19: =$H$19*BJ3/$I$19 -> 0 | BK19: =$H$19*BK3/$I$19 -> 0 | BL19: =$H$19*BL3/$I$19 -> 0 | BM19: =$H$19*BM3/$I$19 -> 0 | BN19: =$H$19*BN3/$I$19 -> 0 | BO19: =$H$19*BO3/$I$19 -> 0 | BP19: =$H$19*BP3/$I$19 -> 0 | BQ19: =$H$19*BQ3/$I$19 -> 0 | BR19: =$H$19*BR3/$I$19 -> 0 | BS19: =$H$19*BS3/$I$19 -> 0 | BT19: =$H$19*BT3/$I$19 -> 0 | BU19: =$H$19*BU3/$I$19 -> 0 | BV19: =$H$19*BV3/$I$19 -> 0 | BW19: =$H$19*BW3/$I$19 -> 0 | BX19: =$H$19*BX3/$I$19 -> 0 | BY19: =$H$19*BY3/$I$19 -> 0 | BZ19: =$H$19*BZ3/$I$19 -> 0 | CA19: =$H$19*CA3/$I$19 -> 0 | CB19: =$H$19*CB3/$I$19 -> 0 | CC19: =$H$19*CC3/$I$19 -> 0 | CD19: =$H$19*CD3/$I$19 -> 0 | CE19: =$H$19*CE3/$I$19 -> 0 | CF19: =$H$19*CF3/$I$19 -> 0 | CG19: =$H$19*CG3/$I$19 -> 0 | CH19: =$H$19*CH3/$I$19 -> 0 | CI19: =$H$19*CI3/$I$19 -> 0 | CJ19: =$H$19*CJ3/$I$19 -> 0 | CK19: =$H$19*CK3/$I$19 -> 0 | CL19: =$H$19*CL3/$I$19 -> 0 | CM19: =$H$19*CM3/$I$19 -> 0 | CN19: =$H$19*CN3/$I$19 -> 0 | CO19: =$H$19*CO3/$I$19 -> 0 | CP19: =$H$19*CP3/$I$19 -> 0 | CQ19: =$H$19*CQ3/$I$19 -> 0 | CR19: =$H$19*CR3/$I$19 -> 0 | CS19: =$H$19*CS3/$I$19 -> 0 | CT19: =$H$19*CT3/$I$19 -> 0 | CU19: =$H$19*CU3/$I$19 -> 0 | CV19: =$H$19*CV3/$I$19 -> 0 | CW19: =$H$19*CW3/$I$19 -> 0 | CX19: =$H$19*CX3/$I$19 -> 0 | CY19: =$H$19*CY3/$I$19 -> 0 | CZ19: =$H$19*CZ3/$I$19 -> 0 | DA19: =$H$19*DA3/$I$19 -> 0 | DB19: =$H$19*DB3/$I$19 -> 0 | DC19: =$H$19*DC3/$I$19 -> 0 | DD19: =$H$19*DD3/$I$19 -> 0 | DE19: =$H$19*DE3/$I$19 -> 0 | DF19: =$H$19*DF3/$I$19 -> 0 | DG19: =$H$19*DG3/$I$19 -> 0 | DH19: =$H$19*DH3/$I$19 -> 0 | DI19: =$H$19*DI3/$I$19 -> 0 | DJ19: =$H$19*DJ3/$I$19 -> 0 | DK19: =$H$19*DK3/$I$19 -> 0 | DL19: =$H$19*DL3/$I$19 -> 0 | DM19: =$H$19*DM3/$I$19 -> 0 | DN19: =$H$19*DN3/$I$19 -> 0 | DO19: =$H$19*DO3/$I$19 -> 0 | DP19: =$H$19*DP3/$I$19 -> 0 | DQ19: =$H$19*DQ3/$I$19 -> 0 | DR19: =$H$19*DR3/$I$19 -> 0 | DS19: =$H$19*DS3/$I$19 -> 0 | DT19: =$H$19*DT3/$I$19 -> 0 | DU19: =$H$19*DU3/$I$19 -> 0 | DV19: =$H$19*DV3/$I$19 -> 0 | DW19: =$H$19*DW3/$I$19 -> 0 | DX19: =$H$19*DX3/$I$19 -> 0 | DY19: =$H$19*DY3/$I$19 -> 0 | DZ19: =$H$19*DZ3/$I$19 -> 0 | EA19: =$H$19*EA3/$I$19 -> 0 | EB19: =$H$19*EB3/$I$19 -> 0 | EC19: =$H$19*EC3/$I$19 -> 0 | ED19: =$H$19*ED3/$I$19 -> 0 | EE19: =$H$19*EE3/$I$19 -> 0 | EF19: =$H$19*EF3/$I$19 -> 0 | EG19: =$H$19*EG3/$I$19 -> 0 | EH19: =$H$19*EH3/$I$19 -> 0 | EI19: =$H$19*EI3/$I$19 -> 0 | EJ19: =$H$19*EJ3/$I$19 -> 0 | EK19: =$H$19*EK3/$I$19 -> 0 | EL19: =$H$19*EL3/$I$19 -> 0 | EM19: =$H$19*EM3/$I$19 -> 0 | EN19: =$H$19*EN3/$I$19 -> 0 | EO19: =$H$19*EO3/$I$19 -> 0 | EP19: =$H$19*EP3/$I$19 -> 0 | EQ19: =$H$19*EQ3/$I$19 -> 0 | ER19: =$H$19*ER3/$I$19 -> 0 | ES19: =$H$19*ES3/$I$19 -> 0 | ET19: =$H$19*ET3/$I$19 -> 0 | EU19: =$H$19*EU3/$I$19 -> 0 | EV19: =$H$19*EV3/$I$19 -> 0 | EW19: =$H$19*EW3/$I$19 -> 0 | EX19: =$H$19*EX3/$I$19 -> 0 | EY19: =$H$19*EY3/$I$19 -> 0 | EZ19: =$H$19*EZ3/$I$19 -> 0 | FA19: =$H$19*FA3/$I$19 -> 0 | FB19: =$H$19*FB3/$I$19 -> 0 | FC19: =$H$19*FC3/$I$19 -> 0 | FD19: =$H$19*FD3/$I$19 -> 0 | FE19: =$H$19*FE3/$I$19 -> 0 | FF19: =$H$19*FF3/$I$19 -> 0 | FG19: =$H$19*FG3/$I$19 -> 0 | FH19: =$H$19*FH3/$I$19 -> 0 | FI19: =$H$19*FI3/$I$19 -> 0 | FJ19: =$H$19*FJ3/$I$19 -> 0 | FK19: =$H$19*FK3/$I$19 -> 0 | FL19: =$H$19*FL3/$I$19 -> 0 | FM19: =$H$19*FM3/$I$19 -> 0 | FN19: =$H$19*FN3/$I$19 -> 0 | FO19: =$H$19*FO3/$I$19 -> 0 | FP19: =$H$19*FP3/$I$19 -> 0 | FQ19: =$H$19*FQ3/$I$19 -> 0 | FR19: =$H$19*FR3/$I$19 -> 0 | FS19: =$H$19*FS3/$I$19 -> 0 | FT19: =$H$19*FT3/$I$19 -> 0 | FU19: =$H$19*FU3/$I$19 -> 0 | FV19: =$H$19*FV3/$I$19 -> 0 | FW19: =$H$19*FW3/$I$19 -> 0
C20: S-Cruve | L20: =LOOKUP(L15,Assumptions!21:21,Assumptions!22:22) ->  | M20: =LOOKUP(M15,Assumptions!21:21,Assumptions!22:22) ->  | N20: =LOOKUP(N15,Assumptions!21:21,Assumptions!22:22) ->  | O20: =LOOKUP(O15,Assumptions!21:21,Assumptions!22:22) -> 0.008333333333 | P20: =LOOKUP(P15,Assumptions!21:21,Assumptions!22:22) -> 0.008333333333 | Q20: =LOOKUP(Q15,Assumptions!21:21,Assumptions!22:22) -> 0.008333333333 | R20: =LOOKUP(R15,Assumptions!21:21,Assumptions!22:22) -> 0.008333333333 | S20: =LOOKUP(S15,Assumptions!21:21,Assumptions!22:22) -> 0.008333333333 | T20: =LOOKUP(T15,Assumptions!21:21,Assumptions!22:22) -> 0.008333333333 | U20: =LOOKUP(U15,Assumptions!21:21,Assumptions!22:22) -> 0.008333333333 | V20: =LOOKUP(V15,Assumptions!21:21,Assumptions!22:22) -> 0.008333333333 | W20: =LOOKUP(W15,Assumptions!21:21,Assumptions!22:22) -> 0.008333333333 | X20: =LOOKUP(X15,Assumptions!21:21,Assumptions!22:22) -> 0.008333333333 | Y20: =LOOKUP(Y15,Assumptions!21:21,Assumptions!22:22) -> 0.008333333333 | Z20: =LOOKUP(Z15,Assumptions!21:21,Assumptions!22:22) -> 0.008333333333 | AA20: =LOOKUP(AA15,Assumptions!21:21,Assumptions!22:22) -> 0.02916666667 | AB20: =LOOKUP(AB15,Assumptions!21:21,Assumptions!22:22) -> 0.02916666667 | AC20: =LOOKUP(AC15,Assumptions!21:21,Assumptions!22:22) -> 0.02916666667 | AD20: =LOOKUP(AD15,Assumptions!21:21,Assumptions!22:22) -> 0.02916666667 | AE20: =LOOKUP(AE15,Assumptions!21:21,Assumptions!22:22) -> 0.02916666667 | AF20: =LOOKUP(AF15,Assumptions!21:21,Assumptions!22:22) -> 0.02916666667 | AG20: =LOOKUP(AG15,Assumptions!21:21,Assumptions!22:22) -> 0.02916666667 | AH20: =LOOKUP(AH15,Assumptions!21:21,Assumptions!22:22) -> 0.02916666667 | AI20: =LOOKUP(AI15,Assumptions!21:21,Assumptions!22:22) -> 0.02916666667 | AJ20: =LOOKUP(AJ15,Assumptions!21:21,Assumptions!22:22) -> 0.02916666667 | AK20: =LOOKUP(AK15,Assumptions!21:21,Assumptions!22:22) -> 0.02916666667 | AL20: =LOOKUP(AL15,Assumptions!21:21,Assumptions!22:22) -> 0.02916666667 | AM20: =LOOKUP(AM15,Assumptions!21:21,Assumptions!22:22) -> 0.04166666667 | AN20: =LOOKUP(AN15,Assumptions!21:21,Assumptions!22:22) -> 0.04166666667 | AO20: =LOOKUP(AO15,Assumptions!21:21,Assumptions!22:22) -> 0.04166666667 | AP20: =LOOKUP(AP15,Assumptions!21:21,Assumptions!22:22) -> 0.04166666667 | AQ20: =LOOKUP(AQ15,Assumptions!21:21,Assumptions!22:22) -> 0.04166666667 | AR20: =LOOKUP(AR15,Assumptions!21:21,Assumptions!22:22) -> 0.04166666667 | AS20: =LOOKUP(AS15,Assumptions!21:21,Assumptions!22:22) -> 0.04166666667 | AT20: =LOOKUP(AT15,Assumptions!21:21,Assumptions!22:22) -> 0.04166666667 | AU20: =LOOKUP(AU15,Assumptions!21:21,Assumptions!22:22) -> 0.04166666667 | AV20: =LOOKUP(AV15,Assumptions!21:21,Assumptions!22:22) -> 0.04166666667 | AW20: =LOOKUP(AW15,Assumptions!21:21,Assumptions!22:22) -> 0.04166666667 | AX20: =LOOKUP(AX15,Assumptions!21:21,Assumptions!22:22) -> 0.04166666667 | AY20: =LOOKUP(AY15,Assumptions!21:21,Assumptions!22:22) -> 0.0125 | AZ20: =LOOKUP(AZ15,Assumptions!21:21,Assumptions!22:22) -> 0.0125 | BA20: =LOOKUP(BA15,Assumptions!21:21,Assumptions!22:22) -> 0.0125 | BB20: =LOOKUP(BB15,Assumptions!21:21,Assumptions!22:22) -> 0.0125 | BC20: =LOOKUP(BC15,Assumptions!21:21,Assumptions!22:22) -> 0.0125 | BD20: =LOOKUP(BD15,Assumptions!21:21,Assumptions!22:22) -> 0.0125 | BE20: =LOOKUP(BE15,Assumptions!21:21,Assumptions!22:22) -> 0.0125 | BF20: =LOOKUP(BF15,Assumptions!21:21,Assumptions!22:22) -> 0.0125 | BG20: =LOOKUP(BG15,Assumptions!21:21,Assumptions!22:22) -> 0.0125 | BH20: =LOOKUP(BH15,Assumptions!21:21,Assumptions!22:22) -> 0.0125 | BI20: =LOOKUP(BI15,Assumptions!21:21,Assumptions!22:22) -> 0.0125 | BJ20: =LOOKUP(BJ15,Assumptions!21:21,Assumptions!22:22) -> 0.0125 | BK20: =LOOKUP(BK15,Assumptions!21:21,Assumptions!22:22) -> 0.0125 | BL20: =LOOKUP(BL15,Assumptions!21:21,Assumptions!22:22) -> 0.0125 | BM20: =LOOKUP(BM15,Assumptions!21:21,Assumptions!22:22) -> 0.0125 | BN20: =LOOKUP(BN15,Assumptions!21:21,Assumptions!22:22) -> 0.0125 | BO20: =LOOKUP(BO15,Assumptions!21:21,Assumptions!22:22) -> 0.0125 | BP20: =LOOKUP(BP15,Assumptions!21:21,Assumptions!22:22) -> 0.0125 | BQ20: =LOOKUP(BQ15,Assumptions!21:21,Assumptions!22:22) -> 0.0125 | BR20: =LOOKUP(BR15,Assumptions!21:21,Assumptions!22:22) -> 0.0125 | BS20: =LOOKUP(BS15,Assumptions!21:21,Assumptions!22:22) -> 0.0125 | BT20: =LOOKUP(BT15,Assumptions!21:21,Assumptions!22:22) -> 0.0125 | BU20: =LOOKUP(BU15,Assumptions!21:21,Assumptions!22:22) -> 0.0125 | BV20: =LOOKUP(BV15,Assumptions!21:21,Assumptions!22:22) -> 0.0125 | BW20: =LOOKUP(BW15,Assumptions!21:21,Assumptions!22:22) -> 0.0125 | BX20: =LOOKUP(BX15,Assumptions!21:21,Assumptions!22:22) -> 0.0125 | BY20: =LOOKUP(BY15,Assumptions!21:21,Assumptions!22:22) -> 0.0125 | BZ20: =LOOKUP(BZ15,Assumptions!21:21,Assumptions!22:22) -> 0.0125 | CA20: =LOOKUP(CA15,Assumptions!21:21,Assumptions!22:22) -> 0.0125 | CB20: =LOOKUP(CB15,Assumptions!21:21,Assumptions!22:22) -> 0.0125 | CC20: =LOOKUP(CC15,Assumptions!21:21,Assumptions!22:22) -> 0.0125 | CD20: =LOOKUP(CD15,Assumptions!21:21,Assumptions!22:22) -> 0.0125 | CE20: =LOOKUP(CE15,Assumptions!21:21,Assumptions!22:22) -> 0.0125 | CF20: =LOOKUP(CF15,Assumptions!21:21,Assumptions!22:22) -> 0.0125 | CG20: =LOOKUP(CG15,Assumptions!21:21,Assumptions!22:22) -> 0.0125 | CH20: =LOOKUP(CH15,Assumptions!21:21,Assumptions!22:22) -> 0.0125 | CI20: =LOOKUP(CI15,Assumptions!21:21,Assumptions!22:22) -> 0.0125 | CJ20: =LOOKUP(CJ15,Assumptions!21:21,Assumptions!22:22) -> 0.0125 | CK20: =LOOKUP(CK15,Assumptions!21:21,Assumptions!22:22) -> 0.0125 | CL20: =LOOKUP(CL15,Assumptions!21:21,Assumptions!22:22) -> 0.0125 | CM20: =LOOKUP(CM15,Assumptions!21:21,Assumptions!22:22) -> 0.0125 | CN20: =LOOKUP(CN15,Assumptions!21:21,Assumptions!22:22) -> 0.0125 | CO20: =LOOKUP(CO15,Assumptions!21:21,Assumptions!22:22) -> 0.0125 | CP20: =LOOKUP(CP15,Assumptions!21:21,Assumptions!22:22) -> 0.0125 | CQ20: =LOOKUP(CQ15,Assumptions!21:21,Assumptions!22:22) -> 0.0125 | CR20: =LOOKUP(CR15,Assumptions!21:21,Assumptions!22:22) -> 0.0125 | CS20: =LOOKUP(CS15,Assumptions!21:21,Assumptions!22:22) -> 0.0125 | CT20: =LOOKUP(CT15,Assumptions!21:21,Assumptions!22:22) -> 0.0125 | CU20: =LOOKUP(CU15,Assumptions!21:21,Assumptions!22:22) -> 0.0125 | CV20: =LOOKUP(CV15,Assumptions!21:21,Assumptions!22:22) -> 0.0125 | CW20: =LOOKUP(CW15,Assumptions!21:21,Assumptions!22:22) -> 0.0125 | CX20: =LOOKUP(CX15,Assumptions!21:21,Assumptions!22:22) -> 0.0125 | CY20: =LOOKUP(CY15,Assumptions!21:21,Assumptions!22:22) -> 0.0125 | CZ20: =LOOKUP(CZ15,Assumptions!21:21,Assumptions!22:22) -> 0.0125 | DA20: =LOOKUP(DA15,Assumptions!21:21,Assumptions!22:22) -> 0.0125 | DB20: =LOOKUP(DB15,Assumptions!21:21,Assumptions!22:22) -> 0.0125 | DC20: =LOOKUP(DC15,Assumptions!21:21,Assumptions!22:22) -> 0.0125 | DD20: =LOOKUP(DD15,Assumptions!21:21,Assumptions!22:22) -> 0.0125 | DE20: =LOOKUP(DE15,Assumptions!21:21,Assumptions!22:22) -> 0.0125 | DF20: =LOOKUP(DF15,Assumptions!21:21,Assumptions!22:22) -> 0.0125 | DG20: =LOOKUP(DG15,Assumptions!21:21,Assumptions!22:22) -> 0.0125 | DH20: =LOOKUP(DH15,Assumptions!21:21,Assumptions!22:22) -> 0.0125 | DI20: =LOOKUP(DI15,Assumptions!21:21,Assumptions!22:22) -> 0.0125 | DJ20: =LOOKUP(DJ15,Assumptions!21:21,Assumptions!22:22) -> 0.0125 | DK20: =LOOKUP(DK15,Assumptions!21:21,Assumptions!22:22) -> 0.0125 | DL20: =LOOKUP(DL15,Assumptions!21:21,Assumptions!22:22) -> 0.0125 | DM20: =LOOKUP(DM15,Assumptions!21:21,Assumptions!22:22) -> 0.0125 | DN20: =LOOKUP(DN15,Assumptions!21:21,Assumptions!22:22) -> 0.0125 | DO20: =LOOKUP(DO15,Assumptions!21:21,Assumptions!22:22) -> 0.0125 | DP20: =LOOKUP(DP15,Assumptions!21:21,Assumptions!22:22) -> 0.0125 | DQ20: =LOOKUP(DQ15,Assumptions!21:21,Assumptions!22:22) -> 0.0125 | DR20: =LOOKUP(DR15,Assumptions!21:21,Assumptions!22:22) -> 0.0125 | DS20: =LOOKUP(DS15,Assumptions!21:21,Assumptions!22:22) -> 0.0125 | DT20: =LOOKUP(DT15,Assumptions!21:21,Assumptions!22:22) -> 0.0125 | DU20: =LOOKUP(DU15,Assumptions!21:21,Assumptions!22:22) -> 0.0125 | DV20: =LOOKUP(DV15,Assumptions!21:21,Assumptions!22:22) -> 0.0125 | DW20: =LOOKUP(DW15,Assumptions!21:21,Assumptions!22:22) -> 0.0125 | DX20: =LOOKUP(DX15,Assumptions!21:21,Assumptions!22:22) -> 0.0125 | DY20: =LOOKUP(DY15,Assumptions!21:21,Assumptions!22:22) -> 0.0125 | DZ20: =LOOKUP(DZ15,Assumptions!21:21,Assumptions!22:22) -> 0.0125 | EA20: =LOOKUP(EA15,Assumptions!21:21,Assumptions!22:22) -> 0.0125 | EB20: =LOOKUP(EB15,Assumptions!21:21,Assumptions!22:22) -> 0.0125 | EC20: =LOOKUP(EC15,Assumptions!21:21,Assumptions!22:22) -> 0.0125 | ED20: =LOOKUP(ED15,Assumptions!21:21,Assumptions!22:22) -> 0.0125 | EE20: =LOOKUP(EE15,Assumptions!21:21,Assumptions!22:22) -> 0.0125 | EF20: =LOOKUP(EF15,Assumptions!21:21,Assumptions!22:22) -> 0.0125 | EG20: =LOOKUP(EG15,Assumptions!21:21,Assumptions!22:22) -> 0.0125 | EH20: =LOOKUP(EH15,Assumptions!21:21,Assumptions!22:22) -> 0.0125 | EI20: =LOOKUP(EI15,Assumptions!21:21,Assumptions!22:22) -> 0.0125 | EJ20: =LOOKUP(EJ15,Assumptions!21:21,Assumptions!22:22) -> 0.0125 | EK20: =LOOKUP(EK15,Assumptions!21:21,Assumptions!22:22) -> 0.0125 | EL20: =LOOKUP(EL15,Assumptions!21:21,Assumptions!22:22) -> 0.0125 | EM20: =LOOKUP(EM15,Assumptions!21:21,Assumptions!22:22) -> 0.0125 | EN20: =LOOKUP(EN15,Assumptions!21:21,Assumptions!22:22) -> 0.0125 | EO20: =LOOKUP(EO15,Assumptions!21:21,Assumptions!22:22) -> 0.0125 | EP20: =LOOKUP(EP15,Assumptions!21:21,Assumptions!22:22) -> 0.0125 | EQ20: =LOOKUP(EQ15,Assumptions!21:21,Assumptions!22:22) -> 0.0125 | ER20: =LOOKUP(ER15,Assumptions!21:21,Assumptions!22:22) -> 0.0125 | ES20: =LOOKUP(ES15,Assumptions!21:21,Assumptions!22:22) -> 0.0125 | ET20: =LOOKUP(ET15,Assumptions!21:21,Assumptions!22:22) -> 0.0125 | EU20: =LOOKUP(EU15,Assumptions!21:21,Assumptions!22:22) -> 0.0125 | EV20: =LOOKUP(EV15,Assumptions!21:21,Assumptions!22:22) -> 0.0125 | EW20: =LOOKUP(EW15,Assumptions!21:21,Assumptions!22:22) -> 0.0125 | EX20: =LOOKUP(EX15,Assumptions!21:21,Assumptions!22:22) -> 0.0125 | EY20: =LOOKUP(EY15,Assumptions!21:21,Assumptions!22:22) -> 0.0125 | EZ20: =LOOKUP(EZ15,Assumptions!21:21,Assumptions!22:22) -> 0.0125 | FA20: =LOOKUP(FA15,Assumptions!21:21,Assumptions!22:22) -> 0.0125 | FB20: =LOOKUP(FB15,Assumptions!21:21,Assumptions!22:22) -> 0.0125 | FC20: =LOOKUP(FC15,Assumptions!21:21,Assumptions!22:22) -> 0.0125 | FD20: =LOOKUP(FD15,Assumptions!21:21,Assumptions!22:22) -> 0.0125 | FE20: =LOOKUP(FE15,Assumptions!21:21,Assumptions!22:22) -> 0.0125 | FF20: =LOOKUP(FF15,Assumptions!21:21,Assumptions!22:22) -> 0.0125 | FG20: =LOOKUP(FG15,Assumptions!21:21,Assumptions!22:22) -> 0.0125 | FH20: =LOOKUP(FH15,Assumptions!21:21,Assumptions!22:22) -> 0.0125 | FI20: =LOOKUP(FI15,Assumptions!21:21,Assumptions!22:22) -> 0.0125 | FJ20: =LOOKUP(FJ15,Assumptions!21:21,Assumptions!22:22) -> 0.0125 | FK20: =LOOKUP(FK15,Assumptions!21:21,Assumptions!22:22) -> 0.0125 | FL20: =LOOKUP(FL15,Assumptions!21:21,Assumptions!22:22) -> 0.0125 | FM20: =LOOKUP(FM15,Assumptions!21:21,Assumptions!22:22) -> 0.0125 | FN20: =LOOKUP(FN15,Assumptions!21:21,Assumptions!22:22) -> 0.0125 | FO20: =LOOKUP(FO15,Assumptions!21:21,Assumptions!22:22) -> 0.0125 | FP20: =LOOKUP(FP15,Assumptions!21:21,Assumptions!22:22) -> 0.0125 | FQ20: =LOOKUP(FQ15,Assumptions!21:21,Assumptions!22:22) -> 0.0125 | FR20: =LOOKUP(FR15,Assumptions!21:21,Assumptions!22:22) -> 0.0125 | FS20: =LOOKUP(FS15,Assumptions!21:21,Assumptions!22:22) -> 0.0125 | FT20: =LOOKUP(FT15,Assumptions!21:21,Assumptions!22:22) -> 0.0125 | FU20: =LOOKUP(FU15,Assumptions!21:21,Assumptions!22:22) -> 0.0125 | FV20: =LOOKUP(FV15,Assumptions!21:21,Assumptions!22:22) -> 0.0125 | FW20: =LOOKUP(FW15,Assumptions!21:21,Assumptions!22:22) -> 0.0125
C21: Construction Expenditures | H21: =Assumptions!G16 -> 11200000 | J21: =SUM(L21:DG21) -> 11200000 | L21: =IF(L4,L20*$H$21) -> FALSE | M21: =IF(M4,M20*$H$21) -> FALSE | N21: =IF(N4,N20*$H$21) -> FALSE | O21: =IF(O4,O20*$H$21) -> 93333.33333 | P21: =IF(P4,P20*$H$21) -> 93333.33333 | Q21: =IF(Q4,Q20*$H$21) -> 93333.33333 | R21: =IF(R4,R20*$H$21) -> 93333.33333 | S21: =IF(S4,S20*$H$21) -> 93333.33333 | T21: =IF(T4,T20*$H$21) -> 93333.33333 | U21: =IF(U4,U20*$H$21) -> 93333.33333 | V21: =IF(V4,V20*$H$21) -> 93333.33333 | W21: =IF(W4,W20*$H$21) -> 93333.33333 | X21: =IF(X4,X20*$H$21) -> 93333.33333 | Y21: =IF(Y4,Y20*$H$21) -> 93333.33333 | Z21: =IF(Z4,Z20*$H$21) -> 93333.33333 | AA21: =IF(AA4,AA20*$H$21) -> 326666.6667 | AB21: =IF(AB4,AB20*$H$21) -> 326666.6667 | AC21: =IF(AC4,AC20*$H$21) -> 326666.6667 | AD21: =IF(AD4,AD20*$H$21) -> 326666.6667 | AE21: =IF(AE4,AE20*$H$21) -> 326666.6667 | AF21: =IF(AF4,AF20*$H$21) -> 326666.6667 | AG21: =IF(AG4,AG20*$H$21) -> 326666.6667 | AH21: =IF(AH4,AH20*$H$21) -> 326666.6667 | AI21: =IF(AI4,AI20*$H$21) -> 326666.6667 | AJ21: =IF(AJ4,AJ20*$H$21) -> 326666.6667 | AK21: =IF(AK4,AK20*$H$21) -> 326666.6667 | AL21: =IF(AL4,AL20*$H$21) -> 326666.6667 | AM21: =IF(AM4,AM20*$H$21) -> 466666.6667 | AN21: =IF(AN4,AN20*$H$21) -> 466666.6667 | AO21: =IF(AO4,AO20*$H$21) -> 466666.6667 | AP21: =IF(AP4,AP20*$H$21) -> 466666.6667 | AQ21: =IF(AQ4,AQ20*$H$21) -> 466666.6667 | AR21: =IF(AR4,AR20*$H$21) -> 466666.6667 | AS21: =IF(AS4,AS20*$H$21) -> 466666.6667 | AT21: =IF(AT4,AT20*$H$21) -> 466666.6667 | AU21: =IF(AU4,AU20*$H$21) -> 466666.6667 | AV21: =IF(AV4,AV20*$H$21) -> 466666.6667 | AW21: =IF(AW4,AW20*$H$21) -> 466666.6667 | AX21: =IF(AX4,AX20*$H$21) -> 466666.6667 | AY21: =IF(AY4,AY20*$H$21) -> 140000 | AZ21: =IF(AZ4,AZ20*$H$21) -> 140000 | BA21: =IF(BA4,BA20*$H$21) -> 140000 | BB21: =IF(BB4,BB20*$H$21) -> 140000 | BC21: =IF(BC4,BC20*$H$21) -> FALSE | BD21: =IF(BD4,BD20*$H$21) -> FALSE | BE21: =IF(BE4,BE20*$H$21) -> FALSE | BF21: =IF(BF4,BF20*$H$21) -> FALSE | BG21: =IF(BG4,BG20*$H$21) -> FALSE | BH21: =IF(BH4,BH20*$H$21) -> FALSE | BI21: =IF(BI4,BI20*$H$21) -> FALSE | BJ21: =IF(BJ4,BJ20*$H$21) -> FALSE | BK21: =IF(BK4,BK20*$H$21) -> FALSE | BL21: =IF(BL4,BL20*$H$21) -> FALSE | BM21: =IF(BM4,BM20*$H$21) -> FALSE | BN21: =IF(BN4,BN20*$H$21) -> FALSE | BO21: =IF(BO4,BO20*$H$21) -> FALSE | BP21: =IF(BP4,BP20*$H$21) -> FALSE | BQ21: =IF(BQ4,BQ20*$H$21) -> FALSE | BR21: =IF(BR4,BR20*$H$21) -> FALSE | BS21: =IF(BS4,BS20*$H$21) -> FALSE | BT21: =IF(BT4,BT20*$H$21) -> FALSE | BU21: =IF(BU4,BU20*$H$21) -> FALSE | BV21: =IF(BV4,BV20*$H$21) -> FALSE | BW21: =IF(BW4,BW20*$H$21) -> FALSE | BX21: =IF(BX4,BX20*$H$21) -> FALSE | BY21: =IF(BY4,BY20*$H$21) -> FALSE | BZ21: =IF(BZ4,BZ20*$H$21) -> FALSE | CA21: =IF(CA4,CA20*$H$21) -> FALSE | CB21: =IF(CB4,CB20*$H$21) -> FALSE | CC21: =IF(CC4,CC20*$H$21) -> FALSE | CD21: =IF(CD4,CD20*$H$21) -> FALSE | CE21: =IF(CE4,CE20*$H$21) -> FALSE | CF21: =IF(CF4,CF20*$H$21) -> FALSE | CG21: =IF(CG4,CG20*$H$21) -> FALSE | CH21: =IF(CH4,CH20*$H$21) -> FALSE | CI21: =IF(CI4,CI20*$H$21) -> FALSE | CJ21: =IF(CJ4,CJ20*$H$21) -> FALSE | CK21: =IF(CK4,CK20*$H$21) -> FALSE | CL21: =IF(CL4,CL20*$H$21) -> FALSE | CM21: =IF(CM4,CM20*$H$21) -> FALSE | CN21: =IF(CN4,CN20*$H$21) -> FALSE | CO21: =IF(CO4,CO20*$H$21) -> FALSE | CP21: =IF(CP4,CP20*$H$21) -> FALSE | CQ21: =IF(CQ4,CQ20*$H$21) -> FALSE | CR21: =IF(CR4,CR20*$H$21) -> FALSE | CS21: =IF(CS4,CS20*$H$21) -> FALSE | CT21: =IF(CT4,CT20*$H$21) -> FALSE | CU21: =IF(CU4,CU20*$H$21) -> FALSE | CV21: =IF(CV4,CV20*$H$21) -> FALSE | CW21: =IF(CW4,CW20*$H$21) -> FALSE | CX21: =IF(CX4,CX20*$H$21) -> FALSE | CY21: =IF(CY4,CY20*$H$21) -> FALSE | CZ21: =IF(CZ4,CZ20*$H$21) -> FALSE | DA21: =IF(DA4,DA20*$H$21) -> FALSE | DB21: =IF(DB4,DB20*$H$21) -> FALSE | DC21: =IF(DC4,DC20*$H$21) -> FALSE | DD21: =IF(DD4,DD20*$H$21) -> FALSE | DE21: =IF(DE4,DE20*$H$21) -> FALSE | DF21: =IF(DF4,DF20*$H$21) -> FALSE | DG21: =IF(DG4,DG20*$H$21) -> FALSE | DH21: =IF(DH4,DH20*$H$21) -> FALSE | DI21: =IF(DI4,DI20*$H$21) -> FALSE | DJ21: =IF(DJ4,DJ20*$H$21) -> FALSE | DK21: =IF(DK4,DK20*$H$21) -> FALSE | DL21: =IF(DL4,DL20*$H$21) -> FALSE | DM21: =IF(DM4,DM20*$H$21) -> FALSE | DN21: =IF(DN4,DN20*$H$21) -> FALSE | DO21: =IF(DO4,DO20*$H$21) -> FALSE | DP21: =IF(DP4,DP20*$H$21) -> FALSE | DQ21: =IF(DQ4,DQ20*$H$21) -> FALSE | DR21: =IF(DR4,DR20*$H$21) -> FALSE | DS21: =IF(DS4,DS20*$H$21) -> FALSE | DT21: =IF(DT4,DT20*$H$21) -> FALSE | DU21: =IF(DU4,DU20*$H$21) -> FALSE | DV21: =IF(DV4,DV20*$H$21) -> FALSE | DW21: =IF(DW4,DW20*$H$21) -> FALSE | DX21: =IF(DX4,DX20*$H$21) -> FALSE | DY21: =IF(DY4,DY20*$H$21) -> FALSE | DZ21: =IF(DZ4,DZ20*$H$21) -> FALSE | EA21: =IF(EA4,EA20*$H$21) -> FALSE | EB21: =IF(EB4,EB20*$H$21) -> FALSE | EC21: =IF(EC4,EC20*$H$21) -> FALSE | ED21: =IF(ED4,ED20*$H$21) -> FALSE | EE21: =IF(EE4,EE20*$H$21) -> FALSE | EF21: =IF(EF4,EF20*$H$21) -> FALSE | EG21: =IF(EG4,EG20*$H$21) -> FALSE | EH21: =IF(EH4,EH20*$H$21) -> FALSE | EI21: =IF(EI4,EI20*$H$21) -> FALSE | EJ21: =IF(EJ4,EJ20*$H$21) -> FALSE | EK21: =IF(EK4,EK20*$H$21) -> FALSE | EL21: =IF(EL4,EL20*$H$21) -> FALSE | EM21: =IF(EM4,EM20*$H$21) -> FALSE | EN21: =IF(EN4,EN20*$H$21) -> FALSE | EO21: =IF(EO4,EO20*$H$21) -> FALSE | EP21: =IF(EP4,EP20*$H$21) -> FALSE | EQ21: =IF(EQ4,EQ20*$H$21) -> FALSE | ER21: =IF(ER4,ER20*$H$21) -> FALSE | ES21: =IF(ES4,ES20*$H$21) -> FALSE | ET21: =IF(ET4,ET20*$H$21) -> FALSE | EU21: =IF(EU4,EU20*$H$21) -> FALSE | EV21: =IF(EV4,EV20*$H$21) -> FALSE | EW21: =IF(EW4,EW20*$H$21) -> FALSE | EX21: =IF(EX4,EX20*$H$21) -> FALSE | EY21: =IF(EY4,EY20*$H$21) -> FALSE | EZ21: =IF(EZ4,EZ20*$H$21) -> FALSE | FA21: =IF(FA4,FA20*$H$21) -> FALSE | FB21: =IF(FB4,FB20*$H$21) -> FALSE | FC21: =IF(FC4,FC20*$H$21) -> FALSE | FD21: =IF(FD4,FD20*$H$21) -> FALSE | FE21: =IF(FE4,FE20*$H$21) -> FALSE | FF21: =IF(FF4,FF20*$H$21) -> FALSE | FG21: =IF(FG4,FG20*$H$21) -> FALSE | FH21: =IF(FH4,FH20*$H$21) -> FALSE | FI21: =IF(FI4,FI20*$H$21) -> FALSE | FJ21: =IF(FJ4,FJ20*$H$21) -> FALSE | FK21: =IF(FK4,FK20*$H$21) -> FALSE | FL21: =IF(FL4,FL20*$H$21) -> FALSE | FM21: =IF(FM4,FM20*$H$21) -> FALSE | FN21: =IF(FN4,FN20*$H$21) -> FALSE | FO21: =IF(FO4,FO20*$H$21) -> FALSE | FP21: =IF(FP4,FP20*$H$21) -> FALSE | FQ21: =IF(FQ4,FQ20*$H$21) -> FALSE | FR21: =IF(FR4,FR20*$H$21) -> FALSE | FS21: =IF(FS4,FS20*$H$21) -> FALSE | FT21: =IF(FT4,FT20*$H$21) -> FALSE | FU21: =IF(FU4,FU20*$H$21) -> FALSE | FV21: =IF(FV4,FV20*$H$21) -> FALSE | FW21: =IF(FW4,FW20*$H$21) -> FALSE
C22: Land Expenditures | H22: =Assumptions!G17 -> 3000000 | J22: =Assumptions!G6 -> 2018-01-01 | L22: =$H$22*(L11=$J$22) -> 0 | M22: =$H$22*(M11=$J$22) -> 0 | N22: =$H$22*(N11=$J$22) -> 0 | O22: =$H$22*(O11=$J$22) -> 3000000 | P22: =$H$22*(P11=$J$22) -> 0 | Q22: =$H$22*(Q11=$J$22) -> 0 | R22: =$H$22*(R11=$J$22) -> 0 | S22: =$H$22*(S11=$J$22) -> 0 | T22: =$H$22*(T11=$J$22) -> 0 | U22: =$H$22*(U11=$J$22) -> 0 | V22: =$H$22*(V11=$J$22) -> 0 | W22: =$H$22*(W11=$J$22) -> 0 | X22: =$H$22*(X11=$J$22) -> 0 | Y22: =$H$22*(Y11=$J$22) -> 0 | Z22: =$H$22*(Z11=$J$22) -> 0 | AA22: =$H$22*(AA11=$J$22) -> 0 | AB22: =$H$22*(AB11=$J$22) -> 0 | AC22: =$H$22*(AC11=$J$22) -> 0 | AD22: =$H$22*(AD11=$J$22) -> 0 | AE22: =$H$22*(AE11=$J$22) -> 0 | AF22: =$H$22*(AF11=$J$22) -> 0 | AG22: =$H$22*(AG11=$J$22) -> 0 | AH22: =$H$22*(AH11=$J$22) -> 0 | AI22: =$H$22*(AI11=$J$22) -> 0 | AJ22: =$H$22*(AJ11=$J$22) -> 0 | AK22: =$H$22*(AK11=$J$22) -> 0 | AL22: =$H$22*(AL11=$J$22) -> 0 | AM22: =$H$22*(AM11=$J$22) -> 0 | AN22: =$H$22*(AN11=$J$22) -> 0 | AO22: =$H$22*(AO11=$J$22) -> 0 | AP22: =$H$22*(AP11=$J$22) -> 0 | AQ22: =$H$22*(AQ11=$J$22) -> 0 | AR22: =$H$22*(AR11=$J$22) -> 0 | AS22: =$H$22*(AS11=$J$22) -> 0 | AT22: =$H$22*(AT11=$J$22) -> 0 | AU22: =$H$22*(AU11=$J$22) -> 0 | AV22: =$H$22*(AV11=$J$22) -> 0 | AW22: =$H$22*(AW11=$J$22) -> 0 | AX22: =$H$22*(AX11=$J$22) -> 0 | AY22: =$H$22*(AY11=$J$22) -> 0 | AZ22: =$H$22*(AZ11=$J$22) -> 0 | BA22: =$H$22*(BA11=$J$22) -> 0 | BB22: =$H$22*(BB11=$J$22) -> 0 | BC22: =$H$22*(BC11=$J$22) -> 0 | BD22: =$H$22*(BD11=$J$22) -> 0 | BE22: =$H$22*(BE11=$J$22) -> 0 | BF22: =$H$22*(BF11=$J$22) -> 0 | BG22: =$H$22*(BG11=$J$22) -> 0 | BH22: =$H$22*(BH11=$J$22) -> 0 | BI22: =$H$22*(BI11=$J$22) -> 0 | BJ22: =$H$22*(BJ11=$J$22) -> 0 | BK22: =$H$22*(BK11=$J$22) -> 0 | BL22: =$H$22*(BL11=$J$22) -> 0 | BM22: =$H$22*(BM11=$J$22) -> 0 | BN22: =$H$22*(BN11=$J$22) -> 0 | BO22: =$H$22*(BO11=$J$22) -> 0 | BP22: =$H$22*(BP11=$J$22) -> 0 | BQ22: =$H$22*(BQ11=$J$22) -> 0 | BR22: =$H$22*(BR11=$J$22) -> 0 | BS22: =$H$22*(BS11=$J$22) -> 0 | BT22: =$H$22*(BT11=$J$22) -> 0 | BU22: =$H$22*(BU11=$J$22) -> 0 | BV22: =$H$22*(BV11=$J$22) -> 0 | BW22: =$H$22*(BW11=$J$22) -> 0 | BX22: =$H$22*(BX11=$J$22) -> 0 | BY22: =$H$22*(BY11=$J$22) -> 0 | BZ22: =$H$22*(BZ11=$J$22) -> 0 | CA22: =$H$22*(CA11=$J$22) -> 0 | CB22: =$H$22*(CB11=$J$22) -> 0 | CC22: =$H$22*(CC11=$J$22) -> 0 | CD22: =$H$22*(CD11=$J$22) -> 0 | CE22: =$H$22*(CE11=$J$22) -> 0 | CF22: =$H$22*(CF11=$J$22) -> 0 | CG22: =$H$22*(CG11=$J$22) -> 0 | CH22: =$H$22*(CH11=$J$22) -> 0 | CI22: =$H$22*(CI11=$J$22) -> 0 | CJ22: =$H$22*(CJ11=$J$22) -> 0 | CK22: =$H$22*(CK11=$J$22) -> 0 | CL22: =$H$22*(CL11=$J$22) -> 0 | CM22: =$H$22*(CM11=$J$22) -> 0 | CN22: =$H$22*(CN11=$J$22) -> 0 | CO22: =$H$22*(CO11=$J$22) -> 0 | CP22: =$H$22*(CP11=$J$22) -> 0 | CQ22: =$H$22*(CQ11=$J$22) -> 0 | CR22: =$H$22*(CR11=$J$22) -> 0 | CS22: =$H$22*(CS11=$J$22) -> 0 | CT22: =$H$22*(CT11=$J$22) -> 0 | CU22: =$H$22*(CU11=$J$22) -> 0 | CV22: =$H$22*(CV11=$J$22) -> 0 | CW22: =$H$22*(CW11=$J$22) -> 0 | CX22: =$H$22*(CX11=$J$22) -> 0 | CY22: =$H$22*(CY11=$J$22) -> 0 | CZ22: =$H$22*(CZ11=$J$22) -> 0 | DA22: =$H$22*(DA11=$J$22) -> 0 | DB22: =$H$22*(DB11=$J$22) -> 0 | DC22: =$H$22*(DC11=$J$22) -> 0 | DD22: =$H$22*(DD11=$J$22) -> 0 | DE22: =$H$22*(DE11=$J$22) -> 0 | DF22: =$H$22*(DF11=$J$22) -> 0 | DG22: =$H$22*(DG11=$J$22) -> 0 | DH22: =$H$22*(DH11=$J$22) -> 0 | DI22: =$H$22*(DI11=$J$22) -> 0 | DJ22: =$H$22*(DJ11=$J$22) -> 0 | DK22: =$H$22*(DK11=$J$22) -> 0 | DL22: =$H$22*(DL11=$J$22) -> 0 | DM22: =$H$22*(DM11=$J$22) -> 0 | DN22: =$H$22*(DN11=$J$22) -> 0 | DO22: =$H$22*(DO11=$J$22) -> 0 | DP22: =$H$22*(DP11=$J$22) -> 0 | DQ22: =$H$22*(DQ11=$J$22) -> 0 | DR22: =$H$22*(DR11=$J$22) -> 0 | DS22: =$H$22*(DS11=$J$22) -> 0 | DT22: =$H$22*(DT11=$J$22) -> 0 | DU22: =$H$22*(DU11=$J$22) -> 0 | DV22: =$H$22*(DV11=$J$22) -> 0 | DW22: =$H$22*(DW11=$J$22) -> 0 | DX22: =$H$22*(DX11=$J$22) -> 0 | DY22: =$H$22*(DY11=$J$22) -> 0 | DZ22: =$H$22*(DZ11=$J$22) -> 0 | EA22: =$H$22*(EA11=$J$22) -> 0 | EB22: =$H$22*(EB11=$J$22) -> 0 | EC22: =$H$22*(EC11=$J$22) -> 0 | ED22: =$H$22*(ED11=$J$22) -> 0 | EE22: =$H$22*(EE11=$J$22) -> 0 | EF22: =$H$22*(EF11=$J$22) -> 0 | EG22: =$H$22*(EG11=$J$22) -> 0 | EH22: =$H$22*(EH11=$J$22) -> 0 | EI22: =$H$22*(EI11=$J$22) -> 0 | EJ22: =$H$22*(EJ11=$J$22) -> 0 | EK22: =$H$22*(EK11=$J$22) -> 0 | EL22: =$H$22*(EL11=$J$22) -> 0 | EM22: =$H$22*(EM11=$J$22) -> 0 | EN22: =$H$22*(EN11=$J$22) -> 0 | EO22: =$H$22*(EO11=$J$22) -> 0 | EP22: =$H$22*(EP11=$J$22) -> 0 | EQ22: =$H$22*(EQ11=$J$22) -> 0 | ER22: =$H$22*(ER11=$J$22) -> 0 | ES22: =$H$22*(ES11=$J$22) -> 0 | ET22: =$H$22*(ET11=$J$22) -> 0 | EU22: =$H$22*(EU11=$J$22) -> 0 | EV22: =$H$22*(EV11=$J$22) -> 0 | EW22: =$H$22*(EW11=$J$22) -> 0 | EX22: =$H$22*(EX11=$J$22) -> 0 | EY22: =$H$22*(EY11=$J$22) -> 0 | EZ22: =$H$22*(EZ11=$J$22) -> 0 | FA22: =$H$22*(FA11=$J$22) -> 0 | FB22: =$H$22*(FB11=$J$22) -> 0 | FC22: =$H$22*(FC11=$J$22) -> 0 | FD22: =$H$22*(FD11=$J$22) -> 0 | FE22: =$H$22*(FE11=$J$22) -> 0 | FF22: =$H$22*(FF11=$J$22) -> 0 | FG22: =$H$22*(FG11=$J$22) -> 0 | FH22: =$H$22*(FH11=$J$22) -> 0 | FI22: =$H$22*(FI11=$J$22) -> 0 | FJ22: =$H$22*(FJ11=$J$22) -> 0 | FK22: =$H$22*(FK11=$J$22) -> 0 | FL22: =$H$22*(FL11=$J$22) -> 0 | FM22: =$H$22*(FM11=$J$22) -> 0 | FN22: =$H$22*(FN11=$J$22) -> 0 | FO22: =$H$22*(FO11=$J$22) -> 0 | FP22: =$H$22*(FP11=$J$22) -> 0 | FQ22: =$H$22*(FQ11=$J$22) -> 0 | FR22: =$H$22*(FR11=$J$22) -> 0 | FS22: =$H$22*(FS11=$J$22) -> 0 | FT22: =$H$22*(FT11=$J$22) -> 0 | FU22: =$H$22*(FU11=$J$22) -> 0 | FV22: =$H$22*(FV11=$J$22) -> 0 | FW22: =$H$22*(FW11=$J$22) -> 0
D23: Total Outlays | L23: =L19+L21+L22 -> 236666.6667 | M23: =M19+M21+M22 -> 236666.6667 | N23: 236666.6667 | O23: 3093333.333 | P23: 93333.33333 | Q23: 93333.33333 | R23: 93333.33333 | S23: 93333.33333 | T23: 93333.33333 | U23: 93333.33333 | V23: 93333.33333 | W23: 93333.33333 | X23: 93333.33333 | Y23: 93333.33333 | Z23: 93333.33333 | AA23: 326666.6667 | AB23: 326666.6667 | AC23: 326666.6667 | AD23: 326666.6667 | AE23: 326666.6667 | AF23: 326666.6667 | AG23: 326666.6667 | AH23: 326666.6667 | AI23: 326666.6667 | AJ23: 326666.6667 | AK23: 326666.6667 | AL23: 326666.6667 | AM23: 466666.6667 | AN23: 466666.6667 | AO23: 466666.6667 | AP23: 466666.6667 | AQ23: 466666.6667 | AR23: 466666.6667 | AS23: 466666.6667 | AT23: 466666.6667 | AU23: 466666.6667 | AV23: 466666.6667 | AW23: 466666.6667 | AX23: 466666.6667 | AY23: 140000 | AZ23: 140000 | BA23: 140000 | BB23: 140000 | BC23: 0 | BD23: 0 | BE23: 0 | BF23: 0 | BG23: 0 | BH23: 0 | BI23: 0 | BJ23: 0 | BK23: 0 | BL23: 0 | BM23: 0 | BN23: 0 | BO23: 0 | BP23: 0 | BQ23: 0 | BR23: 0 | BS23: 0 | BT23: 0 | BU23: 0 | BV23: 0 | BW23: 0 | BX23: 0 | BY23: =BY19+BY21+BY22 -> 0 | BZ23: 0 | CA23: 0 | CB23: 0 | CC23: 0 | CD23: 0 | CE23: 0 | CF23: 0 | CG23: 0 | CH23: 0 | CI23: 0 | CJ23: 0 | CK23: 0 | CL23: 0 | CM23: 0 | CN23: 0 | CO23: 0 | CP23: 0 | CQ23: 0 | CR23: 0 | CS23: 0 | CT23: 0 | CU23: 0 | CV23: 0 | CW23: 0 | CX23: 0 | CY23: 0 | CZ23: 0 | DA23: 0 | DB23: 0 | DC23: 0 | DD23: 0 | DE23: 0 | DF23: 0 | DG23: 0 | DH23: =DH19+DH21+DH22 -> 0 | DI23: =DI19+DI21+DI22 -> 0 | DJ23: =DJ19+DJ21+DJ22 -> 0 | DK23: =DK19+DK21+DK22 -> 0 | DL23: =DL19+DL21+DL22 -> 0 | DM23: =DM19+DM21+DM22 -> 0 | DN23: =DN19+DN21+DN22 -> 0 | DO23: =DO19+DO21+DO22 -> 0 | DP23: =DP19+DP21+DP22 -> 0 | DQ23: =DQ19+DQ21+DQ22 -> 0 | DR23: =DR19+DR21+DR22 -> 0 | DS23: =DS19+DS21+DS22 -> 0 | DT23: =DT19+DT21+DT22 -> 0 | DU23: =DU19+DU21+DU22 -> 0 | DV23: =DV19+DV21+DV22 -> 0 | DW23: =DW19+DW21+DW22 -> 0 | DX23: =DX19+DX21+DX22 -> 0 | DY23: =DY19+DY21+DY22 -> 0 | DZ23: =DZ19+DZ21+DZ22 -> 0 | EA23: =EA19+EA21+EA22 -> 0 | EB23: =EB19+EB21+EB22 -> 0 | EC23: =EC19+EC21+EC22 -> 0 | ED23: =ED19+ED21+ED22 -> 0 | EE23: =EE19+EE21+EE22 -> 0 | EF23: =EF19+EF21+EF22 -> 0 | EG23: =EG19+EG21+EG22 -> 0 | EH23: =EH19+EH21+EH22 -> 0 | EI23: =EI19+EI21+EI22 -> 0 | EJ23: =EJ19+EJ21+EJ22 -> 0 | EK23: =EK19+EK21+EK22 -> 0 | EL23: =EL19+EL21+EL22 -> 0 | EM23: =EM19+EM21+EM22 -> 0 | EN23: =EN19+EN21+EN22 -> 0 | EO23: =EO19+EO21+EO22 -> 0 | EP23: =EP19+EP21+EP22 -> 0 | EQ23: =EQ19+EQ21+EQ22 -> 0 | ER23: =ER19+ER21+ER22 -> 0 | ES23: =ES19+ES21+ES22 -> 0 | ET23: =ET19+ET21+ET22 -> 0 | EU23: =EU19+EU21+EU22 -> 0 | EV23: =EV19+EV21+EV22 -> 0 | EW23: =EW19+EW21+EW22 -> 0 | EX23: =EX19+EX21+EX22 -> 0 | EY23: =EY19+EY21+EY22 -> 0 | EZ23: =EZ19+EZ21+EZ22 -> 0 | FA23: =FA19+FA21+FA22 -> 0 | FB23: =FB19+FB21+FB22 -> 0 | FC23: =FC19+FC21+FC22 -> 0 | FD23: =FD19+FD21+FD22 -> 0 | FE23: =FE19+FE21+FE22 -> 0 | FF23: =FF19+FF21+FF22 -> 0 | FG23: =FG19+FG21+FG22 -> 0 | FH23: =FH19+FH21+FH22 -> 0 | FI23: =FI19+FI21+FI22 -> 0 | FJ23: =FJ19+FJ21+FJ22 -> 0 | FK23: =FK19+FK21+FK22 -> 0 | FL23: =FL19+FL21+FL22 -> 0 | FM23: =FM19+FM21+FM22 -> 0 | FN23: =FN19+FN21+FN22 -> 0 | FO23: =FO19+FO21+FO22 -> 0 | FP23: =FP19+FP21+FP22 -> 0 | FQ23: =FQ19+FQ21+FQ22 -> 0 | FR23: =FR19+FR21+FR22 -> 0 | FS23: =FS19+FS21+FS22 -> 0 | FT23: =FT19+FT21+FT22 -> 0 | FU23: =FU19+FU21+FU22 -> 0 | FV23: =FV19+FV21+FV22 -> 0 | FW23: =FW19+FW21+FW22 -> 0
C25: Rooms | H25: =Assumptions!G14 -> 80 | L25: =L5*$H$25 -> 0 | M25: =M5*$H$25 -> 0 | N25: =N5*$H$25 -> 0 | O25: =O5*$H$25 -> 0 | P25: =P5*$H$25 -> 0 | Q25: =Q5*$H$25 -> 0 | R25: =R5*$H$25 -> 0 | S25: =S5*$H$25 -> 0 | T25: =T5*$H$25 -> 0 | U25: =U5*$H$25 -> 0 | V25: =V5*$H$25 -> 0 | W25: =W5*$H$25 -> 0 | X25: =X5*$H$25 -> 0 | Y25: =Y5*$H$25 -> 0 | Z25: =Z5*$H$25 -> 0 | AA25: =AA5*$H$25 -> 0 | AB25: =AB5*$H$25 -> 0 | AC25: =AC5*$H$25 -> 0 | AD25: =AD5*$H$25 -> 0 | AE25: =AE5*$H$25 -> 0 | AF25: =AF5*$H$25 -> 0 | AG25: =AG5*$H$25 -> 0 | AH25: =AH5*$H$25 -> 0 | AI25: =AI5*$H$25 -> 0 | AJ25: =AJ5*$H$25 -> 0 | AK25: =AK5*$H$25 -> 0 | AL25: =AL5*$H$25 -> 0 | AM25: =AM5*$H$25 -> 0 | AN25: =AN5*$H$25 -> 0 | AO25: =AO5*$H$25 -> 0 | AP25: =AP5*$H$25 -> 0 | AQ25: =AQ5*$H$25 -> 0 | AR25: =AR5*$H$25 -> 0 | AS25: =AS5*$H$25 -> 0 | AT25: =AT5*$H$25 -> 0 | AU25: =AU5*$H$25 -> 0 | AV25: =AV5*$H$25 -> 0 | AW25: =AW5*$H$25 -> 0 | AX25: =AX5*$H$25 -> 0 | AY25: =AY5*$H$25 -> 0 | AZ25: =AZ5*$H$25 -> 0 | BA25: =BA5*$H$25 -> 0 | BB25: =BB5*$H$25 -> 0 | BC25: =BC5*$H$25 -> 80 | BD25: =BD5*$H$25 -> 80 | BE25: =BE5*$H$25 -> 80 | BF25: =BF5*$H$25 -> 80 | BG25: =BG5*$H$25 -> 80 | BH25: =BH5*$H$25 -> 80 | BI25: =BI5*$H$25 -> 80 | BJ25: =BJ5*$H$25 -> 80 | BK25: =BK5*$H$25 -> 80 | BL25: =BL5*$H$25 -> 80 | BM25: =BM5*$H$25 -> 80 | BN25: =BN5*$H$25 -> 80 | BO25: =BO5*$H$25 -> 80 | BP25: =BP5*$H$25 -> 80 | BQ25: =BQ5*$H$25 -> 80 | BR25: =BR5*$H$25 -> 80 | BS25: =BS5*$H$25 -> 80 | BT25: =BT5*$H$25 -> 80 | BU25: =BU5*$H$25 -> 80 | BV25: =BV5*$H$25 -> 80 | BW25: =BW5*$H$25 -> 80 | BX25: =BX5*$H$25 -> 80 | BY25: =BY5*$H$25 -> 80 | BZ25: =BZ5*$H$25 -> 80 | CA25: =CA5*$H$25 -> 80 | CB25: =CB5*$H$25 -> 80 | CC25: =CC5*$H$25 -> 80 | CD25: =CD5*$H$25 -> 80 | CE25: =CE5*$H$25 -> 80 | CF25: =CF5*$H$25 -> 80 | CG25: =CG5*$H$25 -> 80 | CH25: =CH5*$H$25 -> 80 | CI25: =CI5*$H$25 -> 80 | CJ25: =CJ5*$H$25 -> 80 | CK25: =CK5*$H$25 -> 80 | CL25: =CL5*$H$25 -> 80 | CM25: =CM5*$H$25 -> 80 | CN25: =CN5*$H$25 -> 80 | CO25: =CO5*$H$25 -> 80 | CP25: =CP5*$H$25 -> 80 | CQ25: =CQ5*$H$25 -> 80 | CR25: =CR5*$H$25 -> 80 | CS25: =CS5*$H$25 -> 80 | CT25: =CT5*$H$25 -> 80 | CU25: =CU5*$H$25 -> 80 | CV25: =CV5*$H$25 -> 80 | CW25: =CW5*$H$25 -> 80 | CX25: =CX5*$H$25 -> 80 | CY25: =CY5*$H$25 -> 80 | CZ25: =CZ5*$H$25 -> 80 | DA25: =DA5*$H$25 -> 80 | DB25: =DB5*$H$25 -> 80 | DC25: =DC5*$H$25 -> 80 | DD25: =DD5*$H$25 -> 80 | DE25: =DE5*$H$25 -> 80 | DF25: =DF5*$H$25 -> 80 | DG25: =DG5*$H$25 -> 80 | DH25: =DH5*$H$25 -> 80 | DI25: =DI5*$H$25 -> 80 | DJ25: =DJ5*$H$25 -> 80 | DK25: =DK5*$H$25 -> 80 | DL25: =DL5*$H$25 -> 80 | DM25: =DM5*$H$25 -> 80 | DN25: =DN5*$H$25 -> 80 | DO25: =DO5*$H$25 -> 80 | DP25: =DP5*$H$25 -> 80 | DQ25: =DQ5*$H$25 -> 80 | DR25: =DR5*$H$25 -> 80 | DS25: =DS5*$H$25 -> 80 | DT25: =DT5*$H$25 -> 80 | DU25: =DU5*$H$25 -> 80 | DV25: =DV5*$H$25 -> 80 | DW25: =DW5*$H$25 -> 80 | DX25: =DX5*$H$25 -> 80 | DY25: =DY5*$H$25 -> 80 | DZ25: =DZ5*$H$25 -> 80 | EA25: =EA5*$H$25 -> 80 | EB25: =EB5*$H$25 -> 80 | EC25: =EC5*$H$25 -> 80 | ED25: =ED5*$H$25 -> 80 | EE25: =EE5*$H$25 -> 80 | EF25: =EF5*$H$25 -> 80 | EG25: =EG5*$H$25 -> 80 | EH25: =EH5*$H$25 -> 80 | EI25: =EI5*$H$25 -> 80 | EJ25: =EJ5*$H$25 -> 80 | EK25: =EK5*$H$25 -> 80 | EL25: =EL5*$H$25 -> 80 | EM25: =EM5*$H$25 -> 80 | EN25: =EN5*$H$25 -> 80 | EO25: =EO5*$H$25 -> 80 | EP25: =EP5*$H$25 -> 80 | EQ25: =EQ5*$H$25 -> 80 | ER25: =ER5*$H$25 -> 80 | ES25: =ES5*$H$25 -> 80 | ET25: =ET5*$H$25 -> 80 | EU25: =EU5*$H$25 -> 80 | EV25: =EV5*$H$25 -> 80 | EW25: =EW5*$H$25 -> 80 | EX25: =EX5*$H$25 -> 80 | EY25: =EY5*$H$25 -> 0 | EZ25: =EZ5*$H$25 -> 0 | FA25: =FA5*$H$25 -> 0 | FB25: =FB5*$H$25 -> 0 | FC25: =FC5*$H$25 -> 0 | FD25: =FD5*$H$25 -> 0 | FE25: =FE5*$H$25 -> 0 | FF25: =FF5*$H$25 -> 0 | FG25: =FG5*$H$25 -> 0 | FH25: =FH5*$H$25 -> 0 | FI25: =FI5*$H$25 -> 0 | FJ25: =FJ5*$H$25 -> 0 | FK25: =FK5*$H$25 -> 0 | FL25: =FL5*$H$25 -> 0 | FM25: =FM5*$H$25 -> 0 | FN25: =FN5*$H$25 -> 0 | FO25: =FO5*$H$25 -> 0 | FP25: =FP5*$H$25 -> 0 | FQ25: =FQ5*$H$25 -> 0 | FR25: =FR5*$H$25 -> 0 | FS25: =FS5*$H$25 -> 0 | FT25: =FT5*$H$25 -> 0 | FU25: =FU5*$H$25 -> 0 | FV25: =FV5*$H$25 -> 0 | FW25: =FW5*$H$25 -> 0
A27: Operating Cash Flow
B28: Revenues
C29: Inflation Rate - Revenues | E29: Pct | L29: =(1+LOOKUP(L12,Assumptions!25:25,Assumptions!26:26))^(1/L13)-1 -> 0.005 | M29: =(1+LOOKUP(M12,Assumptions!25:25,Assumptions!26:26))^(1/M13)-1 -> 0.005 | N29: =(1+LOOKUP(N12,Assumptions!25:25,Assumptions!26:26))^(1/N13)-1 -> 0.005 | O29: =(1+LOOKUP(O12,Assumptions!25:25,Assumptions!26:26))^(1/O13)-1 -> 0.0004157148447 | P29: =(1+LOOKUP(P12,Assumptions!25:25,Assumptions!26:26))^(1/P13)-1 -> 0.0004157148447 | Q29: =(1+LOOKUP(Q12,Assumptions!25:25,Assumptions!26:26))^(1/Q13)-1 -> 0.0004157148447 | R29: =(1+LOOKUP(R12,Assumptions!25:25,Assumptions!26:26))^(1/R13)-1 -> 0.0004157148447 | S29: =(1+LOOKUP(S12,Assumptions!25:25,Assumptions!26:26))^(1/S13)-1 -> 0.0004157148447 | T29: =(1+LOOKUP(T12,Assumptions!25:25,Assumptions!26:26))^(1/T13)-1 -> 0.0004157148447 | U29: =(1+LOOKUP(U12,Assumptions!25:25,Assumptions!26:26))^(1/U13)-1 -> 0.0004157148447 | V29: =(1+LOOKUP(V12,Assumptions!25:25,Assumptions!26:26))^(1/V13)-1 -> 0.0004157148447 | W29: =(1+LOOKUP(W12,Assumptions!25:25,Assumptions!26:26))^(1/W13)-1 -> 0.0004157148447 | X29: =(1+LOOKUP(X12,Assumptions!25:25,Assumptions!26:26))^(1/X13)-1 -> 0.0004157148447 | Y29: =(1+LOOKUP(Y12,Assumptions!25:25,Assumptions!26:26))^(1/Y13)-1 -> 0.0004157148447 | Z29: =(1+LOOKUP(Z12,Assumptions!25:25,Assumptions!26:26))^(1/Z13)-1 -> 0.0004157148447 | AA29: =(1+LOOKUP(AA12,Assumptions!25:25,Assumptions!26:26))^(1/AA13)-1 -> 0.0008295381143 | AB29: =(1+LOOKUP(AB12,Assumptions!25:25,Assumptions!26:26))^(1/AB13)-1 -> 0.0008295381143 | AC29: =(1+LOOKUP(AC12,Assumptions!25:25,Assumptions!26:26))^(1/AC13)-1 -> 0.0008295381143 | AD29: =(1+LOOKUP(AD12,Assumptions!25:25,Assumptions!26:26))^(1/AD13)-1 -> 0.0008295381143 | AE29: =(1+LOOKUP(AE12,Assumptions!25:25,Assumptions!26:26))^(1/AE13)-1 -> 0.0008295381143 | AF29: =(1+LOOKUP(AF12,Assumptions!25:25,Assumptions!26:26))^(1/AF13)-1 -> 0.0008295381143 | AG29: =(1+LOOKUP(AG12,Assumptions!25:25,Assumptions!26:26))^(1/AG13)-1 -> 0.0008295381143 | AH29: =(1+LOOKUP(AH12,Assumptions!25:25,Assumptions!26:26))^(1/AH13)-1 -> 0.0008295381143 | AI29: =(1+LOOKUP(AI12,Assumptions!25:25,Assumptions!26:26))^(1/AI13)-1 -> 0.0008295381143 | AJ29: =(1+LOOKUP(AJ12,Assumptions!25:25,Assumptions!26:26))^(1/AJ13)-1 -> 0.0008295381143 | AK29: =(1+LOOKUP(AK12,Assumptions!25:25,Assumptions!26:26))^(1/AK13)-1 -> 0.0008295381143 | AL29: =(1+LOOKUP(AL12,Assumptions!25:25,Assumptions!26:26))^(1/AL13)-1 -> 0.0008295381143 | AM29: =(1+LOOKUP(AM12,Assumptions!25:25,Assumptions!26:26))^(1/AM13)-1 -> 0.0008295381143 | AN29: =(1+LOOKUP(AN12,Assumptions!25:25,Assumptions!26:26))^(1/AN13)-1 -> 0.0008295381143 | AO29: =(1+LOOKUP(AO12,Assumptions!25:25,Assumptions!26:26))^(1/AO13)-1 -> 0.0008295381143 | AP29: =(1+LOOKUP(AP12,Assumptions!25:25,Assumptions!26:26))^(1/AP13)-1 -> 0.0008295381143 | AQ29: =(1+LOOKUP(AQ12,Assumptions!25:25,Assumptions!26:26))^(1/AQ13)-1 -> 0.0008295381143 | AR29: =(1+LOOKUP(AR12,Assumptions!25:25,Assumptions!26:26))^(1/AR13)-1 -> 0.0008295381143 | AS29: =(1+LOOKUP(AS12,Assumptions!25:25,Assumptions!26:26))^(1/AS13)-1 -> 0.0008295381143 | AT29: =(1+LOOKUP(AT12,Assumptions!25:25,Assumptions!26:26))^(1/AT13)-1 -> 0.0008295381143 | AU29: =(1+LOOKUP(AU12,Assumptions!25:25,Assumptions!26:26))^(1/AU13)-1 -> 0.0008295381143 | AV29: =(1+LOOKUP(AV12,Assumptions!25:25,Assumptions!26:26))^(1/AV13)-1 -> 0.0008295381143 | AW29: =(1+LOOKUP(AW12,Assumptions!25:25,Assumptions!26:26))^(1/AW13)-1 -> 0.0008295381143 | AX29: =(1+LOOKUP(AX12,Assumptions!25:25,Assumptions!26:26))^(1/AX13)-1 -> 0.0008295381143 | AY29: =(1+LOOKUP(AY12,Assumptions!25:25,Assumptions!26:26))^(1/AY13)-1 -> 0.0008295381143 | AZ29: =(1+LOOKUP(AZ12,Assumptions!25:25,Assumptions!26:26))^(1/AZ13)-1 -> 0.0008295381143 | BA29: =(1+LOOKUP(BA12,Assumptions!25:25,Assumptions!26:26))^(1/BA13)-1 -> 0.0008295381143 | BB29: =(1+LOOKUP(BB12,Assumptions!25:25,Assumptions!26:26))^(1/BB13)-1 -> 0.0008295381143 | BC29: =(1+LOOKUP(BC12,Assumptions!25:25,Assumptions!26:26))^(1/BC13)-1 -> 0.002490679314 | BD29: =(1+LOOKUP(BD12,Assumptions!25:25,Assumptions!26:26))^(1/BD13)-1 -> 0.002490679314 | BE29: =(1+LOOKUP(BE12,Assumptions!25:25,Assumptions!26:26))^(1/BE13)-1 -> 0.002490679314 | BF29: =(1+LOOKUP(BF12,Assumptions!25:25,Assumptions!26:26))^(1/BF13)-1 -> 0.002490679314 | BG29: =(1+LOOKUP(BG12,Assumptions!25:25,Assumptions!26:26))^(1/BG13)-1 -> 0.002490679314 | BH29: =(1+LOOKUP(BH12,Assumptions!25:25,Assumptions!26:26))^(1/BH13)-1 -> 0.002490679314 | BI29: =(1+LOOKUP(BI12,Assumptions!25:25,Assumptions!26:26))^(1/BI13)-1 -> 0.002490679314 | BJ29: =(1+LOOKUP(BJ12,Assumptions!25:25,Assumptions!26:26))^(1/BJ13)-1 -> 0.002738728493 | BK29: =(1+LOOKUP(BK12,Assumptions!25:25,Assumptions!26:26))^(1/BK13)-1 -> 0.002738728493 | BL29: =(1+LOOKUP(BL12,Assumptions!25:25,Assumptions!26:26))^(1/BL13)-1 -> 0.002738728493 | BM29: =(1+LOOKUP(BM12,Assumptions!25:25,Assumptions!26:26))^(1/BM13)-1 -> 0.002738728493 | BN29: =(1+LOOKUP(BN12,Assumptions!25:25,Assumptions!26:26))^(1/BN13)-1 -> 0.002738728493 | BO29: =(1+LOOKUP(BO12,Assumptions!25:25,Assumptions!26:26))^(1/BO13)-1 -> 0.002738728493 | BP29: =(1+LOOKUP(BP12,Assumptions!25:25,Assumptions!26:26))^(1/BP13)-1 -> 0.002738728493 | BQ29: =(1+LOOKUP(BQ12,Assumptions!25:25,Assumptions!26:26))^(1/BQ13)-1 -> 0.002738728493 | BR29: =(1+LOOKUP(BR12,Assumptions!25:25,Assumptions!26:26))^(1/BR13)-1 -> 0.002738728493 | BS29: =(1+LOOKUP(BS12,Assumptions!25:25,Assumptions!26:26))^(1/BS13)-1 -> 0.002738728493 | BT29: =(1+LOOKUP(BT12,Assumptions!25:25,Assumptions!26:26))^(1/BT13)-1 -> 0.002738728493 | BU29: =(1+LOOKUP(BU12,Assumptions!25:25,Assumptions!26:26))^(1/BU13)-1 -> 0.002738728493 | BV29: =(1+LOOKUP(BV12,Assumptions!25:25,Assumptions!26:26))^(1/BV13)-1 -> 0.002738728493 | BW29: =(1+LOOKUP(BW12,Assumptions!25:25,Assumptions!26:26))^(1/BW13)-1 -> 0.002738728493 | BX29: =(1+LOOKUP(BX12,Assumptions!25:25,Assumptions!26:26))^(1/BX13)-1 -> 0.002738728493 | BY29: =(1+LOOKUP(BY12,Assumptions!25:25,Assumptions!26:26))^(1/BY13)-1 -> 0.002738728493 | BZ29: =(1+LOOKUP(BZ12,Assumptions!25:25,Assumptions!26:26))^(1/BZ13)-1 -> 0.003729088938 | CA29: =(1+LOOKUP(CA12,Assumptions!25:25,Assumptions!26:26))^(1/CA13)-1 -> 0.003729088938 | CB29: =(1+LOOKUP(CB12,Assumptions!25:25,Assumptions!26:26))^(1/CB13)-1 -> 0.003729088938 | CC29: =(1+LOOKUP(CC12,Assumptions!25:25,Assumptions!26:26))^(1/CC13)-1 -> 0.003729088938 | CD29: =(1+LOOKUP(CD12,Assumptions!25:25,Assumptions!26:26))^(1/CD13)-1 -> 0.003729088938 | CE29: =(1+LOOKUP(CE12,Assumptions!25:25,Assumptions!26:26))^(1/CE13)-1 -> 0.003729088938 | CF29: =(1+LOOKUP(CF12,Assumptions!25:25,Assumptions!26:26))^(1/CF13)-1 -> 0.003729088938 | CG29: =(1+LOOKUP(CG12,Assumptions!25:25,Assumptions!26:26))^(1/CG13)-1 -> 0.003729088938 | CH29: =(1+LOOKUP(CH12,Assumptions!25:25,Assumptions!26:26))^(1/CH13)-1 -> 0.003729088938 | CI29: =(1+LOOKUP(CI12,Assumptions!25:25,Assumptions!26:26))^(1/CI13)-1 -> 0.003729088938 | CJ29: =(1+LOOKUP(CJ12,Assumptions!25:25,Assumptions!26:26))^(1/CJ13)-1 -> 0.003729088938 | CK29: =(1+LOOKUP(CK12,Assumptions!25:25,Assumptions!26:26))^(1/CK13)-1 -> 0.003729088938 | CL29: =(1+LOOKUP(CL12,Assumptions!25:25,Assumptions!26:26))^(1/CL13)-1 -> 0.003729088938 | CM29: =(1+LOOKUP(CM12,Assumptions!25:25,Assumptions!26:26))^(1/CM13)-1 -> 0.003729088938 | CN29: =(1+LOOKUP(CN12,Assumptions!25:25,Assumptions!26:26))^(1/CN13)-1 -> 0.003729088938 | CO29: =(1+LOOKUP(CO12,Assumptions!25:25,Assumptions!26:26))^(1/CO13)-1 -> 0.003729088938 | CP29: =(1+LOOKUP(CP12,Assumptions!25:25,Assumptions!26:26))^(1/CP13)-1 -> 0.004469940043 | CQ29: =(1+LOOKUP(CQ12,Assumptions!25:25,Assumptions!26:26))^(1/CQ13)-1 -> 0.004469940043 | CR29: =(1+LOOKUP(CR12,Assumptions!25:25,Assumptions!26:26))^(1/CR13)-1 -> 0.004469940043 | CS29: =(1+LOOKUP(CS12,Assumptions!25:25,Assumptions!26:26))^(1/CS13)-1 -> 0.004469940043 | CT29: =(1+LOOKUP(CT12,Assumptions!25:25,Assumptions!26:26))^(1/CT13)-1 -> 0.004469940043 | CU29: =(1+LOOKUP(CU12,Assumptions!25:25,Assumptions!26:26))^(1/CU13)-1 -> 0.004469940043 | CV29: =(1+LOOKUP(CV12,Assumptions!25:25,Assumptions!26:26))^(1/CV13)-1 -> 0.004469940043 | CW29: =(1+LOOKUP(CW12,Assumptions!25:25,Assumptions!26:26))^(1/CW13)-1 -> 0.004469940043 | CX29: =(1+LOOKUP(CX12,Assumptions!25:25,Assumptions!26:26))^(1/CX13)-1 -> 0.004469940043 | CY29: =(1+LOOKUP(CY12,Assumptions!25:25,Assumptions!26:26))^(1/CY13)-1 -> 0.004469940043 | CZ29: =(1+LOOKUP(CZ12,Assumptions!25:25,Assumptions!26:26))^(1/CZ13)-1 -> 0.004469940043 | DA29: =(1+LOOKUP(DA12,Assumptions!25:25,Assumptions!26:26))^(1/DA13)-1 -> 0.004469940043 | DB29: =(1+LOOKUP(DB12,Assumptions!25:25,Assumptions!26:26))^(1/DB13)-1 -> 0.004469940043 | DC29: =(1+LOOKUP(DC12,Assumptions!25:25,Assumptions!26:26))^(1/DC13)-1 -> 0.004469940043 | DD29: =(1+LOOKUP(DD12,Assumptions!25:25,Assumptions!26:26))^(1/DD13)-1 -> 0.004469940043 | DE29: =(1+LOOKUP(DE12,Assumptions!25:25,Assumptions!26:26))^(1/DE13)-1 -> 0.004469940043 | DF29: =(1+LOOKUP(DF12,Assumptions!25:25,Assumptions!26:26))^(1/DF13)-1 -> 0.004469940043 | DG29: =(1+LOOKUP(DG12,Assumptions!25:25,Assumptions!26:26))^(1/DG13)-1 -> 0.004469940043 | DH29: =(1+LOOKUP(DH12,Assumptions!25:25,Assumptions!26:26))^(1/DH13)-1 -> 0.004469940043 | DI29: =(1+LOOKUP(DI12,Assumptions!25:25,Assumptions!26:26))^(1/DI13)-1 -> 0.004469940043 | DJ29: =(1+LOOKUP(DJ12,Assumptions!25:25,Assumptions!26:26))^(1/DJ13)-1 -> 0.004469940043 | DK29: =(1+LOOKUP(DK12,Assumptions!25:25,Assumptions!26:26))^(1/DK13)-1 -> 0.004469940043 | DL29: =(1+LOOKUP(DL12,Assumptions!25:25,Assumptions!26:26))^(1/DL13)-1 -> 0.004469940043 | DM29: =(1+LOOKUP(DM12,Assumptions!25:25,Assumptions!26:26))^(1/DM13)-1 -> 0.004469940043 | DN29: =(1+LOOKUP(DN12,Assumptions!25:25,Assumptions!26:26))^(1/DN13)-1 -> 0.004469940043 | DO29: =(1+LOOKUP(DO12,Assumptions!25:25,Assumptions!26:26))^(1/DO13)-1 -> 0.004469940043 | DP29: =(1+LOOKUP(DP12,Assumptions!25:25,Assumptions!26:26))^(1/DP13)-1 -> 0.004469940043 | DQ29: =(1+LOOKUP(DQ12,Assumptions!25:25,Assumptions!26:26))^(1/DQ13)-1 -> 0.004469940043 | DR29: =(1+LOOKUP(DR12,Assumptions!25:25,Assumptions!26:26))^(1/DR13)-1 -> 0.004469940043 | DS29: =(1+LOOKUP(DS12,Assumptions!25:25,Assumptions!26:26))^(1/DS13)-1 -> 0.004469940043 | DT29: =(1+LOOKUP(DT12,Assumptions!25:25,Assumptions!26:26))^(1/DT13)-1 -> 0.004469940043 | DU29: =(1+LOOKUP(DU12,Assumptions!25:25,Assumptions!26:26))^(1/DU13)-1 -> 0.004469940043 | DV29: =(1+LOOKUP(DV12,Assumptions!25:25,Assumptions!26:26))^(1/DV13)-1 -> 0.004469940043 | DW29: =(1+LOOKUP(DW12,Assumptions!25:25,Assumptions!26:26))^(1/DW13)-1 -> 0.004469940043 | DX29: =(1+LOOKUP(DX12,Assumptions!25:25,Assumptions!26:26))^(1/DX13)-1 -> 0.004469940043 | DY29: =(1+LOOKUP(DY12,Assumptions!25:25,Assumptions!26:26))^(1/DY13)-1 -> 0.004469940043 | DZ29: =(1+LOOKUP(DZ12,Assumptions!25:25,Assumptions!26:26))^(1/DZ13)-1 -> 0.004469940043 | EA29: =(1+LOOKUP(EA12,Assumptions!25:25,Assumptions!26:26))^(1/EA13)-1 -> 0.004469940043 | EB29: =(1+LOOKUP(EB12,Assumptions!25:25,Assumptions!26:26))^(1/EB13)-1 -> 0.004469940043 | EC29: =(1+LOOKUP(EC12,Assumptions!25:25,Assumptions!26:26))^(1/EC13)-1 -> 0.004469940043 | ED29: =(1+LOOKUP(ED12,Assumptions!25:25,Assumptions!26:26))^(1/ED13)-1 -> 0.004469940043 | EE29: =(1+LOOKUP(EE12,Assumptions!25:25,Assumptions!26:26))^(1/EE13)-1 -> 0.004469940043 | EF29: =(1+LOOKUP(EF12,Assumptions!25:25,Assumptions!26:26))^(1/EF13)-1 -> 0.004469940043 | EG29: =(1+LOOKUP(EG12,Assumptions!25:25,Assumptions!26:26))^(1/EG13)-1 -> 0.004469940043 | EH29: =(1+LOOKUP(EH12,Assumptions!25:25,Assumptions!26:26))^(1/EH13)-1 -> 0.004469940043 | EI29: =(1+LOOKUP(EI12,Assumptions!25:25,Assumptions!26:26))^(1/EI13)-1 -> 0.004469940043 | EJ29: =(1+LOOKUP(EJ12,Assumptions!25:25,Assumptions!26:26))^(1/EJ13)-1 -> 0.004469940043 | EK29: =(1+LOOKUP(EK12,Assumptions!25:25,Assumptions!26:26))^(1/EK13)-1 -> 0.004469940043 | EL29: =(1+LOOKUP(EL12,Assumptions!25:25,Assumptions!26:26))^(1/EL13)-1 -> 0.004469940043 | EM29: =(1+LOOKUP(EM12,Assumptions!25:25,Assumptions!26:26))^(1/EM13)-1 -> 0.004469940043 | EN29: =(1+LOOKUP(EN12,Assumptions!25:25,Assumptions!26:26))^(1/EN13)-1 -> 0.004469940043 | EO29: =(1+LOOKUP(EO12,Assumptions!25:25,Assumptions!26:26))^(1/EO13)-1 -> 0.004469940043 | EP29: =(1+LOOKUP(EP12,Assumptions!25:25,Assumptions!26:26))^(1/EP13)-1 -> 0.004469940043 | EQ29: =(1+LOOKUP(EQ12,Assumptions!25:25,Assumptions!26:26))^(1/EQ13)-1 -> 0.004469940043 | ER29: =(1+LOOKUP(ER12,Assumptions!25:25,Assumptions!26:26))^(1/ER13)-1 -> 0.004469940043 | ES29: =(1+LOOKUP(ES12,Assumptions!25:25,Assumptions!26:26))^(1/ES13)-1 -> 0.004469940043 | ET29: =(1+LOOKUP(ET12,Assumptions!25:25,Assumptions!26:26))^(1/ET13)-1 -> 0.004469940043 | EU29: =(1+LOOKUP(EU12,Assumptions!25:25,Assumptions!26:26))^(1/EU13)-1 -> 0.004469940043 | EV29: =(1+LOOKUP(EV12,Assumptions!25:25,Assumptions!26:26))^(1/EV13)-1 -> 0.004469940043 | EW29: =(1+LOOKUP(EW12,Assumptions!25:25,Assumptions!26:26))^(1/EW13)-1 -> 0.004469940043 | EX29: =(1+LOOKUP(EX12,Assumptions!25:25,Assumptions!26:26))^(1/EX13)-1 -> 0.004469940043 | EY29: =(1+LOOKUP(EY12,Assumptions!25:25,Assumptions!26:26))^(1/EY13)-1 -> 0.018 | EZ29: =(1+LOOKUP(EZ12,Assumptions!25:25,Assumptions!26:26))^(1/EZ13)-1 -> 0.018 | FA29: =(1+LOOKUP(FA12,Assumptions!25:25,Assumptions!26:26))^(1/FA13)-1 -> 0.018 | FB29: =(1+LOOKUP(FB12,Assumptions!25:25,Assumptions!26:26))^(1/FB13)-1 -> 0.018 | FC29: =(1+LOOKUP(FC12,Assumptions!25:25,Assumptions!26:26))^(1/FC13)-1 -> 0.018 | FD29: =(1+LOOKUP(FD12,Assumptions!25:25,Assumptions!26:26))^(1/FD13)-1 -> 0.018 | FE29: =(1+LOOKUP(FE12,Assumptions!25:25,Assumptions!26:26))^(1/FE13)-1 -> 0.018 | FF29: =(1+LOOKUP(FF12,Assumptions!25:25,Assumptions!26:26))^(1/FF13)-1 -> 0.018 | FG29: =(1+LOOKUP(FG12,Assumptions!25:25,Assumptions!26:26))^(1/FG13)-1 -> 0.018 | FH29: =(1+LOOKUP(FH12,Assumptions!25:25,Assumptions!26:26))^(1/FH13)-1 -> 0.018 | FI29: =(1+LOOKUP(FI12,Assumptions!25:25,Assumptions!26:26))^(1/FI13)-1 -> 0.018 | FJ29: =(1+LOOKUP(FJ12,Assumptions!25:25,Assumptions!26:26))^(1/FJ13)-1 -> 0.018 | FK29: =(1+LOOKUP(FK12,Assumptions!25:25,Assumptions!26:26))^(1/FK13)-1 -> 0.018 | FL29: =(1+LOOKUP(FL12,Assumptions!25:25,Assumptions!26:26))^(1/FL13)-1 -> 0.018 | FM29: =(1+LOOKUP(FM12,Assumptions!25:25,Assumptions!26:26))^(1/FM13)-1 -> 0.018 | FN29: =(1+LOOKUP(FN12,Assumptions!25:25,Assumptions!26:26))^(1/FN13)-1 -> 0.018 | FO29: =(1+LOOKUP(FO12,Assumptions!25:25,Assumptions!26:26))^(1/FO13)-1 -> 0.018 | FP29: =(1+LOOKUP(FP12,Assumptions!25:25,Assumptions!26:26))^(1/FP13)-1 -> 0.018 | FQ29: =(1+LOOKUP(FQ12,Assumptions!25:25,Assumptions!26:26))^(1/FQ13)-1 -> 0.018 | FR29: =(1+LOOKUP(FR12,Assumptions!25:25,Assumptions!26:26))^(1/FR13)-1 -> 0.018 | FS29: =(1+LOOKUP(FS12,Assumptions!25:25,Assumptions!26:26))^(1/FS13)-1 -> 0.018 | FT29: =(1+LOOKUP(FT12,Assumptions!25:25,Assumptions!26:26))^(1/FT13)-1 -> 0.018 | FU29: =(1+LOOKUP(FU12,Assumptions!25:25,Assumptions!26:26))^(1/FU13)-1 -> 0.018 | FV29: =(1+LOOKUP(FV12,Assumptions!25:25,Assumptions!26:26))^(1/FV13)-1 -> 0.018 | FW29: =(1+LOOKUP(FW12,Assumptions!25:25,Assumptions!26:26))^(1/FW13)-1 -> 0.018
C30: Inflation Rate - Costs | E30: Pct | L30: =(1+LOOKUP(L12,Assumptions!25:25,Assumptions!27:27))^(1/L13)-1 -> 0.005 | M30: =(1+LOOKUP(M12,Assumptions!25:25,Assumptions!27:27))^(1/M13)-1 -> 0.005 | N30: =(1+LOOKUP(N12,Assumptions!25:25,Assumptions!27:27))^(1/N13)-1 -> 0.005 | O30: =(1+LOOKUP(O12,Assumptions!25:25,Assumptions!27:27))^(1/O13)-1 -> 0.0004157148447 | P30: =(1+LOOKUP(P12,Assumptions!25:25,Assumptions!27:27))^(1/P13)-1 -> 0.0004157148447 | Q30: =(1+LOOKUP(Q12,Assumptions!25:25,Assumptions!27:27))^(1/Q13)-1 -> 0.0004157148447 | R30: =(1+LOOKUP(R12,Assumptions!25:25,Assumptions!27:27))^(1/R13)-1 -> 0.0004157148447 | S30: =(1+LOOKUP(S12,Assumptions!25:25,Assumptions!27:27))^(1/S13)-1 -> 0.0004157148447 | T30: =(1+LOOKUP(T12,Assumptions!25:25,Assumptions!27:27))^(1/T13)-1 -> 0.0004157148447 | U30: =(1+LOOKUP(U12,Assumptions!25:25,Assumptions!27:27))^(1/U13)-1 -> 0.0004157148447 | V30: =(1+LOOKUP(V12,Assumptions!25:25,Assumptions!27:27))^(1/V13)-1 -> 0.0004157148447 | W30: =(1+LOOKUP(W12,Assumptions!25:25,Assumptions!27:27))^(1/W13)-1 -> 0.0004157148447 | X30: =(1+LOOKUP(X12,Assumptions!25:25,Assumptions!27:27))^(1/X13)-1 -> 0.0004157148447 | Y30: =(1+LOOKUP(Y12,Assumptions!25:25,Assumptions!27:27))^(1/Y13)-1 -> 0.0004157148447 | Z30: =(1+LOOKUP(Z12,Assumptions!25:25,Assumptions!27:27))^(1/Z13)-1 -> 0.0004157148447 | AA30: =(1+LOOKUP(AA12,Assumptions!25:25,Assumptions!27:27))^(1/AA13)-1 -> 0.0008295381143 | AB30: =(1+LOOKUP(AB12,Assumptions!25:25,Assumptions!27:27))^(1/AB13)-1 -> 0.0008295381143 | AC30: =(1+LOOKUP(AC12,Assumptions!25:25,Assumptions!27:27))^(1/AC13)-1 -> 0.0008295381143 | AD30: =(1+LOOKUP(AD12,Assumptions!25:25,Assumptions!27:27))^(1/AD13)-1 -> 0.0008295381143 | AE30: =(1+LOOKUP(AE12,Assumptions!25:25,Assumptions!27:27))^(1/AE13)-1 -> 0.0008295381143 | AF30: =(1+LOOKUP(AF12,Assumptions!25:25,Assumptions!27:27))^(1/AF13)-1 -> 0.0008295381143 | AG30: =(1+LOOKUP(AG12,Assumptions!25:25,Assumptions!27:27))^(1/AG13)-1 -> 0.0008295381143 | AH30: =(1+LOOKUP(AH12,Assumptions!25:25,Assumptions!27:27))^(1/AH13)-1 -> 0.0008295381143 | AI30: =(1+LOOKUP(AI12,Assumptions!25:25,Assumptions!27:27))^(1/AI13)-1 -> 0.0008295381143 | AJ30: =(1+LOOKUP(AJ12,Assumptions!25:25,Assumptions!27:27))^(1/AJ13)-1 -> 0.0008295381143 | AK30: =(1+LOOKUP(AK12,Assumptions!25:25,Assumptions!27:27))^(1/AK13)-1 -> 0.0008295381143 | AL30: =(1+LOOKUP(AL12,Assumptions!25:25,Assumptions!27:27))^(1/AL13)-1 -> 0.0008295381143 | AM30: =(1+LOOKUP(AM12,Assumptions!25:25,Assumptions!27:27))^(1/AM13)-1 -> 0.0008295381143 | AN30: =(1+LOOKUP(AN12,Assumptions!25:25,Assumptions!27:27))^(1/AN13)-1 -> 0.0008295381143 | AO30: =(1+LOOKUP(AO12,Assumptions!25:25,Assumptions!27:27))^(1/AO13)-1 -> 0.0008295381143 | AP30: =(1+LOOKUP(AP12,Assumptions!25:25,Assumptions!27:27))^(1/AP13)-1 -> 0.0008295381143 | AQ30: =(1+LOOKUP(AQ12,Assumptions!25:25,Assumptions!27:27))^(1/AQ13)-1 -> 0.0008295381143 | AR30: =(1+LOOKUP(AR12,Assumptions!25:25,Assumptions!27:27))^(1/AR13)-1 -> 0.0008295381143 | AS30: =(1+LOOKUP(AS12,Assumptions!25:25,Assumptions!27:27))^(1/AS13)-1 -> 0.0008295381143 | AT30: =(1+LOOKUP(AT12,Assumptions!25:25,Assumptions!27:27))^(1/AT13)-1 -> 0.0008295381143 | AU30: =(1+LOOKUP(AU12,Assumptions!25:25,Assumptions!27:27))^(1/AU13)-1 -> 0.0008295381143 | AV30: =(1+LOOKUP(AV12,Assumptions!25:25,Assumptions!27:27))^(1/AV13)-1 -> 0.0008295381143 | AW30: =(1+LOOKUP(AW12,Assumptions!25:25,Assumptions!27:27))^(1/AW13)-1 -> 0.0008295381143 | AX30: =(1+LOOKUP(AX12,Assumptions!25:25,Assumptions!27:27))^(1/AX13)-1 -> 0.0008295381143 | AY30: =(1+LOOKUP(AY12,Assumptions!25:25,Assumptions!27:27))^(1/AY13)-1 -> 0.0008295381143 | AZ30: =(1+LOOKUP(AZ12,Assumptions!25:25,Assumptions!27:27))^(1/AZ13)-1 -> 0.0008295381143 | BA30: =(1+LOOKUP(BA12,Assumptions!25:25,Assumptions!27:27))^(1/BA13)-1 -> 0.0008295381143 | BB30: =(1+LOOKUP(BB12,Assumptions!25:25,Assumptions!27:27))^(1/BB13)-1 -> 0.0008295381143 | BC30: =(1+LOOKUP(BC12,Assumptions!25:25,Assumptions!27:27))^(1/BC13)-1 -> 0.002490679314 | BD30: =(1+LOOKUP(BD12,Assumptions!25:25,Assumptions!27:27))^(1/BD13)-1 -> 0.002490679314 | BE30: =(1+LOOKUP(BE12,Assumptions!25:25,Assumptions!27:27))^(1/BE13)-1 -> 0.002490679314 | BF30: =(1+LOOKUP(BF12,Assumptions!25:25,Assumptions!27:27))^(1/BF13)-1 -> 0.002490679314 | BG30: =(1+LOOKUP(BG12,Assumptions!25:25,Assumptions!27:27))^(1/BG13)-1 -> 0.002490679314 | BH30: =(1+LOOKUP(BH12,Assumptions!25:25,Assumptions!27:27))^(1/BH13)-1 -> 0.002490679314 | BI30: =(1+LOOKUP(BI12,Assumptions!25:25,Assumptions!27:27))^(1/BI13)-1 -> 0.002490679314 | BJ30: =(1+LOOKUP(BJ12,Assumptions!25:25,Assumptions!27:27))^(1/BJ13)-1 -> 0.002738728493 | BK30: =(1+LOOKUP(BK12,Assumptions!25:25,Assumptions!27:27))^(1/BK13)-1 -> 0.002738728493 | BL30: =(1+LOOKUP(BL12,Assumptions!25:25,Assumptions!27:27))^(1/BL13)-1 -> 0.002738728493 | BM30: =(1+LOOKUP(BM12,Assumptions!25:25,Assumptions!27:27))^(1/BM13)-1 -> 0.002738728493 | BN30: =(1+LOOKUP(BN12,Assumptions!25:25,Assumptions!27:27))^(1/BN13)-1 -> 0.002738728493 | BO30: =(1+LOOKUP(BO12,Assumptions!25:25,Assumptions!27:27))^(1/BO13)-1 -> 0.002738728493 | BP30: =(1+LOOKUP(BP12,Assumptions!25:25,Assumptions!27:27))^(1/BP13)-1 -> 0.002738728493 | BQ30: =(1+LOOKUP(BQ12,Assumptions!25:25,Assumptions!27:27))^(1/BQ13)-1 -> 0.002738728493 | BR30: =(1+LOOKUP(BR12,Assumptions!25:25,Assumptions!27:27))^(1/BR13)-1 -> 0.002738728493 | BS30: =(1+LOOKUP(BS12,Assumptions!25:25,Assumptions!27:27))^(1/BS13)-1 -> 0.002738728493 | BT30: =(1+LOOKUP(BT12,Assumptions!25:25,Assumptions!27:27))^(1/BT13)-1 -> 0.002738728493 | BU30: =(1+LOOKUP(BU12,Assumptions!25:25,Assumptions!27:27))^(1/BU13)-1 -> 0.002738728493 | BV30: =(1+LOOKUP(BV12,Assumptions!25:25,Assumptions!27:27))^(1/BV13)-1 -> 0.002738728493 | BW30: =(1+LOOKUP(BW12,Assumptions!25:25,Assumptions!27:27))^(1/BW13)-1 -> 0.002738728493 | BX30: =(1+LOOKUP(BX12,Assumptions!25:25,Assumptions!27:27))^(1/BX13)-1 -> 0.002738728493 | BY30: =(1+LOOKUP(BY12,Assumptions!25:25,Assumptions!27:27))^(1/BY13)-1 -> 0.002738728493 | BZ30: =(1+LOOKUP(BZ12,Assumptions!25:25,Assumptions!27:27))^(1/BZ13)-1 -> 0.003729088938 | CA30: =(1+LOOKUP(CA12,Assumptions!25:25,Assumptions!27:27))^(1/CA13)-1 -> 0.003729088938 | CB30: =(1+LOOKUP(CB12,Assumptions!25:25,Assumptions!27:27))^(1/CB13)-1 -> 0.003729088938 | CC30: =(1+LOOKUP(CC12,Assumptions!25:25,Assumptions!27:27))^(1/CC13)-1 -> 0.003729088938 | CD30: =(1+LOOKUP(CD12,Assumptions!25:25,Assumptions!27:27))^(1/CD13)-1 -> 0.003729088938 | CE30: =(1+LOOKUP(CE12,Assumptions!25:25,Assumptions!27:27))^(1/CE13)-1 -> 0.003729088938 | CF30: =(1+LOOKUP(CF12,Assumptions!25:25,Assumptions!27:27))^(1/CF13)-1 -> 0.003729088938 | CG30: =(1+LOOKUP(CG12,Assumptions!25:25,Assumptions!27:27))^(1/CG13)-1 -> 0.003729088938 | CH30: =(1+LOOKUP(CH12,Assumptions!25:25,Assumptions!27:27))^(1/CH13)-1 -> 0.003729088938 | CI30: =(1+LOOKUP(CI12,Assumptions!25:25,Assumptions!27:27))^(1/CI13)-1 -> 0.003729088938 | CJ30: =(1+LOOKUP(CJ12,Assumptions!25:25,Assumptions!27:27))^(1/CJ13)-1 -> 0.003729088938 | CK30: =(1+LOOKUP(CK12,Assumptions!25:25,Assumptions!27:27))^(1/CK13)-1 -> 0.003729088938 | CL30: =(1+LOOKUP(CL12,Assumptions!25:25,Assumptions!27:27))^(1/CL13)-1 -> 0.003729088938 | CM30: =(1+LOOKUP(CM12,Assumptions!25:25,Assumptions!27:27))^(1/CM13)-1 -> 0.003729088938 | CN30: =(1+LOOKUP(CN12,Assumptions!25:25,Assumptions!27:27))^(1/CN13)-1 -> 0.003729088938 | CO30: =(1+LOOKUP(CO12,Assumptions!25:25,Assumptions!27:27))^(1/CO13)-1 -> 0.003729088938 | CP30: =(1+LOOKUP(CP12,Assumptions!25:25,Assumptions!27:27))^(1/CP13)-1 -> 0.004962931573 | CQ30: =(1+LOOKUP(CQ12,Assumptions!25:25,Assumptions!27:27))^(1/CQ13)-1 -> 0.004962931573 | CR30: =(1+LOOKUP(CR12,Assumptions!25:25,Assumptions!27:27))^(1/CR13)-1 -> 0.004962931573 | CS30: =(1+LOOKUP(CS12,Assumptions!25:25,Assumptions!27:27))^(1/CS13)-1 -> 0.004962931573 | CT30: =(1+LOOKUP(CT12,Assumptions!25:25,Assumptions!27:27))^(1/CT13)-1 -> 0.004962931573 | CU30: =(1+LOOKUP(CU12,Assumptions!25:25,Assumptions!27:27))^(1/CU13)-1 -> 0.004962931573 | CV30: =(1+LOOKUP(CV12,Assumptions!25:25,Assumptions!27:27))^(1/CV13)-1 -> 0.004962931573 | CW30: =(1+LOOKUP(CW12,Assumptions!25:25,Assumptions!27:27))^(1/CW13)-1 -> 0.004962931573 | CX30: =(1+LOOKUP(CX12,Assumptions!25:25,Assumptions!27:27))^(1/CX13)-1 -> 0.004962931573 | CY30: =(1+LOOKUP(CY12,Assumptions!25:25,Assumptions!27:27))^(1/CY13)-1 -> 0.004962931573 | CZ30: =(1+LOOKUP(CZ12,Assumptions!25:25,Assumptions!27:27))^(1/CZ13)-1 -> 0.004962931573 | DA30: =(1+LOOKUP(DA12,Assumptions!25:25,Assumptions!27:27))^(1/DA13)-1 -> 0.004962931573 | DB30: =(1+LOOKUP(DB12,Assumptions!25:25,Assumptions!27:27))^(1/DB13)-1 -> 0.004962931573 | DC30: =(1+LOOKUP(DC12,Assumptions!25:25,Assumptions!27:27))^(1/DC13)-1 -> 0.004962931573 | DD30: =(1+LOOKUP(DD12,Assumptions!25:25,Assumptions!27:27))^(1/DD13)-1 -> 0.004962931573 | DE30: =(1+LOOKUP(DE12,Assumptions!25:25,Assumptions!27:27))^(1/DE13)-1 -> 0.004962931573 | DF30: =(1+LOOKUP(DF12,Assumptions!25:25,Assumptions!27:27))^(1/DF13)-1 -> 0.005455198648 | DG30: =(1+LOOKUP(DG12,Assumptions!25:25,Assumptions!27:27))^(1/DG13)-1 -> 0.005455198648 | DH30: =(1+LOOKUP(DH12,Assumptions!25:25,Assumptions!27:27))^(1/DH13)-1 -> 0.005455198648 | DI30: =(1+LOOKUP(DI12,Assumptions!25:25,Assumptions!27:27))^(1/DI13)-1 -> 0.005455198648 | DJ30: =(1+LOOKUP(DJ12,Assumptions!25:25,Assumptions!27:27))^(1/DJ13)-1 -> 0.005455198648 | DK30: =(1+LOOKUP(DK12,Assumptions!25:25,Assumptions!27:27))^(1/DK13)-1 -> 0.005455198648 | DL30: =(1+LOOKUP(DL12,Assumptions!25:25,Assumptions!27:27))^(1/DL13)-1 -> 0.005455198648 | DM30: =(1+LOOKUP(DM12,Assumptions!25:25,Assumptions!27:27))^(1/DM13)-1 -> 0.005455198648 | DN30: =(1+LOOKUP(DN12,Assumptions!25:25,Assumptions!27:27))^(1/DN13)-1 -> 0.005455198648 | DO30: =(1+LOOKUP(DO12,Assumptions!25:25,Assumptions!27:27))^(1/DO13)-1 -> 0.005455198648 | DP30: =(1+LOOKUP(DP12,Assumptions!25:25,Assumptions!27:27))^(1/DP13)-1 -> 0.005455198648 | DQ30: =(1+LOOKUP(DQ12,Assumptions!25:25,Assumptions!27:27))^(1/DQ13)-1 -> 0.005455198648 | DR30: =(1+LOOKUP(DR12,Assumptions!25:25,Assumptions!27:27))^(1/DR13)-1 -> 0.005455198648 | DS30: =(1+LOOKUP(DS12,Assumptions!25:25,Assumptions!27:27))^(1/DS13)-1 -> 0.005455198648 | DT30: =(1+LOOKUP(DT12,Assumptions!25:25,Assumptions!27:27))^(1/DT13)-1 -> 0.005455198648 | DU30: =(1+LOOKUP(DU12,Assumptions!25:25,Assumptions!27:27))^(1/DU13)-1 -> 0.005455198648 | DV30: =(1+LOOKUP(DV12,Assumptions!25:25,Assumptions!27:27))^(1/DV13)-1 -> 0.005455198648 | DW30: =(1+LOOKUP(DW12,Assumptions!25:25,Assumptions!27:27))^(1/DW13)-1 -> 0.005455198648 | DX30: =(1+LOOKUP(DX12,Assumptions!25:25,Assumptions!27:27))^(1/DX13)-1 -> 0.005455198648 | DY30: =(1+LOOKUP(DY12,Assumptions!25:25,Assumptions!27:27))^(1/DY13)-1 -> 0.005455198648 | DZ30: =(1+LOOKUP(DZ12,Assumptions!25:25,Assumptions!27:27))^(1/DZ13)-1 -> 0.005455198648 | EA30: =(1+LOOKUP(EA12,Assumptions!25:25,Assumptions!27:27))^(1/EA13)-1 -> 0.005455198648 | EB30: =(1+LOOKUP(EB12,Assumptions!25:25,Assumptions!27:27))^(1/EB13)-1 -> 0.005455198648 | EC30: =(1+LOOKUP(EC12,Assumptions!25:25,Assumptions!27:27))^(1/EC13)-1 -> 0.005455198648 | ED30: =(1+LOOKUP(ED12,Assumptions!25:25,Assumptions!27:27))^(1/ED13)-1 -> 0.005455198648 | EE30: =(1+LOOKUP(EE12,Assumptions!25:25,Assumptions!27:27))^(1/EE13)-1 -> 0.005455198648 | EF30: =(1+LOOKUP(EF12,Assumptions!25:25,Assumptions!27:27))^(1/EF13)-1 -> 0.005455198648 | EG30: =(1+LOOKUP(EG12,Assumptions!25:25,Assumptions!27:27))^(1/EG13)-1 -> 0.005455198648 | EH30: =(1+LOOKUP(EH12,Assumptions!25:25,Assumptions!27:27))^(1/EH13)-1 -> 0.005455198648 | EI30: =(1+LOOKUP(EI12,Assumptions!25:25,Assumptions!27:27))^(1/EI13)-1 -> 0.005455198648 | EJ30: =(1+LOOKUP(EJ12,Assumptions!25:25,Assumptions!27:27))^(1/EJ13)-1 -> 0.005455198648 | EK30: =(1+LOOKUP(EK12,Assumptions!25:25,Assumptions!27:27))^(1/EK13)-1 -> 0.005455198648 | EL30: =(1+LOOKUP(EL12,Assumptions!25:25,Assumptions!27:27))^(1/EL13)-1 -> 0.005455198648 | EM30: =(1+LOOKUP(EM12,Assumptions!25:25,Assumptions!27:27))^(1/EM13)-1 -> 0.005455198648 | EN30: =(1+LOOKUP(EN12,Assumptions!25:25,Assumptions!27:27))^(1/EN13)-1 -> 0.005455198648 | EO30: =(1+LOOKUP(EO12,Assumptions!25:25,Assumptions!27:27))^(1/EO13)-1 -> 0.005455198648 | EP30: =(1+LOOKUP(EP12,Assumptions!25:25,Assumptions!27:27))^(1/EP13)-1 -> 0.005455198648 | EQ30: =(1+LOOKUP(EQ12,Assumptions!25:25,Assumptions!27:27))^(1/EQ13)-1 -> 0.005455198648 | ER30: =(1+LOOKUP(ER12,Assumptions!25:25,Assumptions!27:27))^(1/ER13)-1 -> 0.005455198648 | ES30: =(1+LOOKUP(ES12,Assumptions!25:25,Assumptions!27:27))^(1/ES13)-1 -> 0.005455198648 | ET30: =(1+LOOKUP(ET12,Assumptions!25:25,Assumptions!27:27))^(1/ET13)-1 -> 0.005455198648 | EU30: =(1+LOOKUP(EU12,Assumptions!25:25,Assumptions!27:27))^(1/EU13)-1 -> 0.005455198648 | EV30: =(1+LOOKUP(EV12,Assumptions!25:25,Assumptions!27:27))^(1/EV13)-1 -> 0.005455198648 | EW30: =(1+LOOKUP(EW12,Assumptions!25:25,Assumptions!27:27))^(1/EW13)-1 -> 0.005455198648 | EX30: =(1+LOOKUP(EX12,Assumptions!25:25,Assumptions!27:27))^(1/EX13)-1 -> 0.005455198648 | EY30: =(1+LOOKUP(EY12,Assumptions!25:25,Assumptions!27:27))^(1/EY13)-1 -> 0.022 | EZ30: =(1+LOOKUP(EZ12,Assumptions!25:25,Assumptions!27:27))^(1/EZ13)-1 -> 0.022 | FA30: =(1+LOOKUP(FA12,Assumptions!25:25,Assumptions!27:27))^(1/FA13)-1 -> 0.022 | FB30: =(1+LOOKUP(FB12,Assumptions!25:25,Assumptions!27:27))^(1/FB13)-1 -> 0.022 | FC30: =(1+LOOKUP(FC12,Assumptions!25:25,Assumptions!27:27))^(1/FC13)-1 -> 0.022 | FD30: =(1+LOOKUP(FD12,Assumptions!25:25,Assumptions!27:27))^(1/FD13)-1 -> 0.022 | FE30: =(1+LOOKUP(FE12,Assumptions!25:25,Assumptions!27:27))^(1/FE13)-1 -> 0.022 | FF30: =(1+LOOKUP(FF12,Assumptions!25:25,Assumptions!27:27))^(1/FF13)-1 -> 0.022 | FG30: =(1+LOOKUP(FG12,Assumptions!25:25,Assumptions!27:27))^(1/FG13)-1 -> 0.022 | FH30: =(1+LOOKUP(FH12,Assumptions!25:25,Assumptions!27:27))^(1/FH13)-1 -> 0.022 | FI30: =(1+LOOKUP(FI12,Assumptions!25:25,Assumptions!27:27))^(1/FI13)-1 -> 0.022 | FJ30: =(1+LOOKUP(FJ12,Assumptions!25:25,Assumptions!27:27))^(1/FJ13)-1 -> 0.022 | FK30: =(1+LOOKUP(FK12,Assumptions!25:25,Assumptions!27:27))^(1/FK13)-1 -> 0.022 | FL30: =(1+LOOKUP(FL12,Assumptions!25:25,Assumptions!27:27))^(1/FL13)-1 -> 0.022 | FM30: =(1+LOOKUP(FM12,Assumptions!25:25,Assumptions!27:27))^(1/FM13)-1 -> 0.022 | FN30: =(1+LOOKUP(FN12,Assumptions!25:25,Assumptions!27:27))^(1/FN13)-1 -> 0.022 | FO30: =(1+LOOKUP(FO12,Assumptions!25:25,Assumptions!27:27))^(1/FO13)-1 -> 0.022 | FP30: =(1+LOOKUP(FP12,Assumptions!25:25,Assumptions!27:27))^(1/FP13)-1 -> 0.022 | FQ30: =(1+LOOKUP(FQ12,Assumptions!25:25,Assumptions!27:27))^(1/FQ13)-1 -> 0.022 | FR30: =(1+LOOKUP(FR12,Assumptions!25:25,Assumptions!27:27))^(1/FR13)-1 -> 0.022 | FS30: =(1+LOOKUP(FS12,Assumptions!25:25,Assumptions!27:27))^(1/FS13)-1 -> 0.022 | FT30: =(1+LOOKUP(FT12,Assumptions!25:25,Assumptions!27:27))^(1/FT13)-1 -> 0.022 | FU30: =(1+LOOKUP(FU12,Assumptions!25:25,Assumptions!27:27))^(1/FU13)-1 -> 0.022 | FV30: =(1+LOOKUP(FV12,Assumptions!25:25,Assumptions!27:27))^(1/FV13)-1 -> 0.022 | FW30: =(1+LOOKUP(FW12,Assumptions!25:25,Assumptions!27:27))^(1/FW13)-1 -> 0.022
C31: Inflation Index Revenues | E31: Index | K31: 1 | L31: =K31*(1+L29) -> 1.005 | M31: =L31*(1+M29) -> 1.010025 | N31: 1.015075125 | O31: 1.015497107 | P31: 1.015919264 | Q31: 1.016341597 | R31: 1.016764105 | S31: 1.017186789 | T31: 1.017609649 | U31: 1.018032684 | V31: 1.018455895 | W31: 1.018879283 | X31: 1.019302846 | Y31: 1.019726585 | Z31: 1.020150501 | AA31: 1.020996754 | AB31: 1.02184371 | AC31: 1.022691368 | AD31: 1.02353973 | AE31: 1.024388795 | AF31: 1.025238565 | AG31: 1.026089039 | AH31: 1.026940219 | AI31: 1.027792105 | AJ31: 1.028644698 | AK31: 1.029497998 | AL31: 1.030352006 | AM31: 1.031206722 | AN31: 1.032062147 | AO31: 1.032918282 | AP31: 1.033775127 | AQ31: 1.034632683 | AR31: 1.03549095 | AS31: 1.036349929 | AT31: 1.037209621 | AU31: 1.038070026 | AV31: 1.038931145 | AW31: 1.039792978 | AX31: 1.040655526 | AY31: 1.041518789 | AZ31: 1.042382769 | BA31: 1.043247465 | BB31: 1.044112878 | BC31: 1.046713429 | BD31: 1.049320456 | BE31: 1.051933977 | BF31: 1.054554007 | BG31: 1.057180563 | BH31: 1.059813661 | BI31: 1.062453317 | BJ31: 1.065363088 | BK31: 1.068280828 | BL31: 1.071206559 | BM31: 1.074140303 | BN31: 1.077082082 | BO31: 1.080031917 | BP31: 1.082989831 | BQ31: 1.085955847 | BR31: 1.088929985 | BS31: 1.091912268 | BT31: 1.09490272 | BU31: 1.097901361 | BV31: 1.100908215 | BW31: 1.103923303 | BX31: 1.10694665 | BY31: =BX31*(1+BY29) -> 1.109978276 | BZ31: 1.114117484 | CA31: 1.118272127 | CB31: 1.122442263 | CC31: 1.12662795 | CD31: 1.130829246 | CE31: 1.135046209 | CF31: 1.139278897 | CG31: 1.143527369 | CH31: 1.147791685 | CI31: 1.152071902 | CJ31: 1.15636808 | CK31: 1.16068028 | CL31: 1.16500856 | CM31: 1.16935298 | CN31: 1.173713602 | CO31: 1.178090484 | CP31: 1.183356478 | CQ31: 1.18864601 | CR31: 1.193959187 | CS31: 1.199296113 | CT31: 1.204656894 | CU31: 1.210041639 | CV31: 1.215450452 | CW31: 1.220883443 | CX31: 1.226340719 | CY31: 1.231822388 | CZ31: 1.23732856 | DA31: 1.242859345 | DB31: 1.248414851 | DC31: 1.253995191 | DD31: 1.259600474 | DE31: 1.265230813 | DF31: 1.270886319 | DG31: 1.276567104 | DH31: =DG31*(1+DH29) -> 1.282273283 | DI31: 1.288004968 | DJ31: 1.293762273 | DK31: 1.299545312 | DL31: 1.305354202 | DM31: 1.311189057 | DN31: 1.317049993 | DO31: 1.322937128 | DP31: 1.328850578 | DQ31: 1.33479046 | DR31: 1.340756893 | DS31: 1.346749996 | DT31: 1.352769888 | DU31: 1.358816688 | DV31: 1.364890517 | DW31: 1.370991496 | DX31: 1.377119746 | DY31: 1.383275389 | DZ31: 1.389458547 | EA31: 1.395669343 | EB31: 1.401907901 | EC31: 1.408174346 | ED31: 1.414468801 | EE31: 1.420791391 | EF31: 1.427142244 | EG31: 1.433521484 | EH31: 1.439929239 | EI31: 1.446365636 | EJ31: 1.452830804 | EK31: 1.459324871 | EL31: 1.465847965 | EM31: 1.472400218 | EN31: 1.478981758 | EO31: 1.485592718 | EP31: 1.492233229 | EQ31: 1.498903422 | ER31: 1.50560343 | ES31: 1.512333387 | ET31: 1.519093427 | EU31: 1.525883683 | EV31: 1.532704292 | EW31: 1.539555388 | EX31: 1.546437108 | EY31: 1.574272976 | EZ31: 1.60260989 | FA31: 1.631456868 | FB31: 1.660823092 | FC31: 1.690717907 | FD31: 1.72115083 | FE31: 1.752131545 | FF31: 1.783669912 | FG31: 1.815775971 | FH31: 1.848459938 | FI31: 1.881732217 | FJ31: 1.915603397 | FK31: 1.950084258 | FL31: 1.985185775 | FM31: 2.020919119 | FN31: 2.057295663 | FO31: 2.094326985 | FP31: 2.132024871 | FQ31: 2.170401318 | FR31: 2.209468542 | FS31: 2.249238976 | FT31: =FS31*(1+FT29) -> 2.289725277 | FU31: 2.330940332 | FV31: 2.372897258 | FW31: 2.415609409
C32: Inflation Index Costs | E32: Index | K32: 1 | L32: =K32*(1+L30) -> 1.005 | M32: =L32*(1+M30) -> 1.010025 | N32: 1.015075125 | O32: 1.015497107 | P32: 1.015919264 | Q32: 1.016341597 | R32: 1.016764105 | S32: 1.017186789 | T32: 1.017609649 | U32: 1.018032684 | V32: 1.018455895 | W32: 1.018879283 | X32: 1.019302846 | Y32: 1.019726585 | Z32: 1.020150501 | AA32: 1.020996754 | AB32: 1.02184371 | AC32: 1.022691368 | AD32: 1.02353973 | AE32: 1.024388795 | AF32: 1.025238565 | AG32: 1.026089039 | AH32: 1.026940219 | AI32: 1.027792105 | AJ32: 1.028644698 | AK32: 1.029497998 | AL32: 1.030352006 | AM32: 1.031206722 | AN32: 1.032062147 | AO32: 1.032918282 | AP32: 1.033775127 | AQ32: 1.034632683 | AR32: 1.03549095 | AS32: 1.036349929 | AT32: 1.037209621 | AU32: 1.038070026 | AV32: 1.038931145 | AW32: 1.039792978 | AX32: 1.040655526 | AY32: 1.041518789 | AZ32: 1.042382769 | BA32: 1.043247465 | BB32: 1.044112878 | BC32: 1.046713429 | BD32: 1.049320456 | BE32: 1.051933977 | BF32: 1.054554007 | BG32: 1.057180563 | BH32: 1.059813661 | BI32: 1.062453317 | BJ32: 1.065363088 | BK32: 1.068280828 | BL32: 1.071206559 | BM32: 1.074140303 | BN32: 1.077082082 | BO32: 1.080031917 | BP32: 1.082989831 | BQ32: 1.085955847 | BR32: 1.088929985 | BS32: 1.091912268 | BT32: 1.09490272 | BU32: 1.097901361 | BV32: 1.100908215 | BW32: 1.103923303 | BX32: 1.10694665 | BY32: =BX32*(1+BY30) -> 1.109978276 | BZ32: 1.114117484 | CA32: 1.118272127 | CB32: 1.122442263 | CC32: 1.12662795 | CD32: 1.130829246 | CE32: 1.135046209 | CF32: 1.139278897 | CG32: 1.143527369 | CH32: 1.147791685 | CI32: 1.152071902 | CJ32: 1.15636808 | CK32: 1.16068028 | CL32: 1.16500856 | CM32: 1.16935298 | CN32: 1.173713602 | CO32: 1.178090484 | CP32: 1.183937266 | CQ32: 1.189813066 | CR32: 1.195718027 | CS32: 1.201652294 | CT32: 1.207616012 | CU32: 1.213609327 | CV32: 1.219632387 | CW32: 1.22568534 | CX32: 1.231768332 | CY32: 1.237881514 | CZ32: 1.244025035 | DA32: 1.250199046 | DB32: 1.256403699 | DC32: 1.262639144 | DD32: 1.268905536 | DE32: 1.275203027 | DF32: 1.282159513 | DG32: 1.289153948 | DH32: =DG32*(1+DH30) -> 1.296186539 | DI32: 1.303257494 | DJ32: 1.310367022 | DK32: 1.317515335 | DL32: 1.324702643 | DM32: 1.331929159 | DN32: 1.339195097 | DO32: 1.346500672 | DP32: 1.353846101 | DQ32: 1.3612316 | DR32: 1.368657389 | DS32: 1.376123687 | DT32: 1.383630715 | DU32: 1.391178695 | DV32: 1.398767852 | DW32: 1.406398408 | DX32: 1.414070591 | DY32: 1.421784627 | DZ32: 1.429540744 | EA32: 1.437339173 | EB32: 1.445180144 | EC32: 1.453063889 | ED32: 1.460990641 | EE32: 1.468960635 | EF32: 1.476974107 | EG32: 1.485031294 | EH32: 1.493132435 | EI32: 1.501277769 | EJ32: 1.509467537 | EK32: 1.517701983 | EL32: 1.525981348 | EM32: 1.53430588 | EN32: 1.542675823 | EO32: 1.551091426 | EP32: 1.559552938 | EQ32: 1.568060609 | ER32: 1.576614691 | ES32: 1.585215438 | ET32: 1.593863103 | EU32: 1.602557942 | EV32: 1.611300214 | EW32: 1.620090177 | EX32: 1.628928091 | EY32: 1.664764509 | EZ32: 1.701389328 | FA32: 1.738819893 | FB32: 1.777073931 | FC32: 1.816169557 | FD32: 1.856125288 | FE32: 1.896960044 | FF32: 1.938693165 | FG32: 1.981344415 | FH32: 2.024933992 | FI32: 2.06948254 | FJ32: 2.115011155 | FK32: 2.161541401 | FL32: 2.209095312 | FM32: 2.257695409 | FN32: 2.307364708 | FO32: 2.358126731 | FP32: 2.410005519 | FQ32: 2.463025641 | FR32: 2.517212205 | FS32: 2.572590873 | FT32: =FS32*(1+FT30) -> 2.629187872 | FU32: 2.687030006 | FV32: 2.746144666 | FW32: 2.806559848
C34: Room Rate per Day | E34: USD/Day | H34: =Assumptions!G31 -> 180 | L34: =$H$34 -> 180 | M34: =$H$34 -> 180 | N34: 180 | O34: 180 | P34: 180 | Q34: 180 | R34: 180 | S34: 180 | T34: 180 | U34: 180 | V34: 180 | W34: 180 | X34: 180 | Y34: 180 | Z34: 180 | AA34: 180 | AB34: 180 | AC34: 180 | AD34: 180 | AE34: 180 | AF34: 180 | AG34: 180 | AH34: 180 | AI34: 180 | AJ34: 180 | AK34: 180 | AL34: 180 | AM34: 180 | AN34: 180 | AO34: 180 | AP34: 180 | AQ34: 180 | AR34: 180 | AS34: 180 | AT34: 180 | AU34: 180 | AV34: 180 | AW34: 180 | AX34: 180 | AY34: 180 | AZ34: 180 | BA34: 180 | BB34: 180 | BC34: 180 | BD34: 180 | BE34: 180 | BF34: 180 | BG34: 180 | BH34: 180 | BI34: 180 | BJ34: 180 | BK34: 180 | BL34: 180 | BM34: 180 | BN34: 180 | BO34: 180 | BP34: 180 | BQ34: 180 | BR34: 180 | BS34: 180 | BT34: 180 | BU34: 180 | BV34: 180 | BW34: 180 | BX34: 180 | BY34: =$H$34 -> 180 | BZ34: 180 | CA34: 180 | CB34: 180 | CC34: 180 | CD34: 180 | CE34: 180 | CF34: 180 | CG34: 180 | CH34: 180 | CI34: 180 | CJ34: 180 | CK34: 180 | CL34: 180 | CM34: 180 | CN34: 180 | CO34: 180 | CP34: 180 | CQ34: 180 | CR34: 180 | CS34: 180 | CT34: 180 | CU34: 180 | CV34: 180 | CW34: 180 | CX34: 180 | CY34: 180 | CZ34: 180 | DA34: 180 | DB34: 180 | DC34: 180 | DD34: 180 | DE34: 180 | DF34: 180 | DG34: 180 | DH34: 180 | DI34: 180 | DJ34: 180 | DK34: 180 | DL34: 180 | DM34: 180 | DN34: 180 | DO34: 180 | DP34: 180 | DQ34: 180 | DR34: 180 | DS34: 180 | DT34: 180 | DU34: 180 | DV34: 180 | DW34: 180 | DX34: 180 | DY34: 180 | DZ34: 180 | EA34: 180 | EB34: 180 | EC34: 180 | ED34: 180 | EE34: 180 | EF34: 180 | EG34: 180 | EH34: 180 | EI34: 180 | EJ34: 180 | EK34: =$H$34 -> 180 | EL34: 180 | EM34: 180 | EN34: 180 | EO34: 180 | EP34: 180 | EQ34: 180 | ER34: 180 | ES34: 180 | ET34: 180 | EU34: 180 | EV34: 180 | EW34: 180 | EX34: 180 | EY34: 180 | EZ34: 180 | FA34: 180 | FB34: 180 | FC34: 180 | FD34: 180 | FE34: 180 | FF34: 180 | FG34: 180 | FH34: 180 | FI34: 180 | FJ34: 180 | FK34: 180 | FL34: 180 | FM34: 180 | FN34: 180 | FO34: 180 | FP34: 180 | FQ34: 180 | FR34: 180 | FS34: 180 | FT34: 180 | FU34: 180 | FV34: 180 | FW34: 180
C35: Inflated Room Rate per Day | E35: USD/Day | L35: =L34*L31 -> 180.9 | M35: =M34*M31 -> 181.8045 | N35: 182.7135225 | O35: 182.7894792 | P35: 182.8654675 | Q35: 182.9414874 | R35: 183.0175389 | S35: 183.093622 | T35: 183.1697367 | U35: 183.2458831 | V35: 183.3220612 | W35: 183.3982709 | X35: 183.4745122 | Y35: 183.5507853 | Z35: 183.6270901 | AA35: 183.7794158 | AB35: 183.9318678 | AC35: 184.0844463 | AD35: 184.2371514 | AE35: 184.3899831 | AF35: 184.5429416 | AG35: 184.696027 | AH35: 184.8492394 | AI35: 185.0025789 | AJ35: 185.1560456 | AK35: 185.3096396 | AL35: 185.463361 | AM35: 185.6172099 | AN35: 185.7711865 | AO35: 185.9252908 | AP35: 186.0795229 | AQ35: 186.2338829 | AR35: 186.388371 | AS35: 186.5429873 | AT35: 186.6977318 | AU35: 186.8526047 | AV35: 187.0076061 | AW35: 187.162736 | AX35: 187.3179946 | AY35: 187.473382 | AZ35: 187.6288984 | BA35: 187.7845437 | BB35: 187.9403181 | BC35: 188.4084172 | BD35: 188.8776821 | BE35: 189.3481159 | BF35: 189.8197213 | BG35: 190.2925013 | BH35: 190.7664589 | BI35: 191.241597 | BJ35: 191.7653558 | BK35: 192.2905491 | BL35: 192.8171807 | BM35: 193.3452546 | BN35: 193.8747747 | BO35: 194.4057451 | BP35: 194.9381697 | BQ35: 195.4720524 | BR35: 196.0073973 | BS35: 196.5442083 | BT35: 197.0824895 | BU35: 197.622245 | BV35: 198.1634786 | BW35: 198.7061946 | BX35: 199.2503969 | BY35: =BY34*BY31 -> 199.7960897 | BZ35: 200.541147 | CA35: 201.2889828 | CB35: 202.0396073 | CC35: 202.793031 | CD35: 203.5492643 | CE35: 204.3083176 | CF35: 205.0702014 | CG35: 205.8349265 | CH35: 206.6025032 | CI35: 207.3729423 | CJ35: 208.1462545 | CK35: 208.9224504 | CL35: 209.7015408 | CM35: 210.4835365 | CN35: 211.2684483 | CO35: 212.0562871 | CP35: 213.004166 | CQ35: 213.9562819 | CR35: 214.9126536 | CS35: 215.8733003 | CT35: 216.838241 | CU35: 217.8074949 | CV35: 218.7810814 | CW35: 219.7590197 | CX35: 220.7413293 | CY35: 221.7280298 | CZ35: 222.7191408 | DA35: 223.714682 | DB35: 224.7146733 | DC35: 225.7191344 | DD35: 226.7280854 | DE35: 227.7415463 | DF35: 228.7595374 | DG35: 229.7820788 | DH35: =DH34*DH31 -> 230.8091909 | DI35: =DI34*DI31 -> 231.8408942 | DJ35: =DJ34*DJ31 -> 232.8772091 | DK35: =DK34*DK31 -> 233.9181562 | DL35: =DL34*DL31 -> 234.9637563 | DM35: =DM34*DM31 -> 236.0140303 | DN35: =DN34*DN31 -> 237.0689988 | DO35: =DO34*DO31 -> 238.128683 | DP35: =DP34*DP31 -> 239.193104 | DQ35: =DQ34*DQ31 -> 240.2622828 | DR35: =DR34*DR31 -> 241.3362408 | DS35: =DS34*DS31 -> 242.4149993 | DT35: =DT34*DT31 -> 243.4985798 | DU35: =DU34*DU31 -> 244.5870039 | DV35: =DV34*DV31 -> 245.6802931 | DW35: =DW34*DW31 -> 246.7784693 | DX35: =DX34*DX31 -> 247.8815543 | DY35: =DY34*DY31 -> 248.98957 | DZ35: =DZ34*DZ31 -> 250.1025384 | EA35: =EA34*EA31 -> 251.2204818 | EB35: =EB34*EB31 -> 252.3434222 | EC35: =EC34*EC31 -> 253.4713822 | ED35: =ED34*ED31 -> 254.6043841 | EE35: =EE34*EE31 -> 255.7424504 | EF35: =EF34*EF31 -> 256.8856038 | EG35: =EG34*EG31 -> 258.0338671 | EH35: =EH34*EH31 -> 259.187263 | EI35: =EI34*EI31 -> 260.3458145 | EJ35: =EJ34*EJ31 -> 261.5095447 | EK35: =EK34*EK31 -> 262.6784767 | EL35: =EL34*EL31 -> 263.8526337 | EM35: =EM34*EM31 -> 265.0320392 | EN35: =EN34*EN31 -> 266.2167165 | EO35: =EO34*EO31 -> 267.4066893 | EP35: =EP34*EP31 -> 268.6019812 | EQ35: =EQ34*EQ31 -> 269.8026159 | ER35: =ER34*ER31 -> 271.0086174 | ES35: =ES34*ES31 -> 272.2200097 | ET35: =ET34*ET31 -> 273.4368168 | EU35: =EU34*EU31 -> 274.659063 | EV35: =EV34*EV31 -> 275.8867725 | EW35: =EW34*EW31 -> 277.1199699 | EX35: =EX34*EX31 -> 278.3586795 | EY35: =EY34*EY31 -> 283.3691357 | EZ35: =EZ34*EZ31 -> 288.4697802 | FA35: =FA34*FA31 -> 293.6622362 | FB35: =FB34*FB31 -> 298.9481565 | FC35: =FC34*FC31 -> 304.3292233 | FD35: =FD34*FD31 -> 309.8071493 | FE35: =FE34*FE31 -> 315.383678 | FF35: =FF34*FF31 -> 321.0605842 | FG35: =FG34*FG31 -> 326.8396747 | FH35: =FH34*FH31 -> 332.7227889 | FI35: =FI34*FI31 -> 338.7117991 | FJ35: =FJ34*FJ31 -> 344.8086115 | FK35: =FK34*FK31 -> 351.0151665 | FL35: =FL34*FL31 -> 357.3334395 | FM35: =FM34*FM31 -> 363.7654414 | FN35: =FN34*FN31 -> 370.3132193 | FO35: =FO34*FO31 -> 376.9788573 | FP35: =FP34*FP31 -> 383.7644767 | FQ35: =FQ34*FQ31 -> 390.6722373 | FR35: =FR34*FR31 -> 397.7043375 | FS35: =FS34*FS31 -> 404.8630156 | FT35: =FT34*FT31 -> 412.1505499 | FU35: =FU34*FU31 -> 419.5692598 | FV35: =FV34*FV31 -> 427.1215065 | FW35: =FW34*FW31 -> 434.8096936
C37: Utilisation Rate | E37: Pct | L37: =LOOKUP(L8,Assumptions!33:33,Assumptions!34:34) ->  | M37: =LOOKUP(M8,Assumptions!33:33,Assumptions!34:34) ->  | N37: =LOOKUP(N8,Assumptions!33:33,Assumptions!34:34) ->  | O37: =LOOKUP(O8,Assumptions!33:33,Assumptions!34:34) ->  | P37: =LOOKUP(P8,Assumptions!33:33,Assumptions!34:34) ->  | Q37: =LOOKUP(Q8,Assumptions!33:33,Assumptions!34:34) ->  | R37: =LOOKUP(R8,Assumptions!33:33,Assumptions!34:34) ->  | S37: =LOOKUP(S8,Assumptions!33:33,Assumptions!34:34) ->  | T37: =LOOKUP(T8,Assumptions!33:33,Assumptions!34:34) ->  | U37: =LOOKUP(U8,Assumptions!33:33,Assumptions!34:34) ->  | V37: =LOOKUP(V8,Assumptions!33:33,Assumptions!34:34) ->  | W37: =LOOKUP(W8,Assumptions!33:33,Assumptions!34:34) ->  | X37: =LOOKUP(X8,Assumptions!33:33,Assumptions!34:34) ->  | Y37: =LOOKUP(Y8,Assumptions!33:33,Assumptions!34:34) ->  | Z37: =LOOKUP(Z8,Assumptions!33:33,Assumptions!34:34) ->  | AA37: =LOOKUP(AA8,Assumptions!33:33,Assumptions!34:34) ->  | AB37: =LOOKUP(AB8,Assumptions!33:33,Assumptions!34:34) ->  | AC37: =LOOKUP(AC8,Assumptions!33:33,Assumptions!34:34) ->  | AD37: =LOOKUP(AD8,Assumptions!33:33,Assumptions!34:34) ->  | AE37: =LOOKUP(AE8,Assumptions!33:33,Assumptions!34:34) ->  | AF37: =LOOKUP(AF8,Assumptions!33:33,Assumptions!34:34) ->  | AG37: =LOOKUP(AG8,Assumptions!33:33,Assumptions!34:34) ->  | AH37: =LOOKUP(AH8,Assumptions!33:33,Assumptions!34:34) ->  | AI37: =LOOKUP(AI8,Assumptions!33:33,Assumptions!34:34) ->  | AJ37: =LOOKUP(AJ8,Assumptions!33:33,Assumptions!34:34) ->  | AK37: =LOOKUP(AK8,Assumptions!33:33,Assumptions!34:34) ->  | AL37: =LOOKUP(AL8,Assumptions!33:33,Assumptions!34:34) ->  | AM37: =LOOKUP(AM8,Assumptions!33:33,Assumptions!34:34) ->  | AN37: =LOOKUP(AN8,Assumptions!33:33,Assumptions!34:34) ->  | AO37: =LOOKUP(AO8,Assumptions!33:33,Assumptions!34:34) ->  | AP37: =LOOKUP(AP8,Assumptions!33:33,Assumptions!34:34) ->  | AQ37: =LOOKUP(AQ8,Assumptions!33:33,Assumptions!34:34) ->  | AR37: =LOOKUP(AR8,Assumptions!33:33,Assumptions!34:34) ->  | AS37: =LOOKUP(AS8,Assumptions!33:33,Assumptions!34:34) ->  | AT37: =LOOKUP(AT8,Assumptions!33:33,Assumptions!34:34) ->  | AU37: =LOOKUP(AU8,Assumptions!33:33,Assumptions!34:34) ->  | AV37: =LOOKUP(AV8,Assumptions!33:33,Assumptions!34:34) ->  | AW37: =LOOKUP(AW8,Assumptions!33:33,Assumptions!34:34) ->  | AX37: =LOOKUP(AX8,Assumptions!33:33,Assumptions!34:34) ->  | AY37: =LOOKUP(AY8,Assumptions!33:33,Assumptions!34:34) ->  | AZ37: =LOOKUP(AZ8,Assumptions!33:33,Assumptions!34:34) ->  | BA37: =LOOKUP(BA8,Assumptions!33:33,Assumptions!34:34) ->  | BB37: =LOOKUP(BB8,Assumptions!33:33,Assumptions!34:34) ->  | BC37: =LOOKUP(BC8,Assumptions!33:33,Assumptions!34:34) -> 0.6 | BD37: =LOOKUP(BD8,Assumptions!33:33,Assumptions!34:34) -> 0.6 | BE37: =LOOKUP(BE8,Assumptions!33:33,Assumptions!34:34) -> 0.6 | BF37: =LOOKUP(BF8,Assumptions!33:33,Assumptions!34:34) -> 0.6 | BG37: =LOOKUP(BG8,Assumptions!33:33,Assumptions!34:34) -> 0.65 | BH37: =LOOKUP(BH8,Assumptions!33:33,Assumptions!34:34) -> 0.65 | BI37: =LOOKUP(BI8,Assumptions!33:33,Assumptions!34:34) -> 0.65 | BJ37: =LOOKUP(BJ8,Assumptions!33:33,Assumptions!34:34) -> 0.65 | BK37: =LOOKUP(BK8,Assumptions!33:33,Assumptions!34:34) -> 0.7 | BL37: =LOOKUP(BL8,Assumptions!33:33,Assumptions!34:34) -> 0.7 | BM37: =LOOKUP(BM8,Assumptions!33:33,Assumptions!34:34) -> 0.7 | BN37: =LOOKUP(BN8,Assumptions!33:33,Assumptions!34:34) -> 0.7 | BO37: =LOOKUP(BO8,Assumptions!33:33,Assumptions!34:34) -> 0.75 | BP37: =LOOKUP(BP8,Assumptions!33:33,Assumptions!34:34) -> 0.75 | BQ37: =LOOKUP(BQ8,Assumptions!33:33,Assumptions!34:34) -> 0.75 | BR37: =LOOKUP(BR8,Assumptions!33:33,Assumptions!34:34) -> 0.75 | BS37: =LOOKUP(BS8,Assumptions!33:33,Assumptions!34:34) -> 0.75 | BT37: =LOOKUP(BT8,Assumptions!33:33,Assumptions!34:34) -> 0.75 | BU37: =LOOKUP(BU8,Assumptions!33:33,Assumptions!34:34) -> 0.75 | BV37: =LOOKUP(BV8,Assumptions!33:33,Assumptions!34:34) -> 0.75 | BW37: =LOOKUP(BW8,Assumptions!33:33,Assumptions!34:34) -> 0.75 | BX37: =LOOKUP(BX8,Assumptions!33:33,Assumptions!34:34) -> 0.75 | BY37: =LOOKUP(BY8,Assumptions!33:33,Assumptions!34:34) -> 0.75 | BZ37: =LOOKUP(BZ8,Assumptions!33:33,Assumptions!34:34) -> 0.75 | CA37: =LOOKUP(CA8,Assumptions!33:33,Assumptions!34:34) -> 0.75 | CB37: =LOOKUP(CB8,Assumptions!33:33,Assumptions!34:34) -> 0.75 | CC37: =LOOKUP(CC8,Assumptions!33:33,Assumptions!34:34) -> 0.75 | CD37: =LOOKUP(CD8,Assumptions!33:33,Assumptions!34:34) -> 0.75 | CE37: =LOOKUP(CE8,Assumptions!33:33,Assumptions!34:34) -> 0.75 | CF37: =LOOKUP(CF8,Assumptions!33:33,Assumptions!34:34) -> 0.75 | CG37: =LOOKUP(CG8,Assumptions!33:33,Assumptions!34:34) -> 0.75 | CH37: =LOOKUP(CH8,Assumptions!33:33,Assumptions!34:34) -> 0.75 | CI37: =LOOKUP(CI8,Assumptions!33:33,Assumptions!34:34) -> 0.75 | CJ37: =LOOKUP(CJ8,Assumptions!33:33,Assumptions!34:34) -> 0.75 | CK37: =LOOKUP(CK8,Assumptions!33:33,Assumptions!34:34) -> 0.75 | CL37: =LOOKUP(CL8,Assumptions!33:33,Assumptions!34:34) -> 0.75 | CM37: =LOOKUP(CM8,Assumptions!33:33,Assumptions!34:34) -> 0.75 | CN37: =LOOKUP(CN8,Assumptions!33:33,Assumptions!34:34) -> 0.75 | CO37: =LOOKUP(CO8,Assumptions!33:33,Assumptions!34:34) -> 0.75 | CP37: =LOOKUP(CP8,Assumptions!33:33,Assumptions!34:34) -> 0.75 | CQ37: =LOOKUP(CQ8,Assumptions!33:33,Assumptions!34:34) -> 0.75 | CR37: =LOOKUP(CR8,Assumptions!33:33,Assumptions!34:34) -> 0.75 | CS37: =LOOKUP(CS8,Assumptions!33:33,Assumptions!34:34) -> 0.75 | CT37: =LOOKUP(CT8,Assumptions!33:33,Assumptions!34:34) -> 0.75 | CU37: =LOOKUP(CU8,Assumptions!33:33,Assumptions!34:34) -> 0.75 | CV37: =LOOKUP(CV8,Assumptions!33:33,Assumptions!34:34) -> 0.75 | CW37: =LOOKUP(CW8,Assumptions!33:33,Assumptions!34:34) -> 0.75 | CX37: =LOOKUP(CX8,Assumptions!33:33,Assumptions!34:34) -> 0.75 | CY37: =LOOKUP(CY8,Assumptions!33:33,Assumptions!34:34) -> 0.75 | CZ37: =LOOKUP(CZ8,Assumptions!33:33,Assumptions!34:34) -> 0.75 | DA37: =LOOKUP(DA8,Assumptions!33:33,Assumptions!34:34) -> 0.75 | DB37: =LOOKUP(DB8,Assumptions!33:33,Assumptions!34:34) -> 0.75 | DC37: =LOOKUP(DC8,Assumptions!33:33,Assumptions!34:34) -> 0.75 | DD37: =LOOKUP(DD8,Assumptions!33:33,Assumptions!34:34) -> 0.75 | DE37: =LOOKUP(DE8,Assumptions!33:33,Assumptions!34:34) -> 0.75 | DF37: =LOOKUP(DF8,Assumptions!33:33,Assumptions!34:34) -> 0.75 | DG37: =LOOKUP(DG8,Assumptions!33:33,Assumptions!34:34) -> 0.75 | DH37: =LOOKUP(DH8,Assumptions!33:33,Assumptions!34:34) -> 0.75 | DI37: =LOOKUP(DI8,Assumptions!33:33,Assumptions!34:34) -> 0.75 | DJ37: =LOOKUP(DJ8,Assumptions!33:33,Assumptions!34:34) -> 0.75 | DK37: =LOOKUP(DK8,Assumptions!33:33,Assumptions!34:34) -> 0.75 | DL37: =LOOKUP(DL8,Assumptions!33:33,Assumptions!34:34) -> 0.75 | DM37: =LOOKUP(DM8,Assumptions!33:33,Assumptions!34:34) -> 0.75 | DN37: =LOOKUP(DN8,Assumptions!33:33,Assumptions!34:34) -> 0.75 | DO37: =LOOKUP(DO8,Assumptions!33:33,Assumptions!34:34) -> 0.75 | DP37: =LOOKUP(DP8,Assumptions!33:33,Assumptions!34:34) -> 0.75 | DQ37: =LOOKUP(DQ8,Assumptions!33:33,Assumptions!34:34) -> 0.75 | DR37: =LOOKUP(DR8,Assumptions!33:33,Assumptions!34:34) -> 0.75 | DS37: =LOOKUP(DS8,Assumptions!33:33,Assumptions!34:34) -> 0.75 | DT37: =LOOKUP(DT8,Assumptions!33:33,Assumptions!34:34) -> 0.75 | DU37: =LOOKUP(DU8,Assumptions!33:33,Assumptions!34:34) -> 0.75 | DV37: =LOOKUP(DV8,Assumptions!33:33,Assumptions!34:34) -> 0.75 | DW37: =LOOKUP(DW8,Assumptions!33:33,Assumptions!34:34) -> 0.75 | DX37: =LOOKUP(DX8,Assumptions!33:33,Assumptions!34:34) -> 0.75 | DY37: =LOOKUP(DY8,Assumptions!33:33,Assumptions!34:34) -> 0.75 | DZ37: =LOOKUP(DZ8,Assumptions!33:33,Assumptions!34:34) -> 0.75 | EA37: =LOOKUP(EA8,Assumptions!33:33,Assumptions!34:34) -> 0.75 | EB37: =LOOKUP(EB8,Assumptions!33:33,Assumptions!34:34) -> 0.75 | EC37: =LOOKUP(EC8,Assumptions!33:33,Assumptions!34:34) -> 0.75 | ED37: =LOOKUP(ED8,Assumptions!33:33,Assumptions!34:34) -> 0.75 | EE37: =LOOKUP(EE8,Assumptions!33:33,Assumptions!34:34) -> 0.75 | EF37: =LOOKUP(EF8,Assumptions!33:33,Assumptions!34:34) -> 0.75 | EG37: =LOOKUP(EG8,Assumptions!33:33,Assumptions!34:34) -> 0.75 | EH37: =LOOKUP(EH8,Assumptions!33:33,Assumptions!34:34) -> 0.75 | EI37: =LOOKUP(EI8,Assumptions!33:33,Assumptions!34:34) -> 0.75 | EJ37: =LOOKUP(EJ8,Assumptions!33:33,Assumptions!34:34) -> 0.75 | EK37: =LOOKUP(EK8,Assumptions!33:33,Assumptions!34:34) -> 0.75 | EL37: =LOOKUP(EL8,Assumptions!33:33,Assumptions!34:34) -> 0.75 | EM37: =LOOKUP(EM8,Assumptions!33:33,Assumptions!34:34) -> 0.75 | EN37: =LOOKUP(EN8,Assumptions!33:33,Assumptions!34:34) -> 0.75 | EO37: =LOOKUP(EO8,Assumptions!33:33,Assumptions!34:34) -> 0.75 | EP37: =LOOKUP(EP8,Assumptions!33:33,Assumptions!34:34) -> 0.75 | EQ37: =LOOKUP(EQ8,Assumptions!33:33,Assumptions!34:34) -> 0.75 | ER37: =LOOKUP(ER8,Assumptions!33:33,Assumptions!34:34) -> 0.75 | ES37: =LOOKUP(ES8,Assumptions!33:33,Assumptions!34:34) -> 0.75 | ET37: =LOOKUP(ET8,Assumptions!33:33,Assumptions!34:34) -> 0.75 | EU37: =LOOKUP(EU8,Assumptions!33:33,Assumptions!34:34) -> 0.75 | EV37: =LOOKUP(EV8,Assumptions!33:33,Assumptions!34:34) -> 0.75 | EW37: =LOOKUP(EW8,Assumptions!33:33,Assumptions!34:34) -> 0.75 | EX37: =LOOKUP(EX8,Assumptions!33:33,Assumptions!34:34) -> 0.75 | EY37: =LOOKUP(EY8,Assumptions!33:33,Assumptions!34:34) -> 0.75 | EZ37: =LOOKUP(EZ8,Assumptions!33:33,Assumptions!34:34) -> 0.75 | FA37: =LOOKUP(FA8,Assumptions!33:33,Assumptions!34:34) -> 0.75 | FB37: =LOOKUP(FB8,Assumptions!33:33,Assumptions!34:34) -> 0.75 | FC37: =LOOKUP(FC8,Assumptions!33:33,Assumptions!34:34) -> 0.75 | FD37: =LOOKUP(FD8,Assumptions!33:33,Assumptions!34:34) -> 0.75 | FE37: =LOOKUP(FE8,Assumptions!33:33,Assumptions!34:34) -> 0.75 | FF37: =LOOKUP(FF8,Assumptions!33:33,Assumptions!34:34) -> 0.75 | FG37: =LOOKUP(FG8,Assumptions!33:33,Assumptions!34:34) -> 0.75 | FH37: =LOOKUP(FH8,Assumptions!33:33,Assumptions!34:34) -> 0.75 | FI37: =LOOKUP(FI8,Assumptions!33:33,Assumptions!34:34) -> 0.75 | FJ37: =LOOKUP(FJ8,Assumptions!33:33,Assumptions!34:34) -> 0.75 | FK37: =LOOKUP(FK8,Assumptions!33:33,Assumptions!34:34) -> 0.75 | FL37: =LOOKUP(FL8,Assumptions!33:33,Assumptions!34:34) -> 0.75 | FM37: =LOOKUP(FM8,Assumptions!33:33,Assumptions!34:34) -> 0.75 | FN37: =LOOKUP(FN8,Assumptions!33:33,Assumptions!34:34) -> 0.75 | FO37: =LOOKUP(FO8,Assumptions!33:33,Assumptions!34:34) -> 0.75 | FP37: =LOOKUP(FP8,Assumptions!33:33,Assumptions!34:34) -> 0.75 | FQ37: =LOOKUP(FQ8,Assumptions!33:33,Assumptions!34:34) -> 0.75 | FR37: =LOOKUP(FR8,Assumptions!33:33,Assumptions!34:34) -> 0.75 | FS37: =LOOKUP(FS8,Assumptions!33:33,Assumptions!34:34) -> 0.75 | FT37: =LOOKUP(FT8,Assumptions!33:33,Assumptions!34:34) -> 0.75 | FU37: =LOOKUP(FU8,Assumptions!33:33,Assumptions!34:34) -> 0.75 | FV37: =LOOKUP(FV8,Assumptions!33:33,Assumptions!34:34) -> 0.75 | FW37: =LOOKUP(FW8,Assumptions!33:33,Assumptions!34:34) -> 0.75
C38: Rooms Sold | E38: Room/Period | L38: =IF(L5,L37*L25*360*L14) -> FALSE | M38: =IF(M5,M37*M25*360*M14) -> FALSE | N38: =IF(N5,N37*N25*360*N14) -> FALSE | O38: =IF(O5,O37*O25*360*O14) -> FALSE | P38: =IF(P5,P37*P25*360*P14) -> FALSE | Q38: =IF(Q5,Q37*Q25*360*Q14) -> FALSE | R38: =IF(R5,R37*R25*360*R14) -> FALSE | S38: =IF(S5,S37*S25*360*S14) -> FALSE | T38: =IF(T5,T37*T25*360*T14) -> FALSE | U38: =IF(U5,U37*U25*360*U14) -> FALSE | V38: =IF(V5,V37*V25*360*V14) -> FALSE | W38: =IF(W5,W37*W25*360*W14) -> FALSE | X38: =IF(X5,X37*X25*360*X14) -> FALSE | Y38: =IF(Y5,Y37*Y25*360*Y14) -> FALSE | Z38: =IF(Z5,Z37*Z25*360*Z14) -> FALSE | AA38: =IF(AA5,AA37*AA25*360*AA14) -> FALSE | AB38: =IF(AB5,AB37*AB25*360*AB14) -> FALSE | AC38: =IF(AC5,AC37*AC25*360*AC14) -> FALSE | AD38: =IF(AD5,AD37*AD25*360*AD14) -> FALSE | AE38: =IF(AE5,AE37*AE25*360*AE14) -> FALSE | AF38: =IF(AF5,AF37*AF25*360*AF14) -> FALSE | AG38: =IF(AG5,AG37*AG25*360*AG14) -> FALSE | AH38: =IF(AH5,AH37*AH25*360*AH14) -> FALSE | AI38: =IF(AI5,AI37*AI25*360*AI14) -> FALSE | AJ38: =IF(AJ5,AJ37*AJ25*360*AJ14) -> FALSE | AK38: =IF(AK5,AK37*AK25*360*AK14) -> FALSE | AL38: =IF(AL5,AL37*AL25*360*AL14) -> FALSE | AM38: =IF(AM5,AM37*AM25*360*AM14) -> FALSE | AN38: =IF(AN5,AN37*AN25*360*AN14) -> FALSE | AO38: =IF(AO5,AO37*AO25*360*AO14) -> FALSE | AP38: =IF(AP5,AP37*AP25*360*AP14) -> FALSE | AQ38: =IF(AQ5,AQ37*AQ25*360*AQ14) -> FALSE | AR38: =IF(AR5,AR37*AR25*360*AR14) -> FALSE | AS38: =IF(AS5,AS37*AS25*360*AS14) -> FALSE | AT38: =IF(AT5,AT37*AT25*360*AT14) -> FALSE | AU38: =IF(AU5,AU37*AU25*360*AU14) -> FALSE | AV38: =IF(AV5,AV37*AV25*360*AV14) -> FALSE | AW38: =IF(AW5,AW37*AW25*360*AW14) -> FALSE | AX38: =IF(AX5,AX37*AX25*360*AX14) -> FALSE | AY38: =IF(AY5,AY37*AY25*360*AY14) -> FALSE | AZ38: =IF(AZ5,AZ37*AZ25*360*AZ14) -> FALSE | BA38: =IF(BA5,BA37*BA25*360*BA14) -> FALSE | BB38: =IF(BB5,BB37*BB25*360*BB14) -> FALSE | BC38: =IF(BC5,BC37*BC25*360*BC14) -> 4320 | BD38: =IF(BD5,BD37*BD25*360*BD14) -> 4320 | BE38: =IF(BE5,BE37*BE25*360*BE14) -> 4320 | BF38: =IF(BF5,BF37*BF25*360*BF14) -> 4320 | BG38: =IF(BG5,BG37*BG25*360*BG14) -> 4680 | BH38: =IF(BH5,BH37*BH25*360*BH14) -> 4680 | BI38: =IF(BI5,BI37*BI25*360*BI14) -> 4680 | BJ38: =IF(BJ5,BJ37*BJ25*360*BJ14) -> 4680 | BK38: =IF(BK5,BK37*BK25*360*BK14) -> 5040 | BL38: =IF(BL5,BL37*BL25*360*BL14) -> 5040 | BM38: =IF(BM5,BM37*BM25*360*BM14) -> 5040 | BN38: =IF(BN5,BN37*BN25*360*BN14) -> 5040 | BO38: =IF(BO5,BO37*BO25*360*BO14) -> 5400 | BP38: =IF(BP5,BP37*BP25*360*BP14) -> 5400 | BQ38: =IF(BQ5,BQ37*BQ25*360*BQ14) -> 5400 | BR38: =IF(BR5,BR37*BR25*360*BR14) -> 5400 | BS38: =IF(BS5,BS37*BS25*360*BS14) -> 5400 | BT38: =IF(BT5,BT37*BT25*360*BT14) -> 5400 | BU38: =IF(BU5,BU37*BU25*360*BU14) -> 5400 | BV38: =IF(BV5,BV37*BV25*360*BV14) -> 5400 | BW38: =IF(BW5,BW37*BW25*360*BW14) -> 5400 | BX38: =IF(BX5,BX37*BX25*360*BX14) -> 5400 | BY38: =IF(BY5,BY37*BY25*360*BY14) -> 5400 | BZ38: =IF(BZ5,BZ37*BZ25*360*BZ14) -> 5400 | CA38: =IF(CA5,CA37*CA25*360*CA14) -> 5400 | CB38: =IF(CB5,CB37*CB25*360*CB14) -> 5400 | CC38: =IF(CC5,CC37*CC25*360*CC14) -> 5400 | CD38: =IF(CD5,CD37*CD25*360*CD14) -> 5400 | CE38: =IF(CE5,CE37*CE25*360*CE14) -> 5400 | CF38: =IF(CF5,CF37*CF25*360*CF14) -> 5400 | CG38: =IF(CG5,CG37*CG25*360*CG14) -> 5400 | CH38: =IF(CH5,CH37*CH25*360*CH14) -> 5400 | CI38: =IF(CI5,CI37*CI25*360*CI14) -> 5400 | CJ38: =IF(CJ5,CJ37*CJ25*360*CJ14) -> 5400 | CK38: =IF(CK5,CK37*CK25*360*CK14) -> 5400 | CL38: =IF(CL5,CL37*CL25*360*CL14) -> 5400 | CM38: =IF(CM5,CM37*CM25*360*CM14) -> 5400 | CN38: =IF(CN5,CN37*CN25*360*CN14) -> 5400 | CO38: =IF(CO5,CO37*CO25*360*CO14) -> 5400 | CP38: =IF(CP5,CP37*CP25*360*CP14) -> 5400 | CQ38: =IF(CQ5,CQ37*CQ25*360*CQ14) -> 5400 | CR38: =IF(CR5,CR37*CR25*360*CR14) -> 5400 | CS38: =IF(CS5,CS37*CS25*360*CS14) -> 5400 | CT38: =IF(CT5,CT37*CT25*360*CT14) -> 5400 | CU38: =IF(CU5,CU37*CU25*360*CU14) -> 5400 | CV38: =IF(CV5,CV37*CV25*360*CV14) -> 5400 | CW38: =IF(CW5,CW37*CW25*360*CW14) -> 5400 | CX38: =IF(CX5,CX37*CX25*360*CX14) -> 5400 | CY38: =IF(CY5,CY37*CY25*360*CY14) -> 5400 | CZ38: =IF(CZ5,CZ37*CZ25*360*CZ14) -> 5400 | DA38: =IF(DA5,DA37*DA25*360*DA14) -> 5400 | DB38: =IF(DB5,DB37*DB25*360*DB14) -> 5400 | DC38: =IF(DC5,DC37*DC25*360*DC14) -> 5400 | DD38: =IF(DD5,DD37*DD25*360*DD14) -> 5400 | DE38: =IF(DE5,DE37*DE25*360*DE14) -> 5400 | DF38: =IF(DF5,DF37*DF25*360*DF14) -> 5400 | DG38: =IF(DG5,DG37*DG25*360*DG14) -> 5400 | DH38: =IF(DH5,DH37*DH25*360*DH14) -> 5400 | DI38: =IF(DI5,DI37*DI25*360*DI14) -> 5400 | DJ38: =IF(DJ5,DJ37*DJ25*360*DJ14) -> 5400 | DK38: =IF(DK5,DK37*DK25*360*DK14) -> 5400 | DL38: =IF(DL5,DL37*DL25*360*DL14) -> 5400 | DM38: =IF(DM5,DM37*DM25*360*DM14) -> 5400 | DN38: =IF(DN5,DN37*DN25*360*DN14) -> 5400 | DO38: =IF(DO5,DO37*DO25*360*DO14) -> 5400 | DP38: =IF(DP5,DP37*DP25*360*DP14) -> 5400 | DQ38: =IF(DQ5,DQ37*DQ25*360*DQ14) -> 5400 | DR38: =IF(DR5,DR37*DR25*360*DR14) -> 5400 | DS38: =IF(DS5,DS37*DS25*360*DS14) -> 5400 | DT38: =IF(DT5,DT37*DT25*360*DT14) -> 5400 | DU38: =IF(DU5,DU37*DU25*360*DU14) -> 5400 | DV38: =IF(DV5,DV37*DV25*360*DV14) -> 5400 | DW38: =IF(DW5,DW37*DW25*360*DW14) -> 5400 | DX38: =IF(DX5,DX37*DX25*360*DX14) -> 5400 | DY38: =IF(DY5,DY37*DY25*360*DY14) -> 5400 | DZ38: =IF(DZ5,DZ37*DZ25*360*DZ14) -> 5400 | EA38: =IF(EA5,EA37*EA25*360*EA14) -> 5400 | EB38: =IF(EB5,EB37*EB25*360*EB14) -> 5400 | EC38: =IF(EC5,EC37*EC25*360*EC14) -> 5400 | ED38: =IF(ED5,ED37*ED25*360*ED14) -> 5400 | EE38: =IF(EE5,EE37*EE25*360*EE14) -> 5400 | EF38: =IF(EF5,EF37*EF25*360*EF14) -> 5400 | EG38: =IF(EG5,EG37*EG25*360*EG14) -> 5400 | EH38: =IF(EH5,EH37*EH25*360*EH14) -> 5400 | EI38: =IF(EI5,EI37*EI25*360*EI14) -> 5400 | EJ38: =IF(EJ5,EJ37*EJ25*360*EJ14) -> 5400 | EK38: =IF(EK5,EK37*EK25*360*EK14) -> 5400 | EL38: =IF(EL5,EL37*EL25*360*EL14) -> 5400 | EM38: =IF(EM5,EM37*EM25*360*EM14) -> 5400 | EN38: =IF(EN5,EN37*EN25*360*EN14) -> 5400 | EO38: =IF(EO5,EO37*EO25*360*EO14) -> 5400 | EP38: =IF(EP5,EP37*EP25*360*EP14) -> 5400 | EQ38: =IF(EQ5,EQ37*EQ25*360*EQ14) -> 5400 | ER38: =IF(ER5,ER37*ER25*360*ER14) -> 5400 | ES38: =IF(ES5,ES37*ES25*360*ES14) -> 5400 | ET38: =IF(ET5,ET37*ET25*360*ET14) -> 5400 | EU38: =IF(EU5,EU37*EU25*360*EU14) -> 5400 | EV38: =IF(EV5,EV37*EV25*360*EV14) -> 5400 | EW38: =IF(EW5,EW37*EW25*360*EW14) -> 5400 | EX38: =IF(EX5,EX37*EX25*360*EX14) -> 5400 | EY38: =IF(EY5,EY37*EY25*360*EY14) -> FALSE | EZ38: =IF(EZ5,EZ37*EZ25*360*EZ14) -> FALSE | FA38: =IF(FA5,FA37*FA25*360*FA14) -> FALSE | FB38: =IF(FB5,FB37*FB25*360*FB14) -> FALSE | FC38: =IF(FC5,FC37*FC25*360*FC14) -> FALSE | FD38: =IF(FD5,FD37*FD25*360*FD14) -> FALSE | FE38: =IF(FE5,FE37*FE25*360*FE14) -> FALSE | FF38: =IF(FF5,FF37*FF25*360*FF14) -> FALSE | FG38: =IF(FG5,FG37*FG25*360*FG14) -> FALSE | FH38: =IF(FH5,FH37*FH25*360*FH14) -> FALSE | FI38: =IF(FI5,FI37*FI25*360*FI14) -> FALSE | FJ38: =IF(FJ5,FJ37*FJ25*360*FJ14) -> FALSE | FK38: =IF(FK5,FK37*FK25*360*FK14) -> FALSE | FL38: =IF(FL5,FL37*FL25*360*FL14) -> FALSE | FM38: =IF(FM5,FM37*FM25*360*FM14) -> FALSE | FN38: =IF(FN5,FN37*FN25*360*FN14) -> FALSE | FO38: =IF(FO5,FO37*FO25*360*FO14) -> FALSE | FP38: =IF(FP5,FP37*FP25*360*FP14) -> FALSE | FQ38: =IF(FQ5,FQ37*FQ25*360*FQ14) -> FALSE | FR38: =IF(FR5,FR37*FR25*360*FR14) -> FALSE | FS38: =IF(FS5,FS37*FS25*360*FS14) -> FALSE | FT38: =IF(FT5,FT37*FT25*360*FT14) -> FALSE | FU38: =IF(FU5,FU37*FU25*360*FU14) -> FALSE | FV38: =IF(FV5,FV37*FV25*360*FV14) -> FALSE | FW38: =IF(FW5,FW37*FW25*360*FW14) -> FALSE
D39: Total Revenues from Rooms | L39: =L38*L35 -> 0 | M39: =M38*M35 -> 0 | N39: 0 | O39: 0 | P39: 0 | Q39: 0 | R39: 0 | S39: 0 | T39: 0 | U39: 0 | V39: 0 | W39: 0 | X39: 0 | Y39: 0 | Z39: 0 | AA39: 0 | AB39: 0 | AC39: 0 | AD39: 0 | AE39: 0 | AF39: 0 | AG39: 0 | AH39: 0 | AI39: 0 | AJ39: 0 | AK39: 0 | AL39: 0 | AM39: 0 | AN39: 0 | AO39: 0 | AP39: 0 | AQ39: 0 | AR39: 0 | AS39: 0 | AT39: 0 | AU39: 0 | AV39: 0 | AW39: 0 | AX39: 0 | AY39: 0 | AZ39: 0 | BA39: 0 | BB39: 0 | BC39: 813924.3622 | BD39: 815951.5868 | BE39: 817983.8605 | BF39: 820021.196 | BG39: 890568.9063 | BH39: 892787.0279 | BI39: 895010.674 | BJ39: 897461.8653 | BK39: 969144.3673 | BL39: 971798.5906 | BM39: 974460.0831 | BN39: 977128.8647 | BO39: 1049791.024 | BP39: 1052666.116 | BQ39: 1055549.083 | BR39: 1058439.945 | BS39: 1061338.725 | BT39: 1064245.443 | BU39: 1067160.123 | BV39: 1070082.785 | BW39: 1073013.451 | BX39: 1075952.143 | BY39: =BY38*BY35 -> 1078898.884 | BZ39: 1082922.194 | CA39: 1086960.507 | CB39: 1091013.88 | CC39: 1095082.367 | CD39: 1099166.027 | CE39: 1103264.915 | CF39: 1107379.088 | CG39: 1111508.603 | CH39: 1115653.517 | CI39: 1119813.889 | CJ39: 1123989.774 | CK39: 1128181.232 | CL39: 1132388.32 | CM39: 1136611.097 | CN39: 1140849.621 | CO39: 1145103.95 | CP39: 1150222.496 | CQ39: 1155363.922 | CR39: 1160528.33 | CS39: 1165715.822 | CT39: 1170926.501 | CU39: 1176160.473 | CV39: 1181417.839 | CW39: 1186698.706 | CX39: 1192003.178 | CY39: 1197331.361 | CZ39: 1202683.361 | DA39: 1208059.283 | DB39: 1213459.236 | DC39: 1218883.326 | DD39: 1224331.661 | DE39: 1229804.35 | DF39: 1235301.502 | DG39: 1240823.226 | DH39: =DH38*DH35 -> 1246369.631 | DI39: =DI38*DI35 -> 1251940.828 | DJ39: =DJ38*DJ35 -> 1257536.929 | DK39: =DK38*DK35 -> 1263158.044 | DL39: =DL38*DL35 -> 1268804.284 | DM39: =DM38*DM35 -> 1274475.763 | DN39: =DN38*DN35 -> 1280172.594 | DO39: =DO38*DO35 -> 1285894.888 | DP39: =DP38*DP35 -> 1291642.761 | DQ39: =DQ38*DQ35 -> 1297416.327 | DR39: =DR38*DR35 -> 1303215.7 | DS39: =DS38*DS35 -> 1309040.996 | DT39: =DT38*DT35 -> 1314892.331 | DU39: =DU38*DU35 -> 1320769.821 | DV39: =DV38*DV35 -> 1326673.583 | DW39: =DW38*DW35 -> 1332603.734 | DX39: =DX38*DX35 -> 1338560.393 | DY39: =DY38*DY35 -> 1344543.678 | DZ39: =DZ38*DZ35 -> 1350553.707 | EA39: =EA38*EA35 -> 1356590.601 | EB39: =EB38*EB35 -> 1362654.48 | EC39: =EC38*EC35 -> 1368745.464 | ED39: =ED38*ED35 -> 1374863.674 | EE39: =EE38*EE35 -> 1381009.232 | EF39: =EF38*EF35 -> 1387182.261 | EG39: =EG38*EG35 -> 1393382.882 | EH39: =EH38*EH35 -> 1399611.22 | EI39: =EI38*EI35 -> 1405867.399 | EJ39: =EJ38*EJ35 -> 1412151.541 | EK39: =EK38*EK35 -> 1418463.774 | EL39: =EL38*EL35 -> 1424804.222 | EM39: =EM38*EM35 -> 1431173.012 | EN39: =EN38*EN35 -> 1437570.269 | EO39: =EO38*EO35 -> 1443996.122 | EP39: =EP38*EP35 -> 1450450.698 | EQ39: =EQ38*EQ35 -> 1456934.126 | ER39: =ER38*ER35 -> 1463446.534 | ES39: =ES38*ES35 -> 1469988.052 | ET39: =ET38*ET35 -> 1476558.811 | EU39: =EU38*EU35 -> 1483158.94 | EV39: =EV38*EV35 -> 1489788.572 | EW39: =EW38*EW35 -> 1496447.837 | EX39: =EX38*EX35 -> 1503136.869 | EY39: =EY38*EY35 -> 0 | EZ39: =EZ38*EZ35 -> 0 | FA39: =FA38*FA35 -> 0 | FB39: =FB38*FB35 -> 0 | FC39: =FC38*FC35 -> 0 | FD39: =FD38*FD35 -> 0 | FE39: =FE38*FE35 -> 0 | FF39: =FF38*FF35 -> 0 | FG39: =FG38*FG35 -> 0 | FH39: =FH38*FH35 -> 0 | FI39: =FI38*FI35 -> 0 | FJ39: =FJ38*FJ35 -> 0 | FK39: =FK38*FK35 -> 0 | FL39: =FL38*FL35 -> 0 | FM39: =FM38*FM35 -> 0 | FN39: =FN38*FN35 -> 0 | FO39: =FO38*FO35 -> 0 | FP39: =FP38*FP35 -> 0 | FQ39: =FQ38*FQ35 -> 0 | FR39: =FR38*FR35 -> 0 | FS39: =FS38*FS35 -> 0 | FT39: =FT38*FT35 -> 0 | FU39: =FU38*FU35 -> 0 | FV39: =FV38*FV35 -> 0 | FW39: =FW38*FW35 -> 0
C41: Other Revenue Percent | E41: Pct | L41: =LOOKUP(L8,Assumptions!33:33,Assumptions!35:35) ->  | M41: =LOOKUP(M8,Assumptions!33:33,Assumptions!35:35) ->  | N41: =LOOKUP(N8,Assumptions!33:33,Assumptions!35:35) ->  | O41: =LOOKUP(O8,Assumptions!33:33,Assumptions!35:35) ->  | P41: =LOOKUP(P8,Assumptions!33:33,Assumptions!35:35) ->  | Q41: =LOOKUP(Q8,Assumptions!33:33,Assumptions!35:35) ->  | R41: =LOOKUP(R8,Assumptions!33:33,Assumptions!35:35) ->  | S41: =LOOKUP(S8,Assumptions!33:33,Assumptions!35:35) ->  | T41: =LOOKUP(T8,Assumptions!33:33,Assumptions!35:35) ->  | U41: =LOOKUP(U8,Assumptions!33:33,Assumptions!35:35) ->  | V41: =LOOKUP(V8,Assumptions!33:33,Assumptions!35:35) ->  | W41: =LOOKUP(W8,Assumptions!33:33,Assumptions!35:35) ->  | X41: =LOOKUP(X8,Assumptions!33:33,Assumptions!35:35) ->  | Y41: =LOOKUP(Y8,Assumptions!33:33,Assumptions!35:35) ->  | Z41: =LOOKUP(Z8,Assumptions!33:33,Assumptions!35:35) ->  | AA41: =LOOKUP(AA8,Assumptions!33:33,Assumptions!35:35) ->  | AB41: =LOOKUP(AB8,Assumptions!33:33,Assumptions!35:35) ->  | AC41: =LOOKUP(AC8,Assumptions!33:33,Assumptions!35:35) ->  | AD41: =LOOKUP(AD8,Assumptions!33:33,Assumptions!35:35) ->  | AE41: =LOOKUP(AE8,Assumptions!33:33,Assumptions!35:35) ->  | AF41: =LOOKUP(AF8,Assumptions!33:33,Assumptions!35:35) ->  | AG41: =LOOKUP(AG8,Assumptions!33:33,Assumptions!35:35) ->  | AH41: =LOOKUP(AH8,Assumptions!33:33,Assumptions!35:35) ->  | AI41: =LOOKUP(AI8,Assumptions!33:33,Assumptions!35:35) ->  | AJ41: =LOOKUP(AJ8,Assumptions!33:33,Assumptions!35:35) ->  | AK41: =LOOKUP(AK8,Assumptions!33:33,Assumptions!35:35) ->  | AL41: =LOOKUP(AL8,Assumptions!33:33,Assumptions!35:35) ->  | AM41: =LOOKUP(AM8,Assumptions!33:33,Assumptions!35:35) ->  | AN41: =LOOKUP(AN8,Assumptions!33:33,Assumptions!35:35) ->  | AO41: =LOOKUP(AO8,Assumptions!33:33,Assumptions!35:35) ->  | AP41: =LOOKUP(AP8,Assumptions!33:33,Assumptions!35:35) ->  | AQ41: =LOOKUP(AQ8,Assumptions!33:33,Assumptions!35:35) ->  | AR41: =LOOKUP(AR8,Assumptions!33:33,Assumptions!35:35) ->  | AS41: =LOOKUP(AS8,Assumptions!33:33,Assumptions!35:35) ->  | AT41: =LOOKUP(AT8,Assumptions!33:33,Assumptions!35:35) ->  | AU41: =LOOKUP(AU8,Assumptions!33:33,Assumptions!35:35) ->  | AV41: =LOOKUP(AV8,Assumptions!33:33,Assumptions!35:35) ->  | AW41: =LOOKUP(AW8,Assumptions!33:33,Assumptions!35:35) ->  | AX41: =LOOKUP(AX8,Assumptions!33:33,Assumptions!35:35) ->  | AY41: =LOOKUP(AY8,Assumptions!33:33,Assumptions!35:35) ->  | AZ41: =LOOKUP(AZ8,Assumptions!33:33,Assumptions!35:35) ->  | BA41: =LOOKUP(BA8,Assumptions!33:33,Assumptions!35:35) ->  | BB41: =LOOKUP(BB8,Assumptions!33:33,Assumptions!35:35) ->  | BC41: =LOOKUP(BC8,Assumptions!33:33,Assumptions!35:35) -> 0.31 | BD41: =LOOKUP(BD8,Assumptions!33:33,Assumptions!35:35) -> 0.31 | BE41: =LOOKUP(BE8,Assumptions!33:33,Assumptions!35:35) -> 0.31 | BF41: =LOOKUP(BF8,Assumptions!33:33,Assumptions!35:35) -> 0.31 | BG41: =LOOKUP(BG8,Assumptions!33:33,Assumptions!35:35) -> 0.31 | BH41: =LOOKUP(BH8,Assumptions!33:33,Assumptions!35:35) -> 0.31 | BI41: =LOOKUP(BI8,Assumptions!33:33,Assumptions!35:35) -> 0.31 | BJ41: =LOOKUP(BJ8,Assumptions!33:33,Assumptions!35:35) -> 0.31 | BK41: =LOOKUP(BK8,Assumptions!33:33,Assumptions!35:35) -> 0.31 | BL41: =LOOKUP(BL8,Assumptions!33:33,Assumptions!35:35) -> 0.31 | BM41: =LOOKUP(BM8,Assumptions!33:33,Assumptions!35:35) -> 0.31 | BN41: =LOOKUP(BN8,Assumptions!33:33,Assumptions!35:35) -> 0.31 | BO41: =LOOKUP(BO8,Assumptions!33:33,Assumptions!35:35) -> 0.31 | BP41: =LOOKUP(BP8,Assumptions!33:33,Assumptions!35:35) -> 0.31 | BQ41: =LOOKUP(BQ8,Assumptions!33:33,Assumptions!35:35) -> 0.31 | BR41: =LOOKUP(BR8,Assumptions!33:33,Assumptions!35:35) -> 0.31 | BS41: =LOOKUP(BS8,Assumptions!33:33,Assumptions!35:35) -> 0.31 | BT41: =LOOKUP(BT8,Assumptions!33:33,Assumptions!35:35) -> 0.31 | BU41: =LOOKUP(BU8,Assumptions!33:33,Assumptions!35:35) -> 0.31 | BV41: =LOOKUP(BV8,Assumptions!33:33,Assumptions!35:35) -> 0.31 | BW41: =LOOKUP(BW8,Assumptions!33:33,Assumptions!35:35) -> 0.31 | BX41: =LOOKUP(BX8,Assumptions!33:33,Assumptions!35:35) -> 0.31 | BY41: =LOOKUP(BY8,Assumptions!33:33,Assumptions!35:35) -> 0.31 | BZ41: =LOOKUP(BZ8,Assumptions!33:33,Assumptions!35:35) -> 0.31 | CA41: =LOOKUP(CA8,Assumptions!33:33,Assumptions!35:35) -> 0.31 | CB41: =LOOKUP(CB8,Assumptions!33:33,Assumptions!35:35) -> 0.31 | CC41: =LOOKUP(CC8,Assumptions!33:33,Assumptions!35:35) -> 0.31 | CD41: =LOOKUP(CD8,Assumptions!33:33,Assumptions!35:35) -> 0.31 | CE41: =LOOKUP(CE8,Assumptions!33:33,Assumptions!35:35) -> 0.31 | CF41: =LOOKUP(CF8,Assumptions!33:33,Assumptions!35:35) -> 0.31 | CG41: =LOOKUP(CG8,Assumptions!33:33,Assumptions!35:35) -> 0.31 | CH41: =LOOKUP(CH8,Assumptions!33:33,Assumptions!35:35) -> 0.31 | CI41: =LOOKUP(CI8,Assumptions!33:33,Assumptions!35:35) -> 0.31 | CJ41: =LOOKUP(CJ8,Assumptions!33:33,Assumptions!35:35) -> 0.31 | CK41: =LOOKUP(CK8,Assumptions!33:33,Assumptions!35:35) -> 0.31 | CL41: =LOOKUP(CL8,Assumptions!33:33,Assumptions!35:35) -> 0.31 | CM41: =LOOKUP(CM8,Assumptions!33:33,Assumptions!35:35) -> 0.31 | CN41: =LOOKUP(CN8,Assumptions!33:33,Assumptions!35:35) -> 0.31 | CO41: =LOOKUP(CO8,Assumptions!33:33,Assumptions!35:35) -> 0.31 | CP41: =LOOKUP(CP8,Assumptions!33:33,Assumptions!35:35) -> 0.31 | CQ41: =LOOKUP(CQ8,Assumptions!33:33,Assumptions!35:35) -> 0.31 | CR41: =LOOKUP(CR8,Assumptions!33:33,Assumptions!35:35) -> 0.31 | CS41: =LOOKUP(CS8,Assumptions!33:33,Assumptions!35:35) -> 0.31 | CT41: =LOOKUP(CT8,Assumptions!33:33,Assumptions!35:35) -> 0.31 | CU41: =LOOKUP(CU8,Assumptions!33:33,Assumptions!35:35) -> 0.31 | CV41: =LOOKUP(CV8,Assumptions!33:33,Assumptions!35:35) -> 0.31 | CW41: =LOOKUP(CW8,Assumptions!33:33,Assumptions!35:35) -> 0.31 | CX41: =LOOKUP(CX8,Assumptions!33:33,Assumptions!35:35) -> 0.31 | CY41: =LOOKUP(CY8,Assumptions!33:33,Assumptions!35:35) -> 0.31 | CZ41: =LOOKUP(CZ8,Assumptions!33:33,Assumptions!35:35) -> 0.31 | DA41: =LOOKUP(DA8,Assumptions!33:33,Assumptions!35:35) -> 0.31 | DB41: =LOOKUP(DB8,Assumptions!33:33,Assumptions!35:35) -> 0.31 | DC41: =LOOKUP(DC8,Assumptions!33:33,Assumptions!35:35) -> 0.31 | DD41: =LOOKUP(DD8,Assumptions!33:33,Assumptions!35:35) -> 0.31 | DE41: =LOOKUP(DE8,Assumptions!33:33,Assumptions!35:35) -> 0.31 | DF41: =LOOKUP(DF8,Assumptions!33:33,Assumptions!35:35) -> 0.31 | DG41: =LOOKUP(DG8,Assumptions!33:33,Assumptions!35:35) -> 0.31 | DH41: =LOOKUP(DH8,Assumptions!33:33,Assumptions!35:35) -> 0.31 | DI41: =LOOKUP(DI8,Assumptions!33:33,Assumptions!35:35) -> 0.31 | DJ41: =LOOKUP(DJ8,Assumptions!33:33,Assumptions!35:35) -> 0.31 | DK41: =LOOKUP(DK8,Assumptions!33:33,Assumptions!35:35) -> 0.31 | DL41: =LOOKUP(DL8,Assumptions!33:33,Assumptions!35:35) -> 0.31 | DM41: =LOOKUP(DM8,Assumptions!33:33,Assumptions!35:35) -> 0.31 | DN41: =LOOKUP(DN8,Assumptions!33:33,Assumptions!35:35) -> 0.31 | DO41: =LOOKUP(DO8,Assumptions!33:33,Assumptions!35:35) -> 0.31 | DP41: =LOOKUP(DP8,Assumptions!33:33,Assumptions!35:35) -> 0.31 | DQ41: =LOOKUP(DQ8,Assumptions!33:33,Assumptions!35:35) -> 0.31 | DR41: =LOOKUP(DR8,Assumptions!33:33,Assumptions!35:35) -> 0.31 | DS41: =LOOKUP(DS8,Assumptions!33:33,Assumptions!35:35) -> 0.31 | DT41: =LOOKUP(DT8,Assumptions!33:33,Assumptions!35:35) -> 0.31 | DU41: =LOOKUP(DU8,Assumptions!33:33,Assumptions!35:35) -> 0.31 | DV41: =LOOKUP(DV8,Assumptions!33:33,Assumptions!35:35) -> 0.31 | DW41: =LOOKUP(DW8,Assumptions!33:33,Assumptions!35:35) -> 0.31 | DX41: =LOOKUP(DX8,Assumptions!33:33,Assumptions!35:35) -> 0.31 | DY41: =LOOKUP(DY8,Assumptions!33:33,Assumptions!35:35) -> 0.31 | DZ41: =LOOKUP(DZ8,Assumptions!33:33,Assumptions!35:35) -> 0.31 | EA41: =LOOKUP(EA8,Assumptions!33:33,Assumptions!35:35) -> 0.31 | EB41: =LOOKUP(EB8,Assumptions!33:33,Assumptions!35:35) -> 0.31 | EC41: =LOOKUP(EC8,Assumptions!33:33,Assumptions!35:35) -> 0.31 | ED41: =LOOKUP(ED8,Assumptions!33:33,Assumptions!35:35) -> 0.31 | EE41: =LOOKUP(EE8,Assumptions!33:33,Assumptions!35:35) -> 0.31 | EF41: =LOOKUP(EF8,Assumptions!33:33,Assumptions!35:35) -> 0.31 | EG41: =LOOKUP(EG8,Assumptions!33:33,Assumptions!35:35) -> 0.31 | EH41: =LOOKUP(EH8,Assumptions!33:33,Assumptions!35:35) -> 0.31 | EI41: =LOOKUP(EI8,Assumptions!33:33,Assumptions!35:35) -> 0.31 | EJ41: =LOOKUP(EJ8,Assumptions!33:33,Assumptions!35:35) -> 0.31 | EK41: =LOOKUP(EK8,Assumptions!33:33,Assumptions!35:35) -> 0.31 | EL41: =LOOKUP(EL8,Assumptions!33:33,Assumptions!35:35) -> 0.31 | EM41: =LOOKUP(EM8,Assumptions!33:33,Assumptions!35:35) -> 0.31 | EN41: =LOOKUP(EN8,Assumptions!33:33,Assumptions!35:35) -> 0.31 | EO41: =LOOKUP(EO8,Assumptions!33:33,Assumptions!35:35) -> 0.31 | EP41: =LOOKUP(EP8,Assumptions!33:33,Assumptions!35:35) -> 0.31 | EQ41: =LOOKUP(EQ8,Assumptions!33:33,Assumptions!35:35) -> 0.31 | ER41: =LOOKUP(ER8,Assumptions!33:33,Assumptions!35:35) -> 0.31 | ES41: =LOOKUP(ES8,Assumptions!33:33,Assumptions!35:35) -> 0.31 | ET41: =LOOKUP(ET8,Assumptions!33:33,Assumptions!35:35) -> 0.31 | EU41: =LOOKUP(EU8,Assumptions!33:33,Assumptions!35:35) -> 0.31 | EV41: =LOOKUP(EV8,Assumptions!33:33,Assumptions!35:35) -> 0.31 | EW41: =LOOKUP(EW8,Assumptions!33:33,Assumptions!35:35) -> 0.31 | EX41: =LOOKUP(EX8,Assumptions!33:33,Assumptions!35:35) -> 0.31 | EY41: =LOOKUP(EY8,Assumptions!33:33,Assumptions!35:35) -> 0.31 | EZ41: =LOOKUP(EZ8,Assumptions!33:33,Assumptions!35:35) -> 0.31 | FA41: =LOOKUP(FA8,Assumptions!33:33,Assumptions!35:35) -> 0.31 | FB41: =LOOKUP(FB8,Assumptions!33:33,Assumptions!35:35) -> 0.31 | FC41: =LOOKUP(FC8,Assumptions!33:33,Assumptions!35:35) -> 0.31 | FD41: =LOOKUP(FD8,Assumptions!33:33,Assumptions!35:35) -> 0.31 | FE41: =LOOKUP(FE8,Assumptions!33:33,Assumptions!35:35) -> 0.31 | FF41: =LOOKUP(FF8,Assumptions!33:33,Assumptions!35:35) -> 0.31 | FG41: =LOOKUP(FG8,Assumptions!33:33,Assumptions!35:35) -> 0.31 | FH41: =LOOKUP(FH8,Assumptions!33:33,Assumptions!35:35) -> 0.31 | FI41: =LOOKUP(FI8,Assumptions!33:33,Assumptions!35:35) -> 0.31 | FJ41: =LOOKUP(FJ8,Assumptions!33:33,Assumptions!35:35) -> 0.31 | FK41: =LOOKUP(FK8,Assumptions!33:33,Assumptions!35:35) -> 0.31 | FL41: =LOOKUP(FL8,Assumptions!33:33,Assumptions!35:35) -> 0.31 | FM41: =LOOKUP(FM8,Assumptions!33:33,Assumptions!35:35) -> 0.31 | FN41: =LOOKUP(FN8,Assumptions!33:33,Assumptions!35:35) -> 0.31 | FO41: =LOOKUP(FO8,Assumptions!33:33,Assumptions!35:35) -> 0.31 | FP41: =LOOKUP(FP8,Assumptions!33:33,Assumptions!35:35) -> 0.31 | FQ41: =LOOKUP(FQ8,Assumptions!33:33,Assumptions!35:35) -> 0.31 | FR41: =LOOKUP(FR8,Assumptions!33:33,Assumptions!35:35) -> 0.31 | FS41: =LOOKUP(FS8,Assumptions!33:33,Assumptions!35:35) -> 0.31 | FT41: =LOOKUP(FT8,Assumptions!33:33,Assumptions!35:35) -> 0.31 | FU41: =LOOKUP(FU8,Assumptions!33:33,Assumptions!35:35) -> 0.31 | FV41: =LOOKUP(FV8,Assumptions!33:33,Assumptions!35:35) -> 0.31 | FW41: =LOOKUP(FW8,Assumptions!33:33,Assumptions!35:35) -> 0.31
D42: Other Revenues | L42: =IF(L5,L39*L41) -> FALSE | M42: =IF(M5,M39*M41) -> FALSE | N42: =IF(N5,N39*N41) -> FALSE | O42: =IF(O5,O39*O41) -> FALSE | P42: =IF(P5,P39*P41) -> FALSE | Q42: =IF(Q5,Q39*Q41) -> FALSE | R42: =IF(R5,R39*R41) -> FALSE | S42: =IF(S5,S39*S41) -> FALSE | T42: =IF(T5,T39*T41) -> FALSE | U42: =IF(U5,U39*U41) -> FALSE | V42: =IF(V5,V39*V41) -> FALSE | W42: =IF(W5,W39*W41) -> FALSE | X42: =IF(X5,X39*X41) -> FALSE | Y42: =IF(Y5,Y39*Y41) -> FALSE | Z42: =IF(Z5,Z39*Z41) -> FALSE | AA42: =IF(AA5,AA39*AA41) -> FALSE | AB42: =IF(AB5,AB39*AB41) -> FALSE | AC42: =IF(AC5,AC39*AC41) -> FALSE | AD42: =IF(AD5,AD39*AD41) -> FALSE | AE42: =IF(AE5,AE39*AE41) -> FALSE | AF42: =IF(AF5,AF39*AF41) -> FALSE | AG42: =IF(AG5,AG39*AG41) -> FALSE | AH42: =IF(AH5,AH39*AH41) -> FALSE | AI42: =IF(AI5,AI39*AI41) -> FALSE | AJ42: =IF(AJ5,AJ39*AJ41) -> FALSE | AK42: =IF(AK5,AK39*AK41) -> FALSE | AL42: =IF(AL5,AL39*AL41) -> FALSE | AM42: =IF(AM5,AM39*AM41) -> FALSE | AN42: =IF(AN5,AN39*AN41) -> FALSE | AO42: =IF(AO5,AO39*AO41) -> FALSE | AP42: =IF(AP5,AP39*AP41) -> FALSE | AQ42: =IF(AQ5,AQ39*AQ41) -> FALSE | AR42: =IF(AR5,AR39*AR41) -> FALSE | AS42: =IF(AS5,AS39*AS41) -> FALSE | AT42: =IF(AT5,AT39*AT41) -> FALSE | AU42: =IF(AU5,AU39*AU41) -> FALSE | AV42: =IF(AV5,AV39*AV41) -> FALSE | AW42: =IF(AW5,AW39*AW41) -> FALSE | AX42: =IF(AX5,AX39*AX41) -> FALSE | AY42: =IF(AY5,AY39*AY41) -> FALSE | AZ42: =IF(AZ5,AZ39*AZ41) -> FALSE | BA42: =IF(BA5,BA39*BA41) -> FALSE | BB42: =IF(BB5,BB39*BB41) -> FALSE | BC42: =IF(BC5,BC39*BC41) -> 252316.5523 | BD42: =IF(BD5,BD39*BD41) -> 252944.9919 | BE42: =IF(BE5,BE39*BE41) -> 253574.9968 | BF42: =IF(BF5,BF39*BF41) -> 254206.5708 | BG42: =IF(BG5,BG39*BG41) -> 276076.361 | BH42: =IF(BH5,BH39*BH41) -> 276763.9786 | BI42: =IF(BI5,BI39*BI41) -> 277453.309 | BJ42: =IF(BJ5,BJ39*BJ41) -> 278213.1782 | BK42: =IF(BK5,BK39*BK41) -> 300434.7539 | BL42: =IF(BL5,BL39*BL41) -> 301257.5631 | BM42: =IF(BM5,BM39*BM41) -> 302082.6258 | BN42: =IF(BN5,BN39*BN41) -> 302909.9481 | BO42: =IF(BO5,BO39*BO41) -> 325435.2173 | BP42: =IF(BP5,BP39*BP41) -> 326326.496 | BQ42: =IF(BQ5,BQ39*BQ41) -> 327220.2157 | BR42: =IF(BR5,BR39*BR41) -> 328116.383 | BS42: =IF(BS5,BS39*BS41) -> 329015.0047 | BT42: =IF(BT5,BT39*BT41) -> 329916.0875 | BU42: =IF(BU5,BU39*BU41) -> 330819.6381 | BV42: =IF(BV5,BV39*BV41) -> 331725.6632 | BW42: =IF(BW5,BW39*BW41) -> 332634.1698 | BX42: =IF(BX5,BX39*BX41) -> 333545.1644 | BY42: =IF(BY5,BY39*BY41) -> 334458.6541 | BZ42: =IF(BZ5,BZ39*BZ41) -> 335705.8802 | CA42: =IF(CA5,CA39*CA41) -> 336957.7572 | CB42: =IF(CB5,CB39*CB41) -> 338214.3027 | CC42: =IF(CC5,CC39*CC41) -> 339475.5339 | CD42: =IF(CD5,CD39*CD41) -> 340741.4684 | CE42: =IF(CE5,CE39*CE41) -> 342012.1236 | CF42: =IF(CF5,CF39*CF41) -> 343287.5172 | CG42: =IF(CG5,CG39*CG41) -> 344567.6669 | CH42: =IF(CH5,CH39*CH41) -> 345852.5904 | CI42: =IF(CI5,CI39*CI41) -> 347142.3055 | CJ42: =IF(CJ5,CJ39*CJ41) -> 348436.83 | CK42: =IF(CK5,CK39*CK41) -> 349736.1819 | CL42: =IF(CL5,CL39*CL41) -> 351040.3792 | CM42: =IF(CM5,CM39*CM41) -> 352349.44 | CN42: =IF(CN5,CN39*CN41) -> 353663.3824 | CO42: =IF(CO5,CO39*CO41) -> 354982.2246 | CP42: =IF(CP5,CP39*CP41) -> 356568.9739 | CQ42: =IF(CQ5,CQ39*CQ41) -> 358162.8158 | CR42: =IF(CR5,CR39*CR41) -> 359763.7821 | CS42: =IF(CS5,CS39*CS41) -> 361371.9047 | CT42: =IF(CT5,CT39*CT41) -> 362987.2154 | CU42: =IF(CU5,CU39*CU41) -> 364609.7465 | CV42: =IF(CV5,CV39*CV41) -> 366239.5302 | CW42: =IF(CW5,CW39*CW41) -> 367876.599 | CX42: =IF(CX5,CX39*CX41) -> 369520.9853 | CY42: =IF(CY5,CY39*CY41) -> 371172.722 | CZ42: =IF(CZ5,CZ39*CZ41) -> 372831.8418 | DA42: =IF(DA5,DA39*DA41) -> 374498.3777 | DB42: =IF(DB5,DB39*DB41) -> 376172.363 | DC42: =IF(DC5,DC39*DC41) -> 377853.831 | DD42: =IF(DD5,DD39*DD41) -> 379542.8149 | DE42: =IF(DE5,DE39*DE41) -> 381239.3485 | DF42: =IF(DF5,DF39*DF41) -> 382943.4656 | DG42: =IF(DG5,DG39*DG41) -> 384655.1999 | DH42: =IF(DH5,DH39*DH41) -> 386374.5856 | DI42: =IF(DI5,DI39*DI41) -> 388101.6568 | DJ42: =IF(DJ5,DJ39*DJ41) -> 389836.448 | DK42: =IF(DK5,DK39*DK41) -> 391578.9935 | DL42: =IF(DL5,DL39*DL41) -> 393329.3281 | DM42: =IF(DM5,DM39*DM41) -> 395087.4866 | DN42: =IF(DN5,DN39*DN41) -> 396853.504 | DO42: =IF(DO5,DO39*DO41) -> 398627.4154 | DP42: =IF(DP5,DP39*DP41) -> 400409.256 | DQ42: =IF(DQ5,DQ39*DQ41) -> 402199.0614 | DR42: =IF(DR5,DR39*DR41) -> 403996.8671 | DS42: =IF(DS5,DS39*DS41) -> 405802.7089 | DT42: =IF(DT5,DT39*DT41) -> 407616.6226 | DU42: =IF(DU5,DU39*DU41) -> 409438.6445 | DV42: =IF(DV5,DV39*DV41) -> 411268.8107 | DW42: =IF(DW5,DW39*DW41) -> 413107.1576 | DX42: =IF(DX5,DX39*DX41) -> 414953.7219 | DY42: =IF(DY5,DY39*DY41) -> 416808.5401 | DZ42: =IF(DZ5,DZ39*DZ41) -> 418671.6493 | EA42: =IF(EA5,EA39*EA41) -> 420543.0865 | EB42: =IF(EB5,EB39*EB41) -> 422422.8888 | EC42: =IF(EC5,EC39*EC41) -> 424311.0938 | ED42: =IF(ED5,ED39*ED41) -> 426207.739 | EE42: =IF(EE5,EE39*EE41) -> 428112.862 | EF42: =IF(EF5,EF39*EF41) -> 430026.5008 | EG42: =IF(EG5,EG39*EG41) -> 431948.6935 | EH42: =IF(EH5,EH39*EH41) -> 433879.4783 | EI42: =IF(EI5,EI39*EI41) -> 435818.8935 | EJ42: =IF(EJ5,EJ39*EJ41) -> 437766.9779 | EK42: =IF(EK5,EK39*EK41) -> 439723.77 | EL42: =IF(EL5,EL39*EL41) -> 441689.3089 | EM42: =IF(EM5,EM39*EM41) -> 443663.6336 | EN42: =IF(EN5,EN39*EN41) -> 445646.7835 | EO42: =IF(EO5,EO39*EO41) -> 447638.7979 | EP42: =IF(EP5,EP39*EP41) -> 449639.7165 | EQ42: =IF(EQ5,EQ39*EQ41) -> 451649.579 | ER42: =IF(ER5,ER39*ER41) -> 453668.4256 | ES42: =IF(ES5,ES39*ES41) -> 455696.2962 | ET42: =IF(ET5,ET39*ET41) -> 457733.2313 | EU42: =IF(EU5,EU39*EU41) -> 459779.2714 | EV42: =IF(EV5,EV39*EV41) -> 461834.4572 | EW42: =IF(EW5,EW39*EW41) -> 463898.8296 | EX42: =IF(EX5,EX39*EX41) -> 465972.4295 | EY42: =IF(EY5,EY39*EY41) -> FALSE | EZ42: =IF(EZ5,EZ39*EZ41) -> FALSE | FA42: =IF(FA5,FA39*FA41) -> FALSE | FB42: =IF(FB5,FB39*FB41) -> FALSE | FC42: =IF(FC5,FC39*FC41) -> FALSE | FD42: =IF(FD5,FD39*FD41) -> FALSE | FE42: =IF(FE5,FE39*FE41) -> FALSE | FF42: =IF(FF5,FF39*FF41) -> FALSE | FG42: =IF(FG5,FG39*FG41) -> FALSE | FH42: =IF(FH5,FH39*FH41) -> FALSE | FI42: =IF(FI5,FI39*FI41) -> FALSE | FJ42: =IF(FJ5,FJ39*FJ41) -> FALSE | FK42: =IF(FK5,FK39*FK41) -> FALSE | FL42: =IF(FL5,FL39*FL41) -> FALSE | FM42: =IF(FM5,FM39*FM41) -> FALSE | FN42: =IF(FN5,FN39*FN41) -> FALSE | FO42: =IF(FO5,FO39*FO41) -> FALSE | FP42: =IF(FP5,FP39*FP41) -> FALSE | FQ42: =IF(FQ5,FQ39*FQ41) -> FALSE | FR42: =IF(FR5,FR39*FR41) -> FALSE | FS42: =IF(FS5,FS39*FS41) -> FALSE | FT42: =IF(FT5,FT39*FT41) -> FALSE | FU42: =IF(FU5,FU39*FU41) -> FALSE | FV42: =IF(FV5,FV39*FV41) -> FALSE | FW42: =IF(FW5,FW39*FW41) -> FALSE
D44: Total Revenues | L44: =L42+L39 -> 0 | M44: =M42+M39 -> 0 | N44: 0 | O44: 0 | P44: 0 | Q44: 0 | R44: 0 | S44: 0 | T44: 0 | U44: 0 | V44: 0 | W44: 0 | X44: 0 | Y44: 0 | Z44: 0 | AA44: 0 | AB44: 0 | AC44: 0 | AD44: 0 | AE44: 0 | AF44: 0 | AG44: 0 | AH44: 0 | AI44: 0 | AJ44: 0 | AK44: 0 | AL44: 0 | AM44: 0 | AN44: 0 | AO44: 0 | AP44: 0 | AQ44: 0 | AR44: 0 | AS44: 0 | AT44: 0 | AU44: 0 | AV44: 0 | AW44: 0 | AX44: 0 | AY44: 0 | AZ44: 0 | BA44: 0 | BB44: 0 | BC44: 1066240.914 | BD44: 1068896.579 | BE44: 1071558.857 | BF44: 1074227.767 | BG44: 1166645.267 | BH44: 1169551.007 | BI44: 1172463.983 | BJ44: 1175675.044 | BK44: 1269579.121 | BL44: 1273056.154 | BM44: 1276542.709 | BN44: 1280038.813 | BO44: 1375226.241 | BP44: 1378992.612 | BQ44: 1382769.299 | BR44: 1386556.328 | BS44: 1390353.73 | BT44: 1394161.531 | BU44: 1397979.761 | BV44: 1401808.448 | BW44: 1405647.621 | BX44: 1409497.308 | BY44: =BY42+BY39 -> 1413357.538 | BZ44: 1418628.074 | CA44: 1423918.264 | CB44: 1429228.182 | CC44: 1434557.901 | CD44: 1439907.495 | CE44: 1445277.038 | CF44: 1450666.605 | CG44: 1456076.27 | CH44: 1461506.108 | CI44: 1466956.194 | CJ44: 1472426.604 | CK44: 1477917.414 | CL44: 1483428.699 | CM44: 1488960.537 | CN44: 1494513.003 | CO44: 1500086.175 | CP44: 1506791.47 | CQ44: 1513526.738 | CR44: 1520292.112 | CS44: 1527087.726 | CT44: 1533913.717 | CU44: 1540770.219 | CV44: 1547657.37 | CW44: 1554575.305 | CX44: 1561524.164 | CY44: 1568504.083 | CZ44: 1575515.202 | DA44: 1582557.661 | DB44: 1589631.599 | DC44: 1596737.157 | DD44: 1603874.476 | DE44: 1611043.699 | DF44: 1618244.967 | DG44: 1625478.425 | DH44: =DH42+DH39 -> 1632744.217 | DI44: 1640042.485 | DJ44: 1647373.377 | DK44: 1654737.037 | DL44: 1662133.612 | DM44: 1669563.25 | DN44: 1677026.098 | DO44: 1684522.304 | DP44: 1692052.017 | DQ44: 1699615.389 | DR44: 1707212.567 | DS44: 1714843.705 | DT44: 1722508.954 | DU44: 1730208.466 | DV44: 1737942.394 | DW44: 1745710.892 | DX44: 1753514.115 | DY44: 1761352.218 | DZ44: 1769225.357 | EA44: 1777133.688 | EB44: 1785077.369 | EC44: 1793056.558 | ED44: 1801071.413 | EE44: 1809122.094 | EF44: 1817208.762 | EG44: 1825331.576 | EH44: 1833490.699 | EI44: 1841686.292 | EJ44: 1849918.519 | EK44: 1858187.544 | EL44: 1866493.531 | EM44: 1874836.645 | EN44: 1883217.053 | EO44: 1891634.92 | EP44: 1900090.415 | EQ44: 1908583.705 | ER44: 1917114.96 | ES44: 1925684.349 | ET44: 1934292.042 | EU44: 1942938.212 | EV44: 1951623.029 | EW44: 1960346.667 | EX44: 1969109.299 | EY44: 0 | EZ44: 0 | FA44: 0 | FB44: 0 | FC44: 0 | FD44: 0 | FE44: 0 | FF44: 0 | FG44: 0 | FH44: 0 | FI44: 0 | FJ44: 0 | FK44: 0 | FL44: 0 | FM44: 0 | FN44: 0 | FO44: 0 | FP44: 0 | FQ44: 0 | FR44: 0 | FS44: 0 | FT44: =FT42+FT39 -> 0 | FU44: 0 | FV44: 0 | FW44: 0
B46: Operating Costs
C47: Salaries
D48: Number of Staff | H48: =Assumptions!G38 -> 60 | L48: =$H$48*L5 -> 0 | M48: =$H$48*M5 -> 0 | N48: =$H$48*N5 -> 0 | O48: =$H$48*O5 -> 0 | P48: =$H$48*P5 -> 0 | Q48: =$H$48*Q5 -> 0 | R48: =$H$48*R5 -> 0 | S48: =$H$48*S5 -> 0 | T48: =$H$48*T5 -> 0 | U48: =$H$48*U5 -> 0 | V48: =$H$48*V5 -> 0 | W48: =$H$48*W5 -> 0 | X48: =$H$48*X5 -> 0 | Y48: =$H$48*Y5 -> 0 | Z48: =$H$48*Z5 -> 0 | AA48: =$H$48*AA5 -> 0 | AB48: =$H$48*AB5 -> 0 | AC48: =$H$48*AC5 -> 0 | AD48: =$H$48*AD5 -> 0 | AE48: =$H$48*AE5 -> 0 | AF48: =$H$48*AF5 -> 0 | AG48: =$H$48*AG5 -> 0 | AH48: =$H$48*AH5 -> 0 | AI48: =$H$48*AI5 -> 0 | AJ48: =$H$48*AJ5 -> 0 | AK48: =$H$48*AK5 -> 0 | AL48: =$H$48*AL5 -> 0 | AM48: =$H$48*AM5 -> 0 | AN48: =$H$48*AN5 -> 0 | AO48: =$H$48*AO5 -> 0 | AP48: =$H$48*AP5 -> 0 | AQ48: =$H$48*AQ5 -> 0 | AR48: =$H$48*AR5 -> 0 | AS48: =$H$48*AS5 -> 0 | AT48: =$H$48*AT5 -> 0 | AU48: =$H$48*AU5 -> 0 | AV48: =$H$48*AV5 -> 0 | AW48: =$H$48*AW5 -> 0 | AX48: =$H$48*AX5 -> 0 | AY48: =$H$48*AY5 -> 0 | AZ48: =$H$48*AZ5 -> 0 | BA48: =$H$48*BA5 -> 0 | BB48: =$H$48*BB5 -> 0 | BC48: =$H$48*BC5 -> 60 | BD48: =$H$48*BD5 -> 60 | BE48: =$H$48*BE5 -> 60 | BF48: =$H$48*BF5 -> 60 | BG48: =$H$48*BG5 -> 60 | BH48: =$H$48*BH5 -> 60 | BI48: =$H$48*BI5 -> 60 | BJ48: =$H$48*BJ5 -> 60 | BK48: =$H$48*BK5 -> 60 | BL48: =$H$48*BL5 -> 60 | BM48: =$H$48*BM5 -> 60 | BN48: =$H$48*BN5 -> 60 | BO48: =$H$48*BO5 -> 60 | BP48: =$H$48*BP5 -> 60 | BQ48: =$H$48*BQ5 -> 60 | BR48: =$H$48*BR5 -> 60 | BS48: =$H$48*BS5 -> 60 | BT48: =$H$48*BT5 -> 60 | BU48: =$H$48*BU5 -> 60 | BV48: =$H$48*BV5 -> 60 | BW48: =$H$48*BW5 -> 60 | BX48: =$H$48*BX5 -> 60 | BY48: =$H$48*BY5 -> 60 | BZ48: =$H$48*BZ5 -> 60 | CA48: =$H$48*CA5 -> 60 | CB48: =$H$48*CB5 -> 60 | CC48: =$H$48*CC5 -> 60 | CD48: =$H$48*CD5 -> 60 | CE48: =$H$48*CE5 -> 60 | CF48: =$H$48*CF5 -> 60 | CG48: =$H$48*CG5 -> 60 | CH48: =$H$48*CH5 -> 60 | CI48: =$H$48*CI5 -> 60 | CJ48: =$H$48*CJ5 -> 60 | CK48: =$H$48*CK5 -> 60 | CL48: =$H$48*CL5 -> 60 | CM48: =$H$48*CM5 -> 60 | CN48: =$H$48*CN5 -> 60 | CO48: =$H$48*CO5 -> 60 | CP48: =$H$48*CP5 -> 60 | CQ48: =$H$48*CQ5 -> 60 | CR48: =$H$48*CR5 -> 60 | CS48: =$H$48*CS5 -> 60 | CT48: =$H$48*CT5 -> 60 | CU48: =$H$48*CU5 -> 60 | CV48: =$H$48*CV5 -> 60 | CW48: =$H$48*CW5 -> 60 | CX48: =$H$48*CX5 -> 60 | CY48: =$H$48*CY5 -> 60 | CZ48: =$H$48*CZ5 -> 60 | DA48: =$H$48*DA5 -> 60 | DB48: =$H$48*DB5 -> 60 | DC48: =$H$48*DC5 -> 60 | DD48: =$H$48*DD5 -> 60 | DE48: =$H$48*DE5 -> 60 | DF48: =$H$48*DF5 -> 60 | DG48: =$H$48*DG5 -> 60 | DH48: =$H$48*DH5 -> 60 | DI48: =$H$48*DI5 -> 60 | DJ48: =$H$48*DJ5 -> 60 | DK48: =$H$48*DK5 -> 60 | DL48: =$H$48*DL5 -> 60 | DM48: =$H$48*DM5 -> 60 | DN48: =$H$48*DN5 -> 60 | DO48: =$H$48*DO5 -> 60 | DP48: =$H$48*DP5 -> 60 | DQ48: =$H$48*DQ5 -> 60 | DR48: =$H$48*DR5 -> 60 | DS48: =$H$48*DS5 -> 60 | DT48: =$H$48*DT5 -> 60 | DU48: =$H$48*DU5 -> 60 | DV48: =$H$48*DV5 -> 60 | DW48: =$H$48*DW5 -> 60 | DX48: =$H$48*DX5 -> 60 | DY48: =$H$48*DY5 -> 60 | DZ48: =$H$48*DZ5 -> 60 | EA48: =$H$48*EA5 -> 60 | EB48: =$H$48*EB5 -> 60 | EC48: =$H$48*EC5 -> 60 | ED48: =$H$48*ED5 -> 60 | EE48: =$H$48*EE5 -> 60 | EF48: =$H$48*EF5 -> 60 | EG48: =$H$48*EG5 -> 60 | EH48: =$H$48*EH5 -> 60 | EI48: =$H$48*EI5 -> 60 | EJ48: =$H$48*EJ5 -> 60 | EK48: =$H$48*EK5 -> 60 | EL48: =$H$48*EL5 -> 60 | EM48: =$H$48*EM5 -> 60 | EN48: =$H$48*EN5 -> 60 | EO48: =$H$48*EO5 -> 60 | EP48: =$H$48*EP5 -> 60 | EQ48: =$H$48*EQ5 -> 60 | ER48: =$H$48*ER5 -> 60 | ES48: =$H$48*ES5 -> 60 | ET48: =$H$48*ET5 -> 60 | EU48: =$H$48*EU5 -> 60 | EV48: =$H$48*EV5 -> 60 | EW48: =$H$48*EW5 -> 60 | EX48: =$H$48*EX5 -> 60 | EY48: =$H$48*EY5 -> 0 | EZ48: =$H$48*EZ5 -> 0 | FA48: =$H$48*FA5 -> 0 | FB48: =$H$48*FB5 -> 0 | FC48: =$H$48*FC5 -> 0 | FD48: =$H$48*FD5 -> 0 | FE48: =$H$48*FE5 -> 0 | FF48: =$H$48*FF5 -> 0 | FG48: =$H$48*FG5 -> 0 | FH48: =$H$48*FH5 -> 0 | FI48: =$H$48*FI5 -> 0 | FJ48: =$H$48*FJ5 -> 0 | FK48: =$H$48*FK5 -> 0 | FL48: =$H$48*FL5 -> 0 | FM48: =$H$48*FM5 -> 0 | FN48: =$H$48*FN5 -> 0 | FO48: =$H$48*FO5 -> 0 | FP48: =$H$48*FP5 -> 0 | FQ48: =$H$48*FQ5 -> 0 | FR48: =$H$48*FR5 -> 0 | FS48: =$H$48*FS5 -> 0 | FT48: =$H$48*FT5 -> 0 | FU48: =$H$48*FU5 -> 0 | FV48: =$H$48*FV5 -> 0 | FW48: =$H$48*FW5 -> 0
D50: Average Salary per Annum USD No Inflation | H50: =Assumptions!G39 -> 25000 | L50: =$H$50*L5 -> 0 | M50: =$H$50*M5 -> 0 | N50: =$H$50*N5 -> 0 | O50: =$H$50*O5 -> 0 | P50: =$H$50*P5 -> 0 | Q50: =$H$50*Q5 -> 0 | R50: =$H$50*R5 -> 0 | S50: =$H$50*S5 -> 0 | T50: =$H$50*T5 -> 0 | U50: =$H$50*U5 -> 0 | V50: =$H$50*V5 -> 0 | W50: =$H$50*W5 -> 0 | X50: =$H$50*X5 -> 0 | Y50: =$H$50*Y5 -> 0 | Z50: =$H$50*Z5 -> 0 | AA50: =$H$50*AA5 -> 0 | AB50: =$H$50*AB5 -> 0 | AC50: =$H$50*AC5 -> 0 | AD50: =$H$50*AD5 -> 0 | AE50: =$H$50*AE5 -> 0 | AF50: =$H$50*AF5 -> 0 | AG50: =$H$50*AG5 -> 0 | AH50: =$H$50*AH5 -> 0 | AI50: =$H$50*AI5 -> 0 | AJ50: =$H$50*AJ5 -> 0 | AK50: =$H$50*AK5 -> 0 | AL50: =$H$50*AL5 -> 0 | AM50: =$H$50*AM5 -> 0 | AN50: =$H$50*AN5 -> 0 | AO50: =$H$50*AO5 -> 0 | AP50: =$H$50*AP5 -> 0 | AQ50: =$H$50*AQ5 -> 0 | AR50: =$H$50*AR5 -> 0 | AS50: =$H$50*AS5 -> 0 | AT50: =$H$50*AT5 -> 0 | AU50: =$H$50*AU5 -> 0 | AV50: =$H$50*AV5 -> 0 | AW50: =$H$50*AW5 -> 0 | AX50: =$H$50*AX5 -> 0 | AY50: =$H$50*AY5 -> 0 | AZ50: =$H$50*AZ5 -> 0 | BA50: =$H$50*BA5 -> 0 | BB50: =$H$50*BB5 -> 0 | BC50: =$H$50*BC5 -> 25000 | BD50: =$H$50*BD5 -> 25000 | BE50: =$H$50*BE5 -> 25000 | BF50: =$H$50*BF5 -> 25000 | BG50: =$H$50*BG5 -> 25000 | BH50: =$H$50*BH5 -> 25000 | BI50: =$H$50*BI5 -> 25000 | BJ50: =$H$50*BJ5 -> 25000 | BK50: =$H$50*BK5 -> 25000 | BL50: =$H$50*BL5 -> 25000 | BM50: =$H$50*BM5 -> 25000 | BN50: =$H$50*BN5 -> 25000 | BO50: =$H$50*BO5 -> 25000 | BP50: =$H$50*BP5 -> 25000 | BQ50: =$H$50*BQ5 -> 25000 | BR50: =$H$50*BR5 -> 25000 | BS50: =$H$50*BS5 -> 25000 | BT50: =$H$50*BT5 -> 25000 | BU50: =$H$50*BU5 -> 25000 | BV50: =$H$50*BV5 -> 25000 | BW50: =$H$50*BW5 -> 25000 | BX50: =$H$50*BX5 -> 25000 | BY50: =$H$50*BY5 -> 25000 | BZ50: =$H$50*BZ5 -> 25000 | CA50: =$H$50*CA5 -> 25000 | CB50: =$H$50*CB5 -> 25000 | CC50: =$H$50*CC5 -> 25000 | CD50: =$H$50*CD5 -> 25000 | CE50: =$H$50*CE5 -> 25000 | CF50: =$H$50*CF5 -> 25000 | CG50: =$H$50*CG5 -> 25000 | CH50: =$H$50*CH5 -> 25000 | CI50: =$H$50*CI5 -> 25000 | CJ50: =$H$50*CJ5 -> 25000 | CK50: =$H$50*CK5 -> 25000 | CL50: =$H$50*CL5 -> 25000 | CM50: =$H$50*CM5 -> 25000 | CN50: =$H$50*CN5 -> 25000 | CO50: =$H$50*CO5 -> 25000 | CP50: =$H$50*CP5 -> 25000 | CQ50: =$H$50*CQ5 -> 25000 | CR50: =$H$50*CR5 -> 25000 | CS50: =$H$50*CS5 -> 25000 | CT50: =$H$50*CT5 -> 25000 | CU50: =$H$50*CU5 -> 25000 | CV50: =$H$50*CV5 -> 25000 | CW50: =$H$50*CW5 -> 25000 | CX50: =$H$50*CX5 -> 25000 | CY50: =$H$50*CY5 -> 25000 | CZ50: =$H$50*CZ5 -> 25000 | DA50: =$H$50*DA5 -> 25000 | DB50: =$H$50*DB5 -> 25000 | DC50: =$H$50*DC5 -> 25000 | DD50: =$H$50*DD5 -> 25000 | DE50: =$H$50*DE5 -> 25000 | DF50: =$H$50*DF5 -> 25000 | DG50: =$H$50*DG5 -> 25000 | DH50: =$H$50*DH5 -> 25000 | DI50: =$H$50*DI5 -> 25000 | DJ50: =$H$50*DJ5 -> 25000 | DK50: =$H$50*DK5 -> 25000 | DL50: =$H$50*DL5 -> 25000 | DM50: =$H$50*DM5 -> 25000 | DN50: =$H$50*DN5 -> 25000 | DO50: =$H$50*DO5 -> 25000 | DP50: =$H$50*DP5 -> 25000 | DQ50: =$H$50*DQ5 -> 25000 | DR50: =$H$50*DR5 -> 25000 | DS50: =$H$50*DS5 -> 25000 | DT50: =$H$50*DT5 -> 25000 | DU50: =$H$50*DU5 -> 25000 | DV50: =$H$50*DV5 -> 25000 | DW50: =$H$50*DW5 -> 25000 | DX50: =$H$50*DX5 -> 25000 | DY50: =$H$50*DY5 -> 25000 | DZ50: =$H$50*DZ5 -> 25000 | EA50: =$H$50*EA5 -> 25000 | EB50: =$H$50*EB5 -> 25000 | EC50: =$H$50*EC5 -> 25000 | ED50: =$H$50*ED5 -> 25000 | EE50: =$H$50*EE5 -> 25000 | EF50: =$H$50*EF5 -> 25000 | EG50: =$H$50*EG5 -> 25000 | EH50: =$H$50*EH5 -> 25000 | EI50: =$H$50*EI5 -> 25000 | EJ50: =$H$50*EJ5 -> 25000 | EK50: =$H$50*EK5 -> 25000 | EL50: =$H$50*EL5 -> 25000 | EM50: =$H$50*EM5 -> 25000 | EN50: =$H$50*EN5 -> 25000 | EO50: =$H$50*EO5 -> 25000 | EP50: =$H$50*EP5 -> 25000 | EQ50: =$H$50*EQ5 -> 25000 | ER50: =$H$50*ER5 -> 25000 | ES50: =$H$50*ES5 -> 25000 | ET50: =$H$50*ET5 -> 25000 | EU50: =$H$50*EU5 -> 25000 | EV50: =$H$50*EV5 -> 25000 | EW50: =$H$50*EW5 -> 25000 | EX50: =$H$50*EX5 -> 25000 | EY50: =$H$50*EY5 -> 0 | EZ50: =$H$50*EZ5 -> 0 | FA50: =$H$50*FA5 -> 0 | FB50: =$H$50*FB5 -> 0 | FC50: =$H$50*FC5 -> 0 | FD50: =$H$50*FD5 -> 0 | FE50: =$H$50*FE5 -> 0 | FF50: =$H$50*FF5 -> 0 | FG50: =$H$50*FG5 -> 0 | FH50: =$H$50*FH5 -> 0 | FI50: =$H$50*FI5 -> 0 | FJ50: =$H$50*FJ5 -> 0 | FK50: =$H$50*FK5 -> 0 | FL50: =$H$50*FL5 -> 0 | FM50: =$H$50*FM5 -> 0 | FN50: =$H$50*FN5 -> 0 | FO50: =$H$50*FO5 -> 0 | FP50: =$H$50*FP5 -> 0 | FQ50: =$H$50*FQ5 -> 0 | FR50: =$H$50*FR5 -> 0 | FS50: =$H$50*FS5 -> 0 | FT50: =$H$50*FT5 -> 0 | FU50: =$H$50*FU5 -> 0 | FV50: =$H$50*FV5 -> 0 | FW50: =$H$50*FW5 -> 0
D51: Average Salary per Annum USD With Inflation | L51: =L50*L32 -> 0 | M51: =M50*M32 -> 0 | N51: 0 | O51: 0 | P51: 0 | Q51: 0 | R51: 0 | S51: 0 | T51: 0 | U51: 0 | V51: 0 | W51: 0 | X51: 0 | Y51: 0 | Z51: 0 | AA51: 0 | AB51: 0 | AC51: 0 | AD51: 0 | AE51: 0 | AF51: 0 | AG51: 0 | AH51: 0 | AI51: 0 | AJ51: 0 | AK51: 0 | AL51: 0 | AM51: 0 | AN51: 0 | AO51: 0 | AP51: 0 | AQ51: 0 | AR51: 0 | AS51: 0 | AT51: 0 | AU51: 0 | AV51: 0 | AW51: 0 | AX51: 0 | AY51: 0 | AZ51: 0 | BA51: 0 | BB51: 0 | BC51: 26167.83572 | BD51: 26233.01141 | BE51: 26298.34943 | BF51: 26363.85018 | BG51: 26429.51408 | BH51: 26495.34152 | BI51: 26561.33292 | BJ51: 26634.0772 | BK51: 26707.0207 | BL51: 26780.16398 | BM51: 26853.50758 | BN51: 26927.05205 | BO51: 27000.79793 | BP51: 27074.74579 | BQ51: 27148.89616 | BR51: 27223.24962 | BS51: 27297.80671 | BT51: 27372.56799 | BU51: 27447.53402 | BV51: 27522.70537 | BW51: 27598.08258 | BX51: 27673.66624 | BY51: =BY50*BY32 -> 27749.4569 | BZ51: 27852.93709 | CA51: 27956.80317 | CB51: 28061.05657 | CC51: 28165.69875 | CD51: 28270.73115 | CE51: 28376.15522 | CF51: 28481.97242 | CG51: 28588.18423 | CH51: 28694.79211 | CI51: 28801.79754 | CJ51: 28909.20201 | CK51: 29017.007 | CL51: 29125.21399 | CM51: 29233.82451 | CN51: 29342.84004 | CO51: 29452.2621 | CP51: 29598.43166 | CQ51: 29745.32665 | CR51: 29892.95067 | CS51: 30041.30734 | CT51: 30190.40029 | CU51: 30340.23319 | CV51: 30490.80969 | CW51: 30642.13349 | CX51: 30794.2083 | CY51: 30947.03785 | CZ51: 31100.62588 | DA51: 31254.97616 | DB51: 31410.09247 | DC51: 31565.97861 | DD51: 31722.6384 | DE51: 31880.07568 | DF51: 32053.98783 | DG51: 32228.8487 | DH51: =DH50*DH32 -> 32404.66347 | DI51: =DI50*DI32 -> 32581.43735 | DJ51: =DJ50*DJ32 -> 32759.17556 | DK51: =DK50*DK32 -> 32937.88337 | DL51: =DL50*DL32 -> 33117.56607 | DM51: =DM50*DM32 -> 33298.22897 | DN51: =DN50*DN32 -> 33479.87742 | DO51: =DO50*DO32 -> 33662.5168 | DP51: =DP50*DP32 -> 33846.15252 | DQ51: =DQ50*DQ32 -> 34030.79001 | DR51: =DR50*DR32 -> 34216.43473 | DS51: =DS50*DS32 -> 34403.09217 | DT51: =DT50*DT32 -> 34590.76788 | DU51: =DU50*DU32 -> 34779.46739 | DV51: =DV50*DV32 -> 34969.19629 | DW51: =DW50*DW32 -> 35159.9602 | DX51: =DX50*DX32 -> 35351.76477 | DY51: =DY50*DY32 -> 35544.61567 | DZ51: =DZ50*DZ32 -> 35738.51861 | EA51: =EA50*EA32 -> 35933.47933 | EB51: =EB50*EB32 -> 36129.50359 | EC51: =EC50*EC32 -> 36326.59721 | ED51: =ED50*ED32 -> 36524.76602 | EE51: =EE50*EE32 -> 36724.01587 | EF51: =EF50*EF32 -> 36924.35267 | EG51: =EG50*EG32 -> 37125.78235 | EH51: =EH50*EH32 -> 37328.31087 | EI51: =EI50*EI32 -> 37531.94422 | EJ51: =EJ50*EJ32 -> 37736.68843 | EK51: =EK50*EK32 -> 37942.54956 | EL51: =EL50*EL32 -> 38149.53371 | EM51: =EM50*EM32 -> 38357.64699 | EN51: =EN50*EN32 -> 38566.89558 | EO51: =EO50*EO32 -> 38777.28565 | EP51: =EP50*EP32 -> 38988.82345 | EQ51: =EQ50*EQ32 -> 39201.51523 | ER51: =ER50*ER32 -> 39415.36728 | ES51: =ES50*ES32 -> 39630.38594 | ET51: =ET50*ET32 -> 39846.57757 | EU51: =EU50*EU32 -> 40063.94856 | EV51: =EV50*EV32 -> 40282.50536 | EW51: =EW50*EW32 -> 40502.25443 | EX51: =EX50*EX32 -> 40723.20227 | EY51: =EY50*EY32 -> 0 | EZ51: =EZ50*EZ32 -> 0 | FA51: =FA50*FA32 -> 0 | FB51: =FB50*FB32 -> 0 | FC51: =FC50*FC32 -> 0 | FD51: =FD50*FD32 -> 0 | FE51: =FE50*FE32 -> 0 | FF51: =FF50*FF32 -> 0 | FG51: =FG50*FG32 -> 0 | FH51: =FH50*FH32 -> 0 | FI51: =FI50*FI32 -> 0 | FJ51: =FJ50*FJ32 -> 0 | FK51: =FK50*FK32 -> 0 | FL51: =FL50*FL32 -> 0 | FM51: =FM50*FM32 -> 0 | FN51: =FN50*FN32 -> 0 | FO51: =FO50*FO32 -> 0 | FP51: =FP50*FP32 -> 0 | FQ51: =FQ50*FQ32 -> 0 | FR51: =FR50*FR32 -> 0 | FS51: =FS50*FS32 -> 0 | FT51: =FT50*FT32 -> 0 | FU51: =FU50*FU32 -> 0 | FV51: =FV50*FV32 -> 0 | FW51: =FW50*FW32 -> 0
D52: Average Salary per Period USD With Inflation | L52: =L51*L48*L14 -> 0 | M52: =M51*M48*M14 -> 0 | N52: =N51*N48*N14 -> 0 | O52: =O51*O48*O14 -> 0 | P52: =P51*P48*P14 -> 0 | Q52: =Q51*Q48*Q14 -> 0 | R52: =R51*R48*R14 -> 0 | S52: =S51*S48*S14 -> 0 | T52: =T51*T48*T14 -> 0 | U52: =U51*U48*U14 -> 0 | V52: =V51*V48*V14 -> 0 | W52: =W51*W48*W14 -> 0 | X52: =X51*X48*X14 -> 0 | Y52: =Y51*Y48*Y14 -> 0 | Z52: =Z51*Z48*Z14 -> 0 | AA52: =AA51*AA48*AA14 -> 0 | AB52: =AB51*AB48*AB14 -> 0 | AC52: =AC51*AC48*AC14 -> 0 | AD52: =AD51*AD48*AD14 -> 0 | AE52: =AE51*AE48*AE14 -> 0 | AF52: =AF51*AF48*AF14 -> 0 | AG52: =AG51*AG48*AG14 -> 0 | AH52: =AH51*AH48*AH14 -> 0 | AI52: =AI51*AI48*AI14 -> 0 | AJ52: =AJ51*AJ48*AJ14 -> 0 | AK52: =AK51*AK48*AK14 -> 0 | AL52: =AL51*AL48*AL14 -> 0 | AM52: =AM51*AM48*AM14 -> 0 | AN52: =AN51*AN48*AN14 -> 0 | AO52: =AO51*AO48*AO14 -> 0 | AP52: =AP51*AP48*AP14 -> 0 | AQ52: =AQ51*AQ48*AQ14 -> 0 | AR52: =AR51*AR48*AR14 -> 0 | AS52: =AS51*AS48*AS14 -> 0 | AT52: =AT51*AT48*AT14 -> 0 | AU52: =AU51*AU48*AU14 -> 0 | AV52: =AV51*AV48*AV14 -> 0 | AW52: =AW51*AW48*AW14 -> 0 | AX52: =AX51*AX48*AX14 -> 0 | AY52: =AY51*AY48*AY14 -> 0 | AZ52: =AZ51*AZ48*AZ14 -> 0 | BA52: =BA51*BA48*BA14 -> 0 | BB52: =BB51*BB48*BB14 -> 0 | BC52: =BC51*BC48*BC14 -> 392517.5358 | BD52: =BD51*BD48*BD14 -> 393495.1711 | BE52: =BE51*BE48*BE14 -> 394475.2414 | BF52: =BF51*BF48*BF14 -> 395457.7527 | BG52: =BG51*BG48*BG14 -> 396442.7111 | BH52: =BH51*BH48*BH14 -> 397430.1228 | BI52: =BI51*BI48*BI14 -> 398419.9938 | BJ52: =BJ51*BJ48*BJ14 -> 399511.158 | BK52: =BK51*BK48*BK14 -> 400605.3106 | BL52: =BL51*BL48*BL14 -> 401702.4597 | BM52: =BM51*BM48*BM14 -> 402802.6137 | BN52: =BN51*BN48*BN14 -> 403905.7807 | BO52: =BO51*BO48*BO14 -> 405011.969 | BP52: =BP51*BP48*BP14 -> 406121.1868 | BQ52: =BQ51*BQ48*BQ14 -> 407233.4425 | BR52: =BR51*BR48*BR14 -> 408348.7443 | BS52: =BS51*BS48*BS14 -> 409467.1006 | BT52: =BT51*BT48*BT14 -> 410588.5199 | BU52: =BU51*BU48*BU14 -> 411713.0103 | BV52: =BV51*BV48*BV14 -> 412840.5805 | BW52: =BW51*BW48*BW14 -> 413971.2388 | BX52: =BX51*BX48*BX14 -> 415104.9936 | BY52: =BY51*BY48*BY14 -> 416241.8535 | BZ52: =BZ51*BZ48*BZ14 -> 417794.0563 | CA52: =CA51*CA48*CA14 -> 419352.0475 | CB52: =CB51*CB48*CB14 -> 420915.8486 | CC52: =CC51*CC48*CC14 -> 422485.4813 | CD52: =CD51*CD48*CD14 -> 424060.9672 | CE52: =CE51*CE48*CE14 -> 425642.3283 | CF52: =CF51*CF48*CF14 -> 427229.5863 | CG52: =CG51*CG48*CG14 -> 428822.7635 | CH52: =CH51*CH48*CH14 -> 430421.8817 | CI52: =CI51*CI48*CI14 -> 432026.9632 | CJ52: =CJ51*CJ48*CJ14 -> 433638.0301 | CK52: =CK51*CK48*CK14 -> 435255.1049 | CL52: =CL51*CL48*CL14 -> 436878.2099 | CM52: =CM51*CM48*CM14 -> 438507.3676 | CN52: =CN51*CN48*CN14 -> 440142.6006 | CO52: =CO51*CO48*CO14 -> 441783.9315 | CP52: =CP51*CP48*CP14 -> 443976.4749 | CQ52: =CQ51*CQ48*CQ14 -> 446179.8998 | CR52: =CR51*CR48*CR14 -> 448394.2601 | CS52: =CS51*CS48*CS14 -> 450619.6101 | CT52: =CT51*CT48*CT14 -> 452856.0044 | CU52: =CU51*CU48*CU14 -> 455103.4978 | CV52: =CV51*CV48*CV14 -> 457362.1453 | CW52: =CW51*CW48*CW14 -> 459632.0023 | CX52: =CX51*CX48*CX14 -> 461913.1245 | CY52: =CY51*CY48*CY14 -> 464205.5677 | CZ52: =CZ51*CZ48*CZ14 -> 466509.3882 | DA52: =DA51*DA48*DA14 -> 468824.6424 | DB52: =DB51*DB48*DB14 -> 471151.387 | DC52: =DC51*DC48*DC14 -> 473489.6791 | DD52: =DD51*DD48*DD14 -> 475839.576 | DE52: =DE51*DE48*DE14 -> 478201.1352 | DF52: =DF51*DF48*DF14 -> 480809.8174 | DG52: =DG51*DG48*DG14 -> 483432.7305 | DH52: =DH51*DH48*DH14 -> 486069.9521 | DI52: =DI51*DI48*DI14 -> 488721.5602 | DJ52: =DJ51*DJ48*DJ14 -> 491387.6334 | DK52: =DK51*DK48*DK14 -> 494068.2505 | DL52: =DL51*DL48*DL14 -> 496763.491 | DM52: =DM51*DM48*DM14 -> 499473.4345 | DN52: =DN51*DN48*DN14 -> 502198.1613 | DO52: =DO51*DO48*DO14 -> 504937.7521 | DP52: =DP51*DP48*DP14 -> 507692.2878 | DQ52: =DQ51*DQ48*DQ14 -> 510461.8501 | DR52: =DR51*DR48*DR14 -> 513246.5209 | DS52: =DS51*DS48*DS14 -> 516046.3826 | DT52: =DT51*DT48*DT14 -> 518861.5181 | DU52: =DU51*DU48*DU14 -> 521692.0108 | DV52: =DV51*DV48*DV14 -> 524537.9443 | DW52: =DW51*DW48*DW14 -> 527399.403 | DX52: =DX51*DX48*DX14 -> 530276.4715 | DY52: =DY51*DY48*DY14 -> 533169.235 | DZ52: =DZ51*DZ48*DZ14 -> 536077.7791 | EA52: =EA51*EA48*EA14 -> 539002.1899 | EB52: =EB51*EB48*EB14 -> 541942.5539 | EC52: =EC51*EC48*EC14 -> 544898.9582 | ED52: =ED51*ED48*ED14 -> 547871.4903 | EE52: =EE51*EE48*EE14 -> 550860.2381 | EF52: =EF51*EF48*EF14 -> 553865.2901 | EG52: =EG51*EG48*EG14 -> 556886.7353 | EH52: =EH51*EH48*EH14 -> 559924.663 | EI52: =EI51*EI48*EI14 -> 562979.1633 | EJ52: =EJ51*EJ48*EJ14 -> 566050.3265 | EK52: =EK51*EK48*EK14 -> 569138.2435 | EL52: =EL51*EL48*EL14 -> 572243.0056 | EM52: =EM51*EM48*EM14 -> 575364.7049 | EN52: =EN51*EN48*EN14 -> 578503.4337 | EO52: =EO51*EO48*EO14 -> 581659.2848 | EP52: =EP51*EP48*EP14 -> 584832.3518 | EQ52: =EQ51*EQ48*EQ14 -> 588022.7284 | ER52: =ER51*ER48*ER14 -> 591230.5092 | ES52: =ES51*ES48*ES14 -> 594455.7891 | ET52: =ET51*ET48*ET14 -> 597698.6635 | EU52: =EU51*EU48*EU14 -> 600959.2284 | EV52: =EV51*EV48*EV14 -> 604237.5804 | EW52: =EW51*EW48*EW14 -> 607533.8164 | EX52: =EX51*EX48*EX14 -> 610848.0341 | EY52: =EY51*EY48*EY14 -> 0 | EZ52: =EZ51*EZ48*EZ14 -> 0 | FA52: =FA51*FA48*FA14 -> 0 | FB52: =FB51*FB48*FB14 -> 0 | FC52: =FC51*FC48*FC14 -> 0 | FD52: =FD51*FD48*FD14 -> 0 | FE52: =FE51*FE48*FE14 -> 0 | FF52: =FF51*FF48*FF14 -> 0 | FG52: =FG51*FG48*FG14 -> 0 | FH52: =FH51*FH48*FH14 -> 0 | FI52: =FI51*FI48*FI14 -> 0 | FJ52: =FJ51*FJ48*FJ14 -> 0 | FK52: =FK51*FK48*FK14 -> 0 | FL52: =FL51*FL48*FL14 -> 0 | FM52: =FM51*FM48*FM14 -> 0 | FN52: =FN51*FN48*FN14 -> 0 | FO52: =FO51*FO48*FO14 -> 0 | FP52: =FP51*FP48*FP14 -> 0 | FQ52: =FQ51*FQ48*FQ14 -> 0 | FR52: =FR51*FR48*FR14 -> 0 | FS52: =FS51*FS48*FS14 -> 0 | FT52: =FT51*FT48*FT14 -> 0 | FU52: =FU51*FU48*FU14 -> 0 | FV52: =FV51*FV48*FV14 -> 0 | FW52: =FW51*FW48*FW14 -> 0
C54: Other Costs
D55: Overhead | H55: =Assumptions!G40 -> 0.3 | L55: =$H55*L$52 -> 0 | M55: =$H55*M$52 -> 0 | N55: =$H55*N$52 -> 0 | O55: =$H55*O$52 -> 0 | P55: =$H55*P$52 -> 0 | Q55: =$H55*Q$52 -> 0 | R55: =$H55*R$52 -> 0 | S55: =$H55*S$52 -> 0 | T55: =$H55*T$52 -> 0 | U55: =$H55*U$52 -> 0 | V55: =$H55*V$52 -> 0 | W55: =$H55*W$52 -> 0 | X55: =$H55*X$52 -> 0 | Y55: =$H55*Y$52 -> 0 | Z55: =$H55*Z$52 -> 0 | AA55: =$H55*AA$52 -> 0 | AB55: =$H55*AB$52 -> 0 | AC55: =$H55*AC$52 -> 0 | AD55: =$H55*AD$52 -> 0 | AE55: =$H55*AE$52 -> 0 | AF55: =$H55*AF$52 -> 0 | AG55: =$H55*AG$52 -> 0 | AH55: =$H55*AH$52 -> 0 | AI55: =$H55*AI$52 -> 0 | AJ55: =$H55*AJ$52 -> 0 | AK55: =$H55*AK$52 -> 0 | AL55: =$H55*AL$52 -> 0 | AM55: =$H55*AM$52 -> 0 | AN55: =$H55*AN$52 -> 0 | AO55: =$H55*AO$52 -> 0 | AP55: =$H55*AP$52 -> 0 | AQ55: =$H55*AQ$52 -> 0 | AR55: =$H55*AR$52 -> 0 | AS55: =$H55*AS$52 -> 0 | AT55: =$H55*AT$52 -> 0 | AU55: =$H55*AU$52 -> 0 | AV55: =$H55*AV$52 -> 0 | AW55: =$H55*AW$52 -> 0 | AX55: =$H55*AX$52 -> 0 | AY55: =$H55*AY$52 -> 0 | AZ55: =$H55*AZ$52 -> 0 | BA55: =$H55*BA$52 -> 0 | BB55: =$H55*BB$52 -> 0 | BC55: =$H55*BC$52 -> 117755.2607 | BD55: =$H55*BD$52 -> 118048.5513 | BE55: =$H55*BE$52 -> 118342.5724 | BF55: =$H55*BF$52 -> 118637.3258 | BG55: =$H55*BG$52 -> 118932.8133 | BH55: =$H55*BH$52 -> 119229.0368 | BI55: =$H55*BI$52 -> 119525.9981 | BJ55: =$H55*BJ$52 -> 119853.3474 | BK55: =$H55*BK$52 -> 120181.5932 | BL55: =$H55*BL$52 -> 120510.7379 | BM55: =$H55*BM$52 -> 120840.7841 | BN55: =$H55*BN$52 -> 121171.7342 | BO55: =$H55*BO$52 -> 121503.5907 | BP55: =$H55*BP$52 -> 121836.356 | BQ55: =$H55*BQ$52 -> 122170.0327 | BR55: =$H55*BR$52 -> 122504.6233 | BS55: =$H55*BS$52 -> 122840.1302 | BT55: =$H55*BT$52 -> 123176.556 | BU55: =$H55*BU$52 -> 123513.9031 | BV55: =$H55*BV$52 -> 123852.1741 | BW55: =$H55*BW$52 -> 124191.3716 | BX55: =$H55*BX$52 -> 124531.4981 | BY55: =$H55*BY$52 -> 124872.556 | BZ55: =$H55*BZ$52 -> 125338.2169 | CA55: =$H55*CA$52 -> 125805.6143 | CB55: =$H55*CB$52 -> 126274.7546 | CC55: =$H55*CC$52 -> 126745.6444 | CD55: =$H55*CD$52 -> 127218.2902 | CE55: =$H55*CE$52 -> 127692.6985 | CF55: =$H55*CF$52 -> 128168.8759 | CG55: =$H55*CG$52 -> 128646.829 | CH55: =$H55*CH$52 -> 129126.5645 | CI55: =$H55*CI$52 -> 129608.089 | CJ55: =$H55*CJ$52 -> 130091.409 | CK55: =$H55*CK$52 -> 130576.5315 | CL55: =$H55*CL$52 -> 131063.463 | CM55: =$H55*CM$52 -> 131552.2103 | CN55: =$H55*CN$52 -> 132042.7802 | CO55: =$H55*CO$52 -> 132535.1794 | CP55: =$H55*CP$52 -> 133192.9425 | CQ55: =$H55*CQ$52 -> 133853.9699 | CR55: =$H55*CR$52 -> 134518.278 | CS55: =$H55*CS$52 -> 135185.883 | CT55: =$H55*CT$52 -> 135856.8013 | CU55: =$H55*CU$52 -> 136531.0493 | CV55: =$H55*CV$52 -> 137208.6436 | CW55: =$H55*CW$52 -> 137889.6007 | CX55: =$H55*CX$52 -> 138573.9374 | CY55: =$H55*CY$52 -> 139261.6703 | CZ55: =$H55*CZ$52 -> 139952.8165 | DA55: =$H55*DA$52 -> 140647.3927 | DB55: =$H55*DB$52 -> 141345.4161 | DC55: =$H55*DC$52 -> 142046.9037 | DD55: =$H55*DD$52 -> 142751.8728 | DE55: =$H55*DE$52 -> 143460.3406 | DF55: =$H55*DF$52 -> 144242.9452 | DG55: =$H55*DG$52 -> 145029.8191 | DH55: =$H55*DH$52 -> 145820.9856 | DI55: 146616.4681 | DJ55: 147416.29 | DK55: 148220.4752 | DL55: 149029.0473 | DM55: 149842.0304 | DN55: 150659.4484 | DO55: 151481.3256 | DP55: 152307.6863 | DQ55: 153138.555 | DR55: 153973.9563 | DS55: 154813.9148 | DT55: 155658.4554 | DU55: 156507.6032 | DV55: 157361.3833 | DW55: 158219.8209 | DX55: 159082.9415 | DY55: 159950.7705 | DZ55: 160823.3337 | EA55: 161700.657 | EB55: 162582.7662 | EC55: 163469.6875 | ED55: 164361.4471 | EE55: 165258.0714 | EF55: 166159.587 | EG55: 167066.0206 | EH55: 167977.3989 | EI55: 168893.749 | EJ55: 169815.0979 | EK55: 170741.473 | EL55: 171672.9017 | EM55: 172609.4115 | EN55: 173551.0301 | EO55: 174497.7854 | EP55: 175449.7055 | EQ55: 176406.8185 | ER55: 177369.1528 | ES55: 178336.7367 | ET55: 179309.599 | EU55: 180287.7685 | EV55: 181271.2741 | EW55: 182260.1449 | EX55: 183254.4102 | EY55: 0 | EZ55: 0 | FA55: 0 | FB55: 0 | FC55: 0 | FD55: 0 | FE55: 0 | FF55: 0 | FG55: 0 | FH55: 0 | FI55: 0 | FJ55: 0 | FK55: 0 | FL55: 0 | FM55: 0 | FN55: 0 | FO55: 0 | FP55: 0 | FQ55: 0 | FR55: 0 | FS55: 0 | FT55: =$H55*FT$52 -> 0 | FU55: 0 | FV55: 0 | FW55: 0
D56: Other Cost | H56: =Assumptions!G41 -> 0.6 | L56: =$H56*L$52 -> 0 | M56: =$H56*M$52 -> 0 | N56: =$H56*N$52 -> 0 | O56: =$H56*O$52 -> 0 | P56: =$H56*P$52 -> 0 | Q56: =$H56*Q$52 -> 0 | R56: =$H56*R$52 -> 0 | S56: =$H56*S$52 -> 0 | T56: =$H56*T$52 -> 0 | U56: =$H56*U$52 -> 0 | V56: =$H56*V$52 -> 0 | W56: =$H56*W$52 -> 0 | X56: =$H56*X$52 -> 0 | Y56: =$H56*Y$52 -> 0 | Z56: =$H56*Z$52 -> 0 | AA56: =$H56*AA$52 -> 0 | AB56: =$H56*AB$52 -> 0 | AC56: =$H56*AC$52 -> 0 | AD56: =$H56*AD$52 -> 0 | AE56: =$H56*AE$52 -> 0 | AF56: =$H56*AF$52 -> 0 | AG56: =$H56*AG$52 -> 0 | AH56: =$H56*AH$52 -> 0 | AI56: =$H56*AI$52 -> 0 | AJ56: =$H56*AJ$52 -> 0 | AK56: =$H56*AK$52 -> 0 | AL56: =$H56*AL$52 -> 0 | AM56: =$H56*AM$52 -> 0 | AN56: =$H56*AN$52 -> 0 | AO56: =$H56*AO$52 -> 0 | AP56: =$H56*AP$52 -> 0 | AQ56: =$H56*AQ$52 -> 0 | AR56: =$H56*AR$52 -> 0 | AS56: =$H56*AS$52 -> 0 | AT56: =$H56*AT$52 -> 0 | AU56: =$H56*AU$52 -> 0 | AV56: =$H56*AV$52 -> 0 | AW56: =$H56*AW$52 -> 0 | AX56: =$H56*AX$52 -> 0 | AY56: =$H56*AY$52 -> 0 | AZ56: =$H56*AZ$52 -> 0 | BA56: =$H56*BA$52 -> 0 | BB56: =$H56*BB$52 -> 0 | BC56: =$H56*BC$52 -> 235510.5215 | BD56: =$H56*BD$52 -> 236097.1027 | BE56: =$H56*BE$52 -> 236685.1448 | BF56: =$H56*BF$52 -> 237274.6516 | BG56: =$H56*BG$52 -> 237865.6267 | BH56: =$H56*BH$52 -> 238458.0737 | BI56: =$H56*BI$52 -> 239051.9963 | BJ56: =$H56*BJ$52 -> 239706.6948 | BK56: =$H56*BK$52 -> 240363.1863 | BL56: =$H56*BL$52 -> 241021.4758 | BM56: =$H56*BM$52 -> 241681.5682 | BN56: =$H56*BN$52 -> 242343.4684 | BO56: =$H56*BO$52 -> 243007.1814 | BP56: =$H56*BP$52 -> 243672.7121 | BQ56: =$H56*BQ$52 -> 244340.0655 | BR56: =$H56*BR$52 -> 245009.2466 | BS56: =$H56*BS$52 -> 245680.2604 | BT56: =$H56*BT$52 -> 246353.1119 | BU56: =$H56*BU$52 -> 247027.8062 | BV56: =$H56*BV$52 -> 247704.3483 | BW56: =$H56*BW$52 -> 248382.7433 | BX56: =$H56*BX$52 -> 249062.9961 | BY56: =$H56*BY$52 -> 249745.1121 | BZ56: =$H56*BZ$52 -> 250676.4338 | CA56: =$H56*CA$52 -> 251611.2285 | CB56: =$H56*CB$52 -> 252549.5092 | CC56: =$H56*CC$52 -> 253491.2888 | CD56: =$H56*CD$52 -> 254436.5803 | CE56: =$H56*CE$52 -> 255385.397 | CF56: =$H56*CF$52 -> 256337.7518 | CG56: =$H56*CG$52 -> 257293.6581 | CH56: =$H56*CH$52 -> 258253.129 | CI56: =$H56*CI$52 -> 259216.1779 | CJ56: =$H56*CJ$52 -> 260182.8181 | CK56: =$H56*CK$52 -> 261153.063 | CL56: =$H56*CL$52 -> 262126.926 | CM56: =$H56*CM$52 -> 263104.4206 | CN56: =$H56*CN$52 -> 264085.5604 | CO56: =$H56*CO$52 -> 265070.3589 | CP56: =$H56*CP$52 -> 266385.885 | CQ56: =$H56*CQ$52 -> 267707.9399 | CR56: =$H56*CR$52 -> 269036.5561 | CS56: =$H56*CS$52 -> 270371.7661 | CT56: =$H56*CT$52 -> 271713.6027 | CU56: =$H56*CU$52 -> 273062.0987 | CV56: =$H56*CV$52 -> 274417.2872 | CW56: =$H56*CW$52 -> 275779.2014 | CX56: =$H56*CX$52 -> 277147.8747 | CY56: =$H56*CY$52 -> 278523.3406 | CZ56: =$H56*CZ$52 -> 279905.6329 | DA56: =$H56*DA$52 -> 281294.7854 | DB56: =$H56*DB$52 -> 282690.8322 | DC56: =$H56*DC$52 -> 284093.8075 | DD56: =$H56*DD$52 -> 285503.7456 | DE56: =$H56*DE$52 -> 286920.6811 | DF56: =$H56*DF$52 -> 288485.8904 | DG56: =$H56*DG$52 -> 290059.6383 | DH56: 291641.9712 | DI56: 293232.9361 | DJ56: 294832.58 | DK56: 296440.9503 | DL56: 298058.0946 | DM56: 299684.0607 | DN56: 301318.8968 | DO56: 302962.6512 | DP56: 304615.3727 | DQ56: 306277.1101 | DR56: 307947.9125 | DS56: 309627.8296 | DT56: 311316.9109 | DU56: 313015.2065 | DV56: 314722.7666 | DW56: 316439.6418 | DX56: 318165.8829 | DY56: 319901.541 | DZ56: 321646.6675 | EA56: 323401.3139 | EB56: 325165.5323 | EC56: 326939.3749 | ED56: 328722.8942 | EE56: 330516.1428 | EF56: 332319.1741 | EG56: 334132.0412 | EH56: 335954.7978 | EI56: 337787.498 | EJ56: 339630.1959 | EK56: 341482.9461 | EL56: 343345.8034 | EM56: 345218.8229 | EN56: 347102.0602 | EO56: 348995.5709 | EP56: 350899.4111 | EQ56: 352813.637 | ER56: 354738.3055 | ES56: 356673.4734 | ET56: 358619.1981 | EU56: 360575.5371 | EV56: 362542.5482 | EW56: 364520.2899 | EX56: 366508.8205 | EY56: 0 | EZ56: 0 | FA56: 0 | FB56: 0 | FC56: 0 | FD56: 0 | FE56: 0 | FF56: 0 | FG56: 0 | FH56: 0 | FI56: 0 | FJ56: 0 | FK56: 0 | FL56: 0 | FM56: 0 | FN56: 0 | FO56: 0 | FP56: 0 | FQ56: 0 | FR56: 0 | FS56: 0 | FT56: 0 | FU56: 0 | FV56: 0 | FW56: 0
D57: Food and Other Costs | H57: =Assumptions!G42 -> 0.39 | L57: =$H57*L$52 -> 0 | M57: =$H57*M$52 -> 0 | N57: =$H57*N$52 -> 0 | O57: =$H57*O$52 -> 0 | P57: =$H57*P$52 -> 0 | Q57: =$H57*Q$52 -> 0 | R57: =$H57*R$52 -> 0 | S57: =$H57*S$52 -> 0 | T57: =$H57*T$52 -> 0 | U57: =$H57*U$52 -> 0 | V57: =$H57*V$52 -> 0 | W57: =$H57*W$52 -> 0 | X57: =$H57*X$52 -> 0 | Y57: =$H57*Y$52 -> 0 | Z57: =$H57*Z$52 -> 0 | AA57: =$H57*AA$52 -> 0 | AB57: =$H57*AB$52 -> 0 | AC57: =$H57*AC$52 -> 0 | AD57: =$H57*AD$52 -> 0 | AE57: =$H57*AE$52 -> 0 | AF57: =$H57*AF$52 -> 0 | AG57: =$H57*AG$52 -> 0 | AH57: =$H57*AH$52 -> 0 | AI57: =$H57*AI$52 -> 0 | AJ57: =$H57*AJ$52 -> 0 | AK57: =$H57*AK$52 -> 0 | AL57: =$H57*AL$52 -> 0 | AM57: =$H57*AM$52 -> 0 | AN57: =$H57*AN$52 -> 0 | AO57: =$H57*AO$52 -> 0 | AP57: =$H57*AP$52 -> 0 | AQ57: =$H57*AQ$52 -> 0 | AR57: =$H57*AR$52 -> 0 | AS57: =$H57*AS$52 -> 0 | AT57: =$H57*AT$52 -> 0 | AU57: =$H57*AU$52 -> 0 | AV57: =$H57*AV$52 -> 0 | AW57: =$H57*AW$52 -> 0 | AX57: =$H57*AX$52 -> 0 | AY57: =$H57*AY$52 -> 0 | AZ57: =$H57*AZ$52 -> 0 | BA57: =$H57*BA$52 -> 0 | BB57: =$H57*BB$52 -> 0 | BC57: =$H57*BC$52 -> 153081.839 | BD57: =$H57*BD$52 -> 153463.1167 | BE57: =$H57*BE$52 -> 153845.3441 | BF57: =$H57*BF$52 -> 154228.5236 | BG57: =$H57*BG$52 -> 154612.6573 | BH57: =$H57*BH$52 -> 154997.7479 | BI57: =$H57*BI$52 -> 155383.7976 | BJ57: =$H57*BJ$52 -> 155809.3516 | BK57: =$H57*BK$52 -> 156236.0711 | BL57: =$H57*BL$52 -> 156663.9593 | BM57: =$H57*BM$52 -> 157093.0194 | BN57: =$H57*BN$52 -> 157523.2545 | BO57: =$H57*BO$52 -> 157954.6679 | BP57: =$H57*BP$52 -> 158387.2629 | BQ57: =$H57*BQ$52 -> 158821.0426 | BR57: =$H57*BR$52 -> 159256.0103 | BS57: =$H57*BS$52 -> 159692.1693 | BT57: =$H57*BT$52 -> 160129.5227 | BU57: =$H57*BU$52 -> 160568.074 | BV57: =$H57*BV$52 -> 161007.8264 | BW57: =$H57*BW$52 -> 161448.7831 | BX57: =$H57*BX$52 -> 161890.9475 | BY57: =$H57*BY$52 -> 162334.3228 | BZ57: =$H57*BZ$52 -> 162939.682 | CA57: =$H57*CA$52 -> 163547.2985 | CB57: =$H57*CB$52 -> 164157.181 | CC57: =$H57*CC$52 -> 164769.3377 | CD57: =$H57*CD$52 -> 165383.7772 | CE57: =$H57*CE$52 -> 166000.508 | CF57: =$H57*CF$52 -> 166619.5387 | CG57: =$H57*CG$52 -> 167240.8778 | CH57: =$H57*CH$52 -> 167864.5339 | CI57: =$H57*CI$52 -> 168490.5156 | CJ57: =$H57*CJ$52 -> 169118.8318 | CK57: =$H57*CK$52 -> 169749.4909 | CL57: =$H57*CL$52 -> 170382.5019 | CM57: =$H57*CM$52 -> 171017.8734 | CN57: =$H57*CN$52 -> 171655.6142 | CO57: =$H57*CO$52 -> 172295.7333 | CP57: =$H57*CP$52 -> 173150.8252 | CQ57: =$H57*CQ$52 -> 174010.1609 | CR57: =$H57*CR$52 -> 174873.7614 | CS57: =$H57*CS$52 -> 175741.648 | CT57: =$H57*CT$52 -> 176613.8417 | CU57: =$H57*CU$52 -> 177490.3641 | CV57: =$H57*CV$52 -> 178371.2367 | CW57: =$H57*CW$52 -> 179256.4809 | CX57: =$H57*CX$52 -> 180146.1186 | CY57: =$H57*CY$52 -> 181040.1714 | CZ57: =$H57*CZ$52 -> 181938.6614 | DA57: =$H57*DA$52 -> 182841.6105 | DB57: =$H57*DB$52 -> 183749.0409 | DC57: =$H57*DC$52 -> 184660.9748 | DD57: =$H57*DD$52 -> 185577.4346 | DE57: =$H57*DE$52 -> 186498.4427 | DF57: =$H57*DF$52 -> 187515.8288 | DG57: =$H57*DG$52 -> 188538.7649 | DH57: 189567.2813 | DI57: 190601.4085 | DJ57: 191641.177 | DK57: 192686.6177 | DL57: 193737.7615 | DM57: 194794.6395 | DN57: 195857.2829 | DO57: 196925.7233 | DP57: 197999.9922 | DQ57: 199080.1215 | DR57: 200166.1431 | DS57: 201258.0892 | DT57: 202355.9921 | DU57: 203459.8842 | DV57: 204569.7983 | DW57: 205685.7672 | DX57: 206807.8239 | DY57: 207936.0017 | DZ57: 209070.3339 | EA57: 210210.8541 | EB57: 211357.596 | EC57: 212510.5937 | ED57: 213669.8812 | EE57: 214835.4928 | EF57: 216007.4631 | EG57: 217185.8268 | EH57: 218370.6186 | EI57: 219561.8737 | EJ57: 220759.6273 | EK57: 221963.9149 | EL57: 223174.7722 | EM57: 224392.2349 | EN57: 225616.3391 | EO57: 226847.1211 | EP57: 228084.6172 | EQ57: 229328.8641 | ER57: 230579.8986 | ES57: 231837.7577 | ET57: 233102.4788 | EU57: 234374.0991 | EV57: 235652.6564 | EW57: 236938.1884 | EX57: 238230.7333 | EY57: 0 | EZ57: 0 | FA57: 0 | FB57: 0 | FC57: 0 | FD57: 0 | FE57: 0 | FF57: 0 | FG57: 0 | FH57: 0 | FI57: 0 | FJ57: 0 | FK57: 0 | FL57: 0 | FM57: 0 | FN57: 0 | FO57: 0 | FP57: 0 | FQ57: 0 | FR57: 0 | FS57: 0 | FT57: 0 | FU57: 0 | FV57: 0 | FW57: 0
D58: Total Other Cost | L58: =SUM(L55:L57) -> 0 | M58: =SUM(M55:M57) -> 0 | N58: =SUM(N55:N57) -> 0 | O58: =SUM(O55:O57) -> 0 | P58: =SUM(P55:P57) -> 0 | Q58: =SUM(Q55:Q57) -> 0 | R58: =SUM(R55:R57) -> 0 | S58: =SUM(S55:S57) -> 0 | T58: =SUM(T55:T57) -> 0 | U58: =SUM(U55:U57) -> 0 | V58: =SUM(V55:V57) -> 0 | W58: =SUM(W55:W57) -> 0 | X58: =SUM(X55:X57) -> 0 | Y58: =SUM(Y55:Y57) -> 0 | Z58: =SUM(Z55:Z57) -> 0 | AA58: =SUM(AA55:AA57) -> 0 | AB58: =SUM(AB55:AB57) -> 0 | AC58: =SUM(AC55:AC57) -> 0 | AD58: =SUM(AD55:AD57) -> 0 | AE58: =SUM(AE55:AE57) -> 0 | AF58: =SUM(AF55:AF57) -> 0 | AG58: =SUM(AG55:AG57) -> 0 | AH58: =SUM(AH55:AH57) -> 0 | AI58: =SUM(AI55:AI57) -> 0 | AJ58: =SUM(AJ55:AJ57) -> 0 | AK58: =SUM(AK55:AK57) -> 0 | AL58: =SUM(AL55:AL57) -> 0 | AM58: =SUM(AM55:AM57) -> 0 | AN58: =SUM(AN55:AN57) -> 0 | AO58: =SUM(AO55:AO57) -> 0 | AP58: =SUM(AP55:AP57) -> 0 | AQ58: =SUM(AQ55:AQ57) -> 0 | AR58: =SUM(AR55:AR57) -> 0 | AS58: =SUM(AS55:AS57) -> 0 | AT58: =SUM(AT55:AT57) -> 0 | AU58: =SUM(AU55:AU57) -> 0 | AV58: =SUM(AV55:AV57) -> 0 | AW58: =SUM(AW55:AW57) -> 0 | AX58: =SUM(AX55:AX57) -> 0 | AY58: =SUM(AY55:AY57) -> 0 | AZ58: =SUM(AZ55:AZ57) -> 0 | BA58: =SUM(BA55:BA57) -> 0 | BB58: =SUM(BB55:BB57) -> 0 | BC58: =SUM(BC55:BC57) -> 506347.6212 | BD58: =SUM(BD55:BD57) -> 507608.7707 | BE58: =SUM(BE55:BE57) -> 508873.0614 | BF58: =SUM(BF55:BF57) -> 510140.501 | BG58: =SUM(BG55:BG57) -> 511411.0974 | BH58: =SUM(BH55:BH57) -> 512684.8584 | BI58: =SUM(BI55:BI57) -> 513961.792 | BJ58: =SUM(BJ55:BJ57) -> 515369.3938 | BK58: =SUM(BK55:BK57) -> 516780.8506 | BL58: =SUM(BL55:BL57) -> 518196.1731 | BM58: =SUM(BM55:BM57) -> 519615.3717 | BN58: =SUM(BN55:BN57) -> 521038.4571 | BO58: =SUM(BO55:BO57) -> 522465.44 | BP58: =SUM(BP55:BP57) -> 523896.331 | BQ58: =SUM(BQ55:BQ57) -> 525331.1408 | BR58: =SUM(BR55:BR57) -> 526769.8802 | BS58: =SUM(BS55:BS57) -> 528212.5598 | BT58: =SUM(BT55:BT57) -> 529659.1906 | BU58: =SUM(BU55:BU57) -> 531109.7833 | BV58: =SUM(BV55:BV57) -> 532564.3488 | BW58: =SUM(BW55:BW57) -> 534022.898 | BX58: =SUM(BX55:BX57) -> 535485.4417 | BY58: =SUM(BY55:BY57) -> 536951.991 | BZ58: =SUM(BZ55:BZ57) -> 538954.3327 | CA58: =SUM(CA55:CA57) -> 540964.1413 | CB58: =SUM(CB55:CB57) -> 542981.4447 | CC58: =SUM(CC55:CC57) -> 545006.2708 | CD58: =SUM(CD55:CD57) -> 547038.6477 | CE58: =SUM(CE55:CE57) -> 549078.6034 | CF58: =SUM(CF55:CF57) -> 551126.1664 | CG58: =SUM(CG55:CG57) -> 553181.3649 | CH58: =SUM(CH55:CH57) -> 555244.2274 | CI58: =SUM(CI55:CI57) -> 557314.7825 | CJ58: =SUM(CJ55:CJ57) -> 559393.0589 | CK58: =SUM(CK55:CK57) -> 561479.0854 | CL58: =SUM(CL55:CL57) -> 563572.8908 | CM58: =SUM(CM55:CM57) -> 565674.5042 | CN58: =SUM(CN55:CN57) -> 567783.9548 | CO58: =SUM(CO55:CO57) -> 569901.2716 | CP58: =SUM(CP55:CP57) -> 572729.6526 | CQ58: =SUM(CQ55:CQ57) -> 575572.0707 | CR58: =SUM(CR55:CR57) -> 578428.5955 | CS58: =SUM(CS55:CS57) -> 581299.2971 | CT58: =SUM(CT55:CT57) -> 584184.2457 | CU58: =SUM(CU55:CU57) -> 587083.5121 | CV58: =SUM(CV55:CV57) -> 589997.1674 | CW58: =SUM(CW55:CW57) -> 592925.283 | CX58: =SUM(CX55:CX57) -> 595867.9306 | CY58: =SUM(CY55:CY57) -> 598825.1824 | CZ58: =SUM(CZ55:CZ57) -> 601797.1108 | DA58: =SUM(DA55:DA57) -> 604783.7887 | DB58: =SUM(DB55:DB57) -> 607785.2892 | DC58: =SUM(DC55:DC57) -> 610801.686 | DD58: =SUM(DD55:DD57) -> 613833.053 | DE58: =SUM(DE55:DE57) -> 616879.4644 | DF58: =SUM(DF55:DF57) -> 620244.6645 | DG58: =SUM(DG55:DG57) -> 623628.2223 | DH58: =SUM(DH55:DH57) -> 627030.2382 | DI58: 630450.8127 | DJ58: 633890.0471 | DK58: 637348.0432 | DL58: 640824.9034 | DM58: 644320.7305 | DN58: 647835.6281 | DO58: 651369.7002 | DP58: 654923.0513 | DQ58: 658495.7866 | DR58: 662088.0119 | DS58: 665699.8336 | DT58: 669331.3584 | DU58: 672982.6939 | DV58: 676653.9482 | DW58: 680345.2299 | DX58: 684056.6483 | DY58: 687788.3132 | DZ58: 691540.3351 | EA58: 695312.825 | EB58: 699105.8945 | EC58: 702919.6561 | ED58: 706754.2224 | EE58: 710609.7071 | EF58: 714486.2242 | EG58: 718383.8885 | EH58: 722302.8153 | EI58: 726243.1207 | EJ58: 730204.9212 | EK58: 734188.3341 | EL58: 738193.4773 | EM58: 742220.4693 | EN58: 746269.4294 | EO58: 750340.4774 | EP58: 754433.7338 | EQ58: 758549.3196 | ER58: 762687.3569 | ES58: 766847.9679 | ET58: 771031.2759 | EU58: 775237.4047 | EV58: 779466.4787 | EW58: 783718.6232 | EX58: 787993.964 | EY58: 0 | EZ58: 0 | FA58: 0 | FB58: 0 | FC58: 0 | FD58: 0 | FE58: 0 | FF58: 0 | FG58: 0 | FH58: 0 | FI58: 0 | FJ58: 0 | FK58: 0 | FL58: 0 | FM58: 0 | FN58: 0 | FO58: 0 | FP58: 0 | FQ58: 0 | FR58: 0 | FS58: 0 | FT58: =SUM(FT55:FT57) -> 0 | FU58: 0 | FV58: 0 | FW58: 0
D60: Total Cost | L60: =L52+L58 -> 0 | M60: =M52+M58 -> 0 | N60: 0 | O60: 0 | P60: 0 | Q60: 0 | R60: 0 | S60: 0 | T60: 0 | U60: 0 | V60: 0 | W60: 0 | X60: 0 | Y60: 0 | Z60: 0 | AA60: 0 | AB60: 0 | AC60: 0 | AD60: 0 | AE60: 0 | AF60: 0 | AG60: 0 | AH60: 0 | AI60: 0 | AJ60: 0 | AK60: 0 | AL60: 0 | AM60: 0 | AN60: 0 | AO60: 0 | AP60: 0 | AQ60: 0 | AR60: 0 | AS60: 0 | AT60: 0 | AU60: 0 | AV60: 0 | AW60: 0 | AX60: 0 | AY60: 0 | AZ60: 0 | BA60: 0 | BB60: 0 | BC60: 898865.1569 | BD60: 901103.9418 | BE60: 903348.3027 | BF60: 905598.2537 | BG60: 907853.8085 | BH60: 910114.9812 | BI60: 912381.7858 | BJ60: 914880.5518 | BK60: 917386.1612 | BL60: 919898.6328 | BM60: 922417.9854 | BN60: 924944.2378 | BO60: 927477.409 | BP60: 930017.5178 | BQ60: 932564.5833 | BR60: 935118.6245 | BS60: 937679.6605 | BT60: 940247.7105 | BU60: 942822.7937 | BV60: 945404.9293 | BW60: 947994.1367 | BX60: 950590.4353 | BY60: =BY52+BY58 -> 953193.8444 | BZ60: 956748.389 | CA60: 960316.1889 | CB60: 963897.2933 | CC60: 967491.7521 | CD60: 971099.6149 | CE60: 974720.9317 | CF60: 978355.7527 | CG60: 982004.1284 | CH60: 985666.1091 | CI60: 989341.7457 | CJ60: 993031.089 | CK60: 996734.1903 | CL60: 1000451.101 | CM60: 1004181.872 | CN60: 1007926.555 | CO60: 1011685.203 | CP60: 1016706.128 | CQ60: 1021751.971 | CR60: 1026822.856 | CS60: 1031918.907 | CT60: 1037040.25 | CU60: 1042187.01 | CV60: 1047359.313 | CW60: 1052557.285 | CX60: 1057781.055 | CY60: 1063030.75 | CZ60: 1068306.499 | DA60: 1073608.431 | DB60: 1078936.676 | DC60: 1084291.365 | DD60: 1089672.629 | DE60: 1095080.6 | DF60: 1101054.482 | DG60: 1107060.953 | DH60: =DH52+DH58 -> 1113100.19 | DI60: 1119172.373 | DJ60: 1125277.68 | DK60: 1131416.294 | DL60: 1137588.394 | DM60: 1143794.165 | DN60: 1150033.789 | DO60: 1156307.452 | DP60: 1162615.339 | DQ60: 1168957.637 | DR60: 1175334.533 | DS60: 1181746.216 | DT60: 1188192.877 | DU60: 1194674.705 | DV60: 1201191.893 | DW60: 1207744.633 | DX60: 1214333.12 | DY60: 1220957.548 | DZ60: 1227618.114 | EA60: 1234315.015 | EB60: 1241048.448 | EC60: 1247818.614 | ED60: 1254625.713 | EE60: 1261469.945 | EF60: 1268351.514 | EG60: 1275270.624 | EH60: 1282227.478 | EI60: 1289222.284 | EJ60: 1296255.248 | EK60: 1303326.578 | EL60: 1310436.483 | EM60: 1317585.174 | EN60: 1324772.863 | EO60: 1331999.762 | EP60: 1339266.086 | EQ60: 1346572.048 | ER60: 1353917.866 | ES60: 1361303.757 | ET60: 1368729.939 | EU60: 1376196.633 | EV60: 1383704.059 | EW60: 1391252.44 | EX60: 1398841.998 | EY60: 0 | EZ60: 0 | FA60: 0 | FB60: 0 | FC60: 0 | FD60: 0 | FE60: 0 | FF60: 0 | FG60: 0 | FH60: 0 | FI60: 0 | FJ60: 0 | FK60: 0 | FL60: 0 | FM60: 0 | FN60: 0 | FO60: 0 | FP60: 0 | FQ60: 0 | FR60: 0 | FS60: 0 | FT60: =FT52+FT58 -> 0 | FU60: 0 | FV60: 0 | FW60: 0
D62: Operating Cash Flow | L62: =L44-L60 -> 0 | M62: =M44-M60 -> 0 | N62: 0 | O62: 0 | P62: 0 | Q62: 0 | R62: 0 | S62: 0 | T62: 0 | U62: 0 | V62: 0 | W62: 0 | X62: 0 | Y62: 0 | Z62: 0 | AA62: 0 | AB62: 0 | AC62: 0 | AD62: 0 | AE62: 0 | AF62: 0 | AG62: 0 | AH62: 0 | AI62: 0 | AJ62: 0 | AK62: 0 | AL62: 0 | AM62: 0 | AN62: 0 | AO62: 0 | AP62: 0 | AQ62: 0 | AR62: 0 | AS62: 0 | AT62: 0 | AU62: 0 | AV62: 0 | AW62: 0 | AX62: 0 | AY62: 0 | AZ62: 0 | BA62: 0 | BB62: 0 | BC62: 167375.7575 | BD62: 167792.6369 | BE62: 168210.5545 | BF62: 168629.5131 | BG62: 258791.4588 | BH62: 259436.0253 | BI62: 260082.1972 | BJ62: 260794.4917 | BK62: 352192.96 | BL62: 353157.5209 | BM62: 354124.7235 | BN62: 355094.5749 | BO62: 447748.832 | BP62: 448975.0944 | BQ62: 450204.7153 | BR62: 451437.7038 | BS62: 452674.0691 | BT62: 453913.8205 | BU62: 455156.9672 | BV62: 456403.5185 | BW62: 457653.4839 | BX62: 458906.8725 | BY62: =BY44-BY60 -> 460163.6938 | BZ62: 461879.6852 | CA62: 463602.0756 | CB62: 465330.889 | CC62: 467066.1492 | CD62: 468807.8804 | CE62: 470556.1067 | CF62: 472310.8523 | CG62: 474072.1415 | CH62: 475839.9987 | CI62: 477614.4483 | CJ62: 479395.5151 | CK62: 481183.2236 | CL62: 482977.5986 | CM62: 484778.6651 | CN62: 486586.4478 | CO62: 488400.972 | CP62: 490085.3428 | CQ62: 491774.7674 | CR62: 493469.256 | CS62: 495168.819 | CT62: 496873.4667 | CU62: 498583.2092 | CV62: 500298.0569 | CW62: 502018.02 | CX62: 503743.1086 | CY62: 505473.333 | CZ62: 507208.7033 | DA62: 508949.2298 | DB62: 510694.9224 | DC62: 512445.7915 | DD62: 514201.847 | DE62: 515963.099 | DF62: 517190.4856 | DG62: 518417.4726 | DH62: =DH44-DH60 -> 519644.0263 | DI62: 520870.1124 | DJ62: 522095.6964 | DK62: 523320.7433 | DL62: 524545.218 | DM62: 525769.0849 | DN62: 526992.3082 | DO62: 528214.8515 | DP62: 529436.6784 | DQ62: 530657.7518 | DR62: 531878.0346 | DS62: 533097.489 | DT62: 534316.0772 | DU62: 535533.7608 | DV62: 536750.5011 | DW62: 537966.259 | DX62: 539180.9951 | DY62: 540394.6697 | DZ62: 541607.2425 | EA62: 542818.6731 | EB62: 544028.9205 | EC62: 545237.9435 | ED62: 546445.7004 | EE62: 547652.1492 | EF62: 548857.2473 | EG62: 550060.9521 | EH62: 551263.2202 | EI62: 552464.0081 | EJ62: 553663.2717 | EK62: 554860.9667 | EL62: 556057.0482 | EM62: 557251.4711 | EN62: 558444.1896 | EO62: 559635.1578 | EP62: 560824.3292 | EQ62: 562011.6569 | ER62: 563197.0936 | ES62: 564380.5916 | ET62: 565562.1028 | EU62: 566741.5785 | EV62: 567918.9698 | EW62: 569094.2272 | EX62: 570267.3008 | EY62: 0 | EZ62: 0 | FA62: 0 | FB62: 0 | FC62: 0 | FD62: 0 | FE62: 0 | FF62: 0 | FG62: 0 | FH62: 0 | FI62: 0 | FJ62: 0 | FK62: 0 | FL62: 0 | FM62: 0 | FN62: 0 | FO62: 0 | FP62: 0 | FQ62: 0 | FR62: 0 | FS62: 0 | FT62: =FT44-FT60 -> 0 | FU62: 0 | FV62: 0 | FW62: 0
D64: Cap Rate/ Exit Proceed | H64: =Assumptions!G44 -> 0.06 | L64: =L62*L9/$H$64*L6 -> 0 | M64: =M62*M9/$H$64*M6 -> 0 | N64: =N62*N9/$H$64*N6 -> 0 | O64: =O62*O9/$H$64*O6 -> 0 | P64: =P62*P9/$H$64*P6 -> 0 | Q64: =Q62*Q9/$H$64*Q6 -> 0 | R64: =R62*R9/$H$64*R6 -> 0 | S64: =S62*S9/$H$64*S6 -> 0 | T64: =T62*T9/$H$64*T6 -> 0 | U64: =U62*U9/$H$64*U6 -> 0 | V64: =V62*V9/$H$64*V6 -> 0 | W64: =W62*W9/$H$64*W6 -> 0 | X64: =X62*X9/$H$64*X6 -> 0 | Y64: =Y62*Y9/$H$64*Y6 -> 0 | Z64: =Z62*Z9/$H$64*Z6 -> 0 | AA64: =AA62*AA9/$H$64*AA6 -> 0 | AB64: =AB62*AB9/$H$64*AB6 -> 0 | AC64: =AC62*AC9/$H$64*AC6 -> 0 | AD64: =AD62*AD9/$H$64*AD6 -> 0 | AE64: =AE62*AE9/$H$64*AE6 -> 0 | AF64: =AF62*AF9/$H$64*AF6 -> 0 | AG64: =AG62*AG9/$H$64*AG6 -> 0 | AH64: =AH62*AH9/$H$64*AH6 -> 0 | AI64: =AI62*AI9/$H$64*AI6 -> 0 | AJ64: =AJ62*AJ9/$H$64*AJ6 -> 0 | AK64: =AK62*AK9/$H$64*AK6 -> 0 | AL64: =AL62*AL9/$H$64*AL6 -> 0 | AM64: =AM62*AM9/$H$64*AM6 -> 0 | AN64: =AN62*AN9/$H$64*AN6 -> 0 | AO64: =AO62*AO9/$H$64*AO6 -> 0 | AP64: =AP62*AP9/$H$64*AP6 -> 0 | AQ64: =AQ62*AQ9/$H$64*AQ6 -> 0 | AR64: =AR62*AR9/$H$64*AR6 -> 0 | AS64: =AS62*AS9/$H$64*AS6 -> 0 | AT64: =AT62*AT9/$H$64*AT6 -> 0 | AU64: =AU62*AU9/$H$64*AU6 -> 0 | AV64: =AV62*AV9/$H$64*AV6 -> 0 | AW64: =AW62*AW9/$H$64*AW6 -> 0 | AX64: =AX62*AX9/$H$64*AX6 -> 0 | AY64: =AY62*AY9/$H$64*AY6 -> 0 | AZ64: =AZ62*AZ9/$H$64*AZ6 -> 0 | BA64: =BA62*BA9/$H$64*BA6 -> 0 | BB64: =BB62*BB9/$H$64*BB6 -> 0 | BC64: =BC62*BC9/$H$64*BC6 -> 0 | BD64: =BD62*BD9/$H$64*BD6 -> 0 | BE64: =BE62*BE9/$H$64*BE6 -> 0 | BF64: =BF62*BF9/$H$64*BF6 -> 0 | BG64: =BG62*BG9/$H$64*BG6 -> 0 | BH64: =BH62*BH9/$H$64*BH6 -> 0 | BI64: =BI62*BI9/$H$64*BI6 -> 0 | BJ64: =BJ62*BJ9/$H$64*BJ6 -> 0 | BK64: =BK62*BK9/$H$64*BK6 -> 0 | BL64: =BL62*BL9/$H$64*BL6 -> 0 | BM64: =BM62*BM9/$H$64*BM6 -> 0 | BN64: =BN62*BN9/$H$64*BN6 -> 0 | BO64: =BO62*BO9/$H$64*BO6 -> 0 | BP64: =BP62*BP9/$H$64*BP6 -> 0 | BQ64: =BQ62*BQ9/$H$64*BQ6 -> 0 | BR64: =BR62*BR9/$H$64*BR6 -> 0 | BS64: =BS62*BS9/$H$64*BS6 -> 0 | BT64: =BT62*BT9/$H$64*BT6 -> 0 | BU64: =BU62*BU9/$H$64*BU6 -> 0 | BV64: =BV62*BV9/$H$64*BV6 -> 0 | BW64: =BW62*BW9/$H$64*BW6 -> 0 | BX64: =BX62*BX9/$H$64*BX6 -> 0 | BY64: =BY62*BY9/$H$64*BY6 -> 0 | BZ64: =BZ62*BZ9/$H$64*BZ6 -> 0 | CA64: =CA62*CA9/$H$64*CA6 -> 0 | CB64: =CB62*CB9/$H$64*CB6 -> 0 | CC64: =CC62*CC9/$H$64*CC6 -> 0 | CD64: =CD62*CD9/$H$64*CD6 -> 0 | CE64: =CE62*CE9/$H$64*CE6 -> 0 | CF64: =CF62*CF9/$H$64*CF6 -> 0 | CG64: =CG62*CG9/$H$64*CG6 -> 0 | CH64: =CH62*CH9/$H$64*CH6 -> 0 | CI64: =CI62*CI9/$H$64*CI6 -> 0 | CJ64: =CJ62*CJ9/$H$64*CJ6 -> 0 | CK64: =CK62*CK9/$H$64*CK6 -> 0 | CL64: =CL62*CL9/$H$64*CL6 -> 0 | CM64: =CM62*CM9/$H$64*CM6 -> 0 | CN64: =CN62*CN9/$H$64*CN6 -> 0 | CO64: =CO62*CO9/$H$64*CO6 -> 0 | CP64: =CP62*CP9/$H$64*CP6 -> 0 | CQ64: =CQ62*CQ9/$H$64*CQ6 -> 0 | CR64: =CR62*CR9/$H$64*CR6 -> 0 | CS64: =CS62*CS9/$H$64*CS6 -> 0 | CT64: =CT62*CT9/$H$64*CT6 -> 0 | CU64: =CU62*CU9/$H$64*CU6 -> 0 | CV64: =CV62*CV9/$H$64*CV6 -> 0 | CW64: =CW62*CW9/$H$64*CW6 -> 0 | CX64: =CX62*CX9/$H$64*CX6 -> 0 | CY64: =CY62*CY9/$H$64*CY6 -> 0 | CZ64: =CZ62*CZ9/$H$64*CZ6 -> 0 | DA64: =DA62*DA9/$H$64*DA6 -> 0 | DB64: =DB62*DB9/$H$64*DB6 -> 0 | DC64: =DC62*DC9/$H$64*DC6 -> 0 | DD64: =DD62*DD9/$H$64*DD6 -> 0 | DE64: =DE62*DE9/$H$64*DE6 -> 0 | DF64: =DF62*DF9/$H$64*DF6 -> 0 | DG64: =DG62*DG9/$H$64*DG6 -> 0 | DH64: =DH62*DH9/$H$64*DH6 -> 0 | DI64: =DI62*DI9/$H$64*DI6 -> 0 | DJ64: =DJ62*DJ9/$H$64*DJ6 -> 0 | DK64: =DK62*DK9/$H$64*DK6 -> 0 | DL64: =DL62*DL9/$H$64*DL6 -> 0 | DM64: =DM62*DM9/$H$64*DM6 -> 0 | DN64: =DN62*DN9/$H$64*DN6 -> 0 | DO64: =DO62*DO9/$H$64*DO6 -> 0 | DP64: =DP62*DP9/$H$64*DP6 -> 0 | DQ64: =DQ62*DQ9/$H$64*DQ6 -> 0 | DR64: =DR62*DR9/$H$64*DR6 -> 0 | DS64: =DS62*DS9/$H$64*DS6 -> 0 | DT64: =DT62*DT9/$H$64*DT6 -> 0 | DU64: =DU62*DU9/$H$64*DU6 -> 0 | DV64: =DV62*DV9/$H$64*DV6 -> 0 | DW64: =DW62*DW9/$H$64*DW6 -> 0 | DX64: =DX62*DX9/$H$64*DX6 -> 0 | DY64: =DY62*DY9/$H$64*DY6 -> 0 | DZ64: =DZ62*DZ9/$H$64*DZ6 -> 0 | EA64: =EA62*EA9/$H$64*EA6 -> 0 | EB64: =EB62*EB9/$H$64*EB6 -> 0 | EC64: =EC62*EC9/$H$64*EC6 -> 0 | ED64: =ED62*ED9/$H$64*ED6 -> 0 | EE64: =EE62*EE9/$H$64*EE6 -> 0 | EF64: =EF62*EF9/$H$64*EF6 -> 0 | EG64: =EG62*EG9/$H$64*EG6 -> 0 | EH64: =EH62*EH9/$H$64*EH6 -> 0 | EI64: =EI62*EI9/$H$64*EI6 -> 0 | EJ64: =EJ62*EJ9/$H$64*EJ6 -> 0 | EK64: =EK62*EK9/$H$64*EK6 -> 0 | EL64: =EL62*EL9/$H$64*EL6 -> 0 | EM64: =EM62*EM9/$H$64*EM6 -> 0 | EN64: =EN62*EN9/$H$64*EN6 -> 0 | EO64: =EO62*EO9/$H$64*EO6 -> 0 | EP64: =EP62*EP9/$H$64*EP6 -> 0 | EQ64: =EQ62*EQ9/$H$64*EQ6 -> 0 | ER64: =ER62*ER9/$H$64*ER6 -> 0 | ES64: =ES62*ES9/$H$64*ES6 -> 0 | ET64: =ET62*ET9/$H$64*ET6 -> 0 | EU64: =EU62*EU9/$H$64*EU6 -> 0 | EV64: =EV62*EV9/$H$64*EV6 -> 0 | EW64: =EW62*EW9/$H$64*EW6 -> 0 | EX64: =EX62*EX9/$H$64*EX6 -> 28513365.04 | EY64: =EY62*EY9/$H$64*EY6 -> 0 | EZ64: =EZ62*EZ9/$H$64*EZ6 -> 0 | FA64: =FA62*FA9/$H$64*FA6 -> 0 | FB64: =FB62*FB9/$H$64*FB6 -> 0 | FC64: =FC62*FC9/$H$64*FC6 -> 0 | FD64: =FD62*FD9/$H$64*FD6 -> 0 | FE64: =FE62*FE9/$H$64*FE6 -> 0 | FF64: =FF62*FF9/$H$64*FF6 -> 0 | FG64: =FG62*FG9/$H$64*FG6 -> 0 | FH64: =FH62*FH9/$H$64*FH6 -> 0 | FI64: =FI62*FI9/$H$64*FI6 -> 0 | FJ64: =FJ62*FJ9/$H$64*FJ6 -> 0 | FK64: =FK62*FK9/$H$64*FK6 -> 0 | FL64: =FL62*FL9/$H$64*FL6 -> 0 | FM64: =FM62*FM9/$H$64*FM6 -> 0 | FN64: =FN62*FN9/$H$64*FN6 -> 0 | FO64: =FO62*FO9/$H$64*FO6 -> 0 | FP64: =FP62*FP9/$H$64*FP6 -> 0 | FQ64: =FQ62*FQ9/$H$64*FQ6 -> 0 | FR64: =FR62*FR9/$H$64*FR6 -> 0 | FS64: =FS62*FS9/$H$64*FS6 -> 0 | FT64: =FT62*FT9/$H$64*FT6 -> 0 | FU64: =FU62*FU9/$H$64*FU6 -> 0 | FV64: =FV62*FV9/$H$64*FV6 -> 0 | FW64: =FW62*FW9/$H$64*FW6 -> 0
A66: Capital Allowances and Taxes on Operations
B68: Balance of Assets
C69: Opening Balance | L69: =K71 -> 0 | M69: =L71 -> 236666.6667 | N69: 473333.3333 | O69: 710000 | P69: 803333.3333 | Q69: 896666.6667 | R69: 990000 | S69: 1083333.333 | T69: 1176666.667 | U69: 1270000 | V69: 1363333.333 | W69: 1456666.667 | X69: 1550000 | Y69: 1643333.333 | Z69: 1736666.667 | AA69: 1830000 | AB69: 2156666.667 | AC69: 2483333.333 | AD69: 2810000 | AE69: 3136666.667 | AF69: 3463333.333 | AG69: 3790000 | AH69: 4116666.667 | AI69: 4443333.333 | AJ69: 4770000 | AK69: 5096666.667 | AL69: 5423333.333 | AM69: 5750000 | AN69: 6216666.667 | AO69: 6683333.333 | AP69: 7150000 | AQ69: 7616666.667 | AR69: 8083333.333 | AS69: 8550000 | AT69: 9016666.667 | AU69: 9483333.333 | AV69: 9950000 | AW69: 10416666.67 | AX69: 10883333.33 | AY69: 11350000 | AZ69: 11490000 | BA69: 11630000 | BB69: 11770000 | BC69: 11910000 | BD69: 11910000 | BE69: 11910000 | BF69: 11910000 | BG69: 11910000 | BH69: 11910000 | BI69: 11910000 | BJ69: 11910000 | BK69: 11910000 | BL69: 11910000 | BM69: 11910000 | BN69: 11910000 | BO69: 11910000 | BP69: 11910000 | BQ69: 11910000 | BR69: 11910000 | BS69: 11910000 | BT69: 11910000 | BU69: 11910000 | BV69: 11910000 | BW69: 11910000 | BX69: 11910000 | BY69: =BX71 -> 11910000 | BZ69: 11910000 | CA69: 11910000 | CB69: 11910000 | CC69: 11910000 | CD69: 11910000 | CE69: 11910000 | CF69: 11910000 | CG69: 11910000 | CH69: 11910000 | CI69: 11910000 | CJ69: 11910000 | CK69: 11910000 | CL69: 11910000 | CM69: 11910000 | CN69: 11910000 | CO69: 11910000 | CP69: 11910000 | CQ69: 11910000 | CR69: 11910000 | CS69: 11910000 | CT69: 11910000 | CU69: 11910000 | CV69: 11910000 | CW69: 11910000 | CX69: 11910000 | CY69: 11910000 | CZ69: 11910000 | DA69: 11910000 | DB69: 11910000 | DC69: 11910000 | DD69: 11910000 | DE69: 11910000 | DF69: 11910000 | DG69: 11910000 | DH69: =DG71 -> 11910000 | DI69: 11910000 | DJ69: 11910000 | DK69: 11910000 | DL69: 11910000 | DM69: 11910000 | DN69: 11910000 | DO69: 11910000 | DP69: 11910000 | DQ69: 11910000 | DR69: 11910000 | DS69: 11910000 | DT69: 11910000 | DU69: 11910000 | DV69: 11910000 | DW69: 11910000 | DX69: 11910000 | DY69: 11910000 | DZ69: 11910000 | EA69: 11910000 | EB69: 11910000 | EC69: 11910000 | ED69: 11910000 | EE69: 11910000 | EF69: 11910000 | EG69: 11910000 | EH69: 11910000 | EI69: 11910000 | EJ69: 11910000 | EK69: 11910000 | EL69: 11910000 | EM69: 11910000 | EN69: 11910000 | EO69: 11910000 | EP69: 11910000 | EQ69: 11910000 | ER69: 11910000 | ES69: 11910000 | ET69: 11910000 | EU69: 11910000 | EV69: 11910000 | EW69: 11910000 | EX69: 11910000 | EY69: 11910000 | EZ69: 11910000 | FA69: 11910000 | FB69: 11910000 | FC69: 11910000 | FD69: 11910000 | FE69: 11910000 | FF69: 11910000 | FG69: 11910000 | FH69: 11910000 | FI69: 11910000 | FJ69: 11910000 | FK69: 11910000 | FL69: 11910000 | FM69: 11910000 | FN69: 11910000 | FO69: 11910000 | FP69: 11910000 | FQ69: 11910000 | FR69: 11910000 | FS69: 11910000 | FT69: =FS71 -> 11910000 | FU69: 11910000 | FV69: 11910000 | FW69: 11910000
C70: Add: Capital Expenditures Excluding Land | L70: =L19+L21 -> 236666.6667 | M70: =M19+M21 -> 236666.6667 | N70: 236666.6667 | O70: 93333.33333 | P70: 93333.33333 | Q70: 93333.33333 | R70: 93333.33333 | S70: 93333.33333 | T70: 93333.33333 | U70: 93333.33333 | V70: 93333.33333 | W70: 93333.33333 | X70: 93333.33333 | Y70: 93333.33333 | Z70: 93333.33333 | AA70: 326666.6667 | AB70: 326666.6667 | AC70: 326666.6667 | AD70: 326666.6667 | AE70: 326666.6667 | AF70: 326666.6667 | AG70: 326666.6667 | AH70: 326666.6667 | AI70: 326666.6667 | AJ70: 326666.6667 | AK70: 326666.6667 | AL70: 326666.6667 | AM70: 466666.6667 | AN70: 466666.6667 | AO70: 466666.6667 | AP70: 466666.6667 | AQ70: 466666.6667 | AR70: 466666.6667 | AS70: 466666.6667 | AT70: 466666.6667 | AU70: 466666.6667 | AV70: 466666.6667 | AW70: 466666.6667 | AX70: 466666.6667 | AY70: 140000 | AZ70: 140000 | BA70: 140000 | BB70: 140000 | BC70: 0 | BD70: 0 | BE70: 0 | BF70: 0 | BG70: 0 | BH70: 0 | BI70: 0 | BJ70: 0 | BK70: 0 | BL70: 0 | BM70: 0 | BN70: 0 | BO70: 0 | BP70: 0 | BQ70: 0 | BR70: 0 | BS70: 0 | BT70: 0 | BU70: 0 | BV70: 0 | BW70: 0 | BX70: 0 | BY70: =BY19+BY21 -> 0 | BZ70: 0 | CA70: 0 | CB70: 0 | CC70: 0 | CD70: 0 | CE70: 0 | CF70: 0 | CG70: 0 | CH70: 0 | CI70: 0 | CJ70: 0 | CK70: 0 | CL70: 0 | CM70: 0 | CN70: 0 | CO70: 0 | CP70: 0 | CQ70: 0 | CR70: 0 | CS70: 0 | CT70: 0 | CU70: 0 | CV70: 0 | CW70: 0 | CX70: 0 | CY70: 0 | CZ70: 0 | DA70: 0 | DB70: 0 | DC70: 0 | DD70: 0 | DE70: 0 | DF70: 0 | DG70: 0 | DH70: =DH19+DH21 -> 0 | DI70: 0 | DJ70: 0 | DK70: 0 | DL70: 0 | DM70: 0 | DN70: 0 | DO70: 0 | DP70: 0 | DQ70: 0 | DR70: 0 | DS70: 0 | DT70: 0 | DU70: 0 | DV70: 0 | DW70: 0 | DX70: 0 | DY70: 0 | DZ70: 0 | EA70: 0 | EB70: 0 | EC70: 0 | ED70: 0 | EE70: 0 | EF70: 0 | EG70: 0 | EH70: 0 | EI70: 0 | EJ70: 0 | EK70: 0 | EL70: 0 | EM70: 0 | EN70: 0 | EO70: 0 | EP70: 0 | EQ70: 0 | ER70: 0 | ES70: 0 | ET70: 0 | EU70: 0 | EV70: 0 | EW70: 0 | EX70: 0 | EY70: 0 | EZ70: 0 | FA70: 0 | FB70: 0 | FC70: 0 | FD70: 0 | FE70: 0 | FF70: 0 | FG70: 0 | FH70: 0 | FI70: 0 | FJ70: 0 | FK70: 0 | FL70: 0 | FM70: 0 | FN70: 0 | FO70: 0 | FP70: 0 | FQ70: 0 | FR70: 0 | FS70: 0 | FT70: =FT19+FT21 -> 0 | FU70: 0 | FV70: 0 | FW70: 0
C71: Closing Balance | L71: =SUM(L69:L70) -> 236666.6667 | M71: =SUM(M69:M70) -> 473333.3333 | N71: 710000 | O71: 803333.3333 | P71: 896666.6667 | Q71: 990000 | R71: 1083333.333 | S71: 1176666.667 | T71: 1270000 | U71: 1363333.333 | V71: 1456666.667 | W71: 1550000 | X71: 1643333.333 | Y71: 1736666.667 | Z71: 1830000 | AA71: 2156666.667 | AB71: 2483333.333 | AC71: 2810000 | AD71: 3136666.667 | AE71: 3463333.333 | AF71: 3790000 | AG71: 4116666.667 | AH71: 4443333.333 | AI71: 4770000 | AJ71: 5096666.667 | AK71: 5423333.333 | AL71: 5750000 | AM71: 6216666.667 | AN71: 6683333.333 | AO71: 7150000 | AP71: 7616666.667 | AQ71: 8083333.333 | AR71: 8550000 | AS71: 9016666.667 | AT71: 9483333.333 | AU71: 9950000 | AV71: 10416666.67 | AW71: 10883333.33 | AX71: 11350000 | AY71: 11490000 | AZ71: 11630000 | BA71: 11770000 | BB71: 11910000 | BC71: 11910000 | BD71: 11910000 | BE71: 11910000 | BF71: 11910000 | BG71: 11910000 | BH71: 11910000 | BI71: 11910000 | BJ71: 11910000 | BK71: 11910000 | BL71: 11910000 | BM71: 11910000 | BN71: 11910000 | BO71: 11910000 | BP71: 11910000 | BQ71: 11910000 | BR71: 11910000 | BS71: 11910000 | BT71: 11910000 | BU71: 11910000 | BV71: 11910000 | BW71: 11910000 | BX71: 11910000 | BY71: =SUM(BY69:BY70) -> 11910000 | BZ71: 11910000 | CA71: 11910000 | CB71: 11910000 | CC71: 11910000 | CD71: 11910000 | CE71: 11910000 | CF71: 11910000 | CG71: 11910000 | CH71: 11910000 | CI71: 11910000 | CJ71: 11910000 | CK71: 11910000 | CL71: 11910000 | CM71: 11910000 | CN71: 11910000 | CO71: 11910000 | CP71: 11910000 | CQ71: 11910000 | CR71: 11910000 | CS71: 11910000 | CT71: 11910000 | CU71: 11910000 | CV71: 11910000 | CW71: 11910000 | CX71: 11910000 | CY71: 11910000 | CZ71: 11910000 | DA71: 11910000 | DB71: 11910000 | DC71: 11910000 | DD71: 11910000 | DE71: 11910000 | DF71: 11910000 | DG71: 11910000 | DH71: =SUM(DH69:DH70) -> 11910000 | DI71: =SUM(DI69:DI70) -> 11910000 | DJ71: =SUM(DJ69:DJ70) -> 11910000 | DK71: =SUM(DK69:DK70) -> 11910000 | DL71: =SUM(DL69:DL70) -> 11910000 | DM71: =SUM(DM69:DM70) -> 11910000 | DN71: =SUM(DN69:DN70) -> 11910000 | DO71: =SUM(DO69:DO70) -> 11910000 | DP71: =SUM(DP69:DP70) -> 11910000 | DQ71: =SUM(DQ69:DQ70) -> 11910000 | DR71: =SUM(DR69:DR70) -> 11910000 | DS71: =SUM(DS69:DS70) -> 11910000 | DT71: =SUM(DT69:DT70) -> 11910000 | DU71: =SUM(DU69:DU70) -> 11910000 | DV71: =SUM(DV69:DV70) -> 11910000 | DW71: =SUM(DW69:DW70) -> 11910000 | DX71: =SUM(DX69:DX70) -> 11910000 | DY71: =SUM(DY69:DY70) -> 11910000 | DZ71: =SUM(DZ69:DZ70) -> 11910000 | EA71: =SUM(EA69:EA70) -> 11910000 | EB71: =SUM(EB69:EB70) -> 11910000 | EC71: =SUM(EC69:EC70) -> 11910000 | ED71: =SUM(ED69:ED70) -> 11910000 | EE71: =SUM(EE69:EE70) -> 11910000 | EF71: =SUM(EF69:EF70) -> 11910000 | EG71: =SUM(EG69:EG70) -> 11910000 | EH71: =SUM(EH69:EH70) -> 11910000 | EI71: =SUM(EI69:EI70) -> 11910000 | EJ71: =SUM(EJ69:EJ70) -> 11910000 | EK71: =SUM(EK69:EK70) -> 11910000 | EL71: =SUM(EL69:EL70) -> 11910000 | EM71: =SUM(EM69:EM70) -> 11910000 | EN71: =SUM(EN69:EN70) -> 11910000 | EO71: =SUM(EO69:EO70) -> 11910000 | EP71: =SUM(EP69:EP70) -> 11910000 | EQ71: =SUM(EQ69:EQ70) -> 11910000 | ER71: =SUM(ER69:ER70) -> 11910000 | ES71: =SUM(ES69:ES70) -> 11910000 | ET71: =SUM(ET69:ET70) -> 11910000 | EU71: =SUM(EU69:EU70) -> 11910000 | EV71: =SUM(EV69:EV70) -> 11910000 | EW71: =SUM(EW69:EW70) -> 11910000 | EX71: =SUM(EX69:EX70) -> 11910000 | EY71: =SUM(EY69:EY70) -> 11910000 | EZ71: =SUM(EZ69:EZ70) -> 11910000 | FA71: =SUM(FA69:FA70) -> 11910000 | FB71: =SUM(FB69:FB70) -> 11910000 | FC71: =SUM(FC69:FC70) -> 11910000 | FD71: =SUM(FD69:FD70) -> 11910000 | FE71: =SUM(FE69:FE70) -> 11910000 | FF71: =SUM(FF69:FF70) -> 11910000 | FG71: =SUM(FG69:FG70) -> 11910000 | FH71: =SUM(FH69:FH70) -> 11910000 | FI71: =SUM(FI69:FI70) -> 11910000 | FJ71: =SUM(FJ69:FJ70) -> 11910000 | FK71: =SUM(FK69:FK70) -> 11910000 | FL71: =SUM(FL69:FL70) -> 11910000 | FM71: =SUM(FM69:FM70) -> 11910000 | FN71: =SUM(FN69:FN70) -> 11910000 | FO71: =SUM(FO69:FO70) -> 11910000 | FP71: =SUM(FP69:FP70) -> 11910000 | FQ71: =SUM(FQ69:FQ70) -> 11910000 | FR71: =SUM(FR69:FR70) -> 11910000 | FS71: =SUM(FS69:FS70) -> 11910000 | FT71: =SUM(FT69:FT70) -> 11910000 | FU71: =SUM(FU69:FU70) -> 11910000 | FV71: =SUM(FV69:FV70) -> 11910000 | FW71: =SUM(FW69:FW70) -> 11910000
C73: Depreciation | H73: =1/Assumptions!G48/4 -> 0.025 | L73: =MIN(L69*$H$73*L5,K75) -> 0 | M73: =MIN(M69*$H$73*M5,L75) -> 0 | N73: =MIN(N69*$H$73*N5,M75) -> 0 | O73: =MIN(O69*$H$73*O5,N75) -> 0 | P73: =MIN(P69*$H$73*P5,O75) -> 0 | Q73: =MIN(Q69*$H$73*Q5,P75) -> 0 | R73: =MIN(R69*$H$73*R5,Q75) -> 0 | S73: =MIN(S69*$H$73*S5,R75) -> 0 | T73: =MIN(T69*$H$73*T5,S75) -> 0 | U73: =MIN(U69*$H$73*U5,T75) -> 0 | V73: =MIN(V69*$H$73*V5,U75) -> 0 | W73: =MIN(W69*$H$73*W5,V75) -> 0 | X73: =MIN(X69*$H$73*X5,W75) -> 0 | Y73: =MIN(Y69*$H$73*Y5,X75) -> 0 | Z73: =MIN(Z69*$H$73*Z5,Y75) -> 0 | AA73: =MIN(AA69*$H$73*AA5,Z75) -> 0 | AB73: =MIN(AB69*$H$73*AB5,AA75) -> 0 | AC73: =MIN(AC69*$H$73*AC5,AB75) -> 0 | AD73: =MIN(AD69*$H$73*AD5,AC75) -> 0 | AE73: =MIN(AE69*$H$73*AE5,AD75) -> 0 | AF73: =MIN(AF69*$H$73*AF5,AE75) -> 0 | AG73: =MIN(AG69*$H$73*AG5,AF75) -> 0 | AH73: =MIN(AH69*$H$73*AH5,AG75) -> 0 | AI73: =MIN(AI69*$H$73*AI5,AH75) -> 0 | AJ73: =MIN(AJ69*$H$73*AJ5,AI75) -> 0 | AK73: =MIN(AK69*$H$73*AK5,AJ75) -> 0 | AL73: =MIN(AL69*$H$73*AL5,AK75) -> 0 | AM73: =MIN(AM69*$H$73*AM5,AL75) -> 0 | AN73: =MIN(AN69*$H$73*AN5,AM75) -> 0 | AO73: =MIN(AO69*$H$73*AO5,AN75) -> 0 | AP73: =MIN(AP69*$H$73*AP5,AO75) -> 0 | AQ73: =MIN(AQ69*$H$73*AQ5,AP75) -> 0 | AR73: =MIN(AR69*$H$73*AR5,AQ75) -> 0 | AS73: =MIN(AS69*$H$73*AS5,AR75) -> 0 | AT73: =MIN(AT69*$H$73*AT5,AS75) -> 0 | AU73: =MIN(AU69*$H$73*AU5,AT75) -> 0 | AV73: =MIN(AV69*$H$73*AV5,AU75) -> 0 | AW73: =MIN(AW69*$H$73*AW5,AV75) -> 0 | AX73: =MIN(AX69*$H$73*AX5,AW75) -> 0 | AY73: =MIN(AY69*$H$73*AY5,AX75) -> 0 | AZ73: =MIN(AZ69*$H$73*AZ5,AY75) -> 0 | BA73: =MIN(BA69*$H$73*BA5,AZ75) -> 0 | BB73: =MIN(BB69*$H$73*BB5,BA75) -> 0 | BC73: =MIN(BC69*$H$73*BC5,BB75) -> 297750 | BD73: =MIN(BD69*$H$73*BD5,BC75) -> 297750 | BE73: =MIN(BE69*$H$73*BE5,BD75) -> 297750 | BF73: =MIN(BF69*$H$73*BF5,BE75) -> 297750 | BG73: =MIN(BG69*$H$73*BG5,BF75) -> 297750 | BH73: =MIN(BH69*$H$73*BH5,BG75) -> 297750 | BI73: =MIN(BI69*$H$73*BI5,BH75) -> 297750 | BJ73: =MIN(BJ69*$H$73*BJ5,BI75) -> 297750 | BK73: =MIN(BK69*$H$73*BK5,BJ75) -> 297750 | BL73: =MIN(BL69*$H$73*BL5,BK75) -> 297750 | BM73: =MIN(BM69*$H$73*BM5,BL75) -> 297750 | BN73: =MIN(BN69*$H$73*BN5,BM75) -> 297750 | BO73: =MIN(BO69*$H$73*BO5,BN75) -> 297750 | BP73: =MIN(BP69*$H$73*BP5,BO75) -> 297750 | BQ73: =MIN(BQ69*$H$73*BQ5,BP75) -> 297750 | BR73: =MIN(BR69*$H$73*BR5,BQ75) -> 297750 | BS73: =MIN(BS69*$H$73*BS5,BR75) -> 297750 | BT73: =MIN(BT69*$H$73*BT5,BS75) -> 297750 | BU73: =MIN(BU69*$H$73*BU5,BT75) -> 297750 | BV73: =MIN(BV69*$H$73*BV5,BU75) -> 297750 | BW73: =MIN(BW69*$H$73*BW5,BV75) -> 297750 | BX73: =MIN(BX69*$H$73*BX5,BW75) -> 297750 | BY73: =MIN(BY69*$H$73*BY5,BX75) -> 297750 | BZ73: =MIN(BZ69*$H$73*BZ5,BY75) -> 297750 | CA73: =MIN(CA69*$H$73*CA5,BZ75) -> 297750 | CB73: =MIN(CB69*$H$73*CB5,CA75) -> 297750 | CC73: =MIN(CC69*$H$73*CC5,CB75) -> 297750 | CD73: =MIN(CD69*$H$73*CD5,CC75) -> 297750 | CE73: =MIN(CE69*$H$73*CE5,CD75) -> 297750 | CF73: =MIN(CF69*$H$73*CF5,CE75) -> 297750 | CG73: =MIN(CG69*$H$73*CG5,CF75) -> 297750 | CH73: =MIN(CH69*$H$73*CH5,CG75) -> 297750 | CI73: =MIN(CI69*$H$73*CI5,CH75) -> 297750 | CJ73: =MIN(CJ69*$H$73*CJ5,CI75) -> 297750 | CK73: =MIN(CK69*$H$73*CK5,CJ75) -> 297750 | CL73: =MIN(CL69*$H$73*CL5,CK75) -> 297750 | CM73: =MIN(CM69*$H$73*CM5,CL75) -> 297750 | CN73: =MIN(CN69*$H$73*CN5,CM75) -> 297750 | CO73: =MIN(CO69*$H$73*CO5,CN75) -> 297750 | CP73: =MIN(CP69*$H$73*CP5,CO75) -> 297750 | CQ73: =MIN(CQ69*$H$73*CQ5,CP75) -> 0 | CR73: =MIN(CR69*$H$73*CR5,CQ75) -> 0 | CS73: =MIN(CS69*$H$73*CS5,CR75) -> 0 | CT73: =MIN(CT69*$H$73*CT5,CS75) -> 0 | CU73: =MIN(CU69*$H$73*CU5,CT75) -> 0 | CV73: =MIN(CV69*$H$73*CV5,CU75) -> 0 | CW73: =MIN(CW69*$H$73*CW5,CV75) -> 0 | CX73: =MIN(CX69*$H$73*CX5,CW75) -> 0 | CY73: =MIN(CY69*$H$73*CY5,CX75) -> 0 | CZ73: =MIN(CZ69*$H$73*CZ5,CY75) -> 0 | DA73: =MIN(DA69*$H$73*DA5,CZ75) -> 0 | DB73: =MIN(DB69*$H$73*DB5,DA75) -> 0 | DC73: =MIN(DC69*$H$73*DC5,DB75) -> 0 | DD73: =MIN(DD69*$H$73*DD5,DC75) -> 0 | DE73: =MIN(DE69*$H$73*DE5,DD75) -> 0 | DF73: =MIN(DF69*$H$73*DF5,DE75) -> 0 | DG73: =MIN(DG69*$H$73*DG5,DF75) -> 0 | DH73: =MIN(DH69*$H$73*DH5,DG75) -> 0 | DI73: =MIN(DI69*$H$73*DI5,DH75) -> 0 | DJ73: =MIN(DJ69*$H$73*DJ5,DI75) -> 0 | DK73: =MIN(DK69*$H$73*DK5,DJ75) -> 0 | DL73: =MIN(DL69*$H$73*DL5,DK75) -> 0 | DM73: =MIN(DM69*$H$73*DM5,DL75) -> 0 | DN73: =MIN(DN69*$H$73*DN5,DM75) -> 0 | DO73: =MIN(DO69*$H$73*DO5,DN75) -> 0 | DP73: =MIN(DP69*$H$73*DP5,DO75) -> 0 | DQ73: =MIN(DQ69*$H$73*DQ5,DP75) -> 0 | DR73: =MIN(DR69*$H$73*DR5,DQ75) -> 0 | DS73: =MIN(DS69*$H$73*DS5,DR75) -> 0 | DT73: =MIN(DT69*$H$73*DT5,DS75) -> 0 | DU73: =MIN(DU69*$H$73*DU5,DT75) -> 0 | DV73: =MIN(DV69*$H$73*DV5,DU75) -> 0 | DW73: =MIN(DW69*$H$73*DW5,DV75) -> 0 | DX73: =MIN(DX69*$H$73*DX5,DW75) -> 0 | DY73: =MIN(DY69*$H$73*DY5,DX75) -> 0 | DZ73: =MIN(DZ69*$H$73*DZ5,DY75) -> 0 | EA73: =MIN(EA69*$H$73*EA5,DZ75) -> 0 | EB73: =MIN(EB69*$H$73*EB5,EA75) -> 0 | EC73: =MIN(EC69*$H$73*EC5,EB75) -> 0 | ED73: =MIN(ED69*$H$73*ED5,EC75) -> 0 | EE73: =MIN(EE69*$H$73*EE5,ED75) -> 0 | EF73: =MIN(EF69*$H$73*EF5,EE75) -> 0 | EG73: =MIN(EG69*$H$73*EG5,EF75) -> 0 | EH73: =MIN(EH69*$H$73*EH5,EG75) -> 0 | EI73: =MIN(EI69*$H$73*EI5,EH75) -> 0 | EJ73: =MIN(EJ69*$H$73*EJ5,EI75) -> 0 | EK73: =MIN(EK69*$H$73*EK5,EJ75) -> 0 | EL73: =MIN(EL69*$H$73*EL5,EK75) -> 0 | EM73: =MIN(EM69*$H$73*EM5,EL75) -> 0 | EN73: =MIN(EN69*$H$73*EN5,EM75) -> 0 | EO73: =MIN(EO69*$H$73*EO5,EN75) -> 0 | EP73: =MIN(EP69*$H$73*EP5,EO75) -> 0 | EQ73: =MIN(EQ69*$H$73*EQ5,EP75) -> 0 | ER73: =MIN(ER69*$H$73*ER5,EQ75) -> 0 | ES73: =MIN(ES69*$H$73*ES5,ER75) -> 0 | ET73: =MIN(ET69*$H$73*ET5,ES75) -> 0 | EU73: =MIN(EU69*$H$73*EU5,ET75) -> 0 | EV73: =MIN(EV69*$H$73*EV5,EU75) -> 0 | EW73: =MIN(EW69*$H$73*EW5,EV75) -> 0 | EX73: =MIN(EX69*$H$73*EX5,EW75) -> 0 | EY73: =MIN(EY69*$H$73*EY5,EX75) -> 0 | EZ73: =MIN(EZ69*$H$73*EZ5,EY75) -> 0 | FA73: =MIN(FA69*$H$73*FA5,EZ75) -> 0 | FB73: =MIN(FB69*$H$73*FB5,FA75) -> 0 | FC73: =MIN(FC69*$H$73*FC5,FB75) -> 0 | FD73: =MIN(FD69*$H$73*FD5,FC75) -> 0 | FE73: =MIN(FE69*$H$73*FE5,FD75) -> 0 | FF73: =MIN(FF69*$H$73*FF5,FE75) -> 0 | FG73: =MIN(FG69*$H$73*FG5,FF75) -> 0 | FH73: =MIN(FH69*$H$73*FH5,FG75) -> 0 | FI73: =MIN(FI69*$H$73*FI5,FH75) -> 0 | FJ73: =MIN(FJ69*$H$73*FJ5,FI75) -> 0 | FK73: =MIN(FK69*$H$73*FK5,FJ75) -> 0 | FL73: =MIN(FL69*$H$73*FL5,FK75) -> 0 | FM73: =MIN(FM69*$H$73*FM5,FL75) -> 0 | FN73: =MIN(FN69*$H$73*FN5,FM75) -> 0 | FO73: =MIN(FO69*$H$73*FO5,FN75) -> 0 | FP73: =MIN(FP69*$H$73*FP5,FO75) -> 0 | FQ73: =MIN(FQ69*$H$73*FQ5,FP75) -> 0 | FR73: =MIN(FR69*$H$73*FR5,FQ75) -> 0 | FS73: =MIN(FS69*$H$73*FS5,FR75) -> 0 | FT73: =MIN(FT69*$H$73*FT5,FS75) -> 0 | FU73: =MIN(FU69*$H$73*FU5,FT75) -> 0 | FV73: =MIN(FV69*$H$73*FV5,FU75) -> 0 | FW73: =MIN(FW69*$H$73*FW5,FV75) -> 0
C74: Accumulated Depreciation | L74: =K74+L73 -> 0 | M74: =L74+M73 -> 0 | N74: 0 | O74: 0 | P74: 0 | Q74: 0 | R74: 0 | S74: 0 | T74: 0 | U74: 0 | V74: 0 | W74: 0 | X74: 0 | Y74: 0 | Z74: 0 | AA74: 0 | AB74: 0 | AC74: 0 | AD74: 0 | AE74: 0 | AF74: 0 | AG74: 0 | AH74: 0 | AI74: 0 | AJ74: 0 | AK74: 0 | AL74: 0 | AM74: 0 | AN74: 0 | AO74: 0 | AP74: 0 | AQ74: 0 | AR74: 0 | AS74: 0 | AT74: 0 | AU74: 0 | AV74: 0 | AW74: 0 | AX74: 0 | AY74: 0 | AZ74: 0 | BA74: 0 | BB74: 0 | BC74: 297750 | BD74: 595500 | BE74: 893250 | BF74: 1191000 | BG74: 1488750 | BH74: 1786500 | BI74: 2084250 | BJ74: 2382000 | BK74: 2679750 | BL74: 2977500 | BM74: 3275250 | BN74: 3573000 | BO74: 3870750 | BP74: 4168500 | BQ74: 4466250 | BR74: 4764000 | BS74: 5061750 | BT74: 5359500 | BU74: 5657250 | BV74: 5955000 | BW74: 6252750 | BX74: 6550500 | BY74: =BX74+BY73 -> 6848250 | BZ74: 7146000 | CA74: 7443750 | CB74: 7741500 | CC74: 8039250 | CD74: 8337000 | CE74: 8634750 | CF74: 8932500 | CG74: 9230250 | CH74: 9528000 | CI74: 9825750 | CJ74: 10123500 | CK74: 10421250 | CL74: 10719000 | CM74: 11016750 | CN74: 11314500 | CO74: 11612250 | CP74: 11910000 | CQ74: 11910000 | CR74: 11910000 | CS74: 11910000 | CT74: 11910000 | CU74: 11910000 | CV74: 11910000 | CW74: 11910000 | CX74: 11910000 | CY74: 11910000 | CZ74: 11910000 | DA74: 11910000 | DB74: 11910000 | DC74: 11910000 | DD74: 11910000 | DE74: 11910000 | DF74: 11910000 | DG74: 11910000 | DH74: 11910000 | DI74: 11910000 | DJ74: 11910000 | DK74: 11910000 | DL74: 11910000 | DM74: 11910000 | DN74: 11910000 | DO74: 11910000 | DP74: 11910000 | DQ74: 11910000 | DR74: 11910000 | DS74: 11910000 | DT74: 11910000 | DU74: 11910000 | DV74: 11910000 | DW74: 11910000 | DX74: 11910000 | DY74: 11910000 | DZ74: 11910000 | EA74: 11910000 | EB74: 11910000 | EC74: 11910000 | ED74: 11910000 | EE74: 11910000 | EF74: 11910000 | EG74: 11910000 | EH74: 11910000 | EI74: 11910000 | EJ74: 11910000 | EK74: =EJ74+EK73 -> 11910000 | EL74: 11910000 | EM74: 11910000 | EN74: 11910000 | EO74: 11910000 | EP74: 11910000 | EQ74: 11910000 | ER74: 11910000 | ES74: 11910000 | ET74: 11910000 | EU74: 11910000 | EV74: 11910000 | EW74: 11910000 | EX74: 11910000 | EY74: 11910000 | EZ74: 11910000 | FA74: 11910000 | FB74: 11910000 | FC74: 11910000 | FD74: 11910000 | FE74: 11910000 | FF74: 11910000 | FG74: 11910000 | FH74: 11910000 | FI74: 11910000 | FJ74: 11910000 | FK74: 11910000 | FL74: 11910000 | FM74: 11910000 | FN74: 11910000 | FO74: 11910000 | FP74: 11910000 | FQ74: 11910000 | FR74: 11910000 | FS74: 11910000 | FT74: 11910000 | FU74: 11910000 | FV74: 11910000 | FW74: 11910000
C75: Net Plant | L75: =L71-L74 -> 236666.6667 | M75: =M71-M74 -> 473333.3333 | N75: 710000 | O75: 803333.3333 | P75: 896666.6667 | Q75: 990000 | R75: 1083333.333 | S75: 1176666.667 | T75: 1270000 | U75: 1363333.333 | V75: 1456666.667 | W75: 1550000 | X75: 1643333.333 | Y75: 1736666.667 | Z75: 1830000 | AA75: 2156666.667 | AB75: 2483333.333 | AC75: 2810000 | AD75: 3136666.667 | AE75: 3463333.333 | AF75: 3790000 | AG75: 4116666.667 | AH75: 4443333.333 | AI75: 4770000 | AJ75: 5096666.667 | AK75: 5423333.333 | AL75: 5750000 | AM75: 6216666.667 | AN75: 6683333.333 | AO75: 7150000 | AP75: 7616666.667 | AQ75: 8083333.333 | AR75: 8550000 | AS75: 9016666.667 | AT75: 9483333.333 | AU75: 9950000 | AV75: 10416666.67 | AW75: 10883333.33 | AX75: 11350000 | AY75: 11490000 | AZ75: 11630000 | BA75: 11770000 | BB75: 11910000 | BC75: 11612250 | BD75: 11314500 | BE75: 11016750 | BF75: 10719000 | BG75: 10421250 | BH75: 10123500 | BI75: 9825750 | BJ75: 9528000 | BK75: 9230250 | BL75: 8932500 | BM75: 8634750 | BN75: 8337000 | BO75: 8039250 | BP75: 7741500 | BQ75: 7443750 | BR75: 7146000 | BS75: 6848250 | BT75: 6550500 | BU75: 6252750 | BV75: 5955000 | BW75: 5657250 | BX75: 5359500 | BY75: =BY71-BY74 -> 5061750 | BZ75: 4764000 | CA75: 4466250 | CB75: 4168500 | CC75: 3870750 | CD75: 3573000 | CE75: 3275250 | CF75: 2977500 | CG75: 2679750 | CH75: 2382000 | CI75: 2084250 | CJ75: 1786500 | CK75: 1488750 | CL75: 1191000 | CM75: 893250 | CN75: 595500 | CO75: 297750 | CP75: 0 | CQ75: 0 | CR75: 0 | CS75: 0 | CT75: 0 | CU75: 0 | CV75: 0 | CW75: 0 | CX75: 0 | CY75: 0 | CZ75: 0 | DA75: 0 | DB75: 0 | DC75: 0 | DD75: 0 | DE75: 0 | DF75: 0 | DG75: 0 | DH75: 0 | DI75: 0 | DJ75: 0 | DK75: 0 | DL75: 0 | DM75: 0 | DN75: 0 | DO75: 0 | DP75: 0 | DQ75: 0 | DR75: 0 | DS75: 0 | DT75: 0 | DU75: 0 | DV75: 0 | DW75: 0 | DX75: 0 | DY75: 0 | DZ75: 0 | EA75: 0 | EB75: 0 | EC75: 0 | ED75: 0 | EE75: 0 | EF75: 0 | EG75: 0 | EH75: 0 | EI75: 0 | EJ75: 0 | EK75: =EK71-EK74 -> 0 | EL75: 0 | EM75: 0 | EN75: 0 | EO75: 0 | EP75: 0 | EQ75: 0 | ER75: 0 | ES75: 0 | ET75: 0 | EU75: 0 | EV75: 0 | EW75: 0 | EX75: 0 | EY75: 0 | EZ75: 0 | FA75: 0 | FB75: 0 | FC75: 0 | FD75: 0 | FE75: 0 | FF75: 0 | FG75: 0 | FH75: 0 | FI75: 0 | FJ75: 0 | FK75: 0 | FL75: 0 | FM75: 0 | FN75: 0 | FO75: 0 | FP75: 0 | FQ75: 0 | FR75: 0 | FS75: 0 | FT75: 0 | FU75: 0 | FV75: 0 | FW75: 0
C77: Operating Income | L77: =L62-L73 -> 0 | M77: =M62-M73 -> 0 | N77: 0 | O77: 0 | P77: 0 | Q77: 0 | R77: 0 | S77: 0 | T77: 0 | U77: 0 | V77: 0 | W77: 0 | X77: 0 | Y77: 0 | Z77: 0 | AA77: 0 | AB77: 0 | AC77: 0 | AD77: 0 | AE77: 0 | AF77: 0 | AG77: 0 | AH77: 0 | AI77: 0 | AJ77: 0 | AK77: 0 | AL77: 0 | AM77: 0 | AN77: 0 | AO77: 0 | AP77: 0 | AQ77: 0 | AR77: 0 | AS77: 0 | AT77: 0 | AU77: 0 | AV77: 0 | AW77: 0 | AX77: 0 | AY77: 0 | AZ77: 0 | BA77: 0 | BB77: 0 | BC77: -130374.2425 | BD77: -129957.3631 | BE77: -129539.4455 | BF77: -129120.4869 | BG77: -38958.54125 | BH77: -38313.97472 | BI77: -37667.80277 | BJ77: -36955.50825 | BK77: 54442.96 | BL77: 55407.52089 | BM77: 56374.72346 | BN77: 57344.57493 | BO77: 149998.832 | BP77: 151225.0944 | BQ77: 152454.7153 | BR77: 153687.7038 | BS77: 154924.0691 | BT77: 156163.8205 | BU77: 157406.9672 | BV77: 158653.5185 | BW77: 159903.4839 | BX77: 161156.8725 | BY77: =BY62-BY73 -> 162413.6938 | BZ77: 164129.6852 | CA77: 165852.0756 | CB77: 167580.889 | CC77: 169316.1492 | CD77: 171057.8804 | CE77: 172806.1067 | CF77: 174560.8523 | CG77: 176322.1415 | CH77: 178089.9987 | CI77: 179864.4483 | CJ77: 181645.5151 | CK77: 183433.2236 | CL77: 185227.5986 | CM77: 187028.6651 | CN77: 188836.4478 | CO77: 190650.972 | CP77: 192335.3428 | CQ77: 491774.7674 | CR77: 493469.256 | CS77: 495168.819 | CT77: 496873.4667 | CU77: 498583.2092 | CV77: 500298.0569 | CW77: 502018.02 | CX77: 503743.1086 | CY77: 505473.333 | CZ77: 507208.7033 | DA77: 508949.2298 | DB77: 510694.9224 | DC77: 512445.7915 | DD77: 514201.847 | DE77: 515963.099 | DF77: 517190.4856 | DG77: 518417.4726 | DH77: 519644.0263 | DI77: 520870.1124 | DJ77: 522095.6964 | DK77: 523320.7433 | DL77: 524545.218 | DM77: 525769.0849 | DN77: 526992.3082 | DO77: 528214.8515 | DP77: 529436.6784 | DQ77: 530657.7518 | DR77: 531878.0346 | DS77: 533097.489 | DT77: 534316.0772 | DU77: 535533.7608 | DV77: 536750.5011 | DW77: 537966.259 | DX77: 539180.9951 | DY77: 540394.6697 | DZ77: 541607.2425 | EA77: 542818.6731 | EB77: 544028.9205 | EC77: 545237.9435 | ED77: 546445.7004 | EE77: 547652.1492 | EF77: 548857.2473 | EG77: 550060.9521 | EH77: 551263.2202 | EI77: 552464.0081 | EJ77: 553663.2717 | EK77: =EK62-EK73 -> 554860.9667 | EL77: 556057.0482 | EM77: 557251.4711 | EN77: 558444.1896 | EO77: 559635.1578 | EP77: 560824.3292 | EQ77: 562011.6569 | ER77: 563197.0936 | ES77: 564380.5916 | ET77: 565562.1028 | EU77: 566741.5785 | EV77: 567918.9698 | EW77: 569094.2272 | EX77: 570267.3008 | EY77: 0 | EZ77: 0 | FA77: 0 | FB77: 0 | FC77: 0 | FD77: 0 | FE77: 0 | FF77: 0 | FG77: 0 | FH77: 0 | FI77: 0 | FJ77: 0 | FK77: 0 | FL77: 0 | FM77: 0 | FN77: 0 | FO77: 0 | FP77: 0 | FQ77: 0 | FR77: 0 | FS77: 0 | FT77: 0 | FU77: 0 | FV77: 0 | FW77: 0
C78: Taxes on Operating Income | H78: =Assumptions!G47 -> 0.2 | L78: =L77*$H$78 -> 0 | M78: =M77*$H$78 -> 0 | N78: 0 | O78: 0 | P78: 0 | Q78: 0 | R78: 0 | S78: 0 | T78: 0 | U78: 0 | V78: 0 | W78: 0 | X78: 0 | Y78: 0 | Z78: 0 | AA78: 0 | AB78: 0 | AC78: 0 | AD78: 0 | AE78: 0 | AF78: 0 | AG78: 0 | AH78: 0 | AI78: 0 | AJ78: 0 | AK78: 0 | AL78: 0 | AM78: 0 | AN78: 0 | AO78: 0 | AP78: 0 | AQ78: 0 | AR78: 0 | AS78: 0 | AT78: 0 | AU78: 0 | AV78: 0 | AW78: 0 | AX78: 0 | AY78: 0 | AZ78: 0 | BA78: 0 | BB78: 0 | BC78: -26074.84849 | BD78: -25991.47262 | BE78: -25907.88909 | BF78: -25824.09739 | BG78: -7791.70825 | BH78: -7662.794943 | BI78: -7533.560555 | BJ78: -7391.10165 | BK78: 10888.592 | BL78: 11081.50418 | BM78: 11274.94469 | BN78: 11468.91499 | BO78: 29999.76639 | BP78: 30245.01889 | BQ78: 30490.94306 | BR78: 30737.54076 | BS78: 30984.81382 | BT78: 31232.7641 | BU78: 31481.39344 | BV78: 31730.70371 | BW78: 31980.69677 | BX78: 32231.3745 | BY78: =BY77*$H$78 -> 32482.73877 | BZ78: 32825.93703 | CA78: 33170.41512 | CB78: 33516.17779 | CC78: 33863.22985 | CD78: 34211.57609 | CE78: 34561.22135 | CF78: 34912.17046 | CG78: 35264.4283 | CH78: 35617.99973 | CI78: 35972.88967 | CJ78: 36329.10302 | CK78: 36686.64472 | CL78: 37045.51973 | CM78: 37405.73301 | CN78: 37767.28956 | CO78: 38130.19439 | CP78: 38467.06856 | CQ78: 98354.95347 | CR78: 98693.8512 | CS78: 99033.76381 | CT78: 99374.69334 | CU78: 99716.64185 | CV78: 100059.6114 | CW78: 100403.604 | CX78: 100748.6217 | CY78: 101094.6666 | CZ78: 101441.7407 | DA78: 101789.846 | DB78: 102138.9845 | DC78: 102489.1583 | DD78: 102840.3694 | DE78: 103192.6198 | DF78: 103438.0971 | DG78: 103683.4945 | DH78: 103928.8053 | DI78: 104174.0225 | DJ78: 104419.1393 | DK78: 104664.1487 | DL78: 104909.0436 | DM78: 105153.817 | DN78: 105398.4616 | DO78: 105642.9703 | DP78: 105887.3357 | DQ78: 106131.5504 | DR78: 106375.6069 | DS78: 106619.4978 | DT78: 106863.2154 | DU78: 107106.7522 | DV78: 107350.1002 | DW78: 107593.2518 | DX78: 107836.199 | DY78: 108078.9339 | DZ78: 108321.4485 | EA78: 108563.7346 | EB78: 108805.7841 | EC78: 109047.5887 | ED78: 109289.1401 | EE78: 109530.4298 | EF78: 109771.4495 | EG78: 110012.1904 | EH78: 110252.644 | EI78: 110492.8016 | EJ78: 110732.6543 | EK78: =EK77*$H$78 -> 110972.1933 | EL78: 111211.4096 | EM78: 111450.2942 | EN78: 111688.8379 | EO78: 111927.0316 | EP78: 112164.8658 | EQ78: 112402.3314 | ER78: 112639.4187 | ES78: 112876.1183 | ET78: 113112.4206 | EU78: 113348.3157 | EV78: 113583.794 | EW78: 113818.8454 | EX78: 114053.4602 | EY78: 0 | EZ78: 0 | FA78: 0 | FB78: 0 | FC78: 0 | FD78: 0 | FE78: 0 | FF78: 0 | FG78: 0 | FH78: 0 | FI78: 0 | FJ78: 0 | FK78: 0 | FL78: 0 | FM78: 0 | FN78: 0 | FO78: 0 | FP78: 0 | FQ78: 0 | FR78: 0 | FS78: 0 | FT78: 0 | FU78: 0 | FV78: 0 | FW78: 0
C80: Project Cash Flow | L80: =L62-L23+L64-L78 -> -236666.6667 | M80: =M62-M23+M64-M78 -> -236666.6667 | N80: -236666.6667 | O80: -3093333.333 | P80: -93333.33333 | Q80: -93333.33333 | R80: -93333.33333 | S80: -93333.33333 | T80: -93333.33333 | U80: -93333.33333 | V80: -93333.33333 | W80: -93333.33333 | X80: -93333.33333 | Y80: -93333.33333 | Z80: -93333.33333 | AA80: -326666.6667 | AB80: -326666.6667 | AC80: -326666.6667 | AD80: -326666.6667 | AE80: -326666.6667 | AF80: -326666.6667 | AG80: -326666.6667 | AH80: -326666.6667 | AI80: -326666.6667 | AJ80: -326666.6667 | AK80: -326666.6667 | AL80: -326666.6667 | AM80: -466666.6667 | AN80: -466666.6667 | AO80: -466666.6667 | AP80: -466666.6667 | AQ80: -466666.6667 | AR80: -466666.6667 | AS80: -466666.6667 | AT80: -466666.6667 | AU80: -466666.6667 | AV80: -466666.6667 | AW80: -466666.6667 | AX80: -466666.6667 | AY80: -140000 | AZ80: -140000 | BA80: -140000 | BB80: -140000 | BC80: 193450.606 | BD80: 193784.1095 | BE80: 194118.4436 | BF80: 194453.6105 | BG80: 266583.167 | BH80: 267098.8202 | BI80: 267615.7578 | BJ80: 268185.5934 | BK80: 341304.368 | BL80: 342076.0167 | BM80: 342849.7788 | BN80: 343625.6599 | BO80: 417749.0656 | BP80: 418730.0756 | BQ80: 419713.7723 | BR80: 420700.163 | BS80: 421689.2553 | BT80: 422681.0564 | BU80: 423675.5738 | BV80: 424672.8148 | BW80: 425672.7871 | BX80: 426675.498 | BY80: =BY62-BY23+BY64-BY78 -> 427680.9551 | BZ80: 429053.7481 | CA80: 430431.6605 | CB80: 431814.7112 | CC80: 433202.9194 | CD80: 434596.3044 | CE80: 435994.8854 | CF80: 437398.6818 | CG80: 438807.7132 | CH80: 440221.9989 | CI80: 441641.5587 | CJ80: 443066.4121 | CK80: 444496.5789 | CL80: 445932.0789 | CM80: 447372.932 | CN80: 448819.1582 | CO80: 450270.7776 | CP80: 451618.2742 | CQ80: 393419.8139 | CR80: 394775.4048 | CS80: 396135.0552 | CT80: 397498.7734 | CU80: 398866.5674 | CV80: 400238.4455 | CW80: 401614.416 | CX80: 402994.4869 | CY80: 404378.6664 | CZ80: 405766.9627 | DA80: 407159.3838 | DB80: 408555.9379 | DC80: 409956.6332 | DD80: 411361.4776 | DE80: 412770.4792 | DF80: 413752.3885 | DG80: 414733.9781 | DH80: 415715.2211 | DI80: 416696.0899 | DJ80: 417676.5571 | DK80: 418656.5947 | DL80: 419636.1744 | DM80: 420615.268 | DN80: 421593.8466 | DO80: 422571.8812 | DP80: 423549.3427 | DQ80: 424526.2015 | DR80: 425502.4277 | DS80: 426477.9912 | DT80: 427452.8618 | DU80: 428427.0086 | DV80: 429400.4009 | DW80: 430373.0072 | DX80: 431344.7961 | DY80: 432315.7357 | DZ80: 433285.794 | EA80: 434254.9385 | EB80: 435223.1364 | EC80: 436190.3548 | ED80: 437156.5603 | EE80: 438121.7193 | EF80: 439085.7979 | EG80: 440048.7617 | EH80: 441010.5761 | EI80: 441971.2065 | EJ80: 442930.6174 | EK80: =EK62-EK23+EK64-EK78 -> 443888.7734 | EL80: 444845.6386 | EM80: 445801.1769 | EN80: 446755.3517 | EO80: 447708.1262 | EP80: 448659.4633 | EQ80: 449609.3255 | ER80: 450557.6749 | ES80: 451504.4733 | ET80: 452449.6822 | EU80: 453393.2628 | EV80: 454335.1758 | EW80: 455275.3818 | EX80: 28969578.88 | EY80: 0 | EZ80: 0 | FA80: 0 | FB80: 0 | FC80: 0 | FD80: 0 | FE80: 0 | FF80: 0 | FG80: 0 | FH80: 0 | FI80: 0 | FJ80: 0 | FK80: 0 | FL80: 0 | FM80: 0 | FN80: 0 | FO80: 0 | FP80: 0 | FQ80: 0 | FR80: 0 | FS80: 0 | FT80: 0 | FU80: 0 | FV80: 0 | FW80: 0
C81: Project IRR | E81: =XIRR(L80:FW80,L10:FW10) -> 0.09578389227
A83: Sources and Uses - Financing During Construction
B84: Uses
C85: Development Cost | L85: =L19 -> 236666.6667 | M85: =M19 -> 236666.6667 | N85: 236666.6667 | O85: 0 | P85: 0 | Q85: 0 | R85: 0 | S85: 0 | T85: 0 | U85: 0 | V85: 0 | W85: 0 | X85: 0 | Y85: 0 | Z85: 0 | AA85: 0 | AB85: 0 | AC85: 0 | AD85: 0 | AE85: 0 | AF85: 0 | AG85: 0 | AH85: 0 | AI85: 0 | AJ85: 0 | AK85: 0 | AL85: 0 | AM85: 0 | AN85: 0 | AO85: 0 | AP85: 0 | AQ85: 0 | AR85: 0 | AS85: 0 | AT85: 0 | AU85: 0 | AV85: 0 | AW85: 0 | AX85: 0 | AY85: 0 | AZ85: 0 | BA85: 0 | BB85: 0 | BC85: 0 | BD85: 0 | BE85: 0 | BF85: 0 | BG85: 0 | BH85: 0 | BI85: 0 | BJ85: 0 | BK85: 0 | BL85: 0 | BM85: 0 | BN85: 0 | BO85: 0 | BP85: 0 | BQ85: 0 | BR85: 0 | BS85: 0 | BT85: 0 | BU85: 0 | BV85: 0 | BW85: 0 | BX85: 0 | BY85: =BY19 -> 0 | BZ85: 0 | CA85: 0 | CB85: 0 | CC85: 0 | CD85: 0 | CE85: 0 | CF85: 0 | CG85: 0 | CH85: 0 | CI85: 0 | CJ85: 0 | CK85: 0 | CL85: 0 | CM85: 0 | CN85: 0 | CO85: 0 | CP85: 0 | CQ85: 0 | CR85: 0 | CS85: 0 | CT85: 0 | CU85: 0 | CV85: 0 | CW85: 0 | CX85: 0 | CY85: 0 | CZ85: 0 | DA85: 0 | DB85: 0 | DC85: 0 | DD85: 0 | DE85: 0 | DF85: 0 | DG85: 0 | DH85: 0 | DI85: 0 | DJ85: 0 | DK85: 0 | DL85: 0 | DM85: 0 | DN85: 0 | DO85: 0 | DP85: 0 | DQ85: 0 | DR85: 0 | DS85: 0 | DT85: 0 | DU85: 0 | DV85: 0 | DW85: 0 | DX85: 0 | DY85: 0 | DZ85: 0 | EA85: 0 | EB85: 0 | EC85: 0 | ED85: 0 | EE85: 0 | EF85: 0 | EG85: 0 | EH85: 0 | EI85: 0 | EJ85: 0 | EK85: =EK19 -> 0 | EL85: 0 | EM85: 0 | EN85: 0 | EO85: 0 | EP85: 0 | EQ85: 0 | ER85: 0 | ES85: 0 | ET85: 0 | EU85: 0 | EV85: 0 | EW85: 0 | EX85: 0 | EY85: 0 | EZ85: 0 | FA85: 0 | FB85: 0 | FC85: 0 | FD85: 0 | FE85: 0 | FF85: 0 | FG85: 0 | FH85: 0 | FI85: 0 | FJ85: 0 | FK85: 0 | FL85: 0 | FM85: 0 | FN85: 0 | FO85: 0 | FP85: 0 | FQ85: 0 | FR85: 0 | FS85: 0 | FT85: 0 | FU85: 0 | FV85: 0 | FW85: 0
C86: Land Cost | L86: =L22 -> 0 | M86: =M22 -> 0 | N86: 0 | O86: 3000000 | P86: 0 | Q86: 0 | R86: 0 | S86: 0 | T86: 0 | U86: 0 | V86: 0 | W86: 0 | X86: 0 | Y86: 0 | Z86: 0 | AA86: 0 | AB86: 0 | AC86: 0 | AD86: 0 | AE86: 0 | AF86: 0 | AG86: 0 | AH86: 0 | AI86: 0 | AJ86: 0 | AK86: 0 | AL86: 0 | AM86: 0 | AN86: 0 | AO86: 0 | AP86: 0 | AQ86: 0 | AR86: 0 | AS86: 0 | AT86: 0 | AU86: 0 | AV86: 0 | AW86: 0 | AX86: 0 | AY86: 0 | AZ86: 0 | BA86: 0 | BB86: 0 | BC86: 0 | BD86: 0 | BE86: 0 | BF86: 0 | BG86: 0 | BH86: 0 | BI86: 0 | BJ86: 0 | BK86: 0 | BL86: 0 | BM86: 0 | BN86: 0 | BO86: 0 | BP86: 0 | BQ86: 0 | BR86: 0 | BS86: 0 | BT86: 0 | BU86: 0 | BV86: 0 | BW86: 0 | BX86: 0 | BY86: =BY22 -> 0 | BZ86: 0 | CA86: 0 | CB86: 0 | CC86: 0 | CD86: 0 | CE86: 0 | CF86: 0 | CG86: 0 | CH86: 0 | CI86: 0 | CJ86: 0 | CK86: 0 | CL86: 0 | CM86: 0 | CN86: 0 | CO86: 0 | CP86: 0 | CQ86: 0 | CR86: 0 | CS86: 0 | CT86: 0 | CU86: 0 | CV86: 0 | CW86: 0 | CX86: 0 | CY86: 0 | CZ86: 0 | DA86: 0 | DB86: 0 | DC86: 0 | DD86: 0 | DE86: 0 | DF86: 0 | DG86: 0 | DH86: 0 | DI86: 0 | DJ86: 0 | DK86: 0 | DL86: 0 | DM86: 0 | DN86: 0 | DO86: 0 | DP86: 0 | DQ86: 0 | DR86: 0 | DS86: 0 | DT86: 0 | DU86: 0 | DV86: 0 | DW86: 0 | DX86: 0 | DY86: 0 | DZ86: 0 | EA86: 0 | EB86: 0 | EC86: 0 | ED86: 0 | EE86: 0 | EF86: 0 | EG86: 0 | EH86: 0 | EI86: 0 | EJ86: 0 | EK86: =EK22 -> 0 | EL86: 0 | EM86: 0 | EN86: 0 | EO86: 0 | EP86: 0 | EQ86: 0 | ER86: 0 | ES86: 0 | ET86: 0 | EU86: 0 | EV86: 0 | EW86: 0 | EX86: 0 | EY86: 0 | EZ86: 0 | FA86: 0 | FB86: 0 | FC86: 0 | FD86: 0 | FE86: 0 | FF86: 0 | FG86: 0 | FH86: 0 | FI86: 0 | FJ86: 0 | FK86: 0 | FL86: 0 | FM86: 0 | FN86: 0 | FO86: 0 | FP86: 0 | FQ86: 0 | FR86: 0 | FS86: 0 | FT86: 0 | FU86: 0 | FV86: 0 | FW86: 0
C87: Construction Cost | L87: =L21*1 -> 0 | M87: =M21*1 -> 0 | N87: 0 | O87: 93333.33333 | P87: 93333.33333 | Q87: 93333.33333 | R87: 93333.33333 | S87: 93333.33333 | T87: 93333.33333 | U87: 93333.33333 | V87: 93333.33333 | W87: 93333.33333 | X87: 93333.33333 | Y87: 93333.33333 | Z87: 93333.33333 | AA87: 326666.6667 | AB87: 326666.6667 | AC87: 326666.6667 | AD87: 326666.6667 | AE87: 326666.6667 | AF87: 326666.6667 | AG87: 326666.6667 | AH87: 326666.6667 | AI87: 326666.6667 | AJ87: 326666.6667 | AK87: 326666.6667 | AL87: 326666.6667 | AM87: 466666.6667 | AN87: 466666.6667 | AO87: 466666.6667 | AP87: 466666.6667 | AQ87: 466666.6667 | AR87: 466666.6667 | AS87: 466666.6667 | AT87: 466666.6667 | AU87: 466666.6667 | AV87: 466666.6667 | AW87: 466666.6667 | AX87: 466666.6667 | AY87: 140000 | AZ87: 140000 | BA87: 140000 | BB87: 140000 | BC87: 0 | BD87: 0 | BE87: 0 | BF87: 0 | BG87: 0 | BH87: 0 | BI87: 0 | BJ87: 0 | BK87: 0 | BL87: 0 | BM87: 0 | BN87: 0 | BO87: 0 | BP87: 0 | BQ87: 0 | BR87: 0 | BS87: 0 | BT87: 0 | BU87: 0 | BV87: 0 | BW87: 0 | BX87: 0 | BY87: =BY21*1 -> 0 | BZ87: 0 | CA87: 0 | CB87: 0 | CC87: 0 | CD87: 0 | CE87: 0 | CF87: 0 | CG87: 0 | CH87: 0 | CI87: 0 | CJ87: 0 | CK87: 0 | CL87: 0 | CM87: 0 | CN87: 0 | CO87: 0 | CP87: 0 | CQ87: 0 | CR87: 0 | CS87: 0 | CT87: 0 | CU87: 0 | CV87: 0 | CW87: 0 | CX87: 0 | CY87: 0 | CZ87: 0 | DA87: 0 | DB87: 0 | DC87: 0 | DD87: 0 | DE87: 0 | DF87: 0 | DG87: 0 | DH87: 0 | DI87: 0 | DJ87: 0 | DK87: 0 | DL87: 0 | DM87: 0 | DN87: 0 | DO87: 0 | DP87: 0 | DQ87: 0 | DR87: 0 | DS87: 0 | DT87: 0 | DU87: 0 | DV87: 0 | DW87: 0 | DX87: 0 | DY87: 0 | DZ87: 0 | EA87: 0 | EB87: 0 | EC87: 0 | ED87: 0 | EE87: 0 | EF87: 0 | EG87: 0 | EH87: 0 | EI87: 0 | EJ87: 0 | EK87: =EK21*1 -> 0 | EL87: 0 | EM87: 0 | EN87: 0 | EO87: 0 | EP87: 0 | EQ87: 0 | ER87: 0 | ES87: 0 | ET87: 0 | EU87: 0 | EV87: 0 | EW87: 0 | EX87: 0 | EY87: 0 | EZ87: 0 | FA87: 0 | FB87: 0 | FC87: 0 | FD87: 0 | FE87: 0 | FF87: 0 | FG87: 0 | FH87: 0 | FI87: 0 | FJ87: 0 | FK87: 0 | FL87: 0 | FM87: 0 | FN87: 0 | FO87: 0 | FP87: 0 | FQ87: 0 | FR87: 0 | FS87: 0 | FT87: 0 | FU87: 0 | FV87: 0 | FW87: 0
C88: Intrest During Construction | L88: =L109+L123 -> 0 | M88: =M109+M123 -> 0 | N88: 0 | O88: 0 | P88: 9713.444444 | Q88: 10026.88889 | R88: 10340.33333 | S88: 10653.77778 | T88: 10967.22222 | U88: 11280.66667 | V88: 11594.11111 | W88: 11907.55556 | X88: 12221 | Y88: 12534.44444 | Z88: 12847.88889 | AA88: 16550 | AB88: 17877.08333 | AC88: 19204.16667 | AD88: 20531.25 | AE88: 21858.33333 | AF88: 23185.41667 | AG88: 24512.5 | AH88: 25839.58333 | AI88: 27166.66667 | AJ88: 28493.75 | AK88: 29820.83333 | AL88: 31147.91667 | AM88: 32475 | AN88: 34370.83333 | AO88: 36266.66667 | AP88: 38162.5 | AQ88: 40058.33333 | AR88: 41954.16667 | AS88: 43850 | AT88: 45745.83333 | AU88: 47641.66667 | AV88: 49537.5 | AW88: 51433.33333 | AX88: 53329.16667 | AY88: 55225 | AZ88: 55793.75 | BA88: 56362.5 | BB88: 56931.25 | BC88: 0 | BD88: 0 | BE88: 0 | BF88: 0 | BG88: 0 | BH88: 0 | BI88: 0 | BJ88: 0 | BK88: 0 | BL88: 0 | BM88: 0 | BN88: 0 | BO88: 0 | BP88: 0 | BQ88: 0 | BR88: 0 | BS88: 0 | BT88: 0 | BU88: 0 | BV88: 0 | BW88: 0 | BX88: 0 | BY88: =BY109+BY123 -> 0 | BZ88: 0 | CA88: 0 | CB88: 0 | CC88: 0 | CD88: 0 | CE88: 0 | CF88: 0 | CG88: 0 | CH88: 0 | CI88: 0 | CJ88: 0 | CK88: 0 | CL88: 0 | CM88: 0 | CN88: 0 | CO88: 0 | CP88: 0 | CQ88: 0 | CR88: 0 | CS88: 0 | CT88: 0 | CU88: 0 | CV88: 0 | CW88: 0 | CX88: 0 | CY88: 0 | CZ88: 0 | DA88: 0 | DB88: 0 | DC88: 0 | DD88: 0 | DE88: 0 | DF88: 0 | DG88: 0 | DH88: 0 | DI88: 0 | DJ88: 0 | DK88: 0 | DL88: 0 | DM88: 0 | DN88: 0 | DO88: 0 | DP88: 0 | DQ88: 0 | DR88: 0 | DS88: 0 | DT88: 0 | DU88: 0 | DV88: 0 | DW88: 0 | DX88: 0 | DY88: 0 | DZ88: 0 | EA88: 0 | EB88: 0 | EC88: 0 | ED88: 0 | EE88: 0 | EF88: 0 | EG88: 0 | EH88: 0 | EI88: 0 | EJ88: 0 | EK88: =EK109+EK123 -> 0 | EL88: 0 | EM88: 0 | EN88: 0 | EO88: 0 | EP88: 0 | EQ88: 0 | ER88: 0 | ES88: 0 | ET88: 0 | EU88: 0 | EV88: 0 | EW88: 0 | EX88: 0 | EY88: 0 | EZ88: 0 | FA88: 0 | FB88: 0 | FC88: 0 | FD88: 0 | FE88: 0 | FF88: 0 | FG88: 0 | FH88: 0 | FI88: 0 | FJ88: 0 | FK88: 0 | FL88: 0 | FM88: 0 | FN88: 0 | FO88: 0 | FP88: 0 | FQ88: 0 | FR88: 0 | FS88: 0 | FT88: 0 | FU88: 0 | FV88: 0 | FW88: 0
D89: Total | L89: =SUM(L85:L88) -> 236666.6667 | M89: =SUM(M85:M88) -> 236666.6667 | N89: 236666.6667 | O89: 3093333.333 | P89: 103046.7778 | Q89: 103360.2222 | R89: 103673.6667 | S89: 103987.1111 | T89: 104300.5556 | U89: 104614 | V89: 104927.4444 | W89: 105240.8889 | X89: 105554.3333 | Y89: 105867.7778 | Z89: 106181.2222 | AA89: 343216.6667 | AB89: 344543.75 | AC89: 345870.8333 | AD89: 347197.9167 | AE89: 348525 | AF89: 349852.0833 | AG89: 351179.1667 | AH89: 352506.25 | AI89: 353833.3333 | AJ89: 355160.4167 | AK89: 356487.5 | AL89: 357814.5833 | AM89: 499141.6667 | AN89: 501037.5 | AO89: 502933.3333 | AP89: 504829.1667 | AQ89: 506725 | AR89: 508620.8333 | AS89: 510516.6667 | AT89: 512412.5 | AU89: 514308.3333 | AV89: 516204.1667 | AW89: 518100 | AX89: 519995.8333 | AY89: 195225 | AZ89: 195793.75 | BA89: 196362.5 | BB89: 196931.25 | BC89: 0 | BD89: 0 | BE89: 0 | BF89: 0 | BG89: 0 | BH89: 0 | BI89: 0 | BJ89: 0 | BK89: 0 | BL89: 0 | BM89: 0 | BN89: 0 | BO89: 0 | BP89: 0 | BQ89: 0 | BR89: 0 | BS89: 0 | BT89: 0 | BU89: 0 | BV89: 0 | BW89: 0 | BX89: 0 | BY89: =SUM(BY85:BY88) -> 0 | BZ89: 0 | CA89: 0 | CB89: 0 | CC89: 0 | CD89: 0 | CE89: 0 | CF89: 0 | CG89: 0 | CH89: 0 | CI89: 0 | CJ89: 0 | CK89: 0 | CL89: 0 | CM89: 0 | CN89: 0 | CO89: 0 | CP89: 0 | CQ89: 0 | CR89: 0 | CS89: 0 | CT89: 0 | CU89: 0 | CV89: 0 | CW89: 0 | CX89: 0 | CY89: 0 | CZ89: 0 | DA89: 0 | DB89: 0 | DC89: 0 | DD89: 0 | DE89: 0 | DF89: 0 | DG89: 0 | DH89: 0 | DI89: 0 | DJ89: 0 | DK89: 0 | DL89: 0 | DM89: 0 | DN89: 0 | DO89: 0 | DP89: 0 | DQ89: 0 | DR89: 0 | DS89: 0 | DT89: 0 | DU89: 0 | DV89: 0 | DW89: 0 | DX89: 0 | DY89: 0 | DZ89: 0 | EA89: 0 | EB89: 0 | EC89: 0 | ED89: 0 | EE89: 0 | EF89: 0 | EG89: 0 | EH89: 0 | EI89: 0 | EJ89: 0 | EK89: =SUM(EK85:EK88) -> 0 | EL89: 0 | EM89: 0 | EN89: 0 | EO89: 0 | EP89: 0 | EQ89: 0 | ER89: 0 | ES89: 0 | ET89: 0 | EU89: 0 | EV89: 0 | EW89: 0 | EX89: 0 | EY89: 0 | EZ89: 0 | FA89: 0 | FB89: 0 | FC89: 0 | FD89: 0 | FE89: 0 | FF89: 0 | FG89: 0 | FH89: 0 | FI89: 0 | FJ89: 0 | FK89: 0 | FL89: 0 | FM89: 0 | FN89: 0 | FO89: 0 | FP89: 0 | FQ89: 0 | FR89: 0 | FS89: 0 | FT89: 0 | FU89: 0 | FV89: 0 | FW89: 0
B91: Sources of Funds
C92: Land Loan | H92: =Assumptions!G51 -> 0.8 | L92: =$H$92*L86 -> 0 | M92: =$H$92*M86 -> 0 | N92: 0 | O92: 2400000 | P92: 0 | Q92: 0 | R92: 0 | S92: 0 | T92: 0 | U92: 0 | V92: 0 | W92: 0 | X92: 0 | Y92: 0 | Z92: 0 | AA92: 0 | AB92: 0 | AC92: 0 | AD92: 0 | AE92: 0 | AF92: 0 | AG92: 0 | AH92: 0 | AI92: 0 | AJ92: 0 | AK92: 0 | AL92: 0 | AM92: 0 | AN92: 0 | AO92: 0 | AP92: 0 | AQ92: 0 | AR92: 0 | AS92: 0 | AT92: 0 | AU92: 0 | AV92: 0 | AW92: 0 | AX92: 0 | AY92: 0 | AZ92: 0 | BA92: 0 | BB92: 0 | BC92: 0 | BD92: 0 | BE92: 0 | BF92: 0 | BG92: 0 | BH92: 0 | BI92: 0 | BJ92: 0 | BK92: 0 | BL92: 0 | BM92: 0 | BN92: 0 | BO92: 0 | BP92: 0 | BQ92: 0 | BR92: 0 | BS92: 0 | BT92: 0 | BU92: 0 | BV92: 0 | BW92: 0 | BX92: 0 | BY92: =$H$92*BY86 -> 0 | BZ92: 0 | CA92: 0 | CB92: 0 | CC92: 0 | CD92: 0 | CE92: 0 | CF92: 0 | CG92: 0 | CH92: 0 | CI92: 0 | CJ92: 0 | CK92: 0 | CL92: 0 | CM92: 0 | CN92: 0 | CO92: 0 | CP92: 0 | CQ92: 0 | CR92: 0 | CS92: 0 | CT92: 0 | CU92: 0 | CV92: 0 | CW92: 0 | CX92: 0 | CY92: 0 | CZ92: 0 | DA92: 0 | DB92: 0 | DC92: 0 | DD92: 0 | DE92: 0 | DF92: 0 | DG92: 0 | DH92: 0 | DI92: 0 | DJ92: 0 | DK92: 0 | DL92: 0 | DM92: 0 | DN92: 0 | DO92: 0 | DP92: 0 | DQ92: 0 | DR92: 0 | DS92: 0 | DT92: 0 | DU92: 0 | DV92: 0 | DW92: 0 | DX92: 0 | DY92: 0 | DZ92: 0 | EA92: 0 | EB92: 0 | EC92: 0 | ED92: 0 | EE92: 0 | EF92: 0 | EG92: 0 | EH92: 0 | EI92: 0 | EJ92: 0 | EK92: =$H$92*EK86 -> 0 | EL92: 0 | EM92: 0 | EN92: 0 | EO92: 0 | EP92: 0 | EQ92: 0 | ER92: 0 | ES92: 0 | ET92: 0 | EU92: 0 | EV92: 0 | EW92: 0 | EX92: 0 | EY92: 0 | EZ92: 0 | FA92: 0 | FB92: 0 | FC92: 0 | FD92: 0 | FE92: 0 | FF92: 0 | FG92: 0 | FH92: 0 | FI92: 0 | FJ92: 0 | FK92: 0 | FL92: 0 | FM92: 0 | FN92: 0 | FO92: 0 | FP92: 0 | FQ92: 0 | FR92: 0 | FS92: 0 | FT92: 0 | FU92: 0 | FV92: 0 | FW92: 0
C93: Construction Loan | H93: =Assumptions!G56 -> 0.65 | L93: =$H$93*L87 -> 0 | M93: =$H$93*M87 -> 0 | N93: 0 | O93: 60666.66667 | P93: 60666.66667 | Q93: 60666.66667 | R93: 60666.66667 | S93: 60666.66667 | T93: 60666.66667 | U93: 60666.66667 | V93: 60666.66667 | W93: 60666.66667 | X93: 60666.66667 | Y93: 60666.66667 | Z93: 60666.66667 | AA93: 212333.3333 | AB93: 212333.3333 | AC93: 212333.3333 | AD93: 212333.3333 | AE93: 212333.3333 | AF93: 212333.3333 | AG93: 212333.3333 | AH93: 212333.3333 | AI93: 212333.3333 | AJ93: 212333.3333 | AK93: 212333.3333 | AL93: 212333.3333 | AM93: 303333.3333 | AN93: 303333.3333 | AO93: 303333.3333 | AP93: 303333.3333 | AQ93: 303333.3333 | AR93: 303333.3333 | AS93: 303333.3333 | AT93: 303333.3333 | AU93: 303333.3333 | AV93: 303333.3333 | AW93: 303333.3333 | AX93: 303333.3333 | AY93: 91000 | AZ93: 91000 | BA93: 91000 | BB93: 91000 | BC93: 0 | BD93: 0 | BE93: 0 | BF93: 0 | BG93: 0 | BH93: 0 | BI93: 0 | BJ93: 0 | BK93: 0 | BL93: 0 | BM93: 0 | BN93: 0 | BO93: 0 | BP93: 0 | BQ93: 0 | BR93: 0 | BS93: 0 | BT93: 0 | BU93: 0 | BV93: 0 | BW93: 0 | BX93: 0 | BY93: =$H$93*BY87 -> 0 | BZ93: 0 | CA93: 0 | CB93: 0 | CC93: 0 | CD93: 0 | CE93: 0 | CF93: 0 | CG93: 0 | CH93: 0 | CI93: 0 | CJ93: 0 | CK93: 0 | CL93: 0 | CM93: 0 | CN93: 0 | CO93: 0 | CP93: 0 | CQ93: 0 | CR93: 0 | CS93: 0 | CT93: 0 | CU93: 0 | CV93: 0 | CW93: 0 | CX93: 0 | CY93: 0 | CZ93: 0 | DA93: 0 | DB93: 0 | DC93: 0 | DD93: 0 | DE93: 0 | DF93: 0 | DG93: 0 | DH93: 0 | DI93: 0 | DJ93: 0 | DK93: 0 | DL93: 0 | DM93: 0 | DN93: 0 | DO93: 0 | DP93: 0 | DQ93: 0 | DR93: 0 | DS93: 0 | DT93: 0 | DU93: 0 | DV93: 0 | DW93: 0 | DX93: 0 | DY93: 0 | DZ93: 0 | EA93: 0 | EB93: 0 | EC93: 0 | ED93: 0 | EE93: 0 | EF93: 0 | EG93: 0 | EH93: 0 | EI93: 0 | EJ93: 0 | EK93: =$H$93*EK87 -> 0 | EL93: 0 | EM93: 0 | EN93: 0 | EO93: 0 | EP93: 0 | EQ93: 0 | ER93: 0 | ES93: 0 | ET93: 0 | EU93: 0 | EV93: 0 | EW93: 0 | EX93: 0 | EY93: 0 | EZ93: 0 | FA93: 0 | FB93: 0 | FC93: 0 | FD93: 0 | FE93: 0 | FF93: 0 | FG93: 0 | FH93: 0 | FI93: 0 | FJ93: 0 | FK93: 0 | FL93: 0 | FM93: 0 | FN93: 0 | FO93: 0 | FP93: 0 | FQ93: 0 | FR93: 0 | FS93: 0 | FT93: 0 | FU93: 0 | FV93: 0 | FW93: 0
